Workbook

Sheet Introduction
A3: . . . . . . . . . . . . . . . . . . . . . . . . . . . . . . . . . . . . . . . . . . . . . . . . .
A5: Guidelines For Estimating
A6: ="Organic Crop Production Costs - "&I11 -> Organic Crop Production Costs - 2023
H11: Date: February, | I11: 2023
B15: The following budgets are estimates of the cost of producing the most commonly grown organic field crops in Manitoba. General Manitoba Agriculture recommendations are assumed for crop fertility management. These figures provide an economic evaluation of the crops and estimated yields required to cover all costs. Costs include labour, investment and depreciation, but do not include management costs, nor do they necessarily represent the average cost of organic production in Manitoba.
B21: These budgets may be adjusted by putting in your own figures. As a producer you are encouraged to calculate your own costs of production for various crops. On each farm, costs and yields differ due to soil type, climate and agronomic practices.
B26: This tool is available as an Excel worksheet at:
B33: is also available to help determine machinery costs.
B35: Additional information and resources on organic crop production in Manitoba
B36: is available at:
B43: Note: This budget is only a guide and is not intended as an in-depth study of the cost of production of this industry. Interpretation and use of this information is the responsibility of the user. If you need help with a budget, contact a Farm Management Specialist.

Sheet Summary
A1: ="Organic Crop Production Costs "&Introduction!I11&" Guidelines (Dollars Per Acre)" -> Organic Crop Production Costs 2023 Guidelines (Dollars Per Acre) | O1: Organic Green Manure Crops | T1: Underseed
E2: HRS | G2: Hemp | H2: Soy- | K2: Winter | L2: Buck- | M2: Sunflower | O2: Sweet | P2: Oat / Pea | Q2: Forage
C3: Flax | D3: Peas | E3: Wheat | F3: Oats | G3: Oil | H3: beans | I3: Barley | J3: Fall Rye | K3: Wheat | L3: wheat | M3: Oil | O3: Clover | P3: Mix | Q3: Peas | R3: Alfalfa | T3: Red Clover | V3: Your Farm
A4: A. Operating Costs | M4: **mustard
B5: Seed & Treatment | C5: ='Seed & Fertility'!G5 -> 75 | D5: ='Seed & Fertility'!G6 -> 75 | E5: ='Seed & Fertility'!G7 -> 60.48 | F5: ='Seed & Fertility'!G8 -> 60 | G5: ='Seed & Fertility'!G9 -> 53.75 | H5: ='Seed & Fertility'!G10 -> 84 | I5: ='Seed & Fertility'!G11 -> 37.5 | J5: ='Seed & Fertility'!G12 -> 30 | K5: ='Seed & Fertility'!G13 -> 48 | L5: ='Seed & Fertility'!G14 -> 35.75 | M5: ='Seed & Fertility'!G15 -> 16 | O5: ='Seed & Fertility'!G18 -> 15.75 | P5: ='Seed & Fertility'!G19 -> 74.8 | Q5: ='Seed & Fertility'!G20 -> 50 | R5: ='Seed & Fertility'!G21 -> 15 | T5: ='Seed & Fertility'!G24 -> 32.5 | AA5: =AVERAGE(F5,C5,E5,I5) -> 58.245
B6: Fertility | C6: ='Seed & Fertility'!$E$40 -> 171.694002 | D6: ='Seed & Fertility'!$E$40 -> 171.694002 | E6: ='Seed & Fertility'!$E$40 -> 171.694002 | F6: ='Seed & Fertility'!$E$40 -> 171.694002 | G6: ='Seed & Fertility'!$E$40 -> 171.694002 | H6: ='Seed & Fertility'!$E$40 -> 171.694002 | I6: ='Seed & Fertility'!$E$40 -> 171.694002 | J6: ='Seed & Fertility'!$E$40 -> 171.694002 | K6: ='Seed & Fertility'!$E$40 -> 171.694002 | L6: =IF('Seed & Fertility'!$D$38="error","ERROR",SUM((($O$30*'Seed & Fertility'!$E$33)+($P$30*'Seed & Fertility'!$E$34)+($T$30*'Seed & Fertility'!$E$35)+($Q$30*'Seed & Fertility'!$E$36)+($R$30*'Seed & Fertility'!$E$37))/('Seed & Fertility'!$G$29-'Seed & Fertility'!$D$29))) -> 152.732752 | M6: =IF('Seed & Fertility'!$D$38="error","ERROR",SUM((($O$30*'Seed & Fertility'!$E$33)+($P$30*'Seed & Fertility'!$E$34)+($T$30*'Seed & Fertility'!$E$35)+($Q$30*'Seed & Fertility'!$E$36)+($R$30*'Seed & Fertility'!$E$37))/('Seed & Fertility'!$G$29-'Seed & Fertility'!$D$29))) -> 152.732752 | AA6: =AVERAGE(F6,C6,E6,I6) -> 171.694002
B7: Compost | C7: ='Seed & Fertility'!$E$55 -> 15.975 | D7: ='Seed & Fertility'!$E$55 -> 15.975 | E7: ='Seed & Fertility'!$E$55 -> 15.975 | F7: ='Seed & Fertility'!$E$55 -> 15.975 | G7: ='Seed & Fertility'!$E$55 -> 15.975 | H7: ='Seed & Fertility'!$E$55 -> 15.975 | I7: ='Seed & Fertility'!$E$55 -> 15.975 | J7: ='Seed & Fertility'!$E$55 -> 15.975 | K7: ='Seed & Fertility'!$E$55 -> 15.975 | L7: =SUM('Seed & Fertility'!$E$53*('Seed & Fertility'!$C$43/'Seed & Fertility'!$F$43)) -> 15.975 | M7: =SUM('Seed & Fertility'!$E$53*('Seed & Fertility'!$C$43/'Seed & Fertility'!$F$43)) -> 15.975 | O7: ='Seed & Fertility'!$E$55 -> 15.975 | P7: ='Seed & Fertility'!$E$55 -> 15.975 | Q7: ='Seed & Fertility'!$E$55 -> 15.975 | R7: ='Seed & Fertility'!$E$55 -> 15.975 | T7: 0 | AA7: 15.975
B8: Herbicide | C8: ='Seed & Fertility'!D62 -> 0 | D8: ='Seed & Fertility'!D63 -> 0 | E8: ='Seed & Fertility'!D64 -> 0 | F8: ='Seed & Fertility'!D65 -> 0 | G8: ='Seed & Fertility'!D66 -> 0 | H8: ='Seed & Fertility'!D67 -> 0 | I8: ='Seed & Fertility'!D68 -> 0 | J8: ='Seed & Fertility'!D69 -> 0 | K8: ='Seed & Fertility'!D70 -> 0 | L8: ='Seed & Fertility'!D71 -> 0 | M8: ='Seed & Fertility'!D72 -> 0 | O8: ='Seed & Fertility'!D75 -> 0 | P8: ='Seed & Fertility'!D76 -> 0 | Q8: ='Seed & Fertility'!D77 -> 0 | R8: ='Seed & Fertility'!D78 -> 0 | T8: ='Seed & Fertility'!D81 -> 0 | AA8: 0
B9: Fungicide | C9: ='Seed & Fertility'!F62 -> 0 | D9: ='Seed & Fertility'!F63 -> 0 | E9: ='Seed & Fertility'!F64 -> 0 | F9: ='Seed & Fertility'!F65 -> 0 | G9: ='Seed & Fertility'!F66 -> 0 | H9: ='Seed & Fertility'!F67 -> 0 | I9: ='Seed & Fertility'!F68 -> 0 | J9: ='Seed & Fertility'!F69 -> 0 | K9: ='Seed & Fertility'!F70 -> 0 | L9: ='Seed & Fertility'!F71 -> 0 | M9: ='Seed & Fertility'!F72 -> 0 | O9: ='Seed & Fertility'!F75 -> 0 | P9: ='Seed & Fertility'!F76 -> 0 | Q9: ='Seed & Fertility'!F77 -> 0 | R9: ='Seed & Fertility'!F78 -> 0 | T9: ='Seed & Fertility'!F81 -> 0 | AA9: 0
B10: Insecticide | C10: ='Seed & Fertility'!H62 -> 0 | D10: ='Seed & Fertility'!H63 -> 0 | E10: ='Seed & Fertility'!H64 -> 0 | F10: ='Seed & Fertility'!H65 -> 0 | G10: ='Seed & Fertility'!H66 -> 0 | H10: ='Seed & Fertility'!H67 -> 0 | I10: ='Seed & Fertility'!H68 -> 0 | J10: ='Seed & Fertility'!H69 -> 0 | K10: ='Seed & Fertility'!H70 -> 0 | L10: ='Seed & Fertility'!H71 -> 0 | M10: ='Seed & Fertility'!H72 -> 0 | O10: ='Seed & Fertility'!H75 -> 0 | P10: ='Seed & Fertility'!H76 -> 0 | Q10: ='Seed & Fertility'!H77 -> 0 | R10: ='Seed & Fertility'!H78 -> 0 | T10: ='Seed & Fertility'!H81 -> 0 | AA10: 0
B11: Fuel | C11: ='Op. Cost Input'!D13 -> 41.33134535 | D11: ='Op. Cost Input'!D14 -> 41.4450432 | E11: ='Op. Cost Input'!D15 -> 41.69138855 | F11: ='Op. Cost Input'!D16 -> 42.22197853 | G11: ='Op. Cost Input'!D17 -> 41.27880316 | H11: ='Op. Cost Input'!D18 -> 41.42609356 | I11: ='Op. Cost Input'!D19 -> 41.74823747 | J11: ='Op. Cost Input'!D20 -> 41.60611516 | K11: ='Op. Cost Input'!D21 -> 41.71033819 | L11: ='Op. Cost Input'!D22 -> 41.36924463 | M11: ='Op. Cost Input'!D23 -> 41.86021263 | O11: ='Op. Cost Input'!D25 -> 33.99 | P11: ='Op. Cost Input'!D26 -> 33.99 | Q11: ='Op. Cost Input'!D27 -> 33.99 | R11: ='Op. Cost Input'!D28 -> 33.99 | T11: ='Op. Cost Input'!D30 -> 19.14 | AA11: 41.74823747
B12: Machinery Operating & Lease | C12: ='Op. Cost Input'!$E$6+'Fixed Cost Input'!$I$20+'Op. Cost Input'!$N13 -> 25 | D12: ='Op. Cost Input'!$E$6+'Fixed Cost Input'!$I$20+'Op. Cost Input'!$N14 -> 25 | E12: ='Op. Cost Input'!$E$6+'Fixed Cost Input'!$I$20+'Op. Cost Input'!$N15 -> 25 | F12: ='Op. Cost Input'!$E$6+'Fixed Cost Input'!$I$20+'Op. Cost Input'!$N16 -> 25 | G12: ='Op. Cost Input'!$E$6+'Fixed Cost Input'!$I$20+'Op. Cost Input'!$N17 -> 25 | H12: ='Op. Cost Input'!$E$6+'Fixed Cost Input'!$I$20+'Op. Cost Input'!$N18 -> 25 | I12: ='Op. Cost Input'!$E$6+'Fixed Cost Input'!$I$20+'Op. Cost Input'!$N19 -> 25 | J12: ='Op. Cost Input'!$E$6+'Fixed Cost Input'!$I$20+'Op. Cost Input'!$N21 -> 25 | K12: ='Op. Cost Input'!$E$6+'Fixed Cost Input'!$I$20+'Op. Cost Input'!$N21 -> 25 | L12: ='Op. Cost Input'!$E$6 -> 25 | M12: ='Op. Cost Input'!$E$6 -> 25 | O12: ='Op. Cost Input'!$E$6 -> 25 | P12: ='Op. Cost Input'!$E$6 -> 25 | Q12: ='Op. Cost Input'!$E$6 -> 25 | R12: ='Op. Cost Input'!$E$6 -> 25 | T12: ='Op. Cost Input'!$E$6/2 -> 12.5 | AA12: 25
B13: Labour - Hired | C13: ='Op. Cost Input'!C13*'Op. Cost Input'!$E$5 -> 26 | D13: ='Op. Cost Input'!C14*'Op. Cost Input'!$E$5 -> 26 | E13: ='Op. Cost Input'!C15*'Op. Cost Input'!$E$5 -> 26 | F13: ='Op. Cost Input'!C16*'Op. Cost Input'!$E$5 -> 26 | G13: ='Op. Cost Input'!C17*'Op. Cost Input'!$E$5 -> 26 | H13: ='Op. Cost Input'!C18*'Op. Cost Input'!$E$5 -> 26 | I13: ='Op. Cost Input'!C19*'Op. Cost Input'!$E$5 -> 26 | J13: ='Op. Cost Input'!C20*'Op. Cost Input'!$E$5 -> 26 | K13: ='Op. Cost Input'!C21*'Op. Cost Input'!$E$5 -> 26 | O13: ='Op. Cost Input'!$C25*'Op. Cost Input'!$E$5 -> 26 | P13: ='Op. Cost Input'!$C26*'Op. Cost Input'!$E$5 -> 26 | Q13: ='Op. Cost Input'!$C27*'Op. Cost Input'!$E$5 -> 26 | R13: ='Op. Cost Input'!$C28*'Op. Cost Input'!$E$5 -> 26 | T13: 0 | AA13: 26
B14: Crop Insurance | C14: ='Op. Cost Input'!E13 -> 57.345 | D14: ='Op. Cost Input'!E14 -> 22.175 | E14: ='Op. Cost Input'!E15 -> 58.6725 | F14: ='Op. Cost Input'!E16 -> 49.7575 | G14: ='Op. Cost Input'!E17 -> 40.57 | H14: ='Op. Cost Input'!E18 -> 20.2575 | I14: ='Op. Cost Input'!E19 -> 25.2125 | J14: ='Op. Cost Input'!E20 -> 15.225 | K14: ='Op. Cost Input'!E21 -> 61.575 | L14: ='Op. Cost Input'!E22 -> 16.21 | M14: ='Op. Cost Input'!E23 -> 14.53 | O14: ='Op. Cost Input'!E25 -> 0 | P14: ='Op. Cost Input'!E26 -> 0 | Q14: ='Op. Cost Input'!E27 -> 0 | R14: ='Op. Cost Input'!E28 -> 0 | T14: ='Op. Cost Input'!E30 -> 0 | AA14: 47.746875
B15: Hail Insurance | C15: ='Op. Cost Input'!F13 -> 9.375 | D15: ='Op. Cost Input'!$F14 -> 18.75 | E15: ='Op. Cost Input'!$F15 -> 9.375 | F15: ='Op. Cost Input'!$F16 -> 9.375 | G15: ='Op. Cost Input'!$F17 -> 18.75 | H15: ='Op. Cost Input'!$F18 -> 12.1875 | I15: ='Op. Cost Input'!$F19 -> 9.375 | J15: ='Op. Cost Input'!$F20 -> 9.375 | K15: ='Op. Cost Input'!$F21 -> 9.375 | L15: ='Op. Cost Input'!$F22 -> 16.5 | M15: ='Op. Cost Input'!$F23 -> 6.6 | O15: ='Op. Cost Input'!$F25 -> 0 | P15: ='Op. Cost Input'!$F26 -> 0 | Q15: ='Op. Cost Input'!$F27 -> 0 | R15: ='Op. Cost Input'!$F28 -> 0 | T15: ='Op. Cost Input'!$F30 -> 0 | AA15: 9.375
B16: Drying & Other Costs | C16: ='Op. Cost Input'!G13+'Op. Cost Input'!$E$7 -> 17.75 | D16: ='Op. Cost Input'!G14+'Op. Cost Input'!$E$7 -> 17.75 | E16: ='Op. Cost Input'!G15+'Op. Cost Input'!$E$7 -> 17.75 | F16: ='Op. Cost Input'!G16+'Op. Cost Input'!$E$7 -> 17.75 | G16: ='Op. Cost Input'!G17+'Op. Cost Input'!$E$7 -> 37.75 | H16: ='Op. Cost Input'!G18+'Op. Cost Input'!$E$7 -> 17.75 | I16: ='Op. Cost Input'!G19+'Op. Cost Input'!$E$7 -> 17.75 | J16: ='Op. Cost Input'!G20+'Op. Cost Input'!$E$7 -> 17.75 | K16: ='Op. Cost Input'!G21+'Op. Cost Input'!$E$7 -> 17.75 | L16: ='Op. Cost Input'!G22 -> - | M16: ='Op. Cost Input'!G23 -> 10 | O16: ='Op. Cost Input'!G25+'Op. Cost Input'!$E$7 -> 17.75 | P16: ='Op. Cost Input'!G26+'Op. Cost Input'!$E$7 -> 17.75 | Q16: ='Op. Cost Input'!G27+'Op. Cost Input'!$E$7 -> 17.75 | R16: ='Op. Cost Input'!G28+'Op. Cost Input'!$E$7 -> 17.75 | T16: ='Op. Cost Input'!$E$7/2 -> 8.875 | AA16: 17.75
B17: Certification Cost | C17: ='Seed & Fertility'!$G$89 -> 3.333333333 | D17: ='Seed & Fertility'!$G$89 -> 3.333333333 | E17: ='Seed & Fertility'!$G$89 -> 3.333333333 | F17: ='Seed & Fertility'!$G$89 -> 3.333333333 | G17: ='Seed & Fertility'!$G$89 -> 3.333333333 | H17: ='Seed & Fertility'!$G$89 -> 3.333333333 | I17: ='Seed & Fertility'!$G$89 -> 3.333333333 | J17: ='Seed & Fertility'!$G$89 -> 3.333333333 | K17: ='Seed & Fertility'!$G$89 -> 3.333333333 | L17: ='Seed & Fertility'!$G$89 -> 3.333333333 | M17: ='Seed & Fertility'!$G$89 -> 3.333333333 | O17: ='Seed & Fertility'!$G$89 -> 3.333333333 | P17: ='Seed & Fertility'!$G$89 -> 3.333333333 | Q17: ='Seed & Fertility'!$G$89 -> 3.333333333 | R17: ='Seed & Fertility'!$G$89 -> 3.333333333 | T17: 0 | AA17: 3.333333333
B18: Land Taxes | C18: ='Op. Cost Input'!$E$4 -> 17.5 | D18: ='Op. Cost Input'!$E$4 -> 17.5 | E18: ='Op. Cost Input'!$E$4 -> 17.5 | F18: ='Op. Cost Input'!$E$4 -> 17.5 | G18: ='Op. Cost Input'!$E$4 -> 17.5 | H18: ='Op. Cost Input'!$E$4 -> 17.5 | I18: ='Op. Cost Input'!$E$4 -> 17.5 | J18: ='Op. Cost Input'!$E$4 -> 17.5 | K18: ='Op. Cost Input'!$E$4 -> 17.5 | L18: ='Op. Cost Input'!$E$4 -> 17.5 | M18: ='Op. Cost Input'!$E$4 -> 17.5 | O18: ='Op. Cost Input'!$E$4 -> 17.5 | P18: ='Op. Cost Input'!$E$4 -> 17.5 | Q18: ='Op. Cost Input'!$E$4 -> 17.5 | R18: ='Op. Cost Input'!$E$4 -> 17.5 | T18: 0 | AA18: 17.5
B19: Storage Costs | C19: ='Op. Cost Input'!H13 -> 3.377842892 | D19: ='Op. Cost Input'!$H14 -> 4.936847303 | E19: ='Op. Cost Input'!$H15 -> 8.314690195 | F19: ='Op. Cost Input'!$H16 -> 15.59004412 | G19: ='Op. Cost Input'!$H17 -> 2.657393883 | H19: ='Op. Cost Input'!$H18 -> 4.677013235 | I19: ='Op. Cost Input'!$H19 -> 9.094192401 | J19: ='Op. Cost Input'!$H20 -> 7.145436886 | K19: ='Op. Cost Input'!$H21 -> 8.574524264 | L19: ='Op. Cost Input'!$H22 ->  | M19: ='Op. Cost Input'!$H23 ->  | O19: ='Op. Cost Input'!H25 -> 0 | P19: ='Op. Cost Input'!H26 -> 0 | Q19: ='Op. Cost Input'!H27 -> 0 | R19: ='Op. Cost Input'!H28 -> 0 | T19: ='Op. Cost Input'!H30 -> 0 | AA19: 9.094192401
B20: Interest on Operating | C20: =ROUND(SUM(C5:C18)/2*('Op. Cost Input'!$E$3),2) -> 17.84 | D20: =ROUND(SUM(D5:D18)/2*('Op. Cost Input'!$E$3),2) -> 16.84 | E20: =ROUND(SUM(E5:E18)/2*('Op. Cost Input'!$E$3),2) -> 17.34 | F20: =ROUND(SUM(F5:F18)/2*('Op. Cost Input'!$E$3),2) -> 17 | G20: =ROUND(SUM(G5:G18)/2*('Op. Cost Input'!$E$3),2) -> 17.5 | H20: =ROUND(SUM(H5:H18)/2*('Op. Cost Input'!$E$3),2) -> 16.86 | I20: =ROUND(SUM(I5:I18)/2*('Op. Cost Input'!$E$3),2) -> 15.15 | J20: =ROUND(SUM(J5:J18)/2*('Op. Cost Input'!$E$3),2) -> 14.47 | K20: =ROUND(SUM(K5:K18)/2*('Op. Cost Input'!E3),2) -> 16.97 | L20: =ROUND(SUM(L5:L18)/2*('Op. Cost Input'!$E$3),2) -> 12.57 | M20: =ROUND(SUM(M5:M18)/2*('Op. Cost Input'!$E$3),2) -> 11.76 | O20: =ROUND(SUM(O5:O18)/2*('Op. Cost Input'!$E$3),2) -> 6.02 | P20: =ROUND(SUM(P5:P18)/2*('Op. Cost Input'!$E$3),2) -> 8.31 | Q20: =ROUND(SUM(Q5:Q18)/2*('Op. Cost Input'!$E$3),2) -> 7.34 | R20: =ROUND(SUM(R5:R18)/2*('Op. Cost Input'!$E$3),2) -> 5.99 | T20: =ROUND(SUM(T5:T18)/2*('Op. Cost Input'!$E$3),2) -> 2.83 | AA20: 16.8325
B21: Total Operating | C21: =SUM(C5:C20) -> 481.5215236 | D21: 456.3992259 | E21: 473.1259141 | F21: 471.196858 | G21: 471.7585324 | H21: 456.6604422 | I21: 415.3322653 | J21: 395.0738874 | K21: 463.4571978 | O21: =SUM(O5:O20) -> 161.3183333 | P21: =SUM(P5:P20) -> 222.6583333 | Q21: =SUM(Q5:Q20) -> 196.8883333 | R21: =SUM(R5:R20) -> 160.5383333 | T21: =SUM(T5:T20) -> 75.845 | V21: =IF(SUM(V5:V20)=0,"",SUM(V5:V20)) ->  | AA21: 460.2941403
A23: B. Fixed Costs
B24: Land Investment Costs | C24: ='Fixed Cost Input'!$D$14 -> 97.17294514 | D24: ='Fixed Cost Input'!$D$14 -> 97.17294514 | E24: ='Fixed Cost Input'!$D$14 -> 97.17294514 | F24: ='Fixed Cost Input'!$D$14 -> 97.17294514 | G24: ='Fixed Cost Input'!$D$14 -> 97.17294514 | H24: ='Fixed Cost Input'!$D$14 -> 97.17294514 | I24: ='Fixed Cost Input'!$D$14 -> 97.17294514 | J24: ='Fixed Cost Input'!$D$14 -> 97.17294514 | K24: ='Fixed Cost Input'!$D$14 -> 97.17294514 | L24: ='Fixed Cost Input'!$D$14 -> 97.17294514 | M24: ='Fixed Cost Input'!$D$14 -> 97.17294514 | O24: ='Fixed Cost Input'!$D$14 -> 97.17294514 | P24: ='Fixed Cost Input'!$D$14 -> 97.17294514 | Q24: ='Fixed Cost Input'!$D$14 -> 97.17294514 | R24: ='Fixed Cost Input'!$D$14 -> 97.17294514 | T24: 0 | AA24: 97.17294514
B25: Machinery Costs | C25: ='Fixed Cost Input'!$I$17 -> 86.36697767 | D25: ='Fixed Cost Input'!$I$17 -> 86.36697767 | E25: ='Fixed Cost Input'!$I$17 -> 86.36697767 | F25: ='Fixed Cost Input'!$I$17 -> 86.36697767 | G25: ='Fixed Cost Input'!$I$17 -> 86.36697767 | H25: ='Fixed Cost Input'!$I$17 -> 86.36697767 | I25: ='Fixed Cost Input'!$I$17 -> 86.36697767 | J25: ='Fixed Cost Input'!$I$17 -> 86.36697767 | K25: ='Fixed Cost Input'!$I$17 -> 86.36697767 | L25: ='Fixed Cost Input'!$I$17 -> 86.36697767 | M25: ='Fixed Cost Input'!$I$17 -> 86.36697767 | O25: ='Fixed Cost Input'!$I$17 -> 86.36697767 | P25: ='Fixed Cost Input'!$I$17 -> 86.36697767 | Q25: ='Fixed Cost Input'!$I$17 -> 86.36697767 | R25: ='Fixed Cost Input'!$I$17 -> 86.36697767 | T25: 0 | AA25: 86.36697767
B26: Total Fixed | C26: =SUM(C24:C25) -> 183.5399228 | D26: 183.5399228 | E26: 183.5399228 | F26: 183.5399228 | G26: 183.5399228 | H26: 183.5399228 | I26: 183.5399228 | J26: 183.5399228 | K26: 183.5399228 | L26: 183.5399228 | M26: 183.5399228 | O26: =SUM(O24:O25) -> 183.5399228 | P26: =SUM(P24:P25) -> 183.5399228 | Q26: =SUM(Q24:Q25) -> 183.5399228 | R26: =SUM(R24:R25) -> 183.5399228 | T26: =SUM(T24:T25) -> 0 | V26: =IF(SUM(V24:V25)=0,"",SUM(V24:V25)) ->  | AA26: 183.5399228
A28: C. Owners - Labour & Living | C28: ='Op. Cost Input'!$E$9*'Op. Cost Input'!$E$5 -> 52 | D28: ='Op. Cost Input'!$E$9*'Op. Cost Input'!$E$5 -> 52 | E28: ='Op. Cost Input'!$E$9*'Op. Cost Input'!$E$5 -> 52 | F28: ='Op. Cost Input'!$E$9*'Op. Cost Input'!$E$5 -> 52 | G28: ='Op. Cost Input'!$E$9*'Op. Cost Input'!$E$5 -> 52 | H28: ='Op. Cost Input'!$E$9*'Op. Cost Input'!$E$5 -> 52 | I28: ='Op. Cost Input'!$E$9*'Op. Cost Input'!$E$5 -> 52 | J28: ='Op. Cost Input'!$E$9*'Op. Cost Input'!$E$5 -> 52 | K28: ='Op. Cost Input'!$E$9*'Op. Cost Input'!$E$5 -> 52 | L28: ='Op. Cost Input'!$C22*'Op. Cost Input'!$E$5 -> 83.2 | M28: ='Op. Cost Input'!$C23*'Op. Cost Input'!$E$5 -> 83.2 | O28: ='Op. Cost Input'!$E$9*'Op. Cost Input'!$E$5 -> 52 | P28: ='Op. Cost Input'!$E$9*'Op. Cost Input'!$E$5 -> 52 | Q28: ='Op. Cost Input'!$E$9*'Op. Cost Input'!$E$5 -> 52 | R28: ='Op. Cost Input'!$E$9*'Op. Cost Input'!$E$5 -> 52 | T28: 0 | AA28: 52
A30: Total Costs | C30: =+C21+C26+C28 -> 717.0614464 | D30: 691.9391487 | E30: 708.6658369 | F30: 706.7367808 | G30: 707.2984552 | H30: 692.200365 | I30: 650.8721881 | J30: 630.6138102 | K30: 698.9971206 | O30: =+O21+O26+O28 -> 396.8582561 | P30: =+P21+P26+P28 -> 458.1982561 | Q30: =+Q21+Q26+Q28 -> 432.4282561 | R30: =+R21+R26+R28 -> 396.0782561 | T30: =+T21+T26+T28 -> 75.845 | V30: =IF(OR(V21="",V26="",V28=""),"",SUM(V21+V26+V28)) ->  | AA30: 695.8340631
C32: Profitability Analysis
A33: Estimated Farmgate
B34: Target Price $ per unit | C34: 53 | D34: 20.5 | E34: 23 | F34: 10 | G34: 1.8 | H34: 30 | I34: 10 | J34: 10.25 | K34: 19 | L34: 18 | M34: 0.5
B35: Target Yield per acre (bu or lb.) | C35: 13 | D35: 19 | E35: 32 | F35: 60 | G35: 450 | H35: 18 | I35: 35 | J35: 27.5 | K35: 33 | L35: 15 | M35: 900
B36: Unit type | C36: bu | D36: bu | E36: bu | F36: bu | G36: lb | H36: bu | I36: bu | J36: bu | K36: bu | L36: bu | M36: lb
B37: Gross Revenue / acre | C37: =ROUND((C34*C35),2) -> 689 | D37: 389.5 | E37: 736 | F37: 600 | G37: 810 | H37: 540 | I37: 350 | J37: 281.88 | K37: 627 | L37: 270 | M37: 450 | V37: =IF(OR(V34="",V35=""),"",ROUND(V34*V35,2)) ->  | AA37: 593.75
B38: Revenue Ranking | C38: =RANK(C37,$C$37:$K$37) -> 3 | D38: =RANK(D37,$C$37:$K$37) -> 7 | E38: =RANK(E37,$C$37:$K$37) -> 2 | F38: 5 | G38: 1 | H38: 6 | I38: 8 | J38: 9 | K38: 4 | L38: =RANK(L37,$C$37:$M$37) -> 11 | M38: 7
B40: Operating Expense Ratio | C40: =SUM(C21/C37) -> 0.6988701359 | D40: 1.171756677 | E40: 0.6428341224 | F40: 0.7853280967 | G40: 0.5824179413 | H40: 0.8456674855 | I40: 1.186663615 | J40: 1.401567644 | K40: 0.7391661847 | V40: =IF(OR(V21="",V37=""),"",V21/V37) -> 
A42: Marginal Returns
B43: Over Operating Costs | C43: =SUM(C37-C21) -> 207.4784764 | D43: -66.89922588 | E43: 262.8740859 | F43: 128.803142 | G43: 338.2414676 | H43: 83.33955783 | I43: -65.33226525 | J43: -113.1938874 | K43: 163.5428022 | V43: =IF(OR(V21="",V37=""),"",V37-V21) ->  | AA43: 133.4558597
B44: Over Operating & Fixed Costs | C44: =SUM(C37-C21-C26) -> 23.93855357 | D44: -250.4391487 | E44: 79.33416307 | F44: -54.73678083 | G44: 154.7015448 | H44: -100.200365 | I44: -248.8721881 | J44: -296.7338102 | K44: -19.99712064 | AA44: -50.08406306
B45: Over Total Costs (Net Profit) | C45: =SUM(C37-C30) -> -28.06144643 | D45: -302.4391487 | E45: 27.33416307 | F45: -106.7367808 | G45: 102.7015448 | H45: -152.200365 | I45: -300.8721881 | J45: -348.7338102 | K45: -71.99712064 | V45: =IF(OR(V30="",V37=""),"",V37-V30) ->  | AA45: -102.0840631
B46: Profitability Ranking | C46: =RANK(C45,$C$45:$K$45) -> 3 | D46: =RANK(D45,$C$45:$K$45) -> 8 | E46: 2 | F46: 5 | G46: 1 | H46: 6 | I46: 7 | J46: 9 | K46: 4
A48: Return on Investment (ROI) | C48: =SUM((C37-C30)/C30) -> -0.03913394949 | D48: =SUM((D37-D30)/D30) -> -0.4370892285 | E48: 0.03857130067 | F48: -0.1510276297 | G48: 0.1452025577 | H48: -0.2198790591 | I48: -0.462260016 | J48: -0.5530069348 | K48: -0.1030005969
A49: Return on Asset (ROA) | C49: =SUM((C43-C28-'Fixed Cost Input'!$I$15)/(('Fixed Cost Input'!$D$4)+'Fixed Cost Input'!$I$5)) -> 0.02884562675 | D49: =SUM((D43-D28-'Fixed Cost Input'!$I$15)/(('Fixed Cost Input'!$D$4)+'Fixed Cost Input'!$I$5)) -> -0.0342297071 | E49: =SUM((E43-E28-'Fixed Cost Input'!$I$15)/(('Fixed Cost Input'!$D$4)+'Fixed Cost Input'!$I$5)) -> 0.04158024963 | F49: =SUM((F43-F28-'Fixed Cost Input'!$I$15)/(('Fixed Cost Input'!$D$4)+'Fixed Cost Input'!$I$5)) -> 0.01075934298 | G49: =SUM((G43-G28-'Fixed Cost Input'!$I$15)/(('Fixed Cost Input'!$D$4)+'Fixed Cost Input'!$I$5)) -> 0.0589060845 | H49: =SUM((H43-H28-'Fixed Cost Input'!$I$15)/(('Fixed Cost Input'!$D$4)+'Fixed Cost Input'!$I$5)) -> 0.000307944328 | I49: =SUM((I43-I28-'Fixed Cost Input'!$I$15)/(('Fixed Cost Input'!$D$4)+'Fixed Cost Input'!$I$5)) -> -0.03386948627 | J49: =SUM((J43-J28-'Fixed Cost Input'!$I$15)/(('Fixed Cost Input'!$D$4)+'Fixed Cost Input'!$I$5)) -> -0.04487215803 | K49: =SUM((K43-K28-'Fixed Cost Input'!$I$15)/(('Fixed Cost Input'!$D$4)+'Fixed Cost Input'!$I$5)) -> 0.01874547176
C51: Breakeven Analysis
A52: Breakeven Price Per Unit
B53: Operating Costs | C53: =SUM(C21/C35) -> 37.0401172 | D53: 24.02101189 | E53: 14.78518482 | F53: 7.853280967 | G53: 1.048352294 | H53: 25.37002457 | I53: 11.86663615 | J53: 14.36632318 | K53: 14.04415751
B54: Operating & Fixed Costs | C54: =SUM((C21+C26)/C35) -> 51.1585728 | D54: 33.68100783 | E54: 20.5208074 | F54: 10.91227968 | G54: 1.456218789 | H54: 35.56668694 | I54: 17.11063394 | J54: 21.04050219 | K54: 19.60597335
B55: Total Costs | C55: =SUM(C30/C35) -> 55.1585728 | D55: 36.41784993 | E55: 22.1458074 | F55: 11.77894635 | G55: 1.571774345 | H55: 38.45557583 | I55: 18.59634823 | J55: 22.93141128 | K55: 21.18173093
A57: Breakeven Yield (Bu or lb.)
B58: Operating Costs | C58: =SUM(C21/C34) -> 9.085311766 | D58: =D21/D34 -> 22.26337687 | E58: 20.57069192 | F58: 47.1196858 | G58: 262.0880736 | H58: 15.22201474 | I58: 41.53322653 | J58: 38.5437939 | K58: 24.3924841
B59: Operating & Fixed Costs | C59: =SUM((C21+C26)/C34) -> 12.54832918 | D59: 31.21654384 | E59: 28.55068856 | F59: 65.47367808 | G59: 364.0546973 | H59: 21.34001217 | I59: 59.88721881 | J59: 56.45012783 | K59: 34.05248003
B60: Total Costs | C60: =C30/C34 -> 13.52946125 | D60: 33.7531292 | E60: 30.81155813 | F60: 70.67367808 | G60: 392.9435862 | H60: 23.0733455 | I60: 65.08721881 | J60: 61.52329856 | K60: 36.78932214
A62: Breakeven Yield Risk Ratio | C62: =SUM(C35/C60) -> 0.9608660505 | D62: 0.5629107715 | E62: 1.038571301 | F62: 0.8489723703 | G62: 1.145202558 | H62: 0.7801209409 | I62: 0.537739984 | J62: 0.4469851364 | K62: 0.8969994031
B63: (Yield per acre / BE Yield)
B65: Note: This budget is only a guide and is not intended as an in depth study of the cost of production of this industry. Interpretation and utilization of this information is the responsibility of the user.

Sheet Risk Analysis
C1: AgriInsurance Analysis
E3: HRS | H3: Soy- | K3: Winter
C4: Flax | D4: Peas | E4: Wheat | F4: Oats | G4: Hemp | H4: beans | I4: Barley | J4: Fall Rye | K4: Wheat | M4: Your Farm
A6: AgriInsurance
B7: 80% Insured Value | C7: 521.208 | D7: 358.7408 | E7: 550.8848 | F7: 482.664 | G7: 366.08 | H7: 386.576 | I7: 425.3664 | J7: 553.7664 | K7: 565.0944
B8: Premium Cost (% of Insured) | C8: =IF(Summary!C14=0,"n/a",SUM(Summary!C14/C7)) -> 0.1100232537 | D8: =IF(Summary!D14=0,"n/a",SUM(Summary!D14/D7)) -> 0.06181343187 | E8: =IF(Summary!E14=0,"n/a",SUM(Summary!E14/E7)) -> 0.1065059337 | F8: =IF(Summary!F14=0,"n/a",SUM(Summary!F14/F7)) -> 0.1030893126 | G8: =IF(Summary!G14=0,"n/a",SUM(Summary!G14/G7)) -> 0.110822771 | H8: =IF(Summary!H14=0,"n/a",SUM(Summary!H14/H7)) -> 0.05240237366 | I8: =IF(Summary!I14=0,"n/a",SUM(Summary!I14/I7)) -> 0.0592724296 | J8: =IF(Summary!J14=0,"n/a",SUM(Summary!J14/J7)) -> 0.0274935424 | K8: =IF(Summary!K14=0,"n/a",SUM(Summary!K14/K7)) -> 0.1089640952
A10: Costs Not Covered By AgriInsurance
B11: Operating Costs | C11: =IF(Summary!C21-C7<0,0,SUM(Summary!C21-C7)) -> 0 | D11: =IF(Summary!D21-D7<0,0,SUM(Summary!D21-D7)) -> 97.65842588 | E11: =IF(Summary!E21-E7<0,0,SUM(Summary!E21-E7)) -> 0 | F11: =IF(Summary!F21-F7<0,0,SUM(Summary!F21-F7)) -> 0 | G11: =IF(Summary!G21-G7<0,0,SUM(Summary!G21-G7)) -> 105.6785324 | H11: =IF(Summary!H21-H7<0,0,SUM(Summary!H21-H7)) -> 70.08444217 | I11: =IF(Summary!I21-I7<0,0,SUM(Summary!I21-I7)) -> 0 | J11: =IF(Summary!J21-J7<0,0,SUM(Summary!J21-J7)) -> 0 | K11: =IF(Summary!K21-K7<0,0,SUM(Summary!K21-K7)) -> 0
B12: Operating & Fixed Costs | C12: =IF(Summary!C21+Summary!C26-C7<0,0,SUM(Summary!C21+Summary!C26-C7)) -> 143.8534464 | D12: =IF(Summary!D21+Summary!D26-D7<0,0,SUM(Summary!D21+Summary!D26-D7)) -> 281.1983487 | E12: =IF(Summary!E21+Summary!E26-E7<0,0,SUM(Summary!E21+Summary!E26-E7)) -> 105.7810369 | F12: =IF(Summary!F21+Summary!F26-F7<0,0,SUM(Summary!F21+Summary!F26-F7)) -> 172.0727808 | G12: =IF(Summary!G21+Summary!G26-G7<0,0,SUM(Summary!G21+Summary!G26-G7)) -> 289.2184552 | H12: =IF(Summary!H21+Summary!H26-H7<0,0,SUM(Summary!H21+Summary!H26-H7)) -> 253.624365 | I12: =IF(Summary!I21+Summary!I26-I7<0,0,SUM(Summary!I21+Summary!I26-I7)) -> 173.5057881 | J12: =IF(Summary!J21+Summary!J26-J7<0,0,SUM(Summary!J21+Summary!J26-J7)) -> 24.84741023 | K12: =IF(Summary!K21+Summary!K26-K7<0,0,SUM(Summary!K21+Summary!K26-K7)) -> 81.90272064
B13: Total Costs | C13: =IF(Summary!C30-C7<0,0,SUM(Summary!C30-C7)) -> 195.8534464 | D13: =IF(Summary!D30-D7<0,0,SUM(Summary!D30-D7)) -> 333.1983487 | E13: =IF(Summary!E30-E7<0,0,SUM(Summary!E30-E7)) -> 157.7810369 | F13: =IF(Summary!F30-F7<0,0,SUM(Summary!F30-F7)) -> 224.0727808 | G13: =IF(Summary!G30-G7<0,0,SUM(Summary!G30-G7)) -> 341.2184552 | H13: =IF(Summary!H30-H7<0,0,SUM(Summary!H30-H7)) -> 305.624365 | I13: =IF(Summary!I30-I7<0,0,SUM(Summary!I30-I7)) -> 225.5057881 | J13: =IF(Summary!J30-J7<0,0,SUM(Summary!J30-J7)) -> 76.84741023 | K13: =IF(Summary!K30-K7<0,0,SUM(Summary!K30-K7)) -> 133.9027206
A15: AgriInsurance Risk Ratio | C15: =SUM(C7/Summary!C21) -> 1.082418904 | D15: =SUM(D7/Summary!D21) -> 0.7860241202 | E15: =SUM(E7/Summary!E21) -> 1.164351357 | F15: =SUM(F7/Summary!F21) -> 1.024336202 | G15: =SUM(G7/Summary!G21) -> 0.7759902044 | H15: =SUM(H7/Summary!H21) -> 0.8465283267 | I15: =SUM(I7/Summary!I21) -> 1.024159295 | J15: =SUM(J7/Summary!J21) -> 1.40167806 | K15: =SUM(K7/Summary!K21) -> 1.219302241
B16: (AgriInsurance Coverage / Operating Cost)
B17: Risk Ranking | C17: =RANK(C15,$C$15:$K$15) -> 4 | D17: 8 | E17: 3 | F17: 5 | G17: 9 | H17: 7 | I17: 6 | J17: 1 | K17: 2
B20: Sensitivity Analysis (Stress Test)
A24: =Summary!A4 -> A. Operating Costs | C24: =Summary!C21 -> 481.5215236 | D24: =Summary!D21 -> 456.3992259 | E24: =Summary!E21 -> 473.1259141 | F24: =Summary!F21 -> 471.196858 | G24: =Summary!G21 -> 471.7585324 | H24: =Summary!H21 -> 456.6604422 | I24: =Summary!I21 -> 415.3322653 | J24: =Summary!J21 -> 395.0738874 | K24: =Summary!K21 -> 463.4571978
A25: =Summary!A23 -> B. Fixed Costs | C25: =Summary!C26 -> 183.5399228 | D25: =Summary!D26 -> 183.5399228 | E25: =Summary!E26 -> 183.5399228 | F25: =Summary!F26 -> 183.5399228 | G25: =Summary!G26 -> 183.5399228 | H25: =Summary!H26 -> 183.5399228 | I25: =Summary!I26 -> 183.5399228 | J25: =Summary!J26 -> 183.5399228 | K25: =Summary!K26 -> 183.5399228
A26: =Summary!A30 -> Total Costs | C26: =Summary!C30 -> 717.0614464 | D26: =Summary!D30 -> 691.9391487 | E26: =Summary!E30 -> 708.6658369 | F26: =Summary!F30 -> 706.7367808 | G26: =Summary!G30 -> 707.2984552 | H26: =Summary!H30 -> 692.200365 | I26: =Summary!I30 -> 650.8721881 | J26: =Summary!J30 -> 630.6138102 | K26: =Summary!K30 -> 698.9971206
A28: Estimated Farmgate
B29: Price $ per unit | C29: =Summary!C34 -> 53 | D29: =Summary!D34 -> 20.5 | E29: =Summary!E34 -> 23 | F29: =Summary!F34 -> 10 | G29: =Summary!G34 -> 1.8 | H29: =Summary!H34 -> 30 | I29: =Summary!I34 -> 10 | J29: =Summary!J34 -> 10.25 | K29: =Summary!K34 -> 19
B30: Yield per acre (bu or lb.) | C30: =Summary!C35 -> 13 | D30: =Summary!D35 -> 19 | E30: =Summary!E35 -> 32 | F30: =Summary!F35 -> 60 | G30: =Summary!G35 -> 450 | H30: =Summary!H35 -> 18 | I30: =Summary!I35 -> 35 | J30: =Summary!J35 -> 27.5 | K30: =Summary!K35 -> 33
B31: Unit type | C31: bu | D31: bu | E31: bu | F31: bu | G31: bu | H31: bu | I31: bu | J31: bu | K31: lb
A34: A. Operating Costs | C34: =Summary!C21 -> 481.5215236 | D34: =Summary!D21 -> 456.3992259 | E34: =Summary!E21 -> 473.1259141 | F34: =Summary!F21 -> 471.196858 | G34: =Summary!G21 -> 471.7585324 | H34: =Summary!H21 -> 456.6604422 | I34: =Summary!I21 -> 415.3322653 | J34: =Summary!J21 -> 395.0738874 | K34: =Summary!K21 -> 463.4571978
A35: B. Fixed Costs | C35: =Summary!C26 -> 183.5399228 | D35: =Summary!D26 -> 183.5399228 | E35: =Summary!E26 -> 183.5399228 | F35: =Summary!F26 -> 183.5399228 | G35: =Summary!G26 -> 183.5399228 | H35: =Summary!H26 -> 183.5399228 | I35: =Summary!I26 -> 183.5399228 | J35: =Summary!J26 -> 183.5399228 | K35: =Summary!K26 -> 183.5399228
A36: Total Costs | C36: =Summary!C30 -> 717.0614464 | D36: =Summary!D30 -> 691.9391487 | E36: =Summary!E30 -> 708.6658369 | F36: =Summary!F30 -> 706.7367808 | G36: =Summary!G30 -> 707.2984552 | H36: =Summary!H30 -> 692.200365 | I36: =Summary!I30 -> 650.8721881 | J36: =Summary!J30 -> 630.6138102 | K36: =Summary!K30 -> 698.9971206
A38: Estimated Farmgate
B39: Price $ per unit | C39: =Summary!C34 -> 53 | D39: =Summary!D34 -> 20.5 | E39: =Summary!E34 -> 23 | F39: =Summary!F34 -> 10 | G39: =Summary!G34 -> 1.8 | H39: =Summary!H34 -> 30 | I39: =Summary!I34 -> 10 | J39: =Summary!J34 -> 10.25 | K39: =Summary!K34 -> 19
B40: Yield per acre (bu or lb.) | C40: =Summary!C35 -> 13 | D40: =Summary!D35 -> 19 | E40: =Summary!E35 -> 32 | F40: =Summary!F35 -> 60 | G40: =Summary!G35 -> 450 | H40: =Summary!H35 -> 18 | I40: =Summary!I35 -> 35 | J40: =Summary!J35 -> 27.5 | K40: =Summary!K35 -> 33
B41: Unit type | C41: bu | D41: bu | E41: bu | F41: bu | G41: bu | H41: bu | I41: bu | J41: bu | K41: lb
E43: Percent Market Price Change | F43: -0.05
E44: Percent Crop Yield Change | F44: -0.1
E47: HRS | H47: Soy- | K47: Winter
C48: Flax | D48: Peas | E48: Wheat | F48: Oats | G48: Hemp | H48: beans | I48: Barley | J48: Fall Rye | K48: Wheat | M48: Your Farm
B50: Market Price ($ per unit) | C50: =SUM(C39*(1+$F$43)) -> 50.35 | D50: =SUM(D39*(1+$F$43)) -> 19.475 | E50: 21.85 | F50: 9.5 | G50: 1.71 | H50: 28.5 | I50: 9.5 | J50: 9.7375 | K50: 18.05
B51: Yield (per acre) | C51: =ROUND(C40*(1+$F$44),0) -> 12 | D51: =ROUND(D40*(1+$F$44),0) -> 17 | E51: 29 | F51: 54 | G51: 405 | H51: 16 | I51: 32 | J51: 25 | K51: 30
A54: ="Stress Test Scenario = Market Price "&IF(F43<0,"Down","Up")&" "&ABS(F43*100)&"%, and Crop Yield "&IF(F44<0,"Down","Up")&" "&ABS(F44*100)&"%" -> Stress Test Scenario = Market Price Down 5%, and Crop Yield Down 10%
B55: Gross Revenue / acre | C55: =C50*C51 -> 604.2 | D55: 331.075 | E55: 633.65 | F55: 513 | G55: 692.55 | H55: 456 | I55: 304 | J55: 243.4375 | K55: 541.5
B56: Marginal Returns
B57: Over Operating Costs | C57: =SUM(C55-C34) -> 122.6784764 | D57: -125.3242259 | E57: 160.5240859 | F57: 41.80314198 | G57: 220.7914676 | H57: -0.6604421731 | I57: -111.3322653 | J57: -151.6363874 | K57: 78.04280217
B58: Over Operating & Fixed | C58: =SUM(C55-C35-C34) -> -60.86144643 | D58: -308.8641487 | E58: -23.01583693 | F58: -141.7367808 | G58: 37.25154477 | H58: -184.200365 | I58: -294.8721881 | J58: -335.1763102 | K58: -105.4971206
B59: Over Total Costs (Net Profit) | C59: =SUM(C55-C36) -> -112.8614464 | D59: -360.8641487 | E59: -75.01583693 | F59: -193.7367808 | G59: -14.74845523 | H59: -236.200365 | I59: -346.8721881 | J59: -387.1763102 | K59: -157.4971206
B60: Profitability Ranking | C60: =RANK(C59,$C$59:$K$59) -> 3 | D60: =RANK(D59,$C$59:$K$59) -> 8 | E60: 2 | F60: 5 | G60: 1 | H60: 6 | I60: 7 | J60: 9 | K60: 4
B62: Operating Expense Ratio | C62: =SUM(C34/C55) -> 0.7969571725 | D62: 1.378537268 | E62: 0.7466675832 | F62: 0.9185123938 | G62: 0.6811905746 | H62: 1.001448338 | I62: 1.366224557 | J62: 1.622896585 | K62: 0.855876635
B66: Note: This budget is only a guide and is not intended as an in depth study of the cost of production of this industry. Interpretation and utilization of this information is the responsibility of the user.

Sheet Charts

Sheet Seed & Fertility
B1: Seed
C3: Seeding Rate | E3: Price | G3: Cost
B4: Crop | C4: per Acre | E4: per Unit | G4: per Acre
B5: Flax | C5: 60 | D5: lb | E5: 1.25 | F5: /lb | G5: =ROUND(C5*E5,2) -> 75
B6: Peas | C6: 3 | D6: bu | E6: 25 | F6: /bu | G6: =ROUND(C6*E6,2) -> 75
B7: HRS Wheat | C7: 2.16 | D7: bu | E7: 28 | F7: /bu | G7: =ROUND(C7*E7,2) -> 60.48
B8: Oats | C8: 4 | D8: bu | E8: 15 | F8: /bu | G8: =ROUND(C8*E8,2) -> 60
B9: Hemp | C9: 25 | D9: lb | E9: =1.4+0.75 -> 2.15 | F9: /lb | G9: =ROUND(C9*E9,2) -> 53.75
B10: Soybeans | C10: 84 | D10: lb | E10: 1 | F10: /lb | G10: 84
B11: Barley | C11: 2.5 | D11: bu | E11: 15 | F11: /bu | G11: 37.5
B12: Fall Rye | C12: 2 | D12: bu | E12: 15 | F12: /bu | G12: 30
B13: Winter Wheat | C13: 2 | D13: bu | E13: 24 | F13: /bu | G13: 48
B14: Buckwheat | C14: 65 | D14: lb | E14: 0.55 | F14: /lb | G14: 35.75
B15: Sunflower - Oil | C15: 4 | D15: lb | E15: 4 | F15: /lb | G15: 16
B17: Green Manure Crop
B18: Sweet Clover | C18: 7 | D18: lb | E18: 2.25 | F18: /lb | G18: 15.75
B19: Forage Oat /Vetch Mix | C19: 170 | D19: lb | E19: 0.44 | F19: /lb | G19: 74.8 | H19: (50 lb oats, vetch)
B20: Forage Peas | C20: 2 | D20: bu | E20: 25 | F20: /bu | G20: 50
B21: Alfalfa | C21: 3.75 | D21: lb | E21: 4 | F21: /lb | G21: 15
B23: Underseed Crop
B24: Red Clover | C24: 10 | D24: lb | E24: 3.25 | F24: /lb | G24: =ROUND(C24*E24,2) -> 32.5
B26: Soil Fertility
B28: Soil Fertility Rotation
B29: Greenmanure Plowdown rotation | D29: 1 | E29: year | F29: every | G29: 4 | H29: years
B30: Red Clover Underseed rotation | D30: 1 | E30: year | F30: every | G30: 4 | H30: years
B32: Green Manure Crop | E32: Usage of each crop type
B33: Sweet Clover | E33: 0
B34: Forage Oat /Vetch Mix | E34: 1
B35: Red Clover | E35: 0
B36: Forage Peas | E36: 0
B37: Alfalfa | E37: 0
D38: =IF(SUM(E33:E37)=100%,"","ERROR") ->  | E38: =SUM(E33:E37) -> 1 | G38: (Total must = 100%)
B40: Total Annual Fertility Cost | E40: =IF('Seed & Fertility'!$D$38="error","ERROR",(SUM(((Summary!O30*'Seed & Fertility'!$E$33)+(Summary!P30*'Seed & Fertility'!$E$34)+(Summary!T30*'Seed & Fertility'!$E$35)+(Summary!Q30*'Seed & Fertility'!$E$36)+(Summary!R30*'Seed & Fertility'!$E$37))/('Seed & Fertility'!$G$29-'Seed & Fertility'!$D$29)))+(Summary!T30/('Seed & Fertility'!G30/'Seed & Fertility'!D30))) -> 171.694002 | F40: /acre
B42: Compost
B43: Compost application | C43: 1 | D43: year | E43: every | F43: 1 | G43: years
B45: Compost cost | E45: 10.5 | F45: /ton
B46: Compost application cost | E46: 15 | F46: /cubic yard
B48: Compost application rate (tons) | E48: 0.45 | F48: /acre
B49: Compost bulk density (tons) | E49: 0.6 | F49: /cubic yard
B51: Compost cost | E51: =SUM(E48*E45) -> 4.725 | F51: /acre
B52: Compost application | E52: =SUM(E48/E49*E46) -> 11.25 | F52: /acre
B53: Total Compost Cost | E53: =SUM(E51:E52) -> 15.975 | F53: /acre
B55: Total Annual Compost Cost | E55: =SUM(E53/F43) -> 15.975 | F55: /acre
A57: Organic Certification
D59: Weed | F59: Disease | H59: Insect | J59: Total
D60: Control | F60: Control | H60: Control | J60: Cost
B61: Crop | D61: $/acre | F61: $/acre | H61: $/acre | J61: $/acre
B62: ='Seed & Fertility'!B5 -> Flax | D62: 0 | F62: 0 | H62: 0 | J62: =D62+F62+H62 -> 0
B63: ='Seed & Fertility'!B6 -> Peas | D63: 0 | F63: 0 | H63: 0 | J63: 0
B64: ='Seed & Fertility'!B7 -> HRS Wheat | D64: 0 | F64: 0 | H64: 0 | J64: 0
B65: ='Seed & Fertility'!B8 -> Oats | D65: 0 | F65: 0 | H65: 0 | J65: 0
B66: ='Seed & Fertility'!B9 -> Hemp | D66: 0 | F66: 0 | H66: 0 | J66: 0
B67: ='Seed & Fertility'!B10 -> Soybeans | D67: 0 | F67: 0 | H67: 0 | J67: 0
B68: ='Seed & Fertility'!B11 -> Barley | D68: 0 | F68: 0 | H68: 0 | J68: 0
B69: ='Seed & Fertility'!B12 -> Fall Rye | D69: 0 | F69: 0 | H69: 0 | J69: 0
B70: ='Seed & Fertility'!B13 -> Winter Wheat | D70: 0 | F70: 0 | H70: 0 | J70: 0
B71: ='Seed & Fertility'!B14 -> Buckwheat | D71: 0 | F71: 0 | H71: 0 | J71: 0
B72: ='Seed & Fertility'!B15 -> Sunflower - Oil | D72: 0 | F72: 0 | H72: 0 | J72: 0
B74: Green Manure Crop
B75: ='Seed & Fertility'!B18 -> Sweet Clover | D75: 0 | F75: 0 | H75: 0 | J75: =D75+F75+H75 -> 0
B76: ='Seed & Fertility'!B19 -> Forage Oat /Vetch Mix | D76: 0 | F76: 0 | H76: 0 | J76: =D76+F76+H76 -> 0
B77: ='Seed & Fertility'!B20 -> Forage Peas | D77: 0 | F77: 0 | H77: 0 | J77: =D77+F77+H77 -> 0
B78: ='Seed & Fertility'!B21 -> Alfalfa | D78: 0 | F78: 0 | H78: 0 | J78: =D78+F78+H78 -> 0
B80: Underseed Crop
B81: ='Seed & Fertility'!B24 -> Red Clover | D81: 0 | F81: 0 | H81: 0 | J81: =D81+F81+H81 -> 0
B84: Certification Costs | D84: 600 | E84: organic acres
C85: Annual Fee | G85: 1500
C86: Inspection Fee | G86: 500
C87: Total | G87: =SUM(G85:G86) -> 2000
C89: Cost per acre | G89: =G87/D84 -> 3.333333333 | H89: /acre

Sheet Op. Cost Input
A1: Operating Costs
R2: Farm Labour Worksheet
B3: Interest Rate on Operating | E3: 0.0775 | G3: Grain Hauling | R3: # | S3: # of | T3: Acres | U3: Hours
B4: Land Taxes ($/acre) | E4: 17.5 | G4: Distance to storage | I4: 6 | J4: miles roundtrip | R4: Staff | S4: Months | T4: Farmed | U4: Per Acre
B5: Labour rate ($/hour) | E5: 26 | G5: Distance to market | I5: 0 | J5: miles roundtrip | R5: 1 | S5: 7 | T5: 600 | U5: =SUM(R5*S5*4*40)/T5 -> 1.866666667
B6: Machinery Operating ($/acre) | E6: 25 | G6: Grain truck fuel use | I6: 5 | J6: Miles per Imp. Gallon | R6: 1 | S6: 4 | T6: =T5 -> 600 | U6: =SUM(R6*S6*4*40)/T6 -> 1.066666667
B7: Other Costs ($/acre) | E7: 17.75 | G7: Grain truck size | I7: 475 | J7: bushels | R7: 0 | S7: 0 | T7: =T5 -> 600 | U7: =SUM(R7*S7*4*40)/T7 -> 0
B8: Fuel Cost ($/litre) | E8: 1.65 | R8: 0 | S8: 0 | T8: =T5 -> 600 | U8: =SUM(R8*S8*4*40)/T8 -> 0
B9: Owners - Labour & Living (hrs/acre) | E9: 2 | R9: 0 | S9: 0 | T9: =T5 -> 600 | U9: =SUM(R9*S9*4*40)/T9 -> 0
E10: Operating Cost ($/Acre) | T10: Total | U10: =SUM(U5:U9) -> 2.933333333
C11: Hired Labour | E11: Crop | F11: Hail | G11: Drying | H11: Storage | I11: Rental and Custom Costs
A12: Crop | C12: (hrs/acre) | D12: Fuel | E12: Insurance | F12: Insurance | G12: Costs | H12: $/acre | I12: Seeding | J12: Application | K12: Swathing | L12: Harvest | M12: General | N12: Total
B13: ='Seed & Fertility'!B5 -> Flax | C13: 1 | D13: =SUM($E$8*D39) -> 41.33134535 | E13: 57.345 | F13: 9.375 | G13: 0 | H13: =-PMT('Fixed Cost Input'!$C$11,20,(Summary!C$35*(('Fixed Cost Input'!$C$17*'Fixed Cost Input'!$D$17)+('Fixed Cost Input'!$C$18*'Fixed Cost Input'!$D$18)+('Fixed Cost Input'!$C$19*'Fixed Cost Input'!$D$19))*'Fixed Cost Input'!$D$20),0) -> 3.377842892 | I13: - | J13: - | K13: - | L13: - | M13: - | N13: =SUM(I13:M13) -> 0
B14: ='Seed & Fertility'!B6 -> Peas | C14: 1 | D14: 41.4450432 | E14: 22.175 | F14: 18.75 | G14: 0 | H14: =-PMT('Fixed Cost Input'!$C$11,20,(Summary!D$35*(('Fixed Cost Input'!$C$17*'Fixed Cost Input'!$D$17)+('Fixed Cost Input'!$C$18*'Fixed Cost Input'!$D$18)+('Fixed Cost Input'!$C$19*'Fixed Cost Input'!$D$19))*'Fixed Cost Input'!$D$20),0) -> 4.936847303 | I14: - | J14: - | K14: - | L14: - | M14: - | N14: =SUM(I14:M14) -> 0
B15: ='Seed & Fertility'!B7 -> HRS Wheat | C15: 1 | D15: 41.69138855 | E15: 58.6725 | F15: 9.375 | G15: 0 | H15: =-PMT('Fixed Cost Input'!$C$11,20,(Summary!E$35*(('Fixed Cost Input'!$C$17*'Fixed Cost Input'!$D$17)+('Fixed Cost Input'!$C$18*'Fixed Cost Input'!$D$18)+('Fixed Cost Input'!$C$19*'Fixed Cost Input'!$D$19))*'Fixed Cost Input'!$D$20),0) -> 8.314690195 | I15: - | J15: - | K15: - | L15: - | M15: - | N15: 0
B16: ='Seed & Fertility'!B8 -> Oats | C16: 1 | D16: 42.22197853 | E16: 49.7575 | F16: 9.375 | G16: 0 | H16: =-PMT('Fixed Cost Input'!$C$11,20,(Summary!F$35*(('Fixed Cost Input'!$C$17*'Fixed Cost Input'!$D$17)+('Fixed Cost Input'!$C$18*'Fixed Cost Input'!$D$18)+('Fixed Cost Input'!$C$19*'Fixed Cost Input'!$D$19))*'Fixed Cost Input'!$D$20),0) -> 15.59004412 | I16: - | J16: - | K16: - | L16: - | M16: - | N16: 0
B17: ='Seed & Fertility'!B9 -> Hemp | C17: 1 | D17: 41.27880316 | E17: 40.57 | F17: 18.75 | G17: 20 | H17: =-PMT('Fixed Cost Input'!$C$11,20,((Summary!G$35/44)*(('Fixed Cost Input'!$C$17*'Fixed Cost Input'!$D$17)+('Fixed Cost Input'!$C$18*'Fixed Cost Input'!$D$18)+('Fixed Cost Input'!$C$19*'Fixed Cost Input'!$D$19))*'Fixed Cost Input'!$D$20),0) -> 2.657393883 | I17: - | J17: - | K17: - | L17: - | M17: - | N17: 0
B18: ='Seed & Fertility'!B10 -> Soybeans | C18: 1 | D18: 41.42609356 | E18: 20.2575 | F18: 12.1875 | G18: 0 | H18: =-PMT('Fixed Cost Input'!$C$11,20,(Summary!H$35*(('Fixed Cost Input'!$C$17*'Fixed Cost Input'!$D$17)+('Fixed Cost Input'!$C$18*'Fixed Cost Input'!$D$18)+('Fixed Cost Input'!$C$19*'Fixed Cost Input'!$D$19))*'Fixed Cost Input'!$D$20),0) -> 4.677013235 | I18: - | J18: - | K18: - | L18: - | M18: - | N18: 0
B19: ='Seed & Fertility'!B11 -> Barley | C19: 1 | D19: 41.74823747 | E19: 25.2125 | F19: 9.375 | G19: 0 | H19: =-PMT('Fixed Cost Input'!$C$11,20,(Summary!I$35*(('Fixed Cost Input'!$C$17*'Fixed Cost Input'!$D$17)+('Fixed Cost Input'!$C$18*'Fixed Cost Input'!$D$18)+('Fixed Cost Input'!$C$19*'Fixed Cost Input'!$D$19))*'Fixed Cost Input'!$D$20),0) -> 9.094192401 | I19: - | J19: - | K19: - | L19: - | M19: - | N19: 0
B20: ='Seed & Fertility'!B12 -> Fall Rye | C20: 1 | D20: 41.60611516 | E20: 15.225 | F20: 9.375 | G20: 0 | H20: =-PMT('Fixed Cost Input'!$C$11,20,(Summary!J$35*(('Fixed Cost Input'!$C$17*'Fixed Cost Input'!$D$17)+('Fixed Cost Input'!$C$18*'Fixed Cost Input'!$D$18)+('Fixed Cost Input'!$C$19*'Fixed Cost Input'!$D$19))*'Fixed Cost Input'!$D$20),0) -> 7.145436886 | I20: - | J20: - | K20: - | L20: - | M20: - | N20: 0
B21: ='Seed & Fertility'!B13 -> Winter Wheat | C21: 1 | D21: 41.71033819 | E21: 61.575 | F21: 9.375 | G21: 0 | H21: =-PMT('Fixed Cost Input'!$C$11,20,(Summary!K$35*(('Fixed Cost Input'!$C$17*'Fixed Cost Input'!$D$17)+('Fixed Cost Input'!$C$18*'Fixed Cost Input'!$D$18)+('Fixed Cost Input'!$C$19*'Fixed Cost Input'!$D$19))*'Fixed Cost Input'!$D$20),0) -> 8.574524264 | I21: - | J21: - | K21: - | L21: - | M21: - | N21: 0
B22: ='Seed & Fertility'!B14 -> Buckwheat | C22: 3.2 | D22: 41.36924463 | E22: 16.21 | F22: 16.5 | G22: - | H22: =(((((('Fixed Cost Input'!$D$17*Summary!L$35)-('Fixed Cost Input'!$D$17*Summary!L$35*('Fixed Cost Input'!#REF!)))/20)+((('Fixed Cost Input'!$D$17*Summary!L$35)+('Fixed Cost Input'!$D$17*Summary!L$35*('Fixed Cost Input'!#REF!)))/2)*('Fixed Cost Input'!#REF!)))*'Fixed Cost Input'!$C$17)+(((((('Fixed Cost Input'!$D$18*Summary!L$35)-('Fixed Cost Input'!$D$18*Summary!L$35*('Fixed Cost Input'!#REF!)))/20)+((('Fixed Cost Input'!$D$18*Summary!L$35)+('Fixed Cost Input'!$D$18*Summary!L$35*('Fixed Cost Input'!#REF!)))/2)*('Fixed Cost Input'!#REF!)))*'Fixed Cost Input'!$C$18) ->  | I22: - | J22: - | K22: - | L22: - | M22: - | N22: 0
B23: ='Seed & Fertility'!B15 -> Sunflower - Oil | C23: 3.2 | D23: 41.86021263 | E23: 14.53 | F23: 6.6 | G23: 10 | H23: =(((((('Fixed Cost Input'!$D$17*Summary!M$35/22)-('Fixed Cost Input'!$D$17*Summary!M$35/22*('Fixed Cost Input'!#REF!)))/20)+((('Fixed Cost Input'!$D$17*Summary!M$35/22)+('Fixed Cost Input'!$D$17*Summary!M$35/22*('Fixed Cost Input'!#REF!)))/2)*('Fixed Cost Input'!#REF!)))*'Fixed Cost Input'!$C$17)+(((((('Fixed Cost Input'!$D$18*Summary!M$35/22)-('Fixed Cost Input'!$D$18*Summary!M$35/22*('Fixed Cost Input'!#REF!)))/20)+((('Fixed Cost Input'!$D$18*Summary!M$35/22)+('Fixed Cost Input'!$D$18*Summary!M$35/22*('Fixed Cost Input'!#REF!)))/2)*('Fixed Cost Input'!#REF!)))*'Fixed Cost Input'!$C$18) ->  | I23: - | J23: - | K23: - | L23: - | M23: - | N23: 0
A24: Green Manure Crop
B25: ='Seed & Fertility'!B18 -> Sweet Clover | C25: 1 | D25: =SUM($E$8*D51) -> 33.99 | E25: 0 | F25: 0 | G25: 0 | I25: - | J25: - | K25: - | L25: - | M25: - | N25: 0
B26: ='Seed & Fertility'!B19 -> Forage Oat /Vetch Mix | C26: 1 | D26: =SUM($E$8*D52) -> 33.99 | E26: 0 | F26: 0 | G26: 0 | I26: - | J26: - | K26: - | L26: - | M26: - | N26: 0
B27: ='Seed & Fertility'!B20 -> Forage Peas | C27: 1 | D27: =SUM($E$8*D53) -> 33.99 | E27: 0 | F27: 0 | G27: 0 | I27: - | J27: - | K27: - | L27: - | M27: - | N27: =SUM(I27:M27) -> 0
B28: ='Seed & Fertility'!B21 -> Alfalfa | C28: 1 | D28: =SUM($E$8*D54) -> 33.99 | E28: 0 | F28: 0 | G28: 0 | I28: - | J28: - | K28: - | L28: - | M28: - | N28: =SUM(I28:M28) -> 0
A29: Underseeded Crop
B30: ='Seed & Fertility'!B24 -> Red Clover | C30: 1 | D30: =SUM($E$8*D56) -> 19.14 | E30: 0 | F30: 0 | G30: 0 | I30: - | J30: - | K30: - | L30: - | M30: - | N30: 0
A31: * Storage costs are listed under Fixed Costs on the Summary Page.
A33: Field Fuel Usage
E35: Number of Field Operations & Litres Fuel Per Acre Per Operation | M35: Trucks L/acre
E36: cultivator or tandem disk | F36: high speed disk | G36: harrow or land roller | H36: air drill | I36: row planter | J36: misc. | K36: swather | L36: Combine | M36: 3/4 ton pickup | N36: grain hauling
D37: Total
A38: Crop | D38: L/acre | E38: 2.9 | F38: 3.5 | G38: 1.3 | H38: 2.8 | I38: 1.9 | J38: 0 | K38: 1.8 | L38: 6 | M38: 3
B39: ='Op. Cost Input'!B13 -> Flax | D39: =SUM(E39*$E$38)+(F39*$F$38)+(G39*$G$38)+(H39*$H$38)+(I39*$I$38)+(J39*$J$38)+(K39*$K$38)+(L39*$L$38)+M39+N39 -> 25.04930021 | E39: 3 | G39: 2 | H39: 1 | K39: 1 | L39: 1 | M39: =$M$38 -> 3 | N39: =SUM((($I$4/$I$6)*4.546)/('Op. Cost Input'!$I$7/Summary!C35))+((($I$5/$I$6)*4.546)/('Op. Cost Input'!$I$7/Summary!C35)) -> 0.1493002105
B40: ='Op. Cost Input'!B14 -> Peas | D40: =SUM(E40*$E$38)+(F40*$F$38)+(G40*$G$38)+(H40*$H$38)+(I40*$I$38)+(J40*$J$38)+(K40*$K$38)+(L40*$L$38)+M40+N40 -> 25.118208 | E40: 3 | G40: 2 | H40: 1 | K40: 1 | L40: 1 | M40: 3 | N40: =SUM((($I$4/$I$6)*4.546)/('Op. Cost Input'!$I$7/Summary!D35))+((($I$5/$I$6)*4.546)/('Op. Cost Input'!$I$7/Summary!D35)) -> 0.218208
B41: ='Op. Cost Input'!B15 -> HRS Wheat | D41: 25.26750821 | E41: 3 | G41: 2 | H41: 1 | K41: 1 | L41: 1 | M41: 3 | N41: =SUM((($I$4/$I$6)*4.546)/('Op. Cost Input'!$I$7/Summary!E35))+((($I$5/$I$6)*4.546)/('Op. Cost Input'!$I$7/Summary!E35)) -> 0.3675082105
B42: ='Op. Cost Input'!B16 -> Oats | D42: 25.58907789 | E42: 3 | G42: 2 | H42: 1 | K42: 1 | L42: 1 | M42: 3 | N42: =SUM((($I$4/$I$6)*4.546)/('Op. Cost Input'!$I$7/Summary!F35))+((($I$5/$I$6)*4.546)/('Op. Cost Input'!$I$7/Summary!F35)) -> 0.6890778947
B43: ='Op. Cost Input'!B17 -> Hemp | D43: 25.01745646 | E43: 3 | G43: 2 | H43: 1 | K43: 1 | L43: 1 | M43: 3 | N43: =SUM((($I$4/$I$6)*4.546)/('Op. Cost Input'!$I$7/(Summary!G35/44)))+((($I$5/$I$6)*4.546)/('Op. Cost Input'!$I$7/(Summary!G35/44))) -> 0.1174564593
B44: ='Op. Cost Input'!B18 -> Soybeans | D44: 25.10672337 | E44: 3 | G44: 2 | H44: 1 | K44: 1 | L44: 1 | M44: 3 | N44: =SUM((($I$4/$I$6)*4.546)/('Op. Cost Input'!$I$7/Summary!H35))+((($I$5/$I$6)*4.546)/('Op. Cost Input'!$I$7/Summary!H35)) -> 0.2067233684
B45: ='Op. Cost Input'!B19 -> Barley | D45: 25.30196211 | E45: 3 | G45: 2 | H45: 1 | K45: 1 | L45: 1 | M45: 3 | N45: =SUM((($I$4/$I$6)*4.546)/('Op. Cost Input'!$I$7/Summary!I35))+((($I$5/$I$6)*4.546)/('Op. Cost Input'!$I$7/Summary!I35)) -> 0.4019621053
B46: ='Op. Cost Input'!B20 -> Fall Rye | D46: 25.21582737 | E46: 3 | G46: 2 | H46: 1 | K46: 1 | L46: 1 | M46: 3 | N46: =SUM((($I$4/$I$6)*4.546)/('Op. Cost Input'!$I$7/Summary!J35))+((($I$5/$I$6)*4.546)/('Op. Cost Input'!$I$7/Summary!J35)) -> 0.3158273684
B47: ='Op. Cost Input'!B21 -> Winter Wheat | D47: 25.27899284 | E47: 3 | G47: 2 | H47: 1 | K47: 1 | L47: 1 | M47: 3 | N47: =SUM((($I$4/$I$6)*4.546)/('Op. Cost Input'!$I$7/Summary!K35))+((($I$5/$I$6)*4.546)/('Op. Cost Input'!$I$7/Summary!K35)) -> 0.3789928421
B48: ='Op. Cost Input'!B22 -> Buckwheat | D48: 25.07226947 | E48: 3 | G48: 2 | H48: 1 | K48: 1 | L48: 1 | M48: 3 | N48: =SUM((($I$4/$I$6)*4.546)/('Op. Cost Input'!$I$7/Summary!L35))+((($I$5/$I$6)*4.546)/('Op. Cost Input'!$I$7/Summary!L35)) -> 0.1722694737
B49: ='Op. Cost Input'!B23 -> Sunflower - Oil | D49: 25.36982584 | E49: 3 | G49: 2 | H49: 1 | K49: 1 | L49: 1 | M49: 3 | N49: =SUM((($I$4/$I$6)*4.546)/('Op. Cost Input'!$I$7/(Summary!M35/22)))+((($I$5/$I$6)*4.546)/('Op. Cost Input'!$I$7/(Summary!M35/22))) -> 0.4698258373
A50: Green Manure Crop
B51: ='Op. Cost Input'!B25 -> Sweet Clover | D51: 20.6 | E51: 3 | F51: 1 | G51: 2 | H51: 1 | M51: 3
B52: ='Op. Cost Input'!B26 -> Forage Oat /Vetch Mix | D52: 20.6 | E52: 3 | F52: 1 | G52: 2 | H52: 1 | M52: 3
B53: ='Op. Cost Input'!B27 -> Forage Peas | D53: =SUM(E53*$E$38)+(F53*$F$38)+(G53*$G$38)+(H53*$H$38)+(I53*$I$38)+(J53*$J$38)+(K53*$K$38)+(L53*$L$38)+M53+N53 -> 20.6 | E53: 3 | F53: 1 | G53: 2 | H53: 1 | M53: 3
B54: ='Op. Cost Input'!B28 -> Alfalfa | D54: =SUM(E54*$E$38)+(F54*$F$38)+(G54*$G$38)+(H54*$H$38)+(I54*$I$38)+(J54*$J$38)+(K54*$K$38)+(L54*$L$38)+M54+N54 -> 20.6 | E54: 3 | F54: 1 | G54: 2 | H54: 1 | M54: 3
A55: Underseeded Crop
B56: ='Op. Cost Input'!B30 -> Red Clover | D56: 11.6 | E56: 2 | F56: 0 | G56: 0 | H56: 1 | M56: 3

Sheet Fixed Cost Input
A1: Fixed Costs
B3: Land
B4: Average Land value ($/acre) | D4: 3750 | G4: Machinery
B5: Organic Crop acres | D5: 600 | G5: Total Investment ($/acre) | I5: =ROUND((C47)/(D5),2) -> 600
B6: Owned Land Equity | D6: 0.85 | G6: Residual Value (End of Useful Life) | I6: 0.25
B7: Land Financed | D7: =SUM(1-D6) -> 0.15 | G7: Useful Life (years) | I7: 15
B8: Land Opportunity Cost (Investment Rate) | D8: 0.015 | G8: Owned Equipment Equity | I8: 0.55
G9: Equipment Financed | I9: =SUM(1-I8) -> 0.45
B10: Land cost ($/acre) | G10: Machinery Opportunity Cost (Investment Rate) | I10: 0.015
B11: Finance Rate & Term | C11: 0.0725 | D11: 25 | E11: Years
B12: Principal & Interest Cost | D12: =-PMT(C11,D11,D4*D7,0) -> 49.36044514 | G12: Machinery Cost ($/acre)
B13: Owned Land Opportunity Cost | D13: =SUM(D4*D6)*(D8) -> 47.8125 | G13: Finance Rate & Term | H13: 0.0775 | I13: 7 | J13: Years
B14: Total Cost | D14: =SUM(D12:D13) -> 97.17294514 | G14: Principal & Interest Cost | I14: =-PMT(H13,I13,I5*I9,0) -> 51.41697767
G15: Machinery Depreciation Cost | I15: =(I5-(I5*I6))/I7 -> 30
B16: Grain Storage | C16: Usage % | D16: Cost | G16: Owned Machinery Opportunity Cost | I16: =SUM(I5*I8)*(I10) -> 4.95
B17: Non-aeration bins | C17: 0.15 | D17: 3.5 | E17: /bu | I17: =SUM(I14:I16) -> 86.36697767
B18: Aeration bins | C18: 0.7 | D18: 4.5 | E18: /bu
B19: Hopper bins | C19: 0.15 | D19: 5.5 | E19: /bu | G19: Total Land & Machinery Debt ($/acre) | I19: =(D4*D7)+((I5)*I9) -> 832.5
B20: Storage Financed | D20: 0.6 | G20: Machinery Lease cost ($/acre) | I20: =D68 -> 0
A22: Owned Equipment Inventory and Current Values
C23: Market | D23: Grain | E23: Grain | H23: Market | I23: Grain | J23: Grain
A24: Power & Misc Equipment | C24: Value | D24: Usage % | E24: Allocation | G24: Harvest Equipment | H24: Value | I24: Usage % | J24: Allocation
B25: 4WD Tractor | C25: 90000 | D25: 1 | E25: =SUM(C25*D25) -> 90000 | G25: Combine | H25: 60000 | I25: 1 | J25: =SUM(H25*I25) -> 60000
B26: 2WD Tractor | C26: 36000 | D26: 0.75 | E26: =SUM(C26*D26) -> 27000 | G26: Swather | H26: 18000 | I26: 1 | J26: =SUM(H26*I26) -> 18000
B27: ATV Quad | C27: 4800 | D27: 0.75 | E27: 3600 | G27: PTO Auger | H27: 5400 | I27: 1 | J27: 5400
C28: 0 | D28: 0 | E28: 0 | G28: Auger | H28: 2400 | I28: 1 | J28: 2400
C29: 0 | D29: 0 | E29: 0 | H29: 0 | I29: 0 | J29: 0
C30: 0 | D30: 0 | E30: 0 | H30: 0 | I30: 0 | J30: 0
C31: 0 | D31: 0 | E31: 0 | H31: 0 | I31: 0 | J31: 0
C32: 0 | D32: 0 | E32: 0 | H32: 0 | I32: 0 | J32: 0
B33: Total | E33: =SUM(E25:E32) -> 120600 | G33: Total | J33: =SUM(J25:J32) -> 85800
C35: Market | D35: Grain | E35: Grain | H35: Market | I35: Grain | J35: Grain
A36: Seeding, Tillage, Spraying | C36: Value | D36: Usage % | E36: Allocation | G36: Trucks & Trailers | H36: Value | I36: Usage % | J36: Allocation
B37: Cultivator | C37: 15000 | D37: 1 | E37: =SUM(C37*D37) -> 15000 | H37: 0 | I37: 0 | J37: =SUM(H37*I37) -> 0
B38: Harrow | C38: 12000 | D38: 1 | E38: =SUM(C38*D38) -> 12000 | G38: Tandem Grain Truck | H38: 42000 | I38: 1 | J38: =SUM(H38*I38) -> 42000
B39: Air tank | C39: 15000 | D39: 1 | E39: 15000 | G39: 5th wheel flatdeck | H39: 2400 | I39: 1 | J39: 2400
B40: Air drill | C40: 38400 | D40: 1 | E40: 38400 | H40: 0 | I40: 0 | J40: 0
B41: Rock picker | C41: 1800 | D41: 1 | E41: 1800 | H41: 0 | I41: 0 | J41: 0
B42: tandem disk | C42: 9000 | D42: 1 | E42: 9000 | H42: 0 | I42: 0 | J42: 0
B43: granular spreader | C43: 18000 | D43: 1 | E43: 18000 | H43: 0 | I43: 0 | J43: 0
C44: 0 | D44: 0 | E44: 0 | H44: 0 | I44: 0 | J44: 0
B45: Total | C45: =SUM(C37:C44) -> 109200 | E45: =SUM(E37:E44) -> 109200 | G45: Total | J45: =SUM(J37:J44) -> 44400
B47: Owned Equipment TOTAL | C47: =SUM(E33+J33+E45+J45) -> 360000 | D47: =SUM(C47/D5) -> 600 | E47: per acre
A49: Leased Equipment Inventory
C50: Annual | D50: Grain | E50: Grain | H50: Annual | I50: Grain | J50: Grain
A51: Power & Misc Equipment | C51: Lease | D51: Usage % | E51: Allocation | G51: Harvest Equipment | H51: Lease | I51: Usage % | J51: Allocation
B52: enter equipment here | C52: 0 | D52: 0 | E52: =SUM(C52*D52) -> 0 | G52: enter equipment here | H52: 0 | I52: 0 | J52: =SUM(H52*I52) -> 0
C53: 0 | D53: 0 | E53: =SUM(C53*D53) -> 0 | H53: 0 | I53: 0 | J53: =SUM(H53*I53) -> 0
C54: 0 | D54: 0 | E54: =SUM(C54*D54) -> 0 | H54: 0 | I54: 0 | J54: =SUM(H54*I54) -> 0
C55: 0 | D55: 0 | E55: =SUM(C55*D55) -> 0 | H55: 0 | I55: 0 | J55: =SUM(H55*I55) -> 0
C56: 0 | D56: 0 | E56: =SUM(C56*D56) -> 0 | H56: 0 | I56: 0 | J56: =SUM(H56*I56) -> 0
B57: Total | E57: =SUM(E52:E56) -> 0 | G57: Total | J57: =SUM(J52:J56) -> 0
C59: Annual | D59: Grain | E59: Grain | H59: Annual | I59: Grain | J59: Grain
A60: Seeding, Tillage, Spraying | C60: Lease | D60: Usage % | E60: Allocation | G60: Trucks & Trailers | H60: Lease | I60: Usage % | J60: Allocation
B61: enter equipment here | C61: 0 | D61: 0 | E61: =SUM(C61*D61) -> 0 | G61: enter equipment here | H61: 0 | I61: 0 | J61: =SUM(H61*I61) -> 0
C62: 0 | D62: 0 | E62: =SUM(C62*D62) -> 0 | H62: 0 | I62: 0 | J62: =SUM(H62*I62) -> 0
C63: 0 | D63: 0 | E63: =SUM(C63*D63) -> 0 | H63: 0 | I63: 0 | J63: =SUM(H63*I63) -> 0
C64: 0 | D64: 0 | E64: =SUM(C64*D64) -> 0 | H64: 0 | I64: 0 | J64: =SUM(H64*I64) -> 0
C65: 0 | D65: 0 | E65: =SUM(C65*D65) -> 0 | H65: 0 | I65: 0 | J65: =SUM(H65*I65) -> 0
B66: Total | C66: =SUM(C61:C65) -> 0 | E66: =SUM(E61:E65) -> 0 | G66: Total | J66: =SUM(J61:J65) -> 0
B68: Leased Equipment TOTAL | C68: =SUM(E57+J57+E66+J66) -> 0 | D68: =SUM(C68/D5) -> 0 | E68: per acre
B69: * Leased equipment costs are listed under Operating Costs on the Summary Page.

Sheet Assumptions
A1: Other Assumptions
A3: Fuel Costs: Includes fuel used for field work, trucking in inputs and trucking out production.
A5: Machinery Operating Costs: Includes costs for maintenance, repairs, licenses and insurance.
A7: Crop Insurance: (2022 rates)
A8: Risk Area #2 "D" soil zone at 80% coverage and additional hail insurance at $300/acre coverage for all crops. Flax, HRS Wheat, Oats, Winter Wheat, Peas, Barley and Hemp are based on organic insured values.
A11: Other Costs: Includes overhead expenses - hydro, telephone, accounting, buildings, supplies and insurance, etc.
A13: Land Taxes: The average cost based on land tax assessment and mill rates of a sample of municipalities growing crops less provincial tax rebate.
A15: Interest On Operating: | D15: ="Interest charges on operating costs are calculated at "&'Op. Cost Input'!E3*100&"% for six months." -> Interest charges on operating costs are calculated at 7.75% for six months.
A17: Land Cost:
A18: ="Based on approximate average land values. Budget assumed "&'Fixed Cost Input'!D8*100&"% financed at "&'Fixed Cost Input'!C11*100&"% for "&'Fixed Cost Input'!D11&" years, plus "&'Fixed Cost Input'!D8*100&"% land equity opportunity cost. Budget can be used to estimate cashflow by removing investment cost." -> Based on approximate average land values. Budget assumed 1.5% financed at 7.25% for 25 years, plus 1.5% land equity opportunity cost. Budget can be used to estimate cashflow by removing investment cost.
A20: ="P&I Cost (based on "&TEXT('Fixed Cost Input'!D4*('Fixed Cost Input'!D5)*'Fixed Cost Input'!D7,"$#,###")&" Mortgage) = $"&TEXT('Fixed Cost Input'!D12*('Fixed Cost Input'!D5),"#,###")&" payments per year) / "&'Fixed Cost Input'!D5&" acres = $"&TEXT('Fixed Cost Input'!D12,"0.00")&"/acre)" -> P&I Cost (based on $337,500 Mortgage) = $29,616 payments per year) / 600 acres = $49.36/acre)
A21: ="Investment = (Total Investment x Owned Equity %) x Investment Rate % (eg. (($"&TEXT('Fixed Cost Input'!D4,"#,###")&" x "&'Fixed Cost Input'!D6*100&"%) x "&'Fixed Cost Input'!D8*100&"%) = $"&TEXT('Fixed Cost Input'!D13,"0.00")&"/acre)" -> Investment = (Total Investment x Owned Equity %) x Investment Rate % (eg. (($3,750 x 85%) x 1.5%) = $47.81/acre)
A23: Machinery Cost:
A24: ="Based on approximate average machinery values. Budget assumed "&'Fixed Cost Input'!I9*100&"% financed at "&'Fixed Cost Input'!H13*100&"% for "&'Fixed Cost Input'!I13&" years, depreciation costs over "&'Fixed Cost Input'!I7&" years with a "&'Fixed Cost Input'!I6*100&"% residual value, plus "&'Fixed Cost Input'!I10*100&"% machinery equity opportunity cost. Budget can be used to estimate cashflow by removing depreciation and investment cost. " -> Based on approximate average machinery values. Budget assumed 45% financed at 7.75% for 7 years, depreciation costs over 15 years with a 25% residual value, plus 1.5% machinery equity opportunity cost. Budget can be used to estimate cashflow by removing depreciation and investment cost.
A27: ="P&I Cost (based on "&TEXT('Fixed Cost Input'!C47*'Fixed Cost Input'!I9,"$#,###")&" Loans) = $"&TEXT('Fixed Cost Input'!I14*('Fixed Cost Input'!D5),"#,###")&" payments per year) / "&'Fixed Cost Input'!D5&" acres = $"&TEXT('Fixed Cost Input'!I14,"0.00")&"/acre)" -> P&I Cost (based on $162,000 Loans) = $30,850 payments per year) / 600 acres = $51.42/acre)
A28: ="Depreciation (Useage Cost) = (Total Investment - Residual Value) / Years Useful Life (eg. ($"&TEXT('Fixed Cost Input'!I5,"0.00")&" - ($"&TEXT('Fixed Cost Input'!I5,"0.00")&" x "&'Fixed Cost Input'!I6*100&"%)) / "&'Fixed Cost Input'!I7&" = $"&TEXT('Fixed Cost Input'!I15,"0.00")&"/acre)" -> Depreciation (Useage Cost) = (Total Investment - Residual Value) / Years Useful Life (eg. ($600.00 - ($600.00 x 25%)) / 15 = $30.00/acre)
A29: ="Investment = (Total Investment x Owned Equity %) x Investment Rate % (eg. ($"&'Fixed Cost Input'!I5&" x "&'Fixed Cost Input'!I8*100&"%) x "&'Fixed Cost Input'!I10*100&"%) = $"&TEXT('Fixed Cost Input'!I16,"0.00")&"/acre)" -> Investment = (Total Investment x Owned Equity %) x Investment Rate % (eg. ($600 x 55%) x 1.5%) = $4.95/acre)
A31: Depreciation Cost = Original Cost - Salvage Value
A32: =" Useful Life" -> Useful Life
A33: Investment Cost = Original Cost + Salvage Value x Investment Rate
A34: =" 2" -> 2
A35: Estimated Farmgate Values:
A36: Target crop prices are based on MASC insured values for 2022.
A37: Target crop yields are based on 40-60% of conventional crop average yields.
A39: Storage Cost:
A40: Storage costs for each crop are based on estimated yields entered on the Summary page.
A41: ="Budget assumed "&'Fixed Cost Input'!D20*100&"% financed at "&'Fixed Cost Input'!C11*100&"% for 20 years." -> Budget assumed 60% financed at 7.25% for 20 years.
A42: ="Farm storage requirements were assumed to cost $"&TEXT('Fixed Cost Input'!D17,"0.00")&"/bushel for "&'Fixed Cost Input'!C17*100&"% of the storage, $"&TEXT('Fixed Cost Input'!D18,"0.00")&"/bushel for "&'Fixed Cost Input'!C18*100&"% aerated storage and $"&TEXT('Fixed Cost Input'!D19,"0.00")&"/bushel for "&'Fixed Cost Input'!C19*100&"% hopper storage." -> Farm storage requirements were assumed to cost $3.50/bushel for 15% of the storage, $4.50/bushel for 70% aerated storage and $5.50/bushel for 15% hopper storage.
A45: Profitability, Breakeven & Risk Analysis Formulas:
A46: ="Gross Revenue = Price per unit x Yield per acre (eg. wheat: $"&TEXT(Summary!E34,"0.00")&"/bu x "&Summary!E35&"bu/ac = $"&TEXT(Summary!E37, "0.00")&"/ac)" -> Gross Revenue = Price per unit x Yield per acre (eg. wheat: $23.00/bu x 32bu/ac = $736.00/ac)
A47: ="Net Profit = Gross Revenue - Total Cost (eg. wheat: $"&TEXT(Summary!E37,"0.00")&" gross revenue - $"&TEXT(Summary!E30,"0.00")&" total cost = $"&TEXT(Summary!E45,"0.00")&" per acre)" -> Net Profit = Gross Revenue - Total Cost (eg. wheat: $736.00 gross revenue - $708.67 total cost = $27.33 per acre)
A48: ="Operating Expense Ratio = (Operating Cost / Gross Revenue) x 100 (eg. wheat: $"&TEXT(Summary!E21,"0.00")&" operating expense / $"&TEXT(Summary!E37,"0.00")&" total cost = "&TEXT(Summary!E40*100,"0.0")&"%)" -> Operating Expense Ratio = (Operating Cost / Gross Revenue) x 100 (eg. wheat: $473.13 operating expense / $736.00 total cost = 64.3%)
A49: ="Return on Investment (ROI) = (Gross Revenue - Total Cost) / Total Cost (eg. wheat: ($"&TEXT(Summary!E37,"0.00")&" - $"&TEXT(Summary!E30,"0.00")&") / $"&TEXT(Summary!E30,"0.00")&" = "&TEXT(Summary!E48*100,"0.00")&"%)" -> Return on Investment (ROI) = (Gross Revenue - Total Cost) / Total Cost (eg. wheat: ($736.00 - $708.67) / $708.67 = 3.86%)
A50: Estimated Return on Asset (ROA) = (Margin Over Operating - Labour - Machinery Depreciation) / (Land Investment Cost + Machinery Investment Cost)
A51: =" (eg. wheat: ($"&TEXT(Summary!E43,"0.00")&" margin - $"&TEXT(Summary!E28,"0.00")&" labour - $"&TEXT(('Fixed Cost Input'!$I$15),"0.00")&" dep.) / ($"&'Fixed Cost Input'!D4&" land cost + $"&TEXT('Fixed Cost Input'!I5,"0.00")&" machinery ) = "&TEXT(Summary!E49*100,".00")&"%) " -> (eg. wheat: ($262.87 margin - $52.00 labour - $30.00 dep.) / ($3750 land cost + $600.00 machinery ) = 4.16%)
A52: ="Breakeven Price = Cost / Target Yield (eg. wheat cost $"&TEXT(Summary!E30,"0.00")&" / "&Summary!E35&" bu = $"&TEXT(Summary!E55,"0.00")&" per bu)" -> Breakeven Price = Cost / Target Yield (eg. wheat cost $708.67 / 32 bu = $22.15 per bu)
A53: ="Breakeven Yield = Cost / Price per Unit (eg. wheat cost $"&TEXT(Summary!E30,"0.00")&" / $"&TEXT(Summary!E34,"0.00")&" bu = "&TEXT(Summary!E60,"0.0")&" bu)" -> Breakeven Yield = Cost / Price per Unit (eg. wheat cost $708.67 / $23.00 bu = 30.8 bu)
A54: ="Breakeven Yield Risk Ratio = (Yield per Acre / Breakeven Yield) x 100 (eg. wheat yield "&Summary!E35&" bu/ac / "&TEXT(Summary!E60,"0.0")&" bu BE = "&ROUND(Summary!E62*100,0)&"%)" -> Breakeven Yield Risk Ratio = (Yield per Acre / Breakeven Yield) x 100 (eg. wheat yield 32 bu/ac / 30.8 bu BE = 104%)
A55: ="AgriInsurance Risk Ratio = (AgriInsurance Coverage / Operating Cost) x 100 (eg. wheat coverage $"&TEXT('Risk Analysis'!E7,"0.00")&"/ac / $"&TEXT(Summary!E21,"0.00")&" operating expense = "&ROUND('Risk Analysis'!E15*100,0)&"%)" -> AgriInsurance Risk Ratio = (AgriInsurance Coverage / Operating Cost) x 100 (eg. wheat coverage $550.88/ac / $473.13 operating expense = 116%)
L57: February, 2023

Sheet Chart data (HIDE) (hidden)
A2: ="Manitoba Organic Breakeven Yield Risk Ratio - "&Introduction!I11 -> Manitoba Organic Breakeven Yield Risk Ratio - 2023
A3: ="Manitoba Organic Risk & Reward Analysis - "&Introduction!I11 -> Manitoba Organic Risk & Reward Analysis - 2023 | E3: 80% Coverage of Total Costs
A4: ="Manitoba Organic - 80% AgriInsurance Risk Analysis - "&Introduction!I11 -> Manitoba Organic - 80% AgriInsurance Risk Analysis - 2023
B5: Operating Costs | C5: 80% Insured Value | D5: 80% Coverage of Operating Costs | E5: 80% Coverage of Total Costs (Risk) | F5: Return on Asset (Reward) | G5: Return on Investment (Reward) | L5: Target Yield as % of B/E Yield
A6: Flax | B6: =Summary!C$21 -> 481.5215236 | C6: ='Risk Analysis'!C$7 -> 521.208 | D6: ='Risk Analysis'!C$15 -> 1.082418904 | E6: =SUM(C6/Summary!C$30) -> 0.7268665783 | F6: =Summary!$C$49 -> 0.02884562675 | G6: =Summary!$C$48 -> -0.03913394949 | L6: =Summary!$C$62 -> 0.9608660505
A7: Peas | B7: =Summary!D$21 -> 456.3992259 | C7: ='Risk Analysis'!D$7 -> 358.7408 | D7: ='Risk Analysis'!D$15 -> 0.7860241202 | E7: =SUM(C7/Summary!D$30) -> 0.5184571514 | F7: =Summary!$D$49 -> -0.0342297071 | G7: =Summary!$D$48 -> -0.4370892285 | L7: =Summary!$D$62 -> 0.5629107715
A8: HRS Wheat | B8: =Summary!E$21 -> 473.1259141 | C8: ='Risk Analysis'!E$7 -> 550.8848 | D8: ='Risk Analysis'!E$15 -> 1.164351357 | E8: =SUM(C8/Summary!E$30) -> 0.7773548142 | F8: =Summary!$E$49 -> 0.04158024963 | G8: =Summary!$E$48 -> 0.03857130067 | L8: =Summary!$E$62 -> 1.038571301
A9: Oats | B9: =Summary!F$21 -> 471.196858 | C9: ='Risk Analysis'!F$7 -> 482.664 | D9: ='Risk Analysis'!F$15 -> 1.024336202 | E9: =SUM(C9/Summary!F$30) -> 0.6829473336 | F9: =Summary!$F$49 -> 0.01075934298 | G9: =Summary!$F$48 -> -0.1510276297 | L9: =Summary!$F$62 -> 0.8489723703
A10: Hemp | B10: =Summary!G$21 -> 471.7585324 | C10: ='Risk Analysis'!G$7 -> 366.08 | D10: ='Risk Analysis'!G$15 -> 0.7759902044 | E10: =SUM(C10/Summary!G$30) -> 0.5175750029 | F10: =Summary!$G$49 -> 0.0589060845 | G10: =Summary!$G$48 -> 0.1452025577 | L10: =Summary!$G$62 -> 1.145202558
A11: Soybeans | B11: =Summary!H$21 -> 456.6604422 | C11: ='Risk Analysis'!H$7 -> 386.576 | D11: ='Risk Analysis'!H$15 -> 0.8465283267 | E11: =SUM(C11/Summary!H$30) -> 0.5584741349 | F11: =Summary!$H$49 -> 0.000307944328 | G11: =Summary!$H$48 -> -0.2198790591 | L11: =Summary!$H$62 -> 0.7801209409
A12: Barley | B12: =Summary!I$21 -> 415.3322653 | C12: ='Risk Analysis'!I$7 -> 425.3664 | D12: ='Risk Analysis'!I$15 -> 1.024159295 | E12: =SUM(C12/Summary!I$30) -> 0.6535329175 | F12: =Summary!$I$49 -> -0.03386948627 | G12: =Summary!$I$48 -> -0.462260016 | L12: =Summary!$I$62 -> 0.537739984
A13: Fall Rye | B13: =Summary!J$21 -> 395.0738874 | C13: ='Risk Analysis'!J$7 -> 553.7664 | D13: ='Risk Analysis'!J$15 -> 1.40167806 | E13: =SUM(C13/Summary!J$30) -> 0.8781387134 | F13: =Summary!$J$49 -> -0.04487215803 | G13: =Summary!$J$48 -> -0.5530069348 | L13: =Summary!$J$62 -> 0.4469851364
A14: Winter Wheat | B14: =Summary!K$21 -> 463.4571978 | C14: ='Risk Analysis'!K$7 -> 565.0944 | D14: ='Risk Analysis'!K$15 -> 1.219302241 | E14: =SUM(C14/Summary!K$30) -> 0.8084359482 | F14: =Summary!$K$49 -> 0.01874547176 | G14: =Summary!$K$48 -> -0.1030005969 | L14: =Summary!$K$62 -> 0.8969994031
W15: calculated
O16: Revenue | Q16: 1 | S16: 650 | W16: =Summary!AA37 -> 593.75
P17: Cost of Goods Sold (CoGS) | R17: =T17/$S$16 -> 0.3692307692 | T17: 240 | X17: =Summary!AA5+Summary!AA6+Summary!AA7++Summary!AA14+Summary!AA15 -> 303.035877
O18: Gross Margin ratio (%GM) | Q18: =S18/$S$16 -> 0.6307692308 | S18: =SUM(S16-T17) -> 410 | W18: =SUM(S16-T17) -> 410
P19: Direct Operating Expense (DOE) | R19: =T19/$S$16 -> 0.2307692308 | T19: 150 | X19: =Summary!AA11+Summary!AA13+Summary!AA28+Summary!AA11+Summary!AA19+Summary!AA12 -> 195.5906673
O20: Contribution Margin ratio (%CM) | Q20: =S20/$S$16 -> 0.4 | S20: =SUM(S18-T19) -> 260 | W20: =SUM(S18-T19) -> 260
P21: Overhead (OH) | R21: =T21/$S$16 -> 0.03076923077 | T21: 20 | X21: =Summary!AA16+Summary!AA17 -> 21.08333333
O22: Operating Efficiency ratio (%EBITDAR) | Q22: =S22/$S$16 -> 0.3692307692 | S22: =SUM(S20-T21) -> 240 | W22: =SUM(S20-T21) -> 240
P23: Cost of Capital (CoC) | R23: =T23/$S$16 -> 0.2230769231 | T23: 145 | X23: =Summary!AA18+'Fixed Cost Input'!I15+'Fixed Cost Input'!I14+'Fixed Cost Input'!I16+'Fixed Cost Input'!D12+'Fixed Cost Input'!D13+'Fixed Cost Input'!I20-(-CUMIPMT('Fixed Cost Input'!H13,'Fixed Cost Input'!I13,'Fixed Cost Input'!I5*'Fixed Cost Input'!I9,1,'Fixed Cost Input'!I13,0)/'Fixed Cost Input'!I13)-(-CUMIPMT('Fixed Cost Input'!C11,'Fixed Cost Input'!D11,'Fixed Cost Input'!D4*'Fixed Cost Input'!D7,1,'Fixed Cost Input'!D11,0)/'Fixed Cost Input'!D11) -> 161.3339286
O24: EBIT ratio (%EBIT) | Q24: =S24/$S$16 -> 0.1461538462 | S24: =SUM(S22-T23) -> 95 | W24: =SUM(S22-T23) -> 95
P25: Interest | R25: =T25/$S$16 -> 0.04615384615 | T25: 30 | X25: =(-CUMIPMT('Fixed Cost Input'!H13,'Fixed Cost Input'!I13,'Fixed Cost Input'!I5*'Fixed Cost Input'!I9,1,'Fixed Cost Input'!I13,0)/'Fixed Cost Input'!I13)+(-CUMIPMT('Fixed Cost Input'!C11,'Fixed Cost Input'!D11,'Fixed Cost Input'!D4*'Fixed Cost Input'!D7,1,'Fixed Cost Input'!D11,0)/'Fixed Cost Input'!D11)+Summary!AA20 -> 56.53849424
O26: EBT ratio (%EBT) | Q26: =S26/$S$16 -> 0.1 | S26: =SUM(S24-T25) -> 65
A33: ="Net Profit per Acre - Organic Flax ("&T43&"bu @ $"&TEXT(W39,"0.00")&"/bu) - "&Introduction!I11 -> Net Profit per Acre - Organic Flax (13bu @ $53.00/bu) - 2023
A34: ="Net Profit per Acre - Organic HRS Wheat ("&K43&"bu @ $"&TEXT(N39,"0.00")&"/bu) - "&Introduction!I11 -> Net Profit per Acre - Organic HRS Wheat (32bu @ $23.00/bu) - 2023
A35: ="Net Profit per Acre - Organic Oats ("&B43&"bu @ $"&TEXT(E39,"0.00")&"/bu) - "&Introduction!I11 -> Net Profit per Acre - Organic Oats (60bu @ $10.00/bu) - 2023
E38: 0.8 | F38: 0.7 | G38: 0.5 | H38: 0 | N38: 0.8 | O38: 0.7 | P38: 0.5 | Q38: 0 | W38: 0.8 | X38: 0.7 | Y38: 0.5 | Z38: 0
B39: Market | E39: =Summary!F34 -> 10 | F39: =Summary!F34 -> 10 | G39: =Summary!F34 -> 10 | H39: =Summary!F34 -> 10 | N39: =Summary!E34 -> 23 | O39: =N39 -> 23 | P39: =O39 -> 23 | Q39: =N39 -> 23 | W39: =Summary!C34 -> 53 | X39: =W39 -> 53 | Y39: =X39 -> 53 | Z39: =W39 -> 53
B40: MASC | E40: 11.83 | F40: =E40 -> 11.83 | G40: =E40 -> 11.83 | H40: =E40 -> 11.83 | N40: 24.77 | O40: =N40 -> 24.77 | P40: =N40 -> 24.77 | Q40: =N40 -> 24.77 | W40: 57.15 | X40: =W40 -> 57.15 | Y40: =W40 -> 57.15 | Z40: =W40 -> 57.15
E41: =E38*100&"% AgriInsurance" -> 80% AgriInsurance | F41: =F38*100&"% AgriInsurance" -> 70% AgriInsurance | G41: =G38*100&"% AgriInsurance" -> 50% AgriInsurance | H41: No AgriInsurance | N41: =N38*100&"% AgriInsurance" -> 80% AgriInsurance | O41: =O38*100&"% AgriInsurance" -> 70% AgriInsurance | P41: =P38*100&"% AgriInsurance" -> 50% AgriInsurance | Q41: No AgriInsurance | W41: =W38*100&"% AgriInsurance" -> 80% AgriInsurance | X41: =X38*100&"% AgriInsurance" -> 70% AgriInsurance | Y41: =Y38*100&"% AgriInsurance" -> 50% AgriInsurance | Z41: No AgriInsurance
B42: Oats | D42: 51 | K42: Wheat | M42: 27.8 | T42: Flax | V42: 11.4
A43: 1 | B43: =Summary!F35 -> 60 | C43: =B43/$D$42 -> 1.176470588 | D43: =D42 -> 51 | E43: =IF(C43>=$E$38,(B43*$E$39)-Summary!$F$30,((B43*$E$39)+(($B$68-B43)*$E$40)-Summary!$F$30)) -> -106.7367808 | F43: =IF(C43>=$F$38,(B43*$F$39)-Summary!$F$30,((B43*$F$39)+(($B$71-B43)*$E$40)-Summary!$F$30)) -> -106.7367808 | G43: =IF(C43>=$G$38,(B43*$G$39)-Summary!$F$30,((B43*$G$39)+(($B$77-B43)*$E$40)-Summary!$F$30)) -> -106.7367808 | H43: =(B43*$H$39)-Summary!$F$30 -> -106.7367808 | J43: 1 | K43: =Summary!E35 -> 32 | L43: =K43/$M$42 -> 1.151079137 | M43: =M42 -> 27.8 | N43: =IF(L43>=$N$38,(K43*$N$39)-Summary!$E$30,((K43*$N$39)+(($K$62-K43)*$N$40)-Summary!$E$30)) -> 27.33416307 | O43: =IF(L43>=$O$38,(K43*$O$39)-Summary!$E$30,((K43*$O$39)+(($K$66-K43)*$O$40)-Summary!$E$30)) -> 27.33416307 | P43: =IF(L43>=$P$38,(K43*$P$39)-Summary!$E$30,((K43*$P$39)+(($K$73-K43)*$P$40)-Summary!$E$30)) -> 27.33416307 | Q43: =(K43*$Q$39)-Summary!$E$30 -> 27.33416307 | S43: 1 | T43: =Summary!C35 -> 13 | U43: =T43/$V$42 -> 1.140350877 | V43: =V42 -> 11.4 | W43: =IF(U43>=$W$38,(T43*$W$39)-Summary!$C$30,((T43*$W$39)+(($T$64-T43)*$W$40)-Summary!$C$30)) -> -28.06144643 | X43: =IF(U43>=$X$38,(T43*$X$39)-Summary!$C$30,((T43*$X$39)+(($T$67-T43)*$X$40)-Summary!$C$30)) -> -28.06144643 | Y43: =IF(U43>=$Y$38,(T43*$Y$39)-Summary!$C$30,((T43*$Y$39)+(($T$75-T43)*$Y$40)-Summary!$C$30)) -> -28.06144643 | Z43: =(T43*$Z$39)-Summary!$C$30 -> -28.06144643
A44: 0.98 | B44: =$B$43*A44 -> 58.8 | C44: 1.152941176 | D44: =$D$43*A44 -> 49.98 | E44: =IF(C44>=$E$38,(B44*$E$39)-Summary!$F$30,((B44*$E$39)+(($B$68-B44)*$E$40)-Summary!$F$30)) -> -118.7367808 | F44: =IF(C44>=$F$38,(B44*$F$39)-Summary!$F$30,((B44*$F$39)+(($B$71-B44)*$E$40)-Summary!$F$30)) -> -118.7367808 | G44: =IF(C44>=$G$38,(B44*$G$39)-Summary!$F$30,((B44*$G$39)+(($B$77-B44)*$E$40)-Summary!$F$30)) -> -118.7367808 | H44: =(B44*$H$39)-Summary!$F$30 -> -118.7367808 | J44: 0.98 | K44: =$K$43*J44 -> 31.36 | L44: =K44/$M$42 -> 1.128057554 | M44: =$M$43*J44 -> 27.244 | N44: =IF(L44>=$N$38,(K44*$N$39)-Summary!$E$30,((K44*$N$39)+(($K$62-K44)*$N$40)-Summary!$E$30)) -> 12.61416307 | O44: =IF(L44>=$O$38,(K44*$O$39)-Summary!$E$30,((K44*$O$39)+(($K$66-K44)*$O$40)-Summary!$E$30)) -> 12.61416307 | P44: =IF(L44>=$P$38,(K44*$P$39)-Summary!$E$30,((K44*$P$39)+(($K$73-K44)*$P$40)-Summary!$E$30)) -> 12.61416307 | Q44: =(K44*$Q$39)-Summary!$E$30 -> 12.61416307 | S44: 0.98 | T44: =$T$43*S44 -> 12.74 | U44: =T44/$V$42 -> 1.11754386 | V44: =$V$43*S44 -> 11.172 | W44: =IF(U44>=$W$38,(T44*$W$39)-Summary!$C$30,((T44*$W$39)+(($T$64-T44)*$W$40)-Summary!$C$30)) -> -41.84144643 | X44: =IF(U44>=$X$38,(T44*$X$39)-Summary!$C$30,((T44*$X$39)+(($T$67-T44)*$X$40)-Summary!$C$30)) -> -41.84144643 | Y44: =IF(U44>=$Y$38,(T44*$Y$39)-Summary!$C$30,((T44*$Y$39)+(($T$75-T44)*$Y$40)-Summary!$C$30)) -> -41.84144643 | Z44: =(T44*$Z$39)-Summary!$C$30 -> -41.84144643
A45: 0.96 | B45: =$B$43*A45 -> 57.6 | C45: 1.129411765 | D45: 48.96 | E45: =IF(C45>=$E$38,(B45*$E$39)-Summary!$F$30,((B45*$E$39)+(($B$68-B45)*$E$40)-Summary!$F$30)) -> -130.7367808 | F45: =IF(C45>=$F$38,(B45*$F$39)-Summary!$F$30,((B45*$F$39)+(($B$71-B45)*$E$40)-Summary!$F$30)) -> -130.7367808 | G45: =IF(C45>=$G$38,(B45*$G$39)-Summary!$F$30,((B45*$G$39)+(($B$77-B45)*$E$40)-Summary!$F$30)) -> -130.7367808 | H45: =(B45*$H$39)-Summary!$F$30 -> -130.7367808 | J45: 0.96 | K45: =$K$43*J45 -> 30.72 | L45: 1.105035971 | M45: =$M$43*J45 -> 26.688 | N45: =IF(L45>=$N$38,(K45*$N$39)-Summary!$E$30,((K45*$N$39)+(($K$62-K45)*$N$40)-Summary!$E$30)) -> -2.105836931 | O45: =IF(L45>=$O$38,(K45*$O$39)-Summary!$E$30,((K45*$O$39)+(($K$66-K45)*$O$40)-Summary!$E$30)) -> -2.105836931 | P45: =IF(L45>=$P$38,(K45*$P$39)-Summary!$E$30,((K45*$P$39)+(($K$73-K45)*$P$40)-Summary!$E$30)) -> -2.105836931 | Q45: =(K45*$Q$39)-Summary!$E$30 -> -2.105836931 | S45: 0.96 | T45: =$T$43*S45 -> 12.48 | U45: 1.094736842 | V45: =$V$43*S45 -> 10.944 | W45: =IF(U45>=$W$38,(T45*$W$39)-Summary!$C$30,((T45*$W$39)+(($T$64-T45)*$W$40)-Summary!$C$30)) -> -55.62144643 | X45: =IF(U45>=$X$38,(T45*$X$39)-Summary!$C$30,((T45*$X$39)+(($T$67-T45)*$X$40)-Summary!$C$30)) -> -55.62144643 | Y45: =IF(U45>=$Y$38,(T45*$Y$39)-Summary!$C$30,((T45*$Y$39)+(($T$75-T45)*$Y$40)-Summary!$C$30)) -> -55.62144643 | Z45: =(T45*$Z$39)-Summary!$C$30 -> -55.62144643
A46: 0.94 | B46: 56.4 | C46: 1.105882353 | D46: 47.94 | E46: =IF(C46>=$E$38,(B46*$E$39)-Summary!$F$30,((B46*$E$39)+(($B$68-B46)*$E$40)-Summary!$F$30)) -> -142.7367808 | F46: =IF(C46>=$F$38,(B46*$F$39)-Summary!$F$30,((B46*$F$39)+(($B$71-B46)*$E$40)-Summary!$F$30)) -> -142.7367808 | G46: =IF(C46>=$G$38,(B46*$G$39)-Summary!$F$30,((B46*$G$39)+(($B$77-B46)*$E$40)-Summary!$F$30)) -> -142.7367808 | H46: =(B46*$H$39)-Summary!$F$30 -> -142.7367808 | J46: 0.94 | K46: 30.08 | L46: 1.082014388 | M46: 26.132 | N46: =IF(L46>=$N$38,(K46*$N$39)-Summary!$E$30,((K46*$N$39)+(($K$62-K46)*$N$40)-Summary!$E$30)) -> -16.82583693 | O46: =IF(L46>=$O$38,(K46*$O$39)-Summary!$E$30,((K46*$O$39)+(($K$66-K46)*$O$40)-Summary!$E$30)) -> -16.82583693 | P46: =IF(L46>=$P$38,(K46*$P$39)-Summary!$E$30,((K46*$P$39)+(($K$73-K46)*$P$40)-Summary!$E$30)) -> -16.82583693 | Q46: =(K46*$Q$39)-Summary!$E$30 -> -16.82583693 | S46: 0.94 | T46: 12.22 | U46: 1.071929825 | V46: 10.716 | W46: =IF(U46>=$W$38,(T46*$W$39)-Summary!$C$30,((T46*$W$39)+(($T$64-T46)*$W$40)-Summary!$C$30)) -> -69.40144643 | X46: =IF(U46>=$X$38,(T46*$X$39)-Summary!$C$30,((T46*$X$39)+(($T$67-T46)*$X$40)-Summary!$C$30)) -> -69.40144643 | Y46: =IF(U46>=$Y$38,(T46*$Y$39)-Summary!$C$30,((T46*$Y$39)+(($T$75-T46)*$Y$40)-Summary!$C$30)) -> -69.40144643 | Z46: =(T46*$Z$39)-Summary!$C$30 -> -69.40144643
A47: 0.92 | B47: 55.2 | C47: 1.082352941 | D47: 46.92 | E47: =IF(C47>=$E$38,(B47*$E$39)-Summary!$F$30,((B47*$E$39)+(($B$68-B47)*$E$40)-Summary!$F$30)) -> -154.7367808 | F47: =IF(C47>=$F$38,(B47*$F$39)-Summary!$F$30,((B47*$F$39)+(($B$71-B47)*$E$40)-Summary!$F$30)) -> -154.7367808 | G47: =IF(C47>=$G$38,(B47*$G$39)-Summary!$F$30,((B47*$G$39)+(($B$77-B47)*$E$40)-Summary!$F$30)) -> -154.7367808 | H47: =(B47*$H$39)-Summary!$F$30 -> -154.7367808 | J47: 0.92 | K47: 29.44 | L47: 1.058992806 | M47: 25.576 | N47: =IF(L47>=$N$38,(K47*$N$39)-Summary!$E$30,((K47*$N$39)+(($K$62-K47)*$N$40)-Summary!$E$30)) -> -31.54583693 | O47: =IF(L47>=$O$38,(K47*$O$39)-Summary!$E$30,((K47*$O$39)+(($K$66-K47)*$O$40)-Summary!$E$30)) -> -31.54583693 | P47: =IF(L47>=$P$38,(K47*$P$39)-Summary!$E$30,((K47*$P$39)+(($K$73-K47)*$P$40)-Summary!$E$30)) -> -31.54583693 | Q47: =(K47*$Q$39)-Summary!$E$30 -> -31.54583693 | S47: 0.92 | T47: 11.96 | U47: 1.049122807 | V47: 10.488 | W47: =IF(U47>=$W$38,(T47*$W$39)-Summary!$C$30,((T47*$W$39)+(($T$64-T47)*$W$40)-Summary!$C$30)) -> -83.18144643 | X47: =IF(U47>=$X$38,(T47*$X$39)-Summary!$C$30,((T47*$X$39)+(($T$67-T47)*$X$40)-Summary!$C$30)) -> -83.18144643 | Y47: =IF(U47>=$Y$38,(T47*$Y$39)-Summary!$C$30,((T47*$Y$39)+(($T$75-T47)*$Y$40)-Summary!$C$30)) -> -83.18144643 | Z47: =(T47*$Z$39)-Summary!$C$30 -> -83.18144643
A48: 0.9 | B48: 54 | C48: 1.058823529 | D48: 45.9 | E48: =IF(C48>=$E$38,(B48*$E$39)-Summary!$F$30,((B48*$E$39)+(($B$68-B48)*$E$40)-Summary!$F$30)) -> -166.7367808 | F48: =IF(C48>=$F$38,(B48*$F$39)-Summary!$F$30,((B48*$F$39)+(($B$71-B48)*$E$40)-Summary!$F$30)) -> -166.7367808 | G48: =IF(C48>=$G$38,(B48*$G$39)-Summary!$F$30,((B48*$G$39)+(($B$77-B48)*$E$40)-Summary!$F$30)) -> -166.7367808 | H48: =(B48*$H$39)-Summary!$F$30 -> -166.7367808 | J48: 0.9 | K48: 28.8 | L48: 1.035971223 | M48: 25.02 | N48: =IF(L48>=$N$38,(K48*$N$39)-Summary!$E$30,((K48*$N$39)+(($K$62-K48)*$N$40)-Summary!$E$30)) -> -46.26583693 | O48: =IF(L48>=$O$38,(K48*$O$39)-Summary!$E$30,((K48*$O$39)+(($K$66-K48)*$O$40)-Summary!$E$30)) -> -46.26583693 | P48: =IF(L48>=$P$38,(K48*$P$39)-Summary!$E$30,((K48*$P$39)+(($K$73-K48)*$P$40)-Summary!$E$30)) -> -46.26583693 | Q48: =(K48*$Q$39)-Summary!$E$30 -> -46.26583693 | S48: 0.9 | T48: 11.7 | U48: 1.026315789 | V48: 10.26 | W48: =IF(U48>=$W$38,(T48*$W$39)-Summary!$C$30,((T48*$W$39)+(($T$64-T48)*$W$40)-Summary!$C$30)) -> -96.96144643 | X48: =IF(U48>=$X$38,(T48*$X$39)-Summary!$C$30,((T48*$X$39)+(($T$67-T48)*$X$40)-Summary!$C$30)) -> -96.96144643 | Y48: =IF(U48>=$Y$38,(T48*$Y$39)-Summary!$C$30,((T48*$Y$39)+(($T$75-T48)*$Y$40)-Summary!$C$30)) -> -96.96144643 | Z48: =(T48*$Z$39)-Summary!$C$30 -> -96.96144643
A49: 0.88 | B49: 52.8 | C49: 1.035294118 | D49: 44.88 | E49: =IF(C49>=$E$38,(B49*$E$39)-Summary!$F$30,((B49*$E$39)+(($B$68-B49)*$E$40)-Summary!$F$30)) -> -178.7367808 | F49: =IF(C49>=$F$38,(B49*$F$39)-Summary!$F$30,((B49*$F$39)+(($B$71-B49)*$E$40)-Summary!$F$30)) -> -178.7367808 | G49: =IF(C49>=$G$38,(B49*$G$39)-Summary!$F$30,((B49*$G$39)+(($B$77-B49)*$E$40)-Summary!$F$30)) -> -178.7367808 | H49: =(B49*$H$39)-Summary!$F$30 -> -178.7367808 | J49: 0.88 | K49: 28.16 | L49: 1.01294964 | M49: 24.464 | N49: =IF(L49>=$N$38,(K49*$N$39)-Summary!$E$30,((K49*$N$39)+(($K$62-K49)*$N$40)-Summary!$E$30)) -> -60.98583693 | O49: =IF(L49>=$O$38,(K49*$O$39)-Summary!$E$30,((K49*$O$39)+(($K$66-K49)*$O$40)-Summary!$E$30)) -> -60.98583693 | P49: =IF(L49>=$P$38,(K49*$P$39)-Summary!$E$30,((K49*$P$39)+(($K$73-K49)*$P$40)-Summary!$E$30)) -> -60.98583693 | Q49: =(K49*$Q$39)-Summary!$E$30 -> -60.98583693 | S49: 0.88 | T49: 11.44 | U49: 1.003508772 | V49: 10.032 | W49: =IF(U49>=$W$38,(T49*$W$39)-Summary!$C$30,((T49*$W$39)+(($T$64-T49)*$W$40)-Summary!$C$30)) -> -110.7414464 | X49: =IF(U49>=$X$38,(T49*$X$39)-Summary!$C$30,((T49*$X$39)+(($T$67-T49)*$X$40)-Summary!$C$30)) -> -110.7414464 | Y49: =IF(U49>=$Y$38,(T49*$Y$39)-Summary!$C$30,((T49*$Y$39)+(($T$75-T49)*$Y$40)-Summary!$C$30)) -> -110.7414464 | Z49: =(T49*$Z$39)-Summary!$C$30 -> -110.7414464
A50: 0.86 | B50: 51.6 | C50: 1.011764706 | D50: 43.86 | E50: =IF(C50>=$E$38,(B50*$E$39)-Summary!$F$30,((B50*$E$39)+(($B$68-B50)*$E$40)-Summary!$F$30)) -> -190.7367808 | F50: =IF(C50>=$F$38,(B50*$F$39)-Summary!$F$30,((B50*$F$39)+(($B$71-B50)*$E$40)-Summary!$F$30)) -> -190.7367808 | G50: =IF(C50>=$G$38,(B50*$G$39)-Summary!$F$30,((B50*$G$39)+(($B$77-B50)*$E$40)-Summary!$F$30)) -> -190.7367808 | H50: =(B50*$H$39)-Summary!$F$30 -> -190.7367808 | J50: 0.86 | K50: 27.52 | L50: 0.9899280576 | M50: 23.908 | N50: =IF(L50>=$N$38,(K50*$N$39)-Summary!$E$30,((K50*$N$39)+(($K$62-K50)*$N$40)-Summary!$E$30)) -> -75.70583693 | O50: =IF(L50>=$O$38,(K50*$O$39)-Summary!$E$30,((K50*$O$39)+(($K$66-K50)*$O$40)-Summary!$E$30)) -> -75.70583693 | P50: =IF(L50>=$P$38,(K50*$P$39)-Summary!$E$30,((K50*$P$39)+(($K$73-K50)*$P$40)-Summary!$E$30)) -> -75.70583693 | Q50: =(K50*$Q$39)-Summary!$E$30 -> -75.70583693 | S50: 0.86 | T50: 11.18 | U50: 0.9807017544 | V50: 9.804 | W50: =IF(U50>=$W$38,(T50*$W$39)-Summary!$C$30,((T50*$W$39)+(($T$64-T50)*$W$40)-Summary!$C$30)) -> -124.5214464 | X50: =IF(U50>=$X$38,(T50*$X$39)-Summary!$C$30,((T50*$X$39)+(($T$67-T50)*$X$40)-Summary!$C$30)) -> -124.5214464 | Y50: =IF(U50>=$Y$38,(T50*$Y$39)-Summary!$C$30,((T50*$Y$39)+(($T$75-T50)*$Y$40)-Summary!$C$30)) -> -124.5214464 | Z50: =(T50*$Z$39)-Summary!$C$30 -> -124.5214464
A51: 0.84 | B51: 50.4 | C51: 0.9882352941 | D51: 42.84 | E51: =IF(C51>=$E$38,(B51*$E$39)-Summary!$F$30,((B51*$E$39)+(($B$68-B51)*$E$40)-Summary!$F$30)) -> -202.7367808 | F51: =IF(C51>=$F$38,(B51*$F$39)-Summary!$F$30,((B51*$F$39)+(($B$71-B51)*$E$40)-Summary!$F$30)) -> -202.7367808 | G51: =IF(C51>=$G$38,(B51*$G$39)-Summary!$F$30,((B51*$G$39)+(($B$77-B51)*$E$40)-Summary!$F$30)) -> -202.7367808 | H51: =(B51*$H$39)-Summary!$F$30 -> -202.7367808 | J51: 0.84 | K51: 26.88 | L51: 0.9669064748 | M51: 23.352 | N51: =IF(L51>=$N$38,(K51*$N$39)-Summary!$E$30,((K51*$N$39)+(($K$62-K51)*$N$40)-Summary!$E$30)) -> -90.42583693 | O51: =IF(L51>=$O$38,(K51*$O$39)-Summary!$E$30,((K51*$O$39)+(($K$66-K51)*$O$40)-Summary!$E$30)) -> -90.42583693 | P51: =IF(L51>=$P$38,(K51*$P$39)-Summary!$E$30,((K51*$P$39)+(($K$73-K51)*$P$40)-Summary!$E$30)) -> -90.42583693 | Q51: =(K51*$Q$39)-Summary!$E$30 -> -90.42583693 | S51: 0.84 | T51: 10.92 | U51: 0.9578947368 | V51: 9.576 | W51: =IF(U51>=$W$38,(T51*$W$39)-Summary!$C$30,((T51*$W$39)+(($T$64-T51)*$W$40)-Summary!$C$30)) -> -138.3014464 | X51: =IF(U51>=$X$38,(T51*$X$39)-Summary!$C$30,((T51*$X$39)+(($T$67-T51)*$X$40)-Summary!$C$30)) -> -138.3014464 | Y51: =IF(U51>=$Y$38,(T51*$Y$39)-Summary!$C$30,((T51*$Y$39)+(($T$75-T51)*$Y$40)-Summary!$C$30)) -> -138.3014464 | Z51: =(T51*$Z$39)-Summary!$C$30 -> -138.3014464
A52: 0.82 | B52: 49.2 | C52: 0.9647058824 | D52: 41.82 | E52: =IF(C52>=$E$38,(B52*$E$39)-Summary!$F$30,((B52*$E$39)+(($B$68-B52)*$E$40)-Summary!$F$30)) -> -214.7367808 | F52: =IF(C52>=$F$38,(B52*$F$39)-Summary!$F$30,((B52*$F$39)+(($B$71-B52)*$E$40)-Summary!$F$30)) -> -214.7367808 | G52: =IF(C52>=$G$38,(B52*$G$39)-Summary!$F$30,((B52*$G$39)+(($B$77-B52)*$E$40)-Summary!$F$30)) -> -214.7367808 | H52: =(B52*$H$39)-Summary!$F$30 -> -214.7367808 | J52: 0.82 | K52: 26.24 | L52: 0.9438848921 | M52: 22.796 | N52: =IF(L52>=$N$38,(K52*$N$39)-Summary!$E$30,((K52*$N$39)+(($K$62-K52)*$N$40)-Summary!$E$30)) -> -105.1458369 | O52: =IF(L52>=$O$38,(K52*$O$39)-Summary!$E$30,((K52*$O$39)+(($K$66-K52)*$O$40)-Summary!$E$30)) -> -105.1458369 | P52: =IF(L52>=$P$38,(K52*$P$39)-Summary!$E$30,((K52*$P$39)+(($K$73-K52)*$P$40)-Summary!$E$30)) -> -105.1458369 | Q52: =(K52*$Q$39)-Summary!$E$30 -> -105.1458369 | S52: 0.82 | T52: 10.66 | U52: 0.9350877193 | V52: 9.348 | W52: =IF(U52>=$W$38,(T52*$W$39)-Summary!$C$30,((T52*$W$39)+(($T$64-T52)*$W$40)-Summary!$C$30)) -> -152.0814464 | X52: =IF(U52>=$X$38,(T52*$X$39)-Summary!$C$30,((T52*$X$39)+(($T$67-T52)*$X$40)-Summary!$C$30)) -> -152.0814464 | Y52: =IF(U52>=$Y$38,(T52*$Y$39)-Summary!$C$30,((T52*$Y$39)+(($T$75-T52)*$Y$40)-Summary!$C$30)) -> -152.0814464 | Z52: =(T52*$Z$39)-Summary!$C$30 -> -152.0814464
A53: 0.8 | B53: 48 | C53: 0.9411764706 | D53: =$D$43*A53 -> 40.8 | E53: =IF(C53>=$E$38,(B53*$E$39)-Summary!$F$30,((B53*$E$39)+(($B$68-B53)*$E$40)-Summary!$F$30)) -> -226.7367808 | F53: =IF(C53>=$F$38,(B53*$F$39)-Summary!$F$30,((B53*$F$39)+(($B$71-B53)*$E$40)-Summary!$F$30)) -> -226.7367808 | G53: =IF(C53>=$G$38,(B53*$G$39)-Summary!$F$30,((B53*$G$39)+(($B$77-B53)*$E$40)-Summary!$F$30)) -> -226.7367808 | H53: =(B53*$H$39)-Summary!$F$30 -> -226.7367808 | J53: 0.8 | K53: 25.6 | L53: 0.9208633094 | M53: 22.24 | N53: =IF(L53>=$N$38,(K53*$N$39)-Summary!$E$30,((K53*$N$39)+(($K$62-K53)*$N$40)-Summary!$E$30)) -> -119.8658369 | O53: =IF(L53>=$O$38,(K53*$O$39)-Summary!$E$30,((K53*$O$39)+(($K$66-K53)*$O$40)-Summary!$E$30)) -> -119.8658369 | P53: =IF(L53>=$P$38,(K53*$P$39)-Summary!$E$30,((K53*$P$39)+(($K$73-K53)*$P$40)-Summary!$E$30)) -> -119.8658369 | Q53: =(K53*$Q$39)-Summary!$E$30 -> -119.8658369 | S53: 0.8 | T53: 10.4 | U53: 0.9122807018 | V53: 9.12 | W53: =IF(U53>=$W$38,(T53*$W$39)-Summary!$C$30,((T53*$W$39)+(($T$64-T53)*$W$40)-Summary!$C$30)) -> -165.8614464 | X53: =IF(U53>=$X$38,(T53*$X$39)-Summary!$C$30,((T53*$X$39)+(($T$67-T53)*$X$40)-Summary!$C$30)) -> -165.8614464 | Y53: =IF(U53>=$Y$38,(T53*$Y$39)-Summary!$C$30,((T53*$Y$39)+(($T$75-T53)*$Y$40)-Summary!$C$30)) -> -165.8614464 | Z53: =(T53*$Z$39)-Summary!$C$30 -> -165.8614464
A54: 0.78 | B54: 46.8 | C54: 0.9176470588 | D54: 39.78 | E54: =IF(C54>=$E$38,(B54*$E$39)-Summary!$F$30,((B54*$E$39)+(($B$68-B54)*$E$40)-Summary!$F$30)) -> -238.7367808 | F54: =IF(C54>=$F$38,(B54*$F$39)-Summary!$F$30,((B54*$F$39)+(($B$71-B54)*$E$40)-Summary!$F$30)) -> -238.7367808 | G54: =IF(C54>=$G$38,(B54*$G$39)-Summary!$F$30,((B54*$G$39)+(($B$77-B54)*$E$40)-Summary!$F$30)) -> -238.7367808 | H54: =(B54*$H$39)-Summary!$F$30 -> -238.7367808 | J54: 0.78 | K54: 24.96 | L54: 0.8978417266 | M54: 21.684 | N54: =IF(L54>=$N$38,(K54*$N$39)-Summary!$E$30,((K54*$N$39)+(($K$62-K54)*$N$40)-Summary!$E$30)) -> -134.5858369 | O54: =IF(L54>=$O$38,(K54*$O$39)-Summary!$E$30,((K54*$O$39)+(($K$66-K54)*$O$40)-Summary!$E$30)) -> -134.5858369 | P54: =IF(L54>=$P$38,(K54*$P$39)-Summary!$E$30,((K54*$P$39)+(($K$73-K54)*$P$40)-Summary!$E$30)) -> -134.5858369 | Q54: =(K54*$Q$39)-Summary!$E$30 -> -134.5858369 | S54: 0.78 | T54: 10.14 | U54: 0.8894736842 | V54: 8.892 | W54: =IF(U54>=$W$38,(T54*$W$39)-Summary!$C$30,((T54*$W$39)+(($T$64-T54)*$W$40)-Summary!$C$30)) -> -179.6414464 | X54: =IF(U54>=$X$38,(T54*$X$39)-Summary!$C$30,((T54*$X$39)+(($T$67-T54)*$X$40)-Summary!$C$30)) -> -179.6414464 | Y54: =IF(U54>=$Y$38,(T54*$Y$39)-Summary!$C$30,((T54*$Y$39)+(($T$75-T54)*$Y$40)-Summary!$C$30)) -> -179.6414464 | Z54: =(T54*$Z$39)-Summary!$C$30 -> -179.6414464
A55: 0.76 | B55: 45.6 | C55: 0.8941176471 | D55: 38.76 | E55: =IF(C55>=$E$38,(B55*$E$39)-Summary!$F$30,((B55*$E$39)+(($B$68-B55)*$E$40)-Summary!$F$30)) -> -250.7367808 | F55: =IF(C55>=$F$38,(B55*$F$39)-Summary!$F$30,((B55*$F$39)+(($B$71-B55)*$E$40)-Summary!$F$30)) -> -250.7367808 | G55: =IF(C55>=$G$38,(B55*$G$39)-Summary!$F$30,((B55*$G$39)+(($B$77-B55)*$E$40)-Summary!$F$30)) -> -250.7367808 | H55: =(B55*$H$39)-Summary!$F$30 -> -250.7367808 | J55: 0.76 | K55: 24.32 | L55: 0.8748201439 | M55: 21.128 | N55: =IF(L55>=$N$38,(K55*$N$39)-Summary!$E$30,((K55*$N$39)+(($K$62-K55)*$N$40)-Summary!$E$30)) -> -149.3058369 | O55: =IF(L55>=$O$38,(K55*$O$39)-Summary!$E$30,((K55*$O$39)+(($K$66-K55)*$O$40)-Summary!$E$30)) -> -149.3058369 | P55: =IF(L55>=$P$38,(K55*$P$39)-Summary!$E$30,((K55*$P$39)+(($K$73-K55)*$P$40)-Summary!$E$30)) -> -149.3058369 | Q55: =(K55*$Q$39)-Summary!$E$30 -> -149.3058369 | S55: 0.76 | T55: 9.88 | U55: 0.8666666667 | V55: 8.664 | W55: =IF(U55>=$W$38,(T55*$W$39)-Summary!$C$30,((T55*$W$39)+(($T$64-T55)*$W$40)-Summary!$C$30)) -> -193.4214464 | X55: =IF(U55>=$X$38,(T55*$X$39)-Summary!$C$30,((T55*$X$39)+(($T$67-T55)*$X$40)-Summary!$C$30)) -> -193.4214464 | Y55: =IF(U55>=$Y$38,(T55*$Y$39)-Summary!$C$30,((T55*$Y$39)+(($T$75-T55)*$Y$40)-Summary!$C$30)) -> -193.4214464 | Z55: =(T55*$Z$39)-Summary!$C$30 -> -193.4214464
A56: 0.74 | B56: 44.4 | C56: 0.8705882353 | D56: 37.74 | E56: =IF(C56>=$E$38,(B56*$E$39)-Summary!$F$30,((B56*$E$39)+(($B$68-B56)*$E$40)-Summary!$F$30)) -> -262.7367808 | F56: =IF(C56>=$F$38,(B56*$F$39)-Summary!$F$30,((B56*$F$39)+(($B$71-B56)*$E$40)-Summary!$F$30)) -> -262.7367808 | G56: =IF(C56>=$G$38,(B56*$G$39)-Summary!$F$30,((B56*$G$39)+(($B$77-B56)*$E$40)-Summary!$F$30)) -> -262.7367808 | H56: =(B56*$H$39)-Summary!$F$30 -> -262.7367808 | J56: 0.74 | K56: 23.68 | L56: 0.8517985612 | M56: 20.572 | N56: =IF(L56>=$N$38,(K56*$N$39)-Summary!$E$30,((K56*$N$39)+(($K$62-K56)*$N$40)-Summary!$E$30)) -> -164.0258369 | O56: =IF(L56>=$O$38,(K56*$O$39)-Summary!$E$30,((K56*$O$39)+(($K$66-K56)*$O$40)-Summary!$E$30)) -> -164.0258369 | P56: =IF(L56>=$P$38,(K56*$P$39)-Summary!$E$30,((K56*$P$39)+(($K$73-K56)*$P$40)-Summary!$E$30)) -> -164.0258369 | Q56: =(K56*$Q$39)-Summary!$E$30 -> -164.0258369 | S56: 0.74 | T56: 9.62 | U56: 0.8438596491 | V56: 8.436 | W56: =IF(U56>=$W$38,(T56*$W$39)-Summary!$C$30,((T56*$W$39)+(($T$64-T56)*$W$40)-Summary!$C$30)) -> -207.2014464 | X56: =IF(U56>=$X$38,(T56*$X$39)-Summary!$C$30,((T56*$X$39)+(($T$67-T56)*$X$40)-Summary!$C$30)) -> -207.2014464 | Y56: =IF(U56>=$Y$38,(T56*$Y$39)-Summary!$C$30,((T56*$Y$39)+(($T$75-T56)*$Y$40)-Summary!$C$30)) -> -207.2014464 | Z56: =(T56*$Z$39)-Summary!$C$30 -> -207.2014464
A57: 0.72 | B57: 43.2 | C57: 0.8470588235 | D57: 36.72 | E57: =IF(C57>=$E$38,(B57*$E$39)-Summary!$F$30,((B57*$E$39)+(($B$68-B57)*$E$40)-Summary!$F$30)) -> -274.7367808 | F57: =IF(C57>=$F$38,(B57*$F$39)-Summary!$F$30,((B57*$F$39)+(($B$71-B57)*$E$40)-Summary!$F$30)) -> -274.7367808 | G57: =IF(C57>=$G$38,(B57*$G$39)-Summary!$F$30,((B57*$G$39)+(($B$77-B57)*$E$40)-Summary!$F$30)) -> -274.7367808 | H57: =(B57*$H$39)-Summary!$F$30 -> -274.7367808 | J57: 0.72 | K57: 23.04 | L57: 0.8287769784 | M57: 20.016 | N57: =IF(L57>=$N$38,(K57*$N$39)-Summary!$E$30,((K57*$N$39)+(($K$62-K57)*$N$40)-Summary!$E$30)) -> -178.7458369 | O57: =IF(L57>=$O$38,(K57*$O$39)-Summary!$E$30,((K57*$O$39)+(($K$66-K57)*$O$40)-Summary!$E$30)) -> -178.7458369 | P57: =IF(L57>=$P$38,(K57*$P$39)-Summary!$E$30,((K57*$P$39)+(($K$73-K57)*$P$40)-Summary!$E$30)) -> -178.7458369 | Q57: =(K57*$Q$39)-Summary!$E$30 -> -178.7458369 | S57: 0.72 | T57: 9.36 | U57: 0.8210526316 | V57: 8.208 | W57: =IF(U57>=$W$38,(T57*$W$39)-Summary!$C$30,((T57*$W$39)+(($T$64-T57)*$W$40)-Summary!$C$30)) -> -220.9814464 | X57: =IF(U57>=$X$38,(T57*$X$39)-Summary!$C$30,((T57*$X$39)+(($T$67-T57)*$X$40)-Summary!$C$30)) -> -220.9814464 | Y57: =IF(U57>=$Y$38,(T57*$Y$39)-Summary!$C$30,((T57*$Y$39)+(($T$75-T57)*$Y$40)-Summary!$C$30)) -> -220.9814464 | Z57: =(T57*$Z$39)-Summary!$C$30 -> -220.9814464
A58: 0.7 | B58: 42 | C58: 0.8235294118 | D58: 35.7 | E58: =IF(C58>=$E$38,(B58*$E$39)-Summary!$F$30,((B58*$E$39)+(($B$68-B58)*$E$40)-Summary!$F$30)) -> -286.7367808 | F58: =IF(C58>=$F$38,(B58*$F$39)-Summary!$F$30,((B58*$F$39)+(($B$71-B58)*$E$40)-Summary!$F$30)) -> -286.7367808 | G58: =IF(C58>=$G$38,(B58*$G$39)-Summary!$F$30,((B58*$G$39)+(($B$77-B58)*$E$40)-Summary!$F$30)) -> -286.7367808 | H58: =(B58*$H$39)-Summary!$F$30 -> -286.7367808 | J58: 0.7 | K58: 22.4 | L58: 0.8057553957 | M58: 19.46 | N58: =IF(L58>=$N$38,(K58*$N$39)-Summary!$E$30,((K58*$N$39)+(($K$62-K58)*$N$40)-Summary!$E$30)) -> -193.4658369 | O58: =IF(L58>=$O$38,(K58*$O$39)-Summary!$E$30,((K58*$O$39)+(($K$66-K58)*$O$40)-Summary!$E$30)) -> -193.4658369 | P58: =IF(L58>=$P$38,(K58*$P$39)-Summary!$E$30,((K58*$P$39)+(($K$73-K58)*$P$40)-Summary!$E$30)) -> -193.4658369 | Q58: =(K58*$Q$39)-Summary!$E$30 -> -193.4658369 | S58: 0.7 | T58: 9.1 | U58: 0.798245614 | V58: 7.98 | W58: =IF(U58>=$W$38,(T58*$W$39)-Summary!$C$30,((T58*$W$39)+(($T$64-T58)*$W$40)-Summary!$C$30)) -> -323.9154464 | X58: =IF(U58>=$X$38,(T58*$X$39)-Summary!$C$30,((T58*$X$39)+(($T$67-T58)*$X$40)-Summary!$C$30)) -> -234.7614464 | Y58: =IF(U58>=$Y$38,(T58*$Y$39)-Summary!$C$30,((T58*$Y$39)+(($T$75-T58)*$Y$40)-Summary!$C$30)) -> -234.7614464 | Z58: =(T58*$Z$39)-Summary!$C$30 -> -234.7614464
A59: 0.68 | B59: 40.8 | C59: 0.8 | D59: =$D$43*A59 -> 34.68 | E59: =IF(C59>=$E$38,(B59*$E$39)-Summary!$F$30,((B59*$E$39)+(($B$68-B59)*$E$40)-Summary!$F$30)) -> -298.7367808 | F59: =IF(C59>=$F$38,(B59*$F$39)-Summary!$F$30,((B59*$F$39)+(($B$71-B59)*$E$40)-Summary!$F$30)) -> -298.7367808 | G59: =IF(C59>=$G$38,(B59*$G$39)-Summary!$F$30,((B59*$G$39)+(($B$77-B59)*$E$40)-Summary!$F$30)) -> -298.7367808 | H59: =(B59*$H$39)-Summary!$F$30 -> -298.7367808 | J59: 0.68 | K59: 21.76 | L59: 0.7827338129 | M59: 18.904 | N59: =IF(L59>=$N$38,(K59*$N$39)-Summary!$E$30,((K59*$N$39)+(($K$62-K59)*$N$40)-Summary!$E$30)) -> -255.7442369 | O59: =IF(L59>=$O$38,(K59*$O$39)-Summary!$E$30,((K59*$O$39)+(($K$66-K59)*$O$40)-Summary!$E$30)) -> -208.1858369 | P59: =IF(L59>=$P$38,(K59*$P$39)-Summary!$E$30,((K59*$P$39)+(($K$73-K59)*$P$40)-Summary!$E$30)) -> -208.1858369 | Q59: =(K59*$Q$39)-Summary!$E$30 -> -208.1858369 | S59: 0.68 | T59: 8.84 | U59: 0.7754385965 | V59: 7.752 | W59: =IF(U59>=$W$38,(T59*$W$39)-Summary!$C$30,((T59*$W$39)+(($T$64-T59)*$W$40)-Summary!$C$30)) -> -322.8364464 | X59: =IF(U59>=$X$38,(T59*$X$39)-Summary!$C$30,((T59*$X$39)+(($T$67-T59)*$X$40)-Summary!$C$30)) -> -248.5414464 | Y59: =IF(U59>=$Y$38,(T59*$Y$39)-Summary!$C$30,((T59*$Y$39)+(($T$75-T59)*$Y$40)-Summary!$C$30)) -> -248.5414464 | Z59: =(T59*$Z$39)-Summary!$C$30 -> -248.5414464
A60: 0.66 | B60: 39.6 | C60: 0.7764705882 | D60: =$D$43*A60 -> 33.66 | E60: =IF(C60>=$E$38,(B60*$E$39)-Summary!$F$30,((B60*$E$39)+(($B$68-B60)*$E$40)-Summary!$F$30)) -> -424.3047808 | F60: =IF(C60>=$F$38,(B60*$F$39)-Summary!$F$30,((B60*$F$39)+(($B$71-B60)*$E$40)-Summary!$F$30)) -> -310.7367808 | G60: =IF(C60>=$G$38,(B60*$G$39)-Summary!$F$30,((B60*$G$39)+(($B$77-B60)*$E$40)-Summary!$F$30)) -> -310.7367808 | H60: =(B60*$H$39)-Summary!$F$30 -> -310.7367808 | J60: 0.66 | K60: 21.12 | L60: 0.7597122302 | M60: 18.348 | N60: =IF(L60>=$N$38,(K60*$N$39)-Summary!$E$30,((K60*$N$39)+(($K$62-K60)*$N$40)-Summary!$E$30)) -> -254.6114369 | O60: =IF(L60>=$O$38,(K60*$O$39)-Summary!$E$30,((K60*$O$39)+(($K$66-K60)*$O$40)-Summary!$E$30)) -> -222.9058369 | P60: =IF(L60>=$P$38,(K60*$P$39)-Summary!$E$30,((K60*$P$39)+(($K$73-K60)*$P$40)-Summary!$E$30)) -> -222.9058369 | Q60: =(K60*$Q$39)-Summary!$E$30 -> -222.9058369 | S60: 0.66 | T60: 8.58 | U60: 0.7526315789 | V60: 7.524 | W60: =IF(U60>=$W$38,(T60*$W$39)-Summary!$C$30,((T60*$W$39)+(($T$64-T60)*$W$40)-Summary!$C$30)) -> -321.7574464 | X60: =IF(U60>=$X$38,(T60*$X$39)-Summary!$C$30,((T60*$X$39)+(($T$67-T60)*$X$40)-Summary!$C$30)) -> -262.3214464 | Y60: =IF(U60>=$Y$38,(T60*$Y$39)-Summary!$C$30,((T60*$Y$39)+(($T$75-T60)*$Y$40)-Summary!$C$30)) -> -262.3214464 | Z60: =(T60*$Z$39)-Summary!$C$30 -> -262.3214464
A61: 0.64 | B61: 38.4 | C61: 0.7529411765 | D61: 32.64 | E61: =IF(C61>=$E$38,(B61*$E$39)-Summary!$F$30,((B61*$E$39)+(($B$68-B61)*$E$40)-Summary!$F$30)) -> -422.1087808 | F61: =IF(C61>=$F$38,(B61*$F$39)-Summary!$F$30,((B61*$F$39)+(($B$71-B61)*$E$40)-Summary!$F$30)) -> -322.7367808 | G61: =IF(C61>=$G$38,(B61*$G$39)-Summary!$F$30,((B61*$G$39)+(($B$77-B61)*$E$40)-Summary!$F$30)) -> -322.7367808 | H61: =(B61*$H$39)-Summary!$F$30 -> -322.7367808 | J61: 0.64 | K61: 20.48 | L61: 0.7366906475 | M61: 17.792 | N61: =IF(L61>=$N$38,(K61*$N$39)-Summary!$E$30,((K61*$N$39)+(($K$62-K61)*$N$40)-Summary!$E$30)) -> -253.4786369 | O61: =IF(L61>=$O$38,(K61*$O$39)-Summary!$E$30,((K61*$O$39)+(($K$66-K61)*$O$40)-Summary!$E$30)) -> -237.6258369 | P61: =IF(L61>=$P$38,(K61*$P$39)-Summary!$E$30,((K61*$P$39)+(($K$73-K61)*$P$40)-Summary!$E$30)) -> -237.6258369 | Q61: =(K61*$Q$39)-Summary!$E$30 -> -237.6258369 | S61: 0.64 | T61: 8.32 | U61: 0.7298245614 | V61: 7.296 | W61: =IF(U61>=$W$38,(T61*$W$39)-Summary!$C$30,((T61*$W$39)+(($T$64-T61)*$W$40)-Summary!$C$30)) -> -320.6784464 | X61: =IF(U61>=$X$38,(T61*$X$39)-Summary!$C$30,((T61*$X$39)+(($T$67-T61)*$X$40)-Summary!$C$30)) -> -276.1014464 | Y61: =IF(U61>=$Y$38,(T61*$Y$39)-Summary!$C$30,((T61*$Y$39)+(($T$75-T61)*$Y$40)-Summary!$C$30)) -> -276.1014464 | Z61: =(T61*$Z$39)-Summary!$C$30 -> -276.1014464
A62: 0.62 | B62: 37.2 | C62: 0.7294117647 | D62: 31.62 | E62: =IF(C62>=$E$38,(B62*$E$39)-Summary!$F$30,((B62*$E$39)+(($B$68-B62)*$E$40)-Summary!$F$30)) -> -419.9127808 | F62: =IF(C62>=$F$38,(B62*$F$39)-Summary!$F$30,((B62*$F$39)+(($B$71-B62)*$E$40)-Summary!$F$30)) -> -334.7367808 | G62: =IF(C62>=$G$38,(B62*$G$39)-Summary!$F$30,((B62*$G$39)+(($B$77-B62)*$E$40)-Summary!$F$30)) -> -334.7367808 | H62: =(B62*$H$39)-Summary!$F$30 -> -334.7367808 | J62: 0.62 | K62: 19.84 | L62: 0.7136690647 | M62: 17.236 | N62: =IF(L62>=$N$38,(K62*$N$39)-Summary!$E$30,((K62*$N$39)+(($K$62-K62)*$N$40)-Summary!$E$30)) -> -252.3458369 | O62: =IF(L62>=$O$38,(K62*$O$39)-Summary!$E$30,((K62*$O$39)+(($K$66-K62)*$O$40)-Summary!$E$30)) -> -252.3458369 | P62: =IF(L62>=$P$38,(K62*$P$39)-Summary!$E$30,((K62*$P$39)+(($K$73-K62)*$P$40)-Summary!$E$30)) -> -252.3458369 | Q62: =(K62*$Q$39)-Summary!$E$30 -> -252.3458369 | S62: 0.62 | T62: 8.06 | U62: 0.7070175439 | V62: 7.068 | W62: =IF(U62>=$W$38,(T62*$W$39)-Summary!$C$30,((T62*$W$39)+(($T$64-T62)*$W$40)-Summary!$C$30)) -> -319.5994464 | X62: =IF(U62>=$X$38,(T62*$X$39)-Summary!$C$30,((T62*$X$39)+(($T$67-T62)*$X$40)-Summary!$C$30)) -> -289.8814464 | Y62: =IF(U62>=$Y$38,(T62*$Y$39)-Summary!$C$30,((T62*$Y$39)+(($T$75-T62)*$Y$40)-Summary!$C$30)) -> -289.8814464 | Z62: =(T62*$Z$39)-Summary!$C$30 -> -289.8814464
A63: 0.6 | B63: 36 | C63: 0.7058823529 | D63: 30.6 | E63: =IF(C63>=$E$38,(B63*$E$39)-Summary!$F$30,((B63*$E$39)+(($B$68-B63)*$E$40)-Summary!$F$30)) -> -417.7167808 | F63: =IF(C63>=$F$38,(B63*$F$39)-Summary!$F$30,((B63*$F$39)+(($B$71-B63)*$E$40)-Summary!$F$30)) -> -346.7367808 | G63: =IF(C63>=$G$38,(B63*$G$39)-Summary!$F$30,((B63*$G$39)+(($B$77-B63)*$E$40)-Summary!$F$30)) -> -346.7367808 | H63: =(B63*$H$39)-Summary!$F$30 -> -346.7367808 | J63: 0.6 | K63: 19.2 | L63: 0.690647482 | M63: 16.68 | N63: =IF(L63>=$N$38,(K63*$N$39)-Summary!$E$30,((K63*$N$39)+(($K$62-K63)*$N$40)-Summary!$E$30)) -> -251.2130369 | O63: =IF(L63>=$O$38,(K63*$O$39)-Summary!$E$30,((K63*$O$39)+(($K$66-K63)*$O$40)-Summary!$E$30)) -> -314.6242369 | P63: =IF(L63>=$P$38,(K63*$P$39)-Summary!$E$30,((K63*$P$39)+(($K$73-K63)*$P$40)-Summary!$E$30)) -> -267.0658369 | Q63: =(K63*$Q$39)-Summary!$E$30 -> -267.0658369 | S63: 0.6 | T63: 7.8 | U63: 0.6842105263 | V63: 6.84 | W63: =IF(U63>=$W$38,(T63*$W$39)-Summary!$C$30,((T63*$W$39)+(($T$64-T63)*$W$40)-Summary!$C$30)) -> -318.5204464 | X63: =IF(U63>=$X$38,(T63*$X$39)-Summary!$C$30,((T63*$X$39)+(($T$67-T63)*$X$40)-Summary!$C$30)) -> -363.0974464 | Y63: =IF(U63>=$Y$38,(T63*$Y$39)-Summary!$C$30,((T63*$Y$39)+(($T$75-T63)*$Y$40)-Summary!$C$30)) -> -303.6614464 | Z63: =(T63*$Z$39)-Summary!$C$30 -> -303.6614464
A64: 0.58 | B64: 34.8 | C64: 0.6823529412 | D64: 29.58 | E64: =IF(C64>=$E$38,(B64*$E$39)-Summary!$F$30,((B64*$E$39)+(($B$68-B64)*$E$40)-Summary!$F$30)) -> -415.5207808 | F64: =IF(C64>=$F$38,(B64*$F$39)-Summary!$F$30,((B64*$F$39)+(($B$71-B64)*$E$40)-Summary!$F$30)) -> -458.1087808 | G64: =IF(C64>=$G$38,(B64*$G$39)-Summary!$F$30,((B64*$G$39)+(($B$77-B64)*$E$40)-Summary!$F$30)) -> -358.7367808 | H64: =(B64*$H$39)-Summary!$F$30 -> -358.7367808 | J64: 0.58 | K64: 18.56 | L64: 0.6676258993 | M64: 16.124 | N64: =IF(L64>=$N$38,(K64*$N$39)-Summary!$E$30,((K64*$N$39)+(($K$62-K64)*$N$40)-Summary!$E$30)) -> -250.0802369 | O64: =IF(L64>=$O$38,(K64*$O$39)-Summary!$E$30,((K64*$O$39)+(($K$66-K64)*$O$40)-Summary!$E$30)) -> -313.4914369 | P64: =IF(L64>=$P$38,(K64*$P$39)-Summary!$E$30,((K64*$P$39)+(($K$73-K64)*$P$40)-Summary!$E$30)) -> -281.7858369 | Q64: =(K64*$Q$39)-Summary!$E$30 -> -281.7858369 | S64: 0.58 | T64: 7.54 | U64: 0.6614035088 | V64: 6.612 | W64: =IF(U64>=$W$38,(T64*$W$39)-Summary!$C$30,((T64*$W$39)+(($T$64-T64)*$W$40)-Summary!$C$30)) -> -317.4414464 | X64: =IF(U64>=$X$38,(T64*$X$39)-Summary!$C$30,((T64*$X$39)+(($T$67-T64)*$X$40)-Summary!$C$30)) -> -362.0184464 | Y64: =IF(U64>=$Y$38,(T64*$Y$39)-Summary!$C$30,((T64*$Y$39)+(($T$75-T64)*$Y$40)-Summary!$C$30)) -> -317.4414464 | Z64: =(T64*$Z$39)-Summary!$C$30 -> -317.4414464
A65: 0.56 | B65: 33.6 | C65: 0.6588235294 | D65: 28.56 | E65: =IF(C65>=$E$38,(B65*$E$39)-Summary!$F$30,((B65*$E$39)+(($B$68-B65)*$E$40)-Summary!$F$30)) -> -413.3247808 | F65: =IF(C65>=$F$38,(B65*$F$39)-Summary!$F$30,((B65*$F$39)+(($B$71-B65)*$E$40)-Summary!$F$30)) -> -455.9127808 | G65: =IF(C65>=$G$38,(B65*$G$39)-Summary!$F$30,((B65*$G$39)+(($B$77-B65)*$E$40)-Summary!$F$30)) -> -370.7367808 | H65: =(B65*$H$39)-Summary!$F$30 -> -370.7367808 | J65: 0.56 | K65: 17.92 | L65: 0.6446043165 | M65: 15.568 | N65: =IF(L65>=$N$38,(K65*$N$39)-Summary!$E$30,((K65*$N$39)+(($K$62-K65)*$N$40)-Summary!$E$30)) -> -248.9474369 | O65: =IF(L65>=$O$38,(K65*$O$39)-Summary!$E$30,((K65*$O$39)+(($K$66-K65)*$O$40)-Summary!$E$30)) -> -312.3586369 | P65: =IF(L65>=$P$38,(K65*$P$39)-Summary!$E$30,((K65*$P$39)+(($K$73-K65)*$P$40)-Summary!$E$30)) -> -296.5058369 | Q65: =(K65*$Q$39)-Summary!$E$30 -> -296.5058369 | S65: 0.56 | T65: 7.28 | U65: 0.6385964912 | V65: 6.384 | W65: =IF(U65>=$W$38,(T65*$W$39)-Summary!$C$30,((T65*$W$39)+(($T$64-T65)*$W$40)-Summary!$C$30)) -> -316.3624464 | X65: =IF(U65>=$X$38,(T65*$X$39)-Summary!$C$30,((T65*$X$39)+(($T$67-T65)*$X$40)-Summary!$C$30)) -> -360.9394464 | Y65: =IF(U65>=$Y$38,(T65*$Y$39)-Summary!$C$30,((T65*$Y$39)+(($T$75-T65)*$Y$40)-Summary!$C$30)) -> -331.2214464 | Z65: =(T65*$Z$39)-Summary!$C$30 -> -331.2214464
A66: 0.54 | B66: 32.4 | C66: 0.6352941176 | D66: 27.54 | E66: =IF(C66>=$E$38,(B66*$E$39)-Summary!$F$30,((B66*$E$39)+(($B$68-B66)*$E$40)-Summary!$F$30)) -> -411.1287808 | F66: =IF(C66>=$F$38,(B66*$F$39)-Summary!$F$30,((B66*$F$39)+(($B$71-B66)*$E$40)-Summary!$F$30)) -> -453.7167808 | G66: =IF(C66>=$G$38,(B66*$G$39)-Summary!$F$30,((B66*$G$39)+(($B$77-B66)*$E$40)-Summary!$F$30)) -> -382.7367808 | H66: =(B66*$H$39)-Summary!$F$30 -> -382.7367808 | J66: 0.54 | K66: 17.28 | L66: 0.6215827338 | M66: 15.012 | N66: =IF(L66>=$N$38,(K66*$N$39)-Summary!$E$30,((K66*$N$39)+(($K$62-K66)*$N$40)-Summary!$E$30)) -> -247.8146369 | O66: =IF(L66>=$O$38,(K66*$O$39)-Summary!$E$30,((K66*$O$39)+(($K$66-K66)*$O$40)-Summary!$E$30)) -> -311.2258369 | P66: =IF(L66>=$P$38,(K66*$P$39)-Summary!$E$30,((K66*$P$39)+(($K$73-K66)*$P$40)-Summary!$E$30)) -> -311.2258369 | Q66: =(K66*$Q$39)-Summary!$E$30 -> -311.2258369 | S66: 0.54 | T66: 7.02 | U66: 0.6157894737 | V66: 6.156 | W66: =IF(U66>=$W$38,(T66*$W$39)-Summary!$C$30,((T66*$W$39)+(($T$64-T66)*$W$40)-Summary!$C$30)) -> -315.2834464 | X66: =IF(U66>=$X$38,(T66*$X$39)-Summary!$C$30,((T66*$X$39)+(($T$67-T66)*$X$40)-Summary!$C$30)) -> -359.8604464 | Y66: =IF(U66>=$Y$38,(T66*$Y$39)-Summary!$C$30,((T66*$Y$39)+(($T$75-T66)*$Y$40)-Summary!$C$30)) -> -345.0014464 | Z66: =(T66*$Z$39)-Summary!$C$30 -> -345.0014464
A67: 0.52 | B67: 31.2 | C67: 0.6117647059 | D67: 26.52 | E67: =IF(C67>=$E$38,(B67*$E$39)-Summary!$F$30,((B67*$E$39)+(($B$68-B67)*$E$40)-Summary!$F$30)) -> -408.9327808 | F67: =IF(C67>=$F$38,(B67*$F$39)-Summary!$F$30,((B67*$F$39)+(($B$71-B67)*$E$40)-Summary!$F$30)) -> -451.5207808 | G67: =IF(C67>=$G$38,(B67*$G$39)-Summary!$F$30,((B67*$G$39)+(($B$77-B67)*$E$40)-Summary!$F$30)) -> -394.7367808 | H67: =(B67*$H$39)-Summary!$F$30 -> -394.7367808 | J67: 0.52 | K67: 16.64 | L67: 0.5985611511 | M67: 14.456 | N67: =IF(L67>=$N$38,(K67*$N$39)-Summary!$E$30,((K67*$N$39)+(($K$62-K67)*$N$40)-Summary!$E$30)) -> -246.6818369 | O67: =IF(L67>=$O$38,(K67*$O$39)-Summary!$E$30,((K67*$O$39)+(($K$66-K67)*$O$40)-Summary!$E$30)) -> -310.0930369 | P67: =IF(L67>=$P$38,(K67*$P$39)-Summary!$E$30,((K67*$P$39)+(($K$73-K67)*$P$40)-Summary!$E$30)) -> -325.9458369 | Q67: =(K67*$Q$39)-Summary!$E$30 -> -325.9458369 | S67: 0.52 | T67: 6.76 | U67: 0.5929824561 | V67: 5.928 | W67: =IF(U67>=$W$38,(T67*$W$39)-Summary!$C$30,((T67*$W$39)+(($T$64-T67)*$W$40)-Summary!$C$30)) -> -314.2044464 | X67: =IF(U67>=$X$38,(T67*$X$39)-Summary!$C$30,((T67*$X$39)+(($T$67-T67)*$X$40)-Summary!$C$30)) -> -358.7814464 | Y67: =IF(U67>=$Y$38,(T67*$Y$39)-Summary!$C$30,((T67*$Y$39)+(($T$75-T67)*$Y$40)-Summary!$C$30)) -> -358.7814464 | Z67: =(T67*$Z$39)-Summary!$C$30 -> -358.7814464
A68: 0.5 | B68: 30 | C68: 0.5882352941 | D68: 25.5 | E68: =IF(C68>=$E$38,(B68*$E$39)-Summary!$F$30,((B68*$E$39)+(($B$68-B68)*$E$40)-Summary!$F$30)) -> -406.7367808 | F68: =IF(C68>=$F$38,(B68*$F$39)-Summary!$F$30,((B68*$F$39)+(($B$71-B68)*$E$40)-Summary!$F$30)) -> -449.3247808 | G68: =IF(C68>=$G$38,(B68*$G$39)-Summary!$F$30,((B68*$G$39)+(($B$77-B68)*$E$40)-Summary!$F$30)) -> -406.7367808 | H68: =(B68*$H$39)-Summary!$F$30 -> -406.7367808 | J68: 0.5 | K68: 16 | L68: 0.5755395683 | M68: 13.9 | N68: =IF(L68>=$N$38,(K68*$N$39)-Summary!$E$30,((K68*$N$39)+(($K$62-K68)*$N$40)-Summary!$E$30)) -> -245.5490369 | O68: =IF(L68>=$O$38,(K68*$O$39)-Summary!$E$30,((K68*$O$39)+(($K$66-K68)*$O$40)-Summary!$E$30)) -> -308.9602369 | P68: =IF(L68>=$P$38,(K68*$P$39)-Summary!$E$30,((K68*$P$39)+(($K$73-K68)*$P$40)-Summary!$E$30)) -> -340.6658369 | Q68: =(K68*$Q$39)-Summary!$E$30 -> -340.6658369 | S68: 0.5 | T68: 6.5 | U68: 0.5701754386 | V68: 5.7 | W68: =IF(U68>=$W$38,(T68*$W$39)-Summary!$C$30,((T68*$W$39)+(($T$64-T68)*$W$40)-Summary!$C$30)) -> -313.1254464 | X68: =IF(U68>=$X$38,(T68*$X$39)-Summary!$C$30,((T68*$X$39)+(($T$67-T68)*$X$40)-Summary!$C$30)) -> -357.7024464 | Y68: =IF(U68>=$Y$38,(T68*$Y$39)-Summary!$C$30,((T68*$Y$39)+(($T$75-T68)*$Y$40)-Summary!$C$30)) -> -372.5614464 | Z68: =(T68*$Z$39)-Summary!$C$30 -> -372.5614464
A69: 0.48 | B69: 28.8 | C69: 0.5647058824 | D69: 24.48 | E69: =IF(C69>=$E$38,(B69*$E$39)-Summary!$F$30,((B69*$E$39)+(($B$68-B69)*$E$40)-Summary!$F$30)) -> -404.5407808 | F69: =IF(C69>=$F$38,(B69*$F$39)-Summary!$F$30,((B69*$F$39)+(($B$71-B69)*$E$40)-Summary!$F$30)) -> -447.1287808 | G69: =IF(C69>=$G$38,(B69*$G$39)-Summary!$F$30,((B69*$G$39)+(($B$77-B69)*$E$40)-Summary!$F$30)) -> -418.7367808 | H69: =(B69*$H$39)-Summary!$F$30 -> -418.7367808 | J69: 0.48 | K69: 15.36 | L69: 0.5525179856 | M69: 13.344 | N69: =IF(L69>=$N$38,(K69*$N$39)-Summary!$E$30,((K69*$N$39)+(($K$62-K69)*$N$40)-Summary!$E$30)) -> -244.4162369 | O69: =IF(L69>=$O$38,(K69*$O$39)-Summary!$E$30,((K69*$O$39)+(($K$66-K69)*$O$40)-Summary!$E$30)) -> -307.8274369 | P69: =IF(L69>=$P$38,(K69*$P$39)-Summary!$E$30,((K69*$P$39)+(($K$73-K69)*$P$40)-Summary!$E$30)) -> -355.3858369 | Q69: =(K69*$Q$39)-Summary!$E$30 -> -355.3858369 | S69: 0.48 | T69: 6.24 | U69: 0.5473684211 | V69: 5.472 | W69: =IF(U69>=$W$38,(T69*$W$39)-Summary!$C$30,((T69*$W$39)+(($T$64-T69)*$W$40)-Summary!$C$30)) -> -312.0464464 | X69: =IF(U69>=$X$38,(T69*$X$39)-Summary!$C$30,((T69*$X$39)+(($T$67-T69)*$X$40)-Summary!$C$30)) -> -356.6234464 | Y69: =IF(U69>=$Y$38,(T69*$Y$39)-Summary!$C$30,((T69*$Y$39)+(($T$75-T69)*$Y$40)-Summary!$C$30)) -> -386.3414464 | Z69: =(T69*$Z$39)-Summary!$C$30 -> -386.3414464
A70: 0.46 | B70: 27.6 | C70: 0.5411764706 | D70: 23.46 | E70: =IF(C70>=$E$38,(B70*$E$39)-Summary!$F$30,((B70*$E$39)+(($B$68-B70)*$E$40)-Summary!$F$30)) -> -402.3447808 | F70: =IF(C70>=$F$38,(B70*$F$39)-Summary!$F$30,((B70*$F$39)+(($B$71-B70)*$E$40)-Summary!$F$30)) -> -444.9327808 | G70: =IF(C70>=$G$38,(B70*$G$39)-Summary!$F$30,((B70*$G$39)+(($B$77-B70)*$E$40)-Summary!$F$30)) -> -430.7367808 | H70: =(B70*$H$39)-Summary!$F$30 -> -430.7367808 | J70: 0.46 | K70: 14.72 | L70: 0.5294964029 | M70: 12.788 | N70: =IF(L70>=$N$38,(K70*$N$39)-Summary!$E$30,((K70*$N$39)+(($K$62-K70)*$N$40)-Summary!$E$30)) -> -243.2834369 | O70: =IF(L70>=$O$38,(K70*$O$39)-Summary!$E$30,((K70*$O$39)+(($K$66-K70)*$O$40)-Summary!$E$30)) -> -306.6946369 | P70: =IF(L70>=$P$38,(K70*$P$39)-Summary!$E$30,((K70*$P$39)+(($K$73-K70)*$P$40)-Summary!$E$30)) -> -370.1058369 | Q70: =(K70*$Q$39)-Summary!$E$30 -> -370.1058369 | S70: 0.46 | T70: 5.98 | U70: 0.5245614035 | V70: 5.244 | W70: =IF(U70>=$W$38,(T70*$W$39)-Summary!$C$30,((T70*$W$39)+(($T$64-T70)*$W$40)-Summary!$C$30)) -> -310.9674464 | X70: =IF(U70>=$X$38,(T70*$X$39)-Summary!$C$30,((T70*$X$39)+(($T$67-T70)*$X$40)-Summary!$C$30)) -> -355.5444464 | Y70: =IF(U70>=$Y$38,(T70*$Y$39)-Summary!$C$30,((T70*$Y$39)+(($T$75-T70)*$Y$40)-Summary!$C$30)) -> -400.1214464 | Z70: =(T70*$Z$39)-Summary!$C$30 -> -400.1214464
A71: 0.44 | B71: 26.4 | C71: 0.5176470588 | D71: 22.44 | E71: =IF(C71>=$E$38,(B71*$E$39)-Summary!$F$30,((B71*$E$39)+(($B$68-B71)*$E$40)-Summary!$F$30)) -> -400.1487808 | F71: =IF(C71>=$F$38,(B71*$F$39)-Summary!$F$30,((B71*$F$39)+(($B$71-B71)*$E$40)-Summary!$F$30)) -> -442.7367808 | G71: =IF(C71>=$G$38,(B71*$G$39)-Summary!$F$30,((B71*$G$39)+(($B$77-B71)*$E$40)-Summary!$F$30)) -> -442.7367808 | H71: =(B71*$H$39)-Summary!$F$30 -> -442.7367808 | J71: 0.44 | K71: 14.08 | L71: 0.5064748201 | M71: 12.232 | N71: =IF(L71>=$N$38,(K71*$N$39)-Summary!$E$30,((K71*$N$39)+(($K$62-K71)*$N$40)-Summary!$E$30)) -> -242.1506369 | O71: =IF(L71>=$O$38,(K71*$O$39)-Summary!$E$30,((K71*$O$39)+(($K$66-K71)*$O$40)-Summary!$E$30)) -> -305.5618369 | P71: =IF(L71>=$P$38,(K71*$P$39)-Summary!$E$30,((K71*$P$39)+(($K$73-K71)*$P$40)-Summary!$E$30)) -> -384.8258369 | Q71: =(K71*$Q$39)-Summary!$E$30 -> -384.8258369 | S71: 0.44 | T71: 5.72 | U71: 0.501754386 | V71: 5.016 | W71: =IF(U71>=$W$38,(T71*$W$39)-Summary!$C$30,((T71*$W$39)+(($T$64-T71)*$W$40)-Summary!$C$30)) -> -309.8884464 | X71: =IF(U71>=$X$38,(T71*$X$39)-Summary!$C$30,((T71*$X$39)+(($T$67-T71)*$X$40)-Summary!$C$30)) -> -354.4654464 | Y71: =IF(U71>=$Y$38,(T71*$Y$39)-Summary!$C$30,((T71*$Y$39)+(($T$75-T71)*$Y$40)-Summary!$C$30)) -> -413.9014464 | Z71: =(T71*$Z$39)-Summary!$C$30 -> -413.9014464
A72: 0.42 | B72: 25.2 | C72: 0.4941176471 | D72: 21.42 | E72: =IF(C72>=$E$38,(B72*$E$39)-Summary!$F$30,((B72*$E$39)+(($B$68-B72)*$E$40)-Summary!$F$30)) -> -397.9527808 | F72: =IF(C72>=$F$38,(B72*$F$39)-Summary!$F$30,((B72*$F$39)+(($B$71-B72)*$E$40)-Summary!$F$30)) -> -440.5407808 | G72: =IF(C72>=$G$38,(B72*$G$39)-Summary!$F$30,((B72*$G$39)+(($B$77-B72)*$E$40)-Summary!$F$30)) -> -525.7167808 | H72: =(B72*$H$39)-Summary!$F$30 -> -454.7367808 | J72: 0.42 | K72: 13.44 | L72: 0.4834532374 | M72: 11.676 | N72: =IF(L72>=$N$38,(K72*$N$39)-Summary!$E$30,((K72*$N$39)+(($K$62-K72)*$N$40)-Summary!$E$30)) -> -241.0178369 | O72: =IF(L72>=$O$38,(K72*$O$39)-Summary!$E$30,((K72*$O$39)+(($K$66-K72)*$O$40)-Summary!$E$30)) -> -304.4290369 | P72: =IF(L72>=$P$38,(K72*$P$39)-Summary!$E$30,((K72*$P$39)+(($K$73-K72)*$P$40)-Summary!$E$30)) -> -415.3986369 | Q72: =(K72*$Q$39)-Summary!$E$30 -> -399.5458369 | S72: 0.42 | T72: 5.46 | U72: 0.4789473684 | V72: 4.788 | W72: =IF(U72>=$W$38,(T72*$W$39)-Summary!$C$30,((T72*$W$39)+(($T$64-T72)*$W$40)-Summary!$C$30)) -> -308.8094464 | X72: =IF(U72>=$X$38,(T72*$X$39)-Summary!$C$30,((T72*$X$39)+(($T$67-T72)*$X$40)-Summary!$C$30)) -> -353.3864464 | Y72: =IF(U72>=$Y$38,(T72*$Y$39)-Summary!$C$30,((T72*$Y$39)+(($T$75-T72)*$Y$40)-Summary!$C$30)) -> -472.2584464 | Z72: =(T72*$Z$39)-Summary!$C$30 -> -427.6814464
A73: 0.4 | B73: 24 | C73: 0.4705882353 | D73: 20.4 | E73: =IF(C73>=$E$38,(B73*$E$39)-Summary!$F$30,((B73*$E$39)+(($B$68-B73)*$E$40)-Summary!$F$30)) -> -395.7567808 | F73: =IF(C73>=$F$38,(B73*$F$39)-Summary!$F$30,((B73*$F$39)+(($B$71-B73)*$E$40)-Summary!$F$30)) -> -438.3447808 | G73: =IF(C73>=$G$38,(B73*$G$39)-Summary!$F$30,((B73*$G$39)+(($B$77-B73)*$E$40)-Summary!$F$30)) -> -523.5207808 | H73: =(B73*$H$39)-Summary!$F$30 -> -466.7367808 | J73: 0.4 | K73: 12.8 | L73: 0.4604316547 | M73: 11.12 | N73: =IF(L73>=$N$38,(K73*$N$39)-Summary!$E$30,((K73*$N$39)+(($K$62-K73)*$N$40)-Summary!$E$30)) -> -239.8850369 | O73: =IF(L73>=$O$38,(K73*$O$39)-Summary!$E$30,((K73*$O$39)+(($K$66-K73)*$O$40)-Summary!$E$30)) -> -303.2962369 | P73: =IF(L73>=$P$38,(K73*$P$39)-Summary!$E$30,((K73*$P$39)+(($K$73-K73)*$P$40)-Summary!$E$30)) -> -414.2658369 | Q73: =(K73*$Q$39)-Summary!$E$30 -> -414.2658369 | S73: 0.4 | T73: 5.2 | U73: 0.4561403509 | V73: 4.56 | W73: =IF(U73>=$W$38,(T73*$W$39)-Summary!$C$30,((T73*$W$39)+(($T$64-T73)*$W$40)-Summary!$C$30)) -> -307.7304464 | X73: =IF(U73>=$X$38,(T73*$X$39)-Summary!$C$30,((T73*$X$39)+(($T$67-T73)*$X$40)-Summary!$C$30)) -> -352.3074464 | Y73: =IF(U73>=$Y$38,(T73*$Y$39)-Summary!$C$30,((T73*$Y$39)+(($T$75-T73)*$Y$40)-Summary!$C$30)) -> -471.1794464 | Z73: =(T73*$Z$39)-Summary!$C$30 -> -441.4614464
A74: 0.38 | B74: 22.8 | C74: 0.4470588235 | D74: 19.38 | E74: =IF(C74>=$E$38,(B74*$E$39)-Summary!$F$30,((B74*$E$39)+(($B$68-B74)*$E$40)-Summary!$F$30)) -> -393.5607808 | F74: =IF(C74>=$F$38,(B74*$F$39)-Summary!$F$30,((B74*$F$39)+(($B$71-B74)*$E$40)-Summary!$F$30)) -> -436.1487808 | G74: =IF(C74>=$G$38,(B74*$G$39)-Summary!$F$30,((B74*$G$39)+(($B$77-B74)*$E$40)-Summary!$F$30)) -> -521.3247808 | H74: =(B74*$H$39)-Summary!$F$30 -> -478.7367808 | J74: 0.38 | K74: 12.16 | L74: 0.4374100719 | M74: 10.564 | N74: =IF(L74>=$N$38,(K74*$N$39)-Summary!$E$30,((K74*$N$39)+(($K$62-K74)*$N$40)-Summary!$E$30)) -> -238.7522369 | O74: =IF(L74>=$O$38,(K74*$O$39)-Summary!$E$30,((K74*$O$39)+(($K$66-K74)*$O$40)-Summary!$E$30)) -> -302.1634369 | P74: =IF(L74>=$P$38,(K74*$P$39)-Summary!$E$30,((K74*$P$39)+(($K$73-K74)*$P$40)-Summary!$E$30)) -> -413.1330369 | Q74: =(K74*$Q$39)-Summary!$E$30 -> -428.9858369 | S74: 0.38 | T74: 4.94 | U74: 0.4333333333 | V74: 4.332 | W74: =IF(U74>=$W$38,(T74*$W$39)-Summary!$C$30,((T74*$W$39)+(($T$64-T74)*$W$40)-Summary!$C$30)) -> -306.6514464 | X74: =IF(U74>=$X$38,(T74*$X$39)-Summary!$C$30,((T74*$X$39)+(($T$67-T74)*$X$40)-Summary!$C$30)) -> -351.2284464 | Y74: =IF(U74>=$Y$38,(T74*$Y$39)-Summary!$C$30,((T74*$Y$39)+(($T$75-T74)*$Y$40)-Summary!$C$30)) -> -470.1004464 | Z74: =(T74*$Z$39)-Summary!$C$30 -> -455.2414464
A75: 0.36 | B75: 21.6 | C75: 0.4235294118 | D75: 18.36 | E75: =IF(C75>=$E$38,(B75*$E$39)-Summary!$F$30,((B75*$E$39)+(($B$68-B75)*$E$40)-Summary!$F$30)) -> -391.3647808 | F75: =IF(C75>=$F$38,(B75*$F$39)-Summary!$F$30,((B75*$F$39)+(($B$71-B75)*$E$40)-Summary!$F$30)) -> -433.9527808 | G75: =IF(C75>=$G$38,(B75*$G$39)-Summary!$F$30,((B75*$G$39)+(($B$77-B75)*$E$40)-Summary!$F$30)) -> -519.1287808 | H75: =(B75*$H$39)-Summary!$F$30 -> -490.7367808 | J75: 0.36 | K75: 11.52 | L75: 0.4143884892 | M75: 10.008 | N75: =IF(L75>=$N$38,(K75*$N$39)-Summary!$E$30,((K75*$N$39)+(($K$62-K75)*$N$40)-Summary!$E$30)) -> -237.6194369 | O75: =IF(L75>=$O$38,(K75*$O$39)-Summary!$E$30,((K75*$O$39)+(($K$66-K75)*$O$40)-Summary!$E$30)) -> -301.0306369 | P75: =IF(L75>=$P$38,(K75*$P$39)-Summary!$E$30,((K75*$P$39)+(($K$73-K75)*$P$40)-Summary!$E$30)) -> -412.0002369 | Q75: =(K75*$Q$39)-Summary!$E$30 -> -443.7058369 | S75: 0.36 | T75: 4.68 | U75: 0.4105263158 | V75: 4.104 | W75: =IF(U75>=$W$38,(T75*$W$39)-Summary!$C$30,((T75*$W$39)+(($T$64-T75)*$W$40)-Summary!$C$30)) -> -305.5724464 | X75: =IF(U75>=$X$38,(T75*$X$39)-Summary!$C$30,((T75*$X$39)+(($T$67-T75)*$X$40)-Summary!$C$30)) -> -350.1494464 | Y75: =IF(U75>=$Y$38,(T75*$Y$39)-Summary!$C$30,((T75*$Y$39)+(($T$75-T75)*$Y$40)-Summary!$C$30)) -> -469.0214464 | Z75: =(T75*$Z$39)-Summary!$C$30 -> -469.0214464
A76: 0.34 | B76: 20.4 | C76: 0.4 | D76: 17.34 | E76: =IF(C76>=$E$38,(B76*$E$39)-Summary!$F$30,((B76*$E$39)+(($B$68-B76)*$E$40)-Summary!$F$30)) -> -389.1687808 | F76: =IF(C76>=$F$38,(B76*$F$39)-Summary!$F$30,((B76*$F$39)+(($B$71-B76)*$E$40)-Summary!$F$30)) -> -431.7567808 | G76: =IF(C76>=$G$38,(B76*$G$39)-Summary!$F$30,((B76*$G$39)+(($B$77-B76)*$E$40)-Summary!$F$30)) -> -516.9327808 | H76: =(B76*$H$39)-Summary!$F$30 -> -502.7367808 | J76: 0.34 | K76: 10.88 | L76: 0.3913669065 | M76: 9.452 | N76: =IF(L76>=$N$38,(K76*$N$39)-Summary!$E$30,((K76*$N$39)+(($K$62-K76)*$N$40)-Summary!$E$30)) -> -236.4866369 | O76: =IF(L76>=$O$38,(K76*$O$39)-Summary!$E$30,((K76*$O$39)+(($K$66-K76)*$O$40)-Summary!$E$30)) -> -299.8978369 | P76: =IF(L76>=$P$38,(K76*$P$39)-Summary!$E$30,((K76*$P$39)+(($K$73-K76)*$P$40)-Summary!$E$30)) -> -410.8674369 | Q76: =(K76*$Q$39)-Summary!$E$30 -> -458.4258369 | S76: 0.34 | T76: 4.42 | U76: 0.3877192982 | V76: 3.876 | W76: =IF(U76>=$W$38,(T76*$W$39)-Summary!$C$30,((T76*$W$39)+(($T$64-T76)*$W$40)-Summary!$C$30)) -> -304.4934464 | X76: =IF(U76>=$X$38,(T76*$X$39)-Summary!$C$30,((T76*$X$39)+(($T$67-T76)*$X$40)-Summary!$C$30)) -> -349.0704464 | Y76: =IF(U76>=$Y$38,(T76*$Y$39)-Summary!$C$30,((T76*$Y$39)+(($T$75-T76)*$Y$40)-Summary!$C$30)) -> -467.9424464 | Z76: =(T76*$Z$39)-Summary!$C$30 -> -482.8014464
A77: 0.32 | B77: 19.2 | C77: 0.3764705882 | D77: 16.32 | E77: =IF(C77>=$E$38,(B77*$E$39)-Summary!$F$30,((B77*$E$39)+(($B$68-B77)*$E$40)-Summary!$F$30)) -> -386.9727808 | F77: =IF(C77>=$F$38,(B77*$F$39)-Summary!$F$30,((B77*$F$39)+(($B$71-B77)*$E$40)-Summary!$F$30)) -> -429.5607808 | G77: =IF(C77>=$G$38,(B77*$G$39)-Summary!$F$30,((B77*$G$39)+(($B$77-B77)*$E$40)-Summary!$F$30)) -> -514.7367808 | H77: =(B77*$H$39)-Summary!$F$30 -> -514.7367808 | J77: 0.32 | K77: 10.24 | L77: 0.3683453237 | M77: 8.896 | N77: =IF(L77>=$N$38,(K77*$N$39)-Summary!$E$30,((K77*$N$39)+(($K$62-K77)*$N$40)-Summary!$E$30)) -> -235.3538369 | O77: =IF(L77>=$O$38,(K77*$O$39)-Summary!$E$30,((K77*$O$39)+(($K$66-K77)*$O$40)-Summary!$E$30)) -> -298.7650369 | P77: =IF(L77>=$P$38,(K77*$P$39)-Summary!$E$30,((K77*$P$39)+(($K$73-K77)*$P$40)-Summary!$E$30)) -> -409.7346369 | Q77: =(K77*$Q$39)-Summary!$E$30 -> -473.1458369 | S77: 0.32 | T77: 4.16 | U77: 0.3649122807 | V77: 3.648 | W77: =IF(U77>=$W$38,(T77*$W$39)-Summary!$C$30,((T77*$W$39)+(($T$64-T77)*$W$40)-Summary!$C$30)) -> -303.4144464 | X77: =IF(U77>=$X$38,(T77*$X$39)-Summary!$C$30,((T77*$X$39)+(($T$67-T77)*$X$40)-Summary!$C$30)) -> -347.9914464 | Y77: =IF(U77>=$Y$38,(T77*$Y$39)-Summary!$C$30,((T77*$Y$39)+(($T$75-T77)*$Y$40)-Summary!$C$30)) -> -466.8634464 | Z77: =(T77*$Z$39)-Summary!$C$30 -> -496.5814464
A78: 0.3 | B78: 18 | C78: 0.3529411765 | D78: 15.3 | E78: =IF(C78>=$E$38,(B78*$E$39)-Summary!$F$30,((B78*$E$39)+(($B$68-B78)*$E$40)-Summary!$F$30)) -> -384.7767808 | F78: =IF(C78>=$F$38,(B78*$F$39)-Summary!$F$30,((B78*$F$39)+(($B$71-B78)*$E$40)-Summary!$F$30)) -> -427.3647808 | G78: =IF(C78>=$G$38,(B78*$G$39)-Summary!$F$30,((B78*$G$39)+(($B$77-B78)*$E$40)-Summary!$F$30)) -> -512.5407808 | H78: =(B78*$H$39)-Summary!$F$30 -> -526.7367808 | J78: 0.3 | K78: 9.6 | L78: 0.345323741 | M78: 8.34 | N78: =IF(L78>=$N$38,(K78*$N$39)-Summary!$E$30,((K78*$N$39)+(($K$62-K78)*$N$40)-Summary!$E$30)) -> -234.2210369 | O78: =IF(L78>=$O$38,(K78*$O$39)-Summary!$E$30,((K78*$O$39)+(($K$66-K78)*$O$40)-Summary!$E$30)) -> -297.6322369 | P78: =IF(L78>=$P$38,(K78*$P$39)-Summary!$E$30,((K78*$P$39)+(($K$73-K78)*$P$40)-Summary!$E$30)) -> -408.6018369 | Q78: =(K78*$Q$39)-Summary!$E$30 -> -487.8658369 | S78: 0.3 | T78: 3.9 | U78: 0.3421052632 | V78: 3.42 | W78: =IF(U78>=$W$38,(T78*$W$39)-Summary!$C$30,((T78*$W$39)+(($T$64-T78)*$W$40)-Summary!$C$30)) -> -302.3354464 | X78: =IF(U78>=$X$38,(T78*$X$39)-Summary!$C$30,((T78*$X$39)+(($T$67-T78)*$X$40)-Summary!$C$30)) -> -346.9124464 | Y78: =IF(U78>=$Y$38,(T78*$Y$39)-Summary!$C$30,((T78*$Y$39)+(($T$75-T78)*$Y$40)-Summary!$C$30)) -> -465.7844464 | Z78: =(T78*$Z$39)-Summary!$C$30 -> -510.3614464
A79: 0.28 | B79: 16.8 | C79: 0.3294117647 | D79: 14.28 | E79: =IF(C79>=$E$38,(B79*$E$39)-Summary!$F$30,((B79*$E$39)+(($B$68-B79)*$E$40)-Summary!$F$30)) -> -382.5807808 | F79: =IF(C79>=$F$38,(B79*$F$39)-Summary!$F$30,((B79*$F$39)+(($B$71-B79)*$E$40)-Summary!$F$30)) -> -425.1687808 | G79: =IF(C79>=$G$38,(B79*$G$39)-Summary!$F$30,((B79*$G$39)+(($B$77-B79)*$E$40)-Summary!$F$30)) -> -510.3447808 | H79: =(B79*$H$39)-Summary!$F$30 -> -538.7367808 | J79: 0.28 | K79: 8.96 | L79: 0.3223021583 | M79: 7.784 | N79: =IF(L79>=$N$38,(K79*$N$39)-Summary!$E$30,((K79*$N$39)+(($K$62-K79)*$N$40)-Summary!$E$30)) -> -233.0882369 | O79: =IF(L79>=$O$38,(K79*$O$39)-Summary!$E$30,((K79*$O$39)+(($K$66-K79)*$O$40)-Summary!$E$30)) -> -296.4994369 | P79: =IF(L79>=$P$38,(K79*$P$39)-Summary!$E$30,((K79*$P$39)+(($K$73-K79)*$P$40)-Summary!$E$30)) -> -407.4690369 | Q79: =(K79*$Q$39)-Summary!$E$30 -> -502.5858369 | S79: 0.28 | T79: 3.64 | U79: 0.3192982456 | V79: 3.192 | W79: =IF(U79>=$W$38,(T79*$W$39)-Summary!$C$30,((T79*$W$39)+(($T$64-T79)*$W$40)-Summary!$C$30)) -> -301.2564464 | X79: =IF(U79>=$X$38,(T79*$X$39)-Summary!$C$30,((T79*$X$39)+(($T$67-T79)*$X$40)-Summary!$C$30)) -> -345.8334464 | Y79: =IF(U79>=$Y$38,(T79*$Y$39)-Summary!$C$30,((T79*$Y$39)+(($T$75-T79)*$Y$40)-Summary!$C$30)) -> -464.7054464 | Z79: =(T79*$Z$39)-Summary!$C$30 -> -524.1414464
A80: 0.26 | B80: 15.6 | C80: 0.3058823529 | D80: 13.26 | E80: =IF(C80>=$E$38,(B80*$E$39)-Summary!$F$30,((B80*$E$39)+(($B$68-B80)*$E$40)-Summary!$F$30)) -> -380.3847808 | F80: =IF(C80>=$F$38,(B80*$F$39)-Summary!$F$30,((B80*$F$39)+(($B$71-B80)*$E$40)-Summary!$F$30)) -> -422.9727808 | G80: =IF(C80>=$G$38,(B80*$G$39)-Summary!$F$30,((B80*$G$39)+(($B$77-B80)*$E$40)-Summary!$F$30)) -> -508.1487808 | H80: =(B80*$H$39)-Summary!$F$30 -> -550.7367808 | J80: 0.26 | K80: 8.32 | L80: 0.2992805755 | M80: 7.228 | N80: =IF(L80>=$N$38,(K80*$N$39)-Summary!$E$30,((K80*$N$39)+(($K$62-K80)*$N$40)-Summary!$E$30)) -> -231.9554369 | O80: =IF(L80>=$O$38,(K80*$O$39)-Summary!$E$30,((K80*$O$39)+(($K$66-K80)*$O$40)-Summary!$E$30)) -> -295.3666369 | P80: =IF(L80>=$P$38,(K80*$P$39)-Summary!$E$30,((K80*$P$39)+(($K$73-K80)*$P$40)-Summary!$E$30)) -> -406.3362369 | Q80: =(K80*$Q$39)-Summary!$E$30 -> -517.3058369 | S80: 0.26 | T80: 3.38 | U80: 0.2964912281 | V80: 2.964 | W80: =IF(U80>=$W$38,(T80*$W$39)-Summary!$C$30,((T80*$W$39)+(($T$64-T80)*$W$40)-Summary!$C$30)) -> -300.1774464 | X80: =IF(U80>=$X$38,(T80*$X$39)-Summary!$C$30,((T80*$X$39)+(($T$67-T80)*$X$40)-Summary!$C$30)) -> -344.7544464 | Y80: =IF(U80>=$Y$38,(T80*$Y$39)-Summary!$C$30,((T80*$Y$39)+(($T$75-T80)*$Y$40)-Summary!$C$30)) -> -463.6264464 | Z80: =(T80*$Z$39)-Summary!$C$30 -> -537.9214464
A81: 0.24 | B81: 14.4 | C81: 0.2823529412 | D81: 12.24 | E81: =IF(C81>=$E$38,(B81*$E$39)-Summary!$F$30,((B81*$E$39)+(($B$68-B81)*$E$40)-Summary!$F$30)) -> -378.1887808 | F81: =IF(C81>=$F$38,(B81*$F$39)-Summary!$F$30,((B81*$F$39)+(($B$71-B81)*$E$40)-Summary!$F$30)) -> -420.7767808 | G81: =IF(C81>=$G$38,(B81*$G$39)-Summary!$F$30,((B81*$G$39)+(($B$77-B81)*$E$40)-Summary!$F$30)) -> -505.9527808 | H81: =(B81*$H$39)-Summary!$F$30 -> -562.7367808 | J81: 0.24 | K81: 7.68 | L81: 0.2762589928 | M81: 6.672 | N81: =IF(L81>=$N$38,(K81*$N$39)-Summary!$E$30,((K81*$N$39)+(($K$62-K81)*$N$40)-Summary!$E$30)) -> -230.8226369 | O81: =IF(L81>=$O$38,(K81*$O$39)-Summary!$E$30,((K81*$O$39)+(($K$66-K81)*$O$40)-Summary!$E$30)) -> -294.2338369 | P81: =IF(L81>=$P$38,(K81*$P$39)-Summary!$E$30,((K81*$P$39)+(($K$73-K81)*$P$40)-Summary!$E$30)) -> -405.2034369 | Q81: =(K81*$Q$39)-Summary!$E$30 -> -532.0258369 | S81: 0.24 | T81: 3.12 | U81: 0.2736842105 | V81: 2.736 | W81: =IF(U81>=$W$38,(T81*$W$39)-Summary!$C$30,((T81*$W$39)+(($T$64-T81)*$W$40)-Summary!$C$30)) -> -299.0984464 | X81: =IF(U81>=$X$38,(T81*$X$39)-Summary!$C$30,((T81*$X$39)+(($T$67-T81)*$X$40)-Summary!$C$30)) -> -343.6754464 | Y81: =IF(U81>=$Y$38,(T81*$Y$39)-Summary!$C$30,((T81*$Y$39)+(($T$75-T81)*$Y$40)-Summary!$C$30)) -> -462.5474464 | Z81: =(T81*$Z$39)-Summary!$C$30 -> -551.7014464
A82: 0.22 | B82: 13.2 | C82: 0.2588235294 | D82: 11.22 | E82: =IF(C82>=$E$38,(B82*$E$39)-Summary!$F$30,((B82*$E$39)+(($B$68-B82)*$E$40)-Summary!$F$30)) -> -375.9927808 | F82: =IF(C82>=$F$38,(B82*$F$39)-Summary!$F$30,((B82*$F$39)+(($B$71-B82)*$E$40)-Summary!$F$30)) -> -418.5807808 | G82: =IF(C82>=$G$38,(B82*$G$39)-Summary!$F$30,((B82*$G$39)+(($B$77-B82)*$E$40)-Summary!$F$30)) -> -503.7567808 | H82: =(B82*$H$39)-Summary!$F$30 -> -574.7367808 | J82: 0.22 | K82: 7.04 | L82: 0.2532374101 | M82: 6.116 | N82: =IF(L82>=$N$38,(K82*$N$39)-Summary!$E$30,((K82*$N$39)+(($K$62-K82)*$N$40)-Summary!$E$30)) -> -229.6898369 | O82: =IF(L82>=$O$38,(K82*$O$39)-Summary!$E$30,((K82*$O$39)+(($K$66-K82)*$O$40)-Summary!$E$30)) -> -293.1010369 | P82: =IF(L82>=$P$38,(K82*$P$39)-Summary!$E$30,((K82*$P$39)+(($K$73-K82)*$P$40)-Summary!$E$30)) -> -404.0706369 | Q82: =(K82*$Q$39)-Summary!$E$30 -> -546.7458369 | S82: 0.22 | T82: 2.86 | U82: 0.250877193 | V82: 2.508 | W82: =IF(U82>=$W$38,(T82*$W$39)-Summary!$C$30,((T82*$W$39)+(($T$64-T82)*$W$40)-Summary!$C$30)) -> -298.0194464 | X82: =IF(U82>=$X$38,(T82*$X$39)-Summary!$C$30,((T82*$X$39)+(($T$67-T82)*$X$40)-Summary!$C$30)) -> -342.5964464 | Y82: =IF(U82>=$Y$38,(T82*$Y$39)-Summary!$C$30,((T82*$Y$39)+(($T$75-T82)*$Y$40)-Summary!$C$30)) -> -461.4684464 | Z82: =(T82*$Z$39)-Summary!$C$30 -> -565.4814464
A83: 0.2 | B83: 12 | C83: 0.2352941176 | D83: 10.2 | E83: =IF(C83>=$E$38,(B83*$E$39)-Summary!$F$30,((B83*$E$39)+(($B$68-B83)*$E$40)-Summary!$F$30)) -> -373.7967808 | F83: =IF(C83>=$F$38,(B83*$F$39)-Summary!$F$30,((B83*$F$39)+(($B$71-B83)*$E$40)-Summary!$F$30)) -> -416.3847808 | G83: =IF(C83>=$G$38,(B83*$G$39)-Summary!$F$30,((B83*$G$39)+(($B$77-B83)*$E$40)-Summary!$F$30)) -> -501.5607808 | H83: =(B83*$H$39)-Summary!$F$30 -> -586.7367808 | J83: 0.2 | K83: 6.4 | L83: 0.2302158273 | M83: 5.56 | N83: =IF(L83>=$N$38,(K83*$N$39)-Summary!$E$30,((K83*$N$39)+(($K$62-K83)*$N$40)-Summary!$E$30)) -> -228.5570369 | O83: =IF(L83>=$O$38,(K83*$O$39)-Summary!$E$30,((K83*$O$39)+(($K$66-K83)*$O$40)-Summary!$E$30)) -> -291.9682369 | P83: =IF(L83>=$P$38,(K83*$P$39)-Summary!$E$30,((K83*$P$39)+(($K$73-K83)*$P$40)-Summary!$E$30)) -> -402.9378369 | Q83: =(K83*$Q$39)-Summary!$E$30 -> -561.4658369 | S83: 0.2 | T83: 2.6 | U83: 0.2280701754 | V83: 2.28 | W83: =IF(U83>=$W$38,(T83*$W$39)-Summary!$C$30,((T83*$W$39)+(($T$64-T83)*$W$40)-Summary!$C$30)) -> -296.9404464 | X83: =IF(U83>=$X$38,(T83*$X$39)-Summary!$C$30,((T83*$X$39)+(($T$67-T83)*$X$40)-Summary!$C$30)) -> -341.5174464 | Y83: =IF(U83>=$Y$38,(T83*$Y$39)-Summary!$C$30,((T83*$Y$39)+(($T$75-T83)*$Y$40)-Summary!$C$30)) -> -460.3894464 | Z83: =(T83*$Z$39)-Summary!$C$30 -> -579.2614464
B86: =B43&" bu = $"&ROUND(E43,0)&"/ac" -> 60 bu = $-107/ac | K86: =K43&" bu = $"&ROUND(N43,0)&"/ac" -> 32 bu = $27/ac | T86: =T43&" bu = $"&ROUND(W43,0)&"/ac" -> 13 bu = $-28/ac
B87: ="80% = "&ROUND(B68,0)&" bu = "&TEXT(E68,"$#,###")&"/ac" -> 80% = 30 bu = -$407/ac | K87: ="80% = "&ROUND(K62,0)&" bu = "&TEXT(N62,"$#,###")&"/ac" -> 80% = 20 bu = -$252/ac | T87: ="80% = "&ROUND(T64,0)&" bu = "&TEXT(W64,"$#,###")&"/ac" -> 80% = 8 bu = -$317/ac
B88: ="70% = "&ROUND(B71,0)&" bu = "&TEXT(F71,"$#,###")&"/ac" -> 70% = 26 bu = -$443/ac | K88: ="70% = "&ROUND(K66,0)&" bu = "&TEXT(O66,"$#,###")&"/ac" -> 70% = 17 bu = -$311/ac | T88: ="70% = "&ROUND(T67,0)&" bu = "&TEXT(X67,"$#,###")&"/ac" -> 70% = 7 bu = -$359/ac
B89: ="50% = "&ROUND(B77,0)&" bu = "&TEXT(H77,"$#,###")&"/ac" -> 50% = 19 bu = -$515/ac | K89: ="50% = "&ROUND(K73,0)&" bu = "&TEXT(P73,"$#,###")&"/ac" -> 50% = 13 bu = -$414/ac | T89: ="50% = "&ROUND(T75,0)&" bu = "&TEXT(Y75,"$#,###")&"/ac" -> 50% = 5 bu = -$469/ac
B91: =ROUND(Summary!F60,1)&" bu = Breakeven" -> 70.7 bu = Breakeven | K91: =ROUND(Summary!E60,0)&" bu = Breakeven" -> 31 bu = Breakeven | T91: =ROUND(Summary!C60,0)&" bu = Breakeven" -> 14 bu = Breakeven

Sheet Ag Days (HIDE) (hidden)
BO1: Organic | BV1: Organic | CB1: Organic | CG1: Organic | CN1: Organic | CS1: Organic
BV2: B/E Yield (Units/Acre) | CB2: Projected Revenue & Crop Rankings 2016 | CN2: B/E Prices | CS2: AgriInsurance Risk Analysis - RA#2 'B' Soil
BP3: Price | BQ3: Yield | BR3: Margin Over | BS3: Margin Over | BW3: Price | BX3: Operating | BY3: Total | BZ3: B/E % of Target | CC3: Price | CD3: Yield | CE3: Gross | CH3: Gross | CI3: Margin Over | CJ3: Margin Over Op | CK3: Margin Over | CO3: Yield | CP3: Operating | CQ3: Total | CT3: Operating | CU3: 80% Insured | CV3: Coverage of | CW3: Coverage of
BP4: ($/unit) | BQ4: (units/acre) | BR4: Operating Costs | BS4: Total Costs | BT4: Rank | BW4: ($/unit) | BX4: Costs | BY4: Costs | BZ4: (or Avg.) Yield | CC4: ($/unit) | CD4: (units/acre) | CE4: Revenue | CH4: Revenue | CI4: Operating Costs | CJ4: & Fixed Costs | CK4: Total Costs | CL4: Rank | CO4: (units/acre) | CP4: Costs | CQ4: Costs | CT4: Costs | CU4: Value | CV4: Operating Costs | CW4: Total Costs
BO5: =$B$116 -> Brown Flax | BP5: =$I$116 -> 34 | BQ5: =$H$116 -> 15.5 | BR5: =$L$116 -> 309.2690858 | BS5: =$N$116 -> 161.755966 | BT5: 1 | BV5: =$B$116 -> Brown Flax | BW5: =$I$116 -> 34 | BX5: =$Q$116 -> 6.403850417 | BY5: =$R$116 -> 10.74247159 | BZ5: =$S$116 -> 0.6930626831 | CB5: =$B$116 -> Brown Flax | CC5: =$I$116 -> 34 | CD5: =$H$116 -> 15.5 | CE5: =$J$116 -> 527 | CG5: =$B$116 -> Brown Flax | CH5: =$J$116 -> 527 | CI5: =$L$116 -> 309.2690858 | CJ5: =$M$116 -> 225.755966 | CK5: =$N$116 -> 161.755966 | CL5: 1 | CN5: =$B$116 -> Brown Flax | CO5: =$H$116 -> 15.5 | CP5: =$Z$116 -> 14.04715575 | CQ5: =$AA$116 -> 23.56413122 | CS5: =$B$116 -> Brown Flax | CT5: =$C$116 -> 217.7309142 | CU5: =$V$116 -> 195.52 | CV5: =$W$116 -> 0.8979891566 | CW5: =$X$116 -> 0.5353133297
BO6: =$B$117 -> Green Peas | BP6: =$I$117 -> 15.38 | BQ6: =$H$117 -> 20 | BR6: =$L$117 -> 97.7651571 | BS6: =$N$117 -> -50.33619707 | BT6: 2 | BV6: =$B$117 -> Green Peas | BW6: =$I$117 -> 15.38 | BX6: =$Q$117 -> 13.6433578 | BY6: =$R$117 -> 23.27283466 | BZ6: =$S$117 -> 1.163641733 | CB6: =$B$117 -> Green Peas | CC6: =$I$117 -> 15.38 | CD6: =$H$117 -> 20 | CE6: =$J$117 -> 307.6 | CG6: =$B$117 -> Green Peas | CH6: =$J$117 -> 307.6 | CI6: =$L$117 -> 97.7651571 | CJ6: =$M$117 -> 13.66380293 | CK6: =$N$117 -> -50.33619707 | CL6: 2 | CN6: =$B$117 -> Green Peas | CO6: =$H$117 -> 20 | CP6: =$Z$117 -> 10.49174215 | CQ6: =$AA$117 -> 17.89680985 | CS6: =$B$117 -> Green Peas | CT6: =$C$117 -> 209.8348429 | CU6: =$V$117 -> 100.16 | CV6: =$W$117 -> 0.4773277813 | CW6: =$X$117 -> 0.2798264071
A7: Organic | V7: Conventional | AR7: PPT | BO7: =$B$118 -> Wheat | BP7: =$I$118 -> 18.86 | BQ7: =$H$118 -> 35 | BR7: =$L$118 -> 443.108728 | BS7: =$N$118 -> 293.0465926 | BT7: 3 | BV7: =$B$118 -> Wheat | BW7: =$I$118 -> 18.86 | BX7: =$Q$118 -> 11.50536967 | BY7: =$R$118 -> 19.46200463 | BZ7: =$S$118 -> 0.5560572752 | CB7: =$B$118 -> Wheat | CC7: =$I$118 -> 18.86 | CD7: =$H$118 -> 35 | CE7: =$J$118 -> 660.1 | CG7: =$B$118 -> Wheat | CH7: =$J$118 -> 660.1 | CI7: =$L$118 -> 443.108728 | CJ7: =$M$118 -> 357.0465926 | CK7: =$N$118 -> 293.0465926 | CL7: 3 | CN7: =$B$118 -> Wheat | CO7: =$H$118 -> 35 | CP7: =$Z$118 -> 6.199750627 | CQ7: =$AA$118 -> 10.48724021 | CS7: =$B$118 -> Wheat | CT7: =$C$118 -> 216.991272 | CU7: =$V$118 -> 170.78 | CV7: =$W$118 -> 0.787036264 | CW7: =$X$118 -> 0.465272891
BO8: =$B$119 -> Oats | BP8: =$I$119 -> 7 | BQ8: =$H$119 -> 75 | BR8: =$L$119 -> 330.4982506 | BS8: =$N$119 -> 175.2073652 | BT8: 4 | BV8: =$B$119 -> Oats | BW8: =$I$119 -> 7 | BX8: =$Q$119 -> 27.7859642 | BY8: =$R$119 -> 49.97037641 | BZ8: =$S$119 -> 0.6662716854 | CB8: =$B$119 -> Oats | CC8: =$I$119 -> 7 | CD8: =$H$119 -> 75 | CE8: =$J$119 -> 525 | CG8: =$B$119 -> Oats | CH8: =$J$119 -> 525 | CI8: =$L$119 -> 330.4982506 | CJ8: =$M$119 -> 239.2073652 | CK8: =$N$119 -> 175.2073652 | CL8: 4 | CN8: =$B$119 -> Oats | CO8: =$H$119 -> 75 | CP8: =$Z$119 -> 2.593356659 | CQ8: =$AA$119 -> 4.663901798 | CS8: =$B$119 -> Oats | CT8: =$C$119 -> 194.5017494 | CU8: =$V$119 -> 167.27 | CV8: =$W$119 -> 0.8599922648 | CW8: =$X$119 -> 0.4781976043
C9: Brown | D9: Green | E9: HRS | G9: Hemp | H9: Spring | I9: Soy- | J9: Feed | L9: Winter | M9: Buck- | N9: Sunflowers | P9: Sweet | Q9: Oat / Pea | R9: Red | S9: Forage | Z9: Winter | AE9: Navy | AG9: Sunflowers | AK9: Canary | AM9: Buck- | AN9: Hemp- | AT9: HRS Wheat | AY9: Oats | BD9: Flax | BI9: Soybeans | BO9: =$B$120 -> Hemp | BP9: =$I$120 -> 1.55 | BQ9: =$H$120 -> 450 | BR9: =$L$120 -> 441.8405578 | BS9: =$N$120 -> 295.0166824 | BT9: 5 | BV9: =$B$120 -> Hemp | BW9: =$I$120 -> 1.55 | BX9: =$Q$120 -> 164.9415756 | BY9: =$R$120 -> 259.6666565 | BZ9: =$S$120 -> 0.5770370145 | CB9: =$B$120 -> Hemp | CC9: =$I$120 -> 1.55 | CD9: =$H$120 -> 450 | CE9: =$J$120 -> 697.5 | CG9: =$B$120 -> Hemp | CH9: =$J$120 -> 697.5 | CI9: =$L$120 -> 441.8405578 | CJ9: =$M$120 -> 359.0166824 | CK9: =$N$120 -> 295.0166824 | CL9: 5 | CN9: =$B$120 -> Hemp | CO9: =$H$120 -> 450 | CP9: =$Z$120 -> 0.5681320937 | CQ9: =$AA$120 -> 0.8944073725 | CS9: =$B$120 -> Hemp | CT9: =$C$120 -> 255.6594422 | CU9: =$V$120 -> 244.8 | CV9: =$W$120 -> 0.9575237978 | CW9: =$X$120 -> 0.6082239668
C10: Flax | D10: Peas | E10: Wheat | F10: Oats | G10: Oil | H10: Spelt | I10: beans | J10: Barley | K10: Fall Rye | L10: Wheat | M10: wheat | N10: Oil | P10: Clover | Q10: Mix | R10: Clover | S10: Peas | T10: Alfalfa | X10: Canola | Y10: Wheat | Z10: Wheat | AA10: Soybeans | AB10: Barley | AC10: Oats | AD10: Corn | AE10: Beans | AF10: Flax | AG10: Confects | AH10: Oil | AI10: Peas | AJ10: Fall Rye | AK10: Seed | AL10: Lentils | AM10: wheat | AN10: seed | AT10: Organic | AU10: Conv. | AY10: Organic | AZ10: Conv. | BD10: Organic | BE10: Conv. | BI10: Organic | BJ10: Conv. | BO10: =$B$121 -> Spelt | BP10: =$I$121 -> 23 | BQ10: =$H$121 -> 19.8 | BR10: =$L$121 -> 273.1471095 | BS10: =$N$121 -> 125.0718991 | BT10: 6 | BV10: =$B$121 -> Spelt | BW10: =$I$121 -> 23 | BX10: =$Q$121 -> 7.924038718 | BY10: =$R$121 -> 14.36209134 | BZ10: =$S$121 -> 0.7253581487 | CB10: =$B$121 -> Spelt | CC10: =$I$121 -> 23 | CD10: =$H$121 -> 19.8 | CE10: =$J$121 -> 455.4 | CG10: =$B$121 -> Spelt | CH10: =$J$121 -> 455.4 | CI10: =$L$121 -> 273.1471095 | CJ10: =$M$121 -> 189.0718991 | CK10: =$N$121 -> 125.0718991 | CL10: 6 | CN10: =$B$121 -> Spelt | CO10: =$H$121 -> 19.8 | CP10: =$Z$121 -> 9.20469144 | CQ10: =$AA$121 -> 16.68323742 | CS10: =$B$121 -> Spelt | CT10: =$C$121 -> 182.2528905 | CU10: =$V$121 -> 0 | CV10: =$W$121 -> 0 | CW10: =$X$121 -> 0
AR11: A. Operating Costs | AW11: A. Operating Costs | BB11: A. Operating Costs | BG11: A. Operating Costs | BO11: =$B$122 -> Soybeans | BP11: =$I$122 -> 28.19 | BQ11: =$H$122 -> 18 | BR11: =$L$122 -> 263.084681 | BS11: =$N$122 -> 115.2447643 | BT11: 7 | BV11: =$B$122 -> Soybeans | BW11: =$I$122 -> 28.19 | BX11: =$Q$122 -> 8.667446578 | BY11: =$R$122 -> 13.91185653 | BZ11: =$S$122 -> 0.7728809186 | CB11: =$B$122 -> Soybeans | CC11: =$I$122 -> 28.19 | CD11: =$H$122 -> 18 | CE11: =$J$122 -> 507.42 | CG11: =$B$122 -> Soybeans | CH11: =$J$122 -> 507.42 | CI11: =$L$122 -> 263.084681 | CJ11: =$M$122 -> 179.2447643 | CK11: =$N$122 -> 115.2447643 | CL11: 7 | CN11: =$B$122 -> Soybeans | CO11: =$H$122 -> 18 | CP11: =$Z$122 -> 13.57418439 | CQ11: =$AA$122 -> 21.78751309 | CS11: =$B$122 -> Soybeans | CT11: =$C$122 -> 244.335319 | CU11: =$V$122 -> 145.01 | CV11: =$W$122 -> 0.5934876733 | CW11: =$X$122 -> 0.3697581765
B12: Profitability Ranking | C12: 5 | D12: 11 | E12: 3 | F12: 4 | G12: 2 | H12: 6 | I12: 7 | J12: 9 | K12: 10 | L12: 1 | M12: 12 | N12: 8 | W12: Profitability Ranking | X12: 6 | Y12: 8 | Z12: 2 | AA12: 9 | AB12: 12 | AC12: 13 | AD12: 3 | AE12: 1 | AF12: 14 | AG12: 4 | AH12: 10 | AI12: 5 | AJ12: 7 | AK12: 15 | AL12: 16 | AM12: 17 | AN12: 11 | AS12: Seed & Treatment | AT12: 50.46 | AU12: 22 | AX12: Seed & Treatment | AY12: 30 | AZ12: 18.13 | BC12: Seed & Treatment | BD12: 46.07 | BE12: 22.8 | BH12: Seed & Treatment | BI12: 75.6 | BJ12: 94.38 | BO12: =$B$123 -> Barley | BP12: =$I$123 -> 8.41 | BQ12: =$H$123 -> 42 | BR12: =$L$123 -> 166.5403945 | BS12: =$N$123 -> 15.56322782 | BT12: 8 | BV12: =$B$123 -> Barley | BW12: =$I$123 -> 8.41 | BX12: =$Q$123 -> 22.19733716 | BY12: =$R$123 -> 40.14943783 | BZ12: =$S$123 -> 0.955938996 | CB12: =$B$123 -> Barley | CC12: =$I$123 -> 8.41 | CD12: =$H$123 -> 42 | CE12: =$J$123 -> 353.22 | CG12: =$B$123 -> Barley | CH12: =$J$123 -> 353.22 | CI12: =$L$123 -> 166.5403945 | CJ12: =$M$123 -> 79.56322782 | CK12: =$N$123 -> 15.56322782 | CL12: 8 | CN12: =$B$123 -> Barley | CO12: =$H$123 -> 42 | CP12: =$Z$123 -> 4.444752512 | CQ12: =$AA$123 -> 8.039446957 | CS12: =$B$123 -> Barley | CT12: =$C$123 -> 186.6796055 | CU12: =$V$123 -> 113.23 | CV12: =$W$123 -> 0.6065472427 | CW12: =$X$123 -> 0.3353405272
AS13: Fertility | AT13: 76.01427083 | AU13: 61.2280365 | AX13: Fertility | AY13: 76.01427083 | AZ13: 48.56800719 | BC13: Fertility | BD13: 76.01427083 | BE13: 43.27404757 | BH13: Fertility | BI13: 76.01427083 | BJ13: 11.35441224 | BO13: =$B$124 -> Fall Rye | BP13: =$I$124 -> 10 | BQ13: =$H$124 -> 30 | BR13: =$L$124 -> 112.0375377 | BS13: =$N$124 -> -37.37100394 | BT13: 9 | BV13: =$B$124 -> Fall Rye | BW13: =$I$124 -> 10 | BX13: =$Q$124 -> 18.79624623 | BY13: =$R$124 -> 33.73710039 | BZ13: =$S$124 -> 1.124570013 | CB13: =$B$124 -> Fall Rye | CC13: =$I$124 -> 10 | CD13: =$H$124 -> 30 | CE13: =$J$124 -> 300 | CG13: =$B$124 -> Fall Rye | CH13: =$J$124 -> 300 | CI13: =$L$124 -> 112.0375377 | CJ13: =$M$124 -> 26.62899606 | CK13: =$N$124 -> -37.37100394 | CL13: 9 | CN13: =$B$124 -> Fall Rye | CO13: =$H$124 -> 30 | CP13: =$Z$124 -> 6.265415409 | CQ13: =$AA$124 -> 11.24570013 | CS13: =$B$124 -> Fall Rye | CT13: =$C$124 -> 187.9624623 | CU13: =$V$124 -> 140.16 | CV13: =$W$124 -> 0.7456808041 | CW13: =$X$124 -> 0.4154476774
A14: A. Operating Costs | V14: A. Operating Costs | AS14: Compost | AT14: 12.225 | AU14: 0 | AX14: Compost | AY14: 12.225 | AZ14: 0 | BC14: Compost | BD14: 12.225 | BE14: 0 | BH14: Compost | BI14: 12.225 | BJ14: 0 | BO14: =$B$125 -> Winter Wheat | BP14: =$I$125 -> 19 | BQ14: =$H$125 -> 45 | BR14: =$L$125 -> 640.8511087 | BS14: =$N$125 -> 489.4817858 | BT14: 10 | BV14: =$B$125 -> Winter Wheat | BW14: =$I$125 -> 19 | BX14: =$Q$125 -> 11.27099428 | BY14: =$R$125 -> 19.23780075 | BZ14: =$S$125 -> 0.4275066833 | CB14: =$B$125 -> Winter Wheat | CC14: =$I$125 -> 19 | CD14: =$H$125 -> 45 | CE14: =$J$125 -> 855 | CG14: =$B$125 -> Winter Wheat | CH14: =$J$125 -> 855 | CI14: =$L$125 -> 640.8511087 | CJ14: =$M$125 -> 553.4817858 | CK14: =$N$125 -> 489.4817858 | CL14: 10 | CN14: =$B$125 -> Winter Wheat | CO14: =$H$125 -> 45 | CP14: =$Z$125 -> 4.758864252 | CQ14: =$AA$125 -> 8.122626983 | CS14: =$B$125 -> Winter Wheat | CT14: =$C$125 -> 214.1488913 | CU14: =$V$125 -> 177 | CV14: =$W$125 -> 0.8265277439 | CW14: =$X$125 -> 0.4842439942
B15: Seed & Treatment | C15: 46.07 | D15: 45.95 | E15: 50.46 | F15: 30 | G15: 56.25 | H15: 38.5 | I15: 75.6 | J15: 31.03 | K15: 28 | L15: 46 | M15: 35.75 | N15: 16 | P15: 15.75 | Q15: 49.3 | R15: 25 | S15: 37 | T15: 11.25 | W15: Seed & Treatment | X15: 52.25 | Y15: 22 | Z15: 20 | AA15: 94.38 | AB15: 15 | AC15: 18.13 | AD15: 78.3 | AE15: 52.5 | AF15: 22.8 | AG15: 48.31 | AH15: 38 | AI15: 30.25 | AJ15: 10.5 | AK15: 14.08 | AL15: 32.5 | AM15: 25 | AN15: 40 | AS15: Herbicide | AT15: 0 | AU15: 26.21 | AX15: Herbicide | AY15: 0 | AZ15: 9.5 | BC15: Herbicide | BD15: 0 | BE15: 18.25 | BH15: Herbicide | BI15: 0 | BJ15: 14.67 | BO15: =$B$126 -> Buckwheat | BP15: =$I$126 -> 18 | BQ15: =$H$126 -> 14 | BR15: =$L$126 -> 41.20372872 | BS15: =$N$126 -> -106.1133129 | BT15: 11 | BV15: =$B$126 -> Buckwheat | BW15: =$I$126 -> 18 | BX15: =$Q$126 -> 11.71090396 | BY15: =$R$126 -> 19.89518405 | BZ15: =$S$126 -> 1.421084575 | CB15: =$B$126 -> Buckwheat | CC15: =$I$126 -> 18 | CD15: =$H$126 -> 14 | CE15: =$J$126 -> 252 | CG15: =$B$126 -> Buckwheat | CH15: =$J$126 -> 252 | CI15: =$L$126 -> 41.20372872 | CJ15: =$M$126 -> -42.11331295 | CK15: =$N$126 -> -106.1133129 | CL15: 11 | CN15: =$B$126 -> Buckwheat | CO15: =$H$126 -> 14 | CP15: =$Z$126 -> 15.05687652 | CQ15: =$AA$126 -> 25.57952235 | CS15: =$B$126 -> Buckwheat | CT15: =$C$126 -> 210.7962713 | CU15: =$V$126 -> 141.46 | CV15: =$W$126 -> 0.6710744888 | CW15: =$X$126 -> 0.3950146361
B16: Fertility | C16: 76.01427083 | D16: 76.01427083 | E16: 76.01427083 | F16: 76.01427083 | G16: 76.01427083 | H16: 76.01427083 | I16: 76.01427083 | J16: 76.01427083 | K16: 76.01427083 | L16: 76.01427083 | M16: 76.01427083 | N16: 76.01427083 | W16: Fertilizer | X16: 78.99239333 | Y16: 61.2280365 | Z16: 66.13874963 | AA16: 11.35441224 | AB16: 53.47872032 | AC16: 48.56800719 | AD16: 94.42465447 | AE16: 56.31732338 | AF16: 43.27404757 | AG16: 53.47872032 | AH16: 53.47872032 | AI16: 14.19301529 | AJ16: 46.11265063 | AK16: 48.56800719 | AL16: 14.19301529 | AM16: 30.99726475 | AN16: 56.31732338 | AS16: Fungicide | AT16: 0 | AU16: 21.31 | AX16: Fungicide | AY16: 0 | AZ16: 10.13 | BC16: Fungicide | BD16: 0 | BE16: 14.38 | BH16: Fungicide | BI16: 0 | BJ16: 0 | BO16: =$B$127 -> Sunfl. Oil | BP16: =$I$127 -> 0.5 | BQ16: =$H$127 -> 900 | BR16: =$L$127 -> 261.2010439 | BS16: =$N$127 -> 110.3664795 | BT16: 12 | BV16: =$B$127 -> Sunfl. Oil | BW16: =$I$127 -> 0.5 | BX16: =$Q$127 -> 377.5979123 | BY16: =$R$127 -> 679.267041 | BZ16: =$S$127 -> 0.7547411567 | CB16: =$B$127 -> Sunfl. Oil | CC16: =$I$127 -> 0.5 | CD16: =$H$127 -> 900 | CE16: =$J$127 -> 450 | CG16: =$B$127 -> Sunfl. Oil | CH16: =$J$127 -> 450 | CI16: =$L$127 -> 261.2010439 | CJ16: =$M$127 -> 174.3664795 | CK16: =$N$127 -> 110.3664795 | CL16: 12 | CN16: =$B$127 -> Sunfl. Oil | CO16: =$H$127 -> 900 | CP16: =$Z$127 -> 0.2097766179 | CQ16: =$AA$127 -> 0.3773705784 | CS16: =$B$127 -> Sunfl. Oil | CT16: =$C$127 -> 188.7989561 | CU16: =$V$127 -> 151.2 | CV16: =$W$127 -> 0.8008518855 | CW16: =$X$127 -> 0.4451857395
B17: Compost | C17: 12.225 | D17: 12.225 | E17: 12.225 | F17: 12.225 | G17: 12.225 | H17: 12.225 | I17: 12.225 | J17: 12.225 | K17: 12.225 | L17: 12.225 | M17: 12.225 | N17: 12.225 | P17: 12.225 | Q17: 12.225 | R17: 12.225 | S17: 12.225 | T17: 12.225 | W17: Compost | X17: 0 | Y17: 0 | Z17: 0 | AA17: 0 | AB17: 0 | AC17: 0 | AD17: 0 | AE17: 0 | AF17: 0 | AG17: 0 | AH17: 0 | AI17: 0 | AJ17: 0 | AK17: 0 | AL17: 0 | AM17: 0 | AN17: 0 | AS17: Insecticide | AT17: 0 | AU17: 0 | AX17: Insecticide | AY17: 0 | AZ17: 0 | BC17: Insecticide | BD17: 0 | BE17: 0 | BH17: Insecticide | BI17: 0 | BJ17: 0 | CI17: =AVERAGE(CI5:CI16) -> 281.7122819 | CT17: =AVERAGE(CT5:CT16) -> 209.1410514
B18: Herbicide | C18: 0 | D18: 0 | E18: 0 | F18: 0 | G18: 0 | H18: 0 | I18: 0 | J18: 0 | K18: 0 | L18: 0 | M18: 0 | N18: 0 | P18: 0 | Q18: 0 | R18: 0 | S18: 0 | T18: 0 | W18: Herbicide | X18: 13.13 | Y18: 26.21 | Z18: 13.83 | AA18: 14.67 | AB18: 24.88 | AC18: 9.5 | AD18: 18.17 | AE18: 66.21 | AF18: 18.25 | AG18: 43.79 | AH18: 24.75 | AI18: 16 | AJ18: 6.7 | AK18: 13.53 | AL18: 16 | AM18: 5.25 | AN18: 38.82 | AS18: Fuel | AT18: 17.69866779 | AU18: 20.05070547 | AX18: Fuel | AY18: 18.08914526 | AZ18: 23.32564632 | BC18: Fuel | BD18: 17.50831002 | BE18: 15.82741158 | BH18: Fuel | BI18: 17.53271486 | BJ18: 15.33967621 | BO18: Conventional | BV18: Conventional | CB18: Conventional | CG18: Conventional | CN18: Conventional | CS18: Conventional
B19: Fungicide | C19: 0 | D19: 0 | E19: 0 | F19: 0 | G19: 0 | H19: 0 | I19: 0 | J19: 0 | K19: 0 | L19: 0 | M19: 0 | N19: 0 | P19: 0 | Q19: 0 | R19: 0 | S19: 0 | T19: 0 | W19: Fungicide | X19: 36.25 | Y19: 21.31 | Z19: 21.31 | AA19: 0 | AB19: 17.25 | AC19: 10.13 | AD19: 0 | AE19: 39.5 | AF19: 14.38 | AG19: 28.75 | AH19: 28.75 | AI19: 14.38 | AJ19: 0 | AK19: 9.91 | AL19: 14.38 | AM19: 0 | AN19: 0 | AS19: Machinery Operating | AT19: 10 | AU19: 10 | AX19: Machinery Operating | AY19: 10 | AZ19: 10 | BC19: Machinery Operating | BD19: 10 | BE19: 10 | BH19: Machinery Operating | BI19: 10 | BJ19: 10 | BV19: B/E Yield (Units/Acre) | CB19: Projected Revenue & Crop Rankings 2016 | CN19: B/E Prices | CS19: AgriInsurance Risk Analysis - RA#2 'B' Soil
B20: Insecticide | C20: 0 | D20: 0 | E20: 0 | F20: 0 | G20: 0 | H20: 0 | I20: 0 | J20: 0 | K20: 0 | L20: 0 | M20: 0 | N20: 0 | P20: 0 | Q20: 0 | R20: 0 | S20: 0 | T20: 0 | W20: Insecticide | X20: 4.73 | Y20: 0 | Z20: 0 | AA20: 0 | AB20: 0 | AC20: 0 | AD20: 0 | AE20: 0 | AF20: 0 | AG20: 13.23 | AH20: 0 | AI20: 0 | AJ20: 0 | AK20: 0 | AL20: 0 | AM20: 0 | AN20: 0 | AS20: Machinery Lease | AT20: 0 | AU20: 3.6 | AX20: Machinery Lease | AY20: 0 | AZ20: 3.6 | BC20: Machinery Lease | BD20: 0 | BE20: 3.6 | BH20: Machinery Lease | BI20: 0 | BJ20: 3.6 | BP20: Price | BQ20: Yield | BR20: Margin Over | BS20: Margin Over | BW20: Price | BX20: Operating | BY20: Total | BZ20: B/E % of Target | CC20: Price | CD20: Yield | CE20: Gross | CH20: Gross | CI20: Margin Over | CJ20: Margin Over Op | CK20: Margin Over | CO20: Yield | CP20: Operating | CQ20: Total | CT20: Operating | CU20: 80% Insured | CV20: Coverage of | CW20: Coverage of
B21: Fuel | C21: 17.50831002 | D21: 17.55223874 | E21: 17.69866779 | F21: 18.08914526 | G21: 17.45683799 | H21: 17.55028635 | I21: 17.53271486 | J21: 17.76700135 | K21: 17.64985811 | L21: 17.79628716 | M21: 17.49366712 | N21: 17.75635196 | P21: 14.6625 | Q21: 14.6625 | R21: 14.6625 | S21: 14.6625 | T21: 14.6625 | W21: Fuel | X21: 16.43455853 | Y21: 20.05070547 | Z21: 21.71023474 | AA21: 15.33967621 | AB21: 21.66611705 | AC21: 23.32564632 | AD21: 23.65229326 | AE21: 18.87325827 | AF21: 15.82741158 | AG21: 19.91835242 | AH21: 20.25025827 | AI21: 15.75455853 | AJ21: 16.55032316 | AK21: 17.09837023 | AL21: 15.80596438 | AM21: 14.16909987 | AN21: 17.31895865 | AS21: Rental and Custom | AT21: 0 | AU21: 0 | AX21: Rental and Custom | AY21: 0 | AZ21: 0 | BC21: Rental and Custom | BD21: 0 | BE21: 0 | BH21: Rental and Custom | BI21: 0 | BJ21: 0 | BP21: ($/unit) | BQ21: (units/acre) | BR21: Operating Costs | BS21: Total Costs | BT21: Rank | BW21: ($/unit) | BX21: Costs | BY21: Costs | BZ21: (or Avg.) Yield | CC21: ($/unit) | CD21: (units/acre) | CE21: Revenue | CH21: Revenue | CI21: Operating Costs | CJ21: & Fixed Costs | CK21: Total Costs | CL21: Rank | CO21: (units/acre) | CP21: Costs | CQ21: Costs | CT21: Costs | CU21: Value | CV21: Operating Costs | CW21: Total Costs
B22: Machinery Operating | C22: 10 | D22: 10 | E22: 10 | F22: 10 | G22: 10 | H22: 10 | I22: 10 | J22: 10 | K22: 10 | L22: 10 | M22: 10 | N22: 10 | P22: 10 | Q22: 10 | R22: 10 | S22: 10 | T22: 10 | W22: Machinery Operating | X22: 10 | Y22: 10 | Z22: 10 | AA22: 10 | AB22: 10 | AC22: 10 | AD22: 10 | AE22: 10 | AF22: 10 | AG22: 10 | AH22: 10 | AI22: 10 | AJ22: 10 | AK22: 10 | AL22: 10 | AM22: 10 | AN22: 10 | AS22: Crop Insurance | AT22: 21.7 | AU22: 11.82 | AX22: Crop Insurance | AY22: 19.88 | AZ22: 14.21 | BC22: Crop Insurance | BD22: 27 | BE22: 14.52 | BH22: Crop Insurance | BI22: 23.34 | BJ22: 22.31 | BO22: =$B$87 -> Navy Beans | BP22: =$I$87 -> 0.28 | BQ22: =$H$87 -> 1850 | BR22: =$L$87 -> 214.3394183 | BS22: =$N$87 -> 69.17611106 | BT22: 1 | BV22: =$B$87 -> Navy Beans | BW22: =$I$87 -> 0.28 | BX22: =$Q$87 -> 1084.502077 | BY22: =$R$87 -> 1602.942461 | BZ22: =$S$87 -> 0.8664553841 | CB22: =$B$87 -> Navy Beans | CC22: =$I$87 -> 0.28 | CD22: =$H$87 -> 1850 | CE22: =$J$87 -> 518 | CG22: =$B$87 -> Navy Beans | CH22: =$J$87 -> 518 | CI22: =$L$87 -> 214.3394183 | CJ22: =$M$87 -> 99.17611106 | CK22: =$N$87 -> 69.17611106 | CL22: 1 | CN22: =$B$87 -> Navy Beans | CO22: =$H$87 -> 1850 | CP22: =$Z$87 -> 0.1641408549 | CQ22: =$AA$87 -> 0.2426075075 | CS22: =$B$87 -> Navy Beans | CT22: =$C$87 -> 303.6605817 | CU22: =$V$87 -> 320.096 | CV22: =$W$87 -> 1.054124306 | CW22: =$X$87 -> 0.7131884195
B23: Machinery Lease | C23: 0 | D23: 0 | E23: 0 | F23: 0 | G23: 0 | H23: 0 | I23: 0 | J23: 0 | K23: 0 | L23: 0 | M23: 0 | N23: 0 | P23: 0 | Q23: 0 | R23: 0 | S23: 0 | T23: 0 | W23: Machinery Lease | X23: 3.6 | Y23: 3.6 | Z23: 3.6 | AA23: 3.6 | AB23: 3.6 | AC23: 3.6 | AD23: 3.6 | AE23: 3.6 | AF23: 3.6 | AG23: 3.6 | AH23: 3.6 | AI23: 3.6 | AJ23: 3.6 | AK23: 3.6 | AL23: 3.6 | AM23: 3.6 | AN23: 3.6 | AS23: Other Costs | AT23: 7.75 | AU23: 7.75 | AX23: Other Costs | AY23: 7.75 | AZ23: 7.75 | BC23: Other Costs | BD23: 7.75 | BE23: 7.75 | BH23: Other Costs | BI23: 7.75 | BJ23: 7.75 | BO23: =$B$88 -> Winter Wheat | BP23: =$I$88 -> 5.25 | BQ23: =$H$88 -> 75 | BR23: =$L$88 -> 202.0410156 | BS23: =$N$88 -> 51.10429688 | BT23: 2 | BV23: =$B$88 -> Winter Wheat | BW23: =$I$88 -> 5.25 | BX23: =$Q$88 -> 36.51599702 | BY23: =$R$88 -> 65.26584821 | BZ23: =$S$88 -> 0.8702113095 | CB23: =$B$88 -> Winter Wheat | CC23: =$I$88 -> 5.25 | CD23: =$H$88 -> 75 | CE23: =$J$88 -> 393.75 | CG23: =$B$88 -> Winter Wheat | CH23: =$J$88 -> 393.75 | CI23: =$L$88 -> 202.0410156 | CJ23: =$M$88 -> 81.10429688 | CK23: =$N$88 -> 51.10429688 | CL23: 2 | CN23: =$B$88 -> Winter Wheat | CO23: =$H$88 -> 75 | CP23: =$Z$88 -> 2.556119792 | CQ23: =$AA$88 -> 4.568609375 | CS23: =$B$88 -> Winter Wheat | CT23: =$C$88 -> 191.7089844 | CU23: =$V$88 -> 233.0496 | CV23: =$W$88 -> 1.215642557 | CW23: =$X$88 -> 0.6801474464
B24: Rental and Custom | C24: 0 | D24: 0 | E24: 0 | F24: 0 | G24: 0 | H24: 0 | I24: 0 | J24: 0 | K24: 0 | L24: 0 | M24: 0 | N24: 0 | P24: 0 | Q24: 0 | R24: 0 | S24: 0 | T24: 0 | W24: Rental and Custom | X24: 0 | Y24: 0 | Z24: 0 | AA24: 0 | AB24: 0 | AC24: 0 | AD24: 0 | AE24: 0 | AF24: 0 | AG24: 0 | AH24: 0 | AI24: 0 | AJ24: 0 | AK24: 0 | AL24: 0 | AM24: 0 | AN24: 0 | AS24: Certification Cost | AT24: 3.333333333 | AU24: 0 | AX24: Certification Cost | AY24: 3.333333333 | AZ24: 0 | BC24: Certification Cost | BD24: 3.333333333 | BE24: 0 | BH24: Certification Cost | BI24: 3.333333333 | BJ24: 0 | BO24: =$B$89 -> Corn | BP24: =$I$89 -> 4.5 | BQ24: =$H$89 -> 115 | BR24: =$L$89 -> 201.6230523 | BS24: =$N$89 -> 45.45758352 | BT24: 3 | BV24: =$B$89 -> Corn | BW24: =$I$89 -> 4.5 | BX24: =$Q$89 -> 70.19487727 | BY24: =$R$89 -> 104.8983148 | BZ24: =$S$89 -> 0.9121592589 | CB24: =$B$89 -> Corn | CC24: =$I$89 -> 4.5 | CD24: =$H$89 -> 115 | CE24: =$J$89 -> 517.5 | CG24: =$B$89 -> Corn | CH24: =$J$89 -> 517.5 | CI24: =$L$89 -> 201.6230523 | CJ24: =$M$89 -> 75.45758352 | CK24: =$N$89 -> 45.45758352 | CL24: 3 | CN24: =$B$89 -> Corn | CO24: =$H$89 -> 115 | CP24: =$Z$89 -> 2.746756067 | CQ24: =$AA$89 -> 4.104716665 | CS24: =$B$89 -> Corn | CT24: =$C$89 -> 315.8769477 | CU24: =$V$89 -> 209.0928 | CV24: =$W$89 -> 0.6619438408 | CW24: =$X$89 -> 0.4429534141
B25: Crop Insurance | C25: 27 | D25: 19.39 | E25: 21.7 | F25: 19.88 | G25: 33.79 | H25: 0 | I25: 23.34 | J25: 11.56 | K25: 15.96 | L25: 23.3 | M25: 30.59 | N25: 18.67 | P25: 0 | Q25: 0 | R25: 0 | S25: 0 | T25: 0 | W25: Crop Insurance | X25: 14.96 | Y25: 11.82 | Z25: 10.24 | AA25: 22.31 | AB25: 12.34 | AC25: 14.21 | AD25: 24.53 | AE25: 28.78 | AF25: 14.52 | AG25: 29.47 | AH25: 18.54 | AI25: 19.19 | AJ25: 14.09 | AK25: 21.73 | AL25: 25.5 | AM25: 30.35 | AN25: 33.62 | AS25: Land Taxes | AT25: 12 | AU25: 12 | AX25: Land Taxes | AY25: 12 | AZ25: 12 | BC25: Land Taxes | BD25: 12 | BE25: 12 | BH25: Land Taxes | BI25: 12 | BJ25: 12 | BO25: =$B$90 -> Sunf. Confects | BP25: =$I$90 -> 0.27 | BQ25: =$H$90 -> 1750 | BR25: =$L$90 -> 184.4929273 | BS25: =$N$90 -> 32.96203237 | BT25: 4 | BV25: =$B$90 -> Sunf. Confects | BW25: =$I$90 -> 0.27 | BX25: =$Q$90 -> 1066.692862 | BY25: =$R$90 -> 1627.918399 | BZ25: =$S$90 -> 0.9302390849 | CB25: =$B$90 -> Sunf. Confects | CC25: =$I$90 -> 0.27 | CD25: =$H$90 -> 1750 | CE25: =$J$90 -> 472.5 | CG25: =$B$90 -> Sunf. Confects | CH25: =$J$90 -> 472.5 | CI25: =$L$90 -> 184.4929273 | CJ25: =$M$90 -> 62.96203237 | CK25: =$N$90 -> 32.96203237 | CL25: 4 | CN25: =$B$90 -> Sunf. Confects | CO25: =$H$90 -> 1750 | CP25: =$Z$90 -> 0.1645754701 | CQ25: =$AA$90 -> 0.2511645529 | CS25: =$B$90 -> Sunf. Confects | CT25: =$C$90 -> 288.0070727 | CU25: =$V$90 -> 325.296 | CV25: =$W$90 -> 1.129472262 | CW25: =$X$90 -> 0.7400862359
B26: Other Costs | C26: 7.75 | D26: 7.75 | E26: 7.75 | F26: 7.75 | G26: 7.75 | H26: 7.75 | I26: 7.75 | J26: 7.75 | K26: 7.75 | L26: 7.75 | M26: 7.75 | N26: 7.75 | P26: 7.75 | Q26: 7.75 | R26: 7.75 | S26: 7.75 | T26: 7.75 | W26: Other Costs | X26: 7.75 | Y26: 7.75 | Z26: 7.75 | AA26: 7.75 | AB26: 7.75 | AC26: 7.75 | AD26: 7.75 | AE26: 7.75 | AF26: 7.75 | AG26: 7.75 | AH26: 7.75 | AI26: 7.75 | AJ26: 7.75 | AK26: 7.75 | AL26: 7.75 | AM26: 7.75 | AN26: 7.75 | AS26: Drying Costs | AT26: 0 | AU26: 0 | AX26: Drying Costs | AY26: - | AZ26: 0 | BC26: Drying Costs | BD26: - | BE26: 0 | BH26: Drying Costs | BI26: - | BJ26: 0 | BO26: =$B$91 -> Peas | BP26: =$I$91 -> 8 | BQ26: =$H$91 -> 40 | BR26: =$L$91 -> 172.9424262 | BS26: =$N$91 -> 26.58086368 | BT26: 5 | BV26: =$B$91 -> Peas | BW26: =$I$91 -> 8 | BX26: =$Q$91 -> 18.38219673 | BY26: =$R$91 -> 36.67739204 | BZ26: =$S$91 -> 0.916934801 | CB26: =$B$91 -> Peas | CC26: =$I$91 -> 8 | CD26: =$H$91 -> 40 | CE26: =$J$91 -> 320 | CG26: =$B$91 -> Peas | CH26: =$J$91 -> 320 | CI26: =$L$91 -> 172.9424262 | CJ26: =$M$91 -> 56.58086368 | CK26: =$N$91 -> 26.58086368 | CL26: 5 | CN26: =$B$91 -> Peas | CO26: =$H$91 -> 40 | CP26: =$Z$91 -> 3.676439346 | CQ26: =$AA$91 -> 7.335478408 | CS26: =$B$91 -> Peas | CT26: =$C$91 -> 147.0575738 | CU26: =$V$91 -> 199.3184 | CV26: =$W$91 -> 1.355376638 | CW26: =$X$91 -> 0.6792958445
B27: Certification Cost | C27: 3.333333333 | D27: 3.333333333 | E27: 3.333333333 | F27: 3.333333333 | G27: 3.333333333 | H27: 3.333333333 | I27: 3.333333333 | J27: 3.333333333 | K27: 3.333333333 | L27: 3.333333333 | M27: 3.333333333 | N27: 3.333333333 | P27: 3.333333333 | Q27: 3.333333333 | R27: 3.333333333 | S27: 3.333333333 | T27: 3.333333333 | W27: Certification Cost | X27: 0 | Y27: 0 | Z27: 0 | AA27: 0 | AB27: 0 | AC27: 0 | AD27: 0 | AE27: 0 | AF27: 0 | AG27: 0 | AH27: 0 | AI27: 0 | AJ27: 0 | AK27: 0 | AL27: 0 | AM27: 0 | AN27: 0 | AS27: Interest on Operating | AT27: 5.81 | AU27: 5.39 | AX27: Interest on Operating | AY27: 5.21 | AZ27: 4.32 | BC27: Interest on Operating | BD27: 5.83 | BE27: 4.47 | BH27: Interest on Operating | BI27: 6.54 | BJ27: 5.26 | BO27: =$B$92 -> Canola | BP27: =$I$92 -> 10.5 | BQ27: =$H$92 -> 40 | BR27: =$L$92 -> 163.0230481 | BS27: =$N$92 -> 16.66148564 | BT27: 6 | BV27: =$B$92 -> Canola | BW27: =$I$92 -> 10.5 | BX27: =$Q$92 -> 24.47399542 | BY27: =$R$92 -> 38.41319184 | BZ27: =$S$92 -> 0.9603297961 | CB27: =$B$92 -> Canola | CC27: =$I$92 -> 10.5 | CD27: =$H$92 -> 40 | CE27: =$J$92 -> 420 | CG27: =$B$92 -> Canola | CH27: =$J$92 -> 420 | CI27: =$L$92 -> 163.0230481 | CJ27: =$M$92 -> 46.66148564 | CK27: =$N$92 -> 16.66148564 | CL27: 6 | CN27: =$B$92 -> Canola | CO27: =$H$92 -> 40 | CP27: =$Z$92 -> 6.424423796 | CQ27: =$AA$92 -> 10.08346286 | CS27: =$B$92 -> Canola | CT27: =$C$92 -> 256.9769519 | CU27: =$V$92 -> 259.9784 | CV27: =$W$92 -> 1.011679834 | CW27: =$X$92 -> 0.6445662657
B28: Land Taxes | C28: 12 | D28: 12 | E28: 12 | F28: 12 | G28: 12 | H28: 12 | I28: 12 | J28: 12 | K28: 12 | L28: 12 | M28: 12 | N28: 12 | P28: 12 | Q28: 12 | R28: 12 | S28: 12 | T28: 12 | W28: Land Taxes | X28: 12 | Y28: 12 | Z28: 12 | AA28: 12 | AB28: 12 | AC28: 12 | AD28: 12 | AE28: 12 | AF28: 12 | AG28: 12 | AH28: 12 | AI28: 12 | AJ28: 12 | AK28: 12 | AL28: 12 | AM28: 12 | AN28: 12 | AS28: Total Operating | AT28: 216.991272 | AU28: 201.358742 | AX28: Total Operating | AY28: 194.5017494 | AZ28: 161.5336535 | BC28: Total Operating | BD28: 217.7309142 | BE28: 166.8714591 | BH28: Total Operating | BI28: 244.335319 | BJ28: 196.6640884 | BO28: =$B$93 -> Fall Rye | BP28: =$I$93 -> 5.75 | BQ28: =$H$93 -> 50 | BR28: =$L$93 -> 156.6970262 | BS28: =$N$93 -> 9.028276216 | BT28: 7 | BV28: =$B$93 -> Fall Rye | BW28: =$I$93 -> 5.75 | BX28: =$Q$93 -> 22.74834327 | BY28: =$R$93 -> 48.42986501 | BZ28: =$S$93 -> 0.9685973001 | CB28: =$B$93 -> Fall Rye | CC28: =$I$93 -> 5.75 | CD28: =$H$93 -> 50 | CE28: =$J$93 -> 287.5 | CG28: =$B$93 -> Fall Rye | CH28: =$J$93 -> 287.5 | CI28: =$L$93 -> 156.6970262 | CJ28: =$M$93 -> 39.02827622 | CK28: =$N$93 -> 9.028276216 | CL28: 7 | CN28: =$B$93 -> Fall Rye | CO28: =$H$93 -> 50 | CP28: =$Z$93 -> 2.616059476 | CQ28: =$AA$93 -> 5.569434476 | CS28: =$B$93 -> Fall Rye | CT28: =$C$93 -> 130.8029738 | CU28: =$V$93 -> 221.4528 | CV28: =$W$93 -> 1.693025729 | CW28: =$X$93 -> 0.7952433985
B29: Drying Costs | C29: - | D29: - | E29: - | F29: - | G29: 20 | H29: - | I29: - | J29: - | K29: - | L29: - | M29: - | N29: 10 | P29: - | Q29: - | R29: - | S29: - | T29: - | W29: Drying Costs | X29: 0 | Y29: 0 | Z29: 0 | AA29: 0 | AB29: 0 | AC29: 0 | AD29: 35 | AE29: 0 | AF29: 0 | AG29: 10 | AH29: 10 | AI29: 0 | AJ29: 0 | AK29: 0 | AL29: 0 | AM29: 0 | AN29: 20 | BO29: =$B$94 -> Wheat | BP29: =$I$94 -> 6.5 | BQ29: =$H$94 -> 55 | BR29: =$L$94 -> 156.141258 | BS29: =$N$94 -> 7.818914272 | BT29: 8 | BV29: =$B$94 -> Wheat | BW29: =$I$94 -> 6.5 | BX29: =$Q$94 -> 30.978268 | BY29: =$R$94 -> 53.79709011 | BZ29: =$S$94 -> 0.9781289111 | CB29: =$B$94 -> Wheat | CC29: =$I$94 -> 6.5 | CD29: =$H$94 -> 55 | CE29: =$J$94 -> 357.5 | CG29: =$B$94 -> Wheat | CH29: =$J$94 -> 357.5 | CI29: =$L$94 -> 156.141258 | CJ29: =$M$94 -> 37.81891427 | CK29: =$N$94 -> 7.818914272 | CL29: 8 | CN29: =$B$94 -> Wheat | CO29: =$H$94 -> 55 | CP29: =$Z$94 -> 3.661068036 | CQ29: =$AA$94 -> 6.357837922 | CS29: =$B$94 -> Wheat | CT29: =$C$94 -> 201.358742 | CU29: =$V$94 -> 225.36 | CV29: =$W$94 -> 1.119196504 | CW29: =$X$94 -> 0.6444729475
B30: Interest on Operating | C30: 5.83 | D30: 5.62 | E30: 5.81 | F30: 5.21 | G30: 6.84 | H30: 4.88 | I30: 6.54 | J30: 5 | K30: 5.03 | L30: 5.73 | M30: 5.64 | N30: 5.05 | P30: 2.08 | Q30: 3 | R30: 2.34 | S30: 2.67 | T30: 1.96 | W30: Interest on Operating | X30: 6.88 | Y30: 5.39 | Z30: 5.13 | AA30: 5.26 | AB30: 4.89 | AC30: 4.32 | AD30: 8.45 | AE30: 8.13 | AF30: 4.47 | AG30: 7.71 | AH30: 6.25 | AI30: 3.94 | AJ30: 3.5 | AK30: 4.35 | AL30: 4.17 | AM30: 3.83 | AN30: 6.58 | AT30: HRS Wheat | AY30: Oats | BD30: Flax | BI30: Soybeans | BO30: =$B$95 -> Soybeans | BP30: =$I$95 -> 10 | BQ30: =$H$95 -> 35 | BR30: =$L$95 -> 153.3359116 | BS30: =$N$95 -> 7.627942804 | BT30: 9 | BV30: =$B$95 -> Soybeans | BW30: =$I$95 -> 10 | BX30: =$Q$95 -> 19.66640884 | BY30: =$R$95 -> 34.23720572 | BZ30: =$S$95 -> 0.9782058777 | CB30: =$B$95 -> Soybeans | CC30: =$I$95 -> 10 | CD30: =$H$95 -> 35 | CE30: =$J$95 -> 350 | CG30: =$B$95 -> Soybeans | CH30: =$J$95 -> 350 | CI30: =$L$95 -> 153.3359116 | CJ30: =$M$95 -> 37.6279428 | CK30: =$N$95 -> 7.627942804 | CL30: 9 | CN30: =$B$95 -> Soybeans | CO30: =$H$95 -> 35 | CP30: =$Z$95 -> 5.618973956 | CQ30: =$AA$95 -> 9.782058777 | CS30: =$B$95 -> Soybeans | CT30: =$C$95 -> 196.6640884 | CU30: =$V$95 -> 217.512 | CV30: =$W$95 -> 1.10600772 | CW30: =$X$95 -> 0.635308856
B31: Total Operating | C31: 217.7309142 | D31: 209.8348429 | E31: 216.991272 | F31: 194.5017494 | G31: 255.6594422 | H31: 182.2528905 | I31: 244.335319 | J31: 186.6796055 | K31: 187.9624623 | L31: 214.1488913 | M31: 210.7962713 | N31: 188.7989561 | P31: 77.80083333 | Q31: 112.2708333 | R31: 87.31083333 | S31: 99.64083333 | T31: 73.18083333 | W31: Total Operating | X31: 256.9769519 | Y31: 201.358742 | Z31: 191.7089844 | AA31: 196.6640884 | AB31: 182.8548374 | AC31: 161.5336535 | AD31: 315.8769477 | AE31: 303.6605817 | AF31: 166.8714591 | AG31: 288.0070727 | AH31: 233.3689786 | AI31: 147.0575738 | AJ31: 130.8029738 | AK31: 162.6163774 | AL31: 155.8989797 | AM31: 142.9463646 | AN31: 246.006282 | AT31: Organic | AU31: Conv. | AY31: Organic | AZ31: Conv. | BD31: Organic | BE31: Conv. | BI31: Organic | BJ31: Conv. | BO31: =$B$96 -> Sunfl. Oil | BP31: =$I$96 -> 0.21 | BQ31: =$H$96 -> 1850 | BR31: =$L$96 -> 155.1310214 | BS31: =$N$96 -> 3.005950386 | BT31: 10 | BV31: =$B$96 -> Sunfl. Oil | BW31: =$I$96 -> 0.21 | BX31: =$Q$96 -> 1111.28085 | BY31: =$R$96 -> 1835.685951 | BZ31: =$S$96 -> 0.992262676 | CB31: =$B$96 -> Sunfl. Oil | CC31: =$I$96 -> 0.21 | CD31: =$H$96 -> 1850 | CE31: =$J$96 -> 388.5 | CG31: =$B$96 -> Sunfl. Oil | CH31: =$J$96 -> 388.5 | CI31: =$L$96 -> 155.1310214 | CJ31: =$M$96 -> 33.00595039 | CK31: =$N$96 -> 3.005950386 | CL31: 10 | CN31: =$B$96 -> Sunfl. Oil | CO31: =$H$96 -> 1850 | CP31: =$Z$96 -> 0.1261453938 | CQ31: =$AA$96 -> 0.208375162 | CS31: =$B$96 -> Sunfl. Oil | CT31: =$C$96 -> 233.3689786 | CU31: =$V$96 -> 253.008 | CV31: =$W$96 -> 1.084154379 | CW31: =$X$96 -> 0.6563214147
AR32: B. Fixed Costs | AW32: B. Fixed Costs | BB32: B. Fixed Costs | BG32: B. Fixed Costs | BO32: =$B$97 -> Hempseed | BP32: =$I$97 -> 0.68 | BQ32: =$H$97 -> 575 | BR32: =$L$97 -> 144.993718 | BS32: =$N$97 -> 2.152649079 | BT32: 11 | BV32: =$B$97 -> Hempseed | BW32: =$I$97 -> 0.68 | BX32: =$Q$97 -> 361.7739442 | BY32: =$R$97 -> 571.8343396 | BZ32: =$S$97 -> 0.9944945036 | CB32: =$B$97 -> Hempseed | CC32: =$I$97 -> 0.68 | CD32: =$H$97 -> 575 | CE32: =$J$97 -> 391 | CG32: =$B$97 -> Hempseed | CH32: =$J$97 -> 391 | CI32: =$L$97 -> 144.993718 | CJ32: =$M$97 -> 32.15264908 | CK32: =$N$97 -> 2.152649079 | CL32: 11 | CN32: =$B$97 -> Hempseed | CO32: =$H$97 -> 575 | CP32: =$Z$97 -> 0.4278370122 | CQ32: =$AA$97 -> 0.6762562625 | CS32: =$B$97 -> Hempseed | CT32: =$C$97 -> 246.006282 | CU32: =$V$97 -> 264.384 | CV32: =$W$97 -> 1.074704263 | CW32: =$X$97 -> 0.6799171947
A33: B. Fixed Costs | V33: B. Fixed Costs | AS33: Land Investment Costs | AT33: 53.75 | AU33: 53.75 | AX33: Land Investment Costs | AY33: 53.75 | AZ33: 53.75 | BC33: Land Investment Costs | BD33: 53.75 | BE33: 53.75 | BH33: Land Investment Costs | BI33: 53.75 | BJ33: 53.75 | BO33: =$B$98 -> Barley | BP33: =$I$98 -> 4 | BQ33: =$H$98 -> 80 | BR33: =$L$98 -> 137.1451626 | BS33: =$N$98 -> -14.44514987 | BT33: 12 | BV33: =$B$98 -> Barley | BW33: =$I$98 -> 4 | BX33: =$Q$98 -> 45.71370934 | BY33: =$R$98 -> 83.61128747 | BZ33: =$S$98 -> 1.045141093 | CB33: =$B$98 -> Barley | CC33: =$I$98 -> 4 | CD33: =$H$98 -> 80 | CE33: =$J$98 -> 320 | CG33: =$B$98 -> Barley | CH33: =$J$98 -> 320 | CI33: =$L$98 -> 137.1451626 | CJ33: =$M$98 -> 15.55485013 | CK33: =$N$98 -> -14.44514987 | CL33: 12 | CN33: =$B$98 -> Barley | CO33: =$H$98 -> 80 | CP33: =$Z$98 -> 2.285685467 | CQ33: =$AA$98 -> 4.180564373 | CS33: =$B$98 -> Barley | CT33: =$C$98 -> 182.8548374 | CU33: =$V$98 -> 185.7544 | CV33: =$W$98 -> 1.015857183 | CW33: =$X$98 -> 0.5554106557
B34: Land Investment Costs | C34: 53.75 | D34: 53.75 | E34: 53.75 | F34: 53.75 | G34: 53.75 | H34: 53.75 | I34: 53.75 | J34: 53.75 | K34: 53.75 | L34: 53.75 | M34: 53.75 | N34: 53.75 | P34: 53.75 | Q34: 53.75 | R34: 53.75 | S34: 53.75 | T34: 53.75 | W34: Land Investment Costs | X34: 53.75 | Y34: 53.75 | Z34: 53.75 | AA34: 53.75 | AB34: 53.75 | AC34: 53.75 | AD34: 53.75 | AE34: 53.75 | AF34: 53.75 | AG34: 53.75 | AH34: 53.75 | AI34: 53.75 | AJ34: 53.75 | AK34: 53.75 | AL34: 53.75 | AM34: 53.75 | AN34: 53.75 | AS34: Machinery Depreciation | AT34: 22.18958333 | AU34: 45.90625 | AX34: Machinery Depreciation | AY34: 22.18958333 | AZ34: 45.90625 | BC34: Machinery Depreciation | BD34: 22.18958333 | BE34: 45.90625 | BH34: Machinery Depreciation | BI34: 22.18958333 | BJ34: 45.90625 | BO34: =$B$99 -> Oats | BP34: =$I$99 -> 3 | BQ34: =$H$99 -> 100 | BR34: =$L$99 -> 138.4663465 | BS34: =$N$99 -> -15.73834101 | BT34: 13 | BV34: =$B$99 -> Oats | BW34: =$I$99 -> 3 | BX34: =$Q$99 -> 53.84455117 | BY34: =$R$99 -> 105.2461137 | BZ34: =$S$99 -> 1.052461137 | CB34: =$B$99 -> Oats | CC34: =$I$99 -> 3 | CD34: =$H$99 -> 100 | CE34: =$J$99 -> 300 | CG34: =$B$99 -> Oats | CH34: =$J$99 -> 300 | CI34: =$L$99 -> 138.4663465 | CJ34: =$M$99 -> 14.26165899 | CK34: =$N$99 -> -15.73834101 | CL34: 13 | CN34: =$B$99 -> Oats | CO34: =$H$99 -> 100 | CP34: =$Z$99 -> 1.615336535 | CQ34: =$AA$99 -> 3.15738341 | CS34: =$B$99 -> Oats | CT34: =$C$99 -> 161.5336535 | CU34: =$V$99 -> 242.0928 | CV34: =$W$99 -> 1.498714322 | CW34: =$X$99 -> 0.7667513525
B35: Machinery Depreciation | C35: 22.18958333 | D35: 22.18958333 | E35: 22.18958333 | F35: 22.18958333 | G35: 22.18958333 | H35: 22.18958333 | I35: 22.18958333 | J35: 22.18958333 | K35: 22.18958333 | L35: 22.18958333 | M35: 22.18958333 | N35: 22.18958333 | P35: 22.18958333 | Q35: 22.18958333 | R35: 22.18958333 | S35: 22.18958333 | T35: 22.18958333 | W35: Machinery Depreciation | X35: 45.90625 | Y35: 45.90625 | Z35: 45.90625 | AA35: 45.90625 | AB35: 45.90625 | AC35: 45.90625 | AD35: 45.90625 | AE35: 45.90625 | AF35: 45.90625 | AG35: 45.90625 | AH35: 45.90625 | AI35: 45.90625 | AJ35: 45.90625 | AK35: 45.90625 | AL35: 45.90625 | AM35: 45.90625 | AN35: 45.90625 | AS35: Machinery Investment | AT35: 5.547395833 | AU35: 11.4765625 | AX35: Machinery Investment | AY35: 5.547395833 | AZ35: 11.4765625 | BC35: Machinery Investment | BD35: 5.547395833 | BE35: 11.4765625 | BH35: Machinery Investment | BI35: 5.547395833 | BJ35: 11.4765625 | BO35: =$B$100 -> Flax | BP35: =$I$100 -> 11.75 | BQ35: =$H$100 -> 25 | BR35: =$L$100 -> 126.8785409 | BS35: =$N$100 -> -17.5222404 | BT35: 14 | BV35: =$B$100 -> Flax | BW35: =$I$100 -> 11.75 | BX35: =$Q$100 -> 14.20182631 | BY35: =$R$100 -> 26.4912545 | BZ35: =$S$100 -> 1.05965018 | CB35: =$B$100 -> Flax | CC35: =$I$100 -> 11.75 | CD35: =$H$100 -> 25 | CE35: =$J$100 -> 293.75 | CG35: =$B$100 -> Flax | CH35: =$J$100 -> 293.75 | CI35: =$L$100 -> 126.8785409 | CJ35: =$M$100 -> 12.4777596 | CK35: =$N$100 -> -17.5222404 | CL35: 14 | CN35: =$B$100 -> Flax | CO35: =$H$100 -> 25 | CP35: =$Z$100 -> 6.674858366 | CQ35: =$AA$100 -> 12.45088962 | CS35: =$B$100 -> Flax | CT35: =$C$100 -> 166.8714591 | CU35: =$V$100 -> 207.2784 | CV35: =$W$100 -> 1.242144109 | CW35: =$X$100 -> 0.6659071163
B36: Machinery Investment | C36: 5.547395833 | D36: 5.547395833 | E36: 5.547395833 | F36: 5.547395833 | G36: 5.547395833 | H36: 5.547395833 | I36: 5.547395833 | J36: 5.547395833 | K36: 5.547395833 | L36: 5.547395833 | M36: 5.547395833 | N36: 5.547395833 | P36: 5.547395833 | Q36: 5.547395833 | R36: 5.547395833 | S36: 5.547395833 | T36: 5.547395833 | W36: Machinery Investment | X36: 11.4765625 | Y36: 11.4765625 | Z36: 11.4765625 | AA36: 11.4765625 | AB36: 11.4765625 | AC36: 11.4765625 | AD36: 11.4765625 | AE36: 11.4765625 | AF36: 11.4765625 | AG36: 11.4765625 | AH36: 11.4765625 | AI36: 11.4765625 | AJ36: 11.4765625 | AK36: 11.4765625 | AL36: 11.4765625 | AM36: 11.4765625 | AN36: 11.4765625 | AS36: Storage Costs | AT36: 4.57515625 | AU36: 7.18953125 | AX36: Storage Costs | AY36: 9.80390625 | AZ36: 13.071875 | BC36: Storage Costs | BD36: 2.026140625 | BE36: 3.26796875 | BH36: Storage Costs | BI36: 2.3529375 | BJ36: 4.57515625 | BO36: =$B$101 -> Canaryseed | BP36: =$I$101 -> 0.24 | BQ36: =$H$101 -> 1200 | BR36: =$L$101 -> 125.3836226 | BS36: =$N$101 -> -18.55030599 | BT36: 15 | BV36: =$B$101 -> Canaryseed | BW36: =$I$101 -> 0.24 | BX36: =$Q$101 -> 677.5682393 | BY36: =$R$101 -> 1277.292942 | BZ36: =$S$101 -> 1.064410785 | CB36: =$B$101 -> Canaryseed | CC36: =$I$101 -> 0.24 | CD36: =$H$101 -> 1200 | CE36: =$J$101 -> 288 | CG36: =$B$101 -> Canaryseed | CH36: =$J$101 -> 288 | CI36: =$L$101 -> 125.3836226 | CJ36: =$M$101 -> 11.44969401 | CK36: =$N$101 -> -18.55030599 | CL36: 15 | CN36: =$B$101 -> Canaryseed | CO36: =$H$101 -> 1200 | CP36: =$Z$101 -> 0.1355136479 | CQ36: =$AA$101 -> 0.2554585883 | CS36: =$B$101 -> Canaryseed | CT36: =$C$101 -> 162.6163774 | CU36: =$V$101 -> 231.936 | CV36: =$W$101 -> 1.426277007 | CW36: =$X$101 -> 0.7566001255
B37: Storage Costs | C37: 2.026140625 | D37: 2.614375 | E37: 4.57515625 | F37: 9.80390625 | G37: 1.336896307 | H37: 2.58823125 | I37: 2.3529375 | J37: 5.4901875 | K37: 3.9215625 | L37: 5.88234375 | M37: 1.8300625 | N37: 5.347585227 | P37: 0 | Q37: 0 | R37: 0 | S37: 0 | T37: 0 | W37: Storage Costs | X37: 5.22875 | Y37: 7.18953125 | Z37: 9.80390625 | AA37: 4.57515625 | AB37: 10.4575 | AC37: 13.071875 | AD37: 15.03265625 | AE37: 4.030494792 | AF37: 3.26796875 | AG37: 10.39808239 | AH37: 10.99225852 | AI37: 5.22875 | AJ37: 6.5359375 | AK37: 2.801116071 | AL37: 2.396510417 | AM37: 2.22221875 | AN37: 1.708256392 | AS37: Total Fixed | AT37: 86.06213542 | AU37: 118.3223438 | AX37: Total Fixed | AY37: 91.29088542 | AZ37: 124.2046875 | BC37: Total Fixed | BD37: 83.51311979 | BE37: 114.4007812 | BH37: Total Fixed | BI37: 83.83991667 | BJ37: 115.7079688 | BO37: =$B$102 -> Lentils | BP37: =$I$102 -> 0.24 | BQ37: =$H$102 -> 1100 | BR37: =$L$102 -> 108.1010203 | BS37: =$N$102 -> -35.42830259 | BT37: 16 | BV37: =$B$102 -> Lentils | BW37: =$I$102 -> 0.24 | BX37: =$Q$102 -> 649.579082 | BY37: =$R$102 -> 1247.617927 | BZ37: =$S$102 -> 1.134198116 | CB37: =$B$102 -> Lentils | CC37: =$I$102 -> 0.24 | CD37: =$H$102 -> 1100 | CE37: =$J$102 -> 264 | CG37: =$B$102 -> Lentils | CH37: =$J$102 -> 264 | CI37: =$L$102 -> 108.1010203 | CJ37: =$M$102 -> -5.42830259 | CK37: =$N$102 -> -35.42830259 | CL37: 16 | CN37: =$B$102 -> Lentils | CO37: =$H$102 -> 1100 | CP37: =$Z$102 -> 0.1417263452 | CQ37: =$AA$102 -> 0.2722075478 | CS37: =$B$102 -> Lentils | CT37: =$C$102 -> 155.8989797 | CU37: =$V$102 -> 184.512 | CV37: =$W$102 -> 1.183535648 | CW37: =$X$102 -> 0.6162142937
B38: Total Fixed | C38: 83.51311979 | D38: 84.10135417 | E38: 86.06213542 | F38: 91.29088542 | G38: 82.82387547 | H38: 84.07521042 | I38: 83.83991667 | J38: 86.97716667 | K38: 85.40854167 | L38: 87.36932292 | M38: 83.31704167 | N38: 86.83456439 | P38: 81.48697917 | Q38: 81.48697917 | R38: 81.48697917 | S38: 81.48697917 | T38: 81.48697917 | W38: Total Fixed | X38: 116.3615625 | Y38: 118.3223438 | Z38: 120.9367187 | AA38: 115.7079688 | AB38: 121.5903125 | AC38: 124.2046875 | AD38: 126.1654688 | AE38: 115.1633073 | AF38: 114.4007812 | AG38: 121.5308949 | AH38: 122.125071 | AI38: 116.3615625 | AJ38: 117.66875 | AK38: 113.9339286 | AL38: 113.5293229 | AM38: 113.3550312 | AN38: 112.8410689 | AS38: Total Operating & Fixed | AT38: 303.0534074 | AU38: 319.6810857 | AX38: Total Operating & Fixed | AY38: 285.7926348 | AZ38: 285.738341 | BC38: Total Operating & Fixed | BD38: 301.244034 | BE38: 281.2722404 | BH38: Total Operating & Fixed | BI38: 328.1752357 | BJ38: 312.3720572 | BO38: =$B$103 -> Buckwheat | BP38: =$I$103 -> 13 | BQ38: =$H$103 -> 17 | BR38: =$L$103 -> 78.05363538 | BS38: =$N$103 -> -65.30139587 | BT38: 17 | BV38: =$B$103 -> Buckwheat | BW38: =$I$103 -> 13 | BX38: =$Q$103 -> 10.9958742 | BY38: =$R$103 -> 22.0231843 | BZ38: =$S$103 -> 1.295481429 | CB38: =$B$103 -> Buckwheat | CC38: =$I$103 -> 13 | CD38: =$H$103 -> 17 | CE38: =$J$103 -> 221 | CG38: =$B$103 -> Buckwheat | CH38: =$J$103 -> 221 | CI38: =$L$103 -> 78.05363538 | CJ38: =$M$103 -> -35.30139587 | CK38: =$N$103 -> -65.30139587 | CL38: 17 | CN38: =$B$103 -> Buckwheat | CO38: =$H$103 -> 17 | CP38: =$Z$103 -> 8.408609684 | CQ38: =$AA$103 -> 16.84125858 | CS38: =$B$103 -> Buckwheat | CT38: =$C$103 -> 142.9463646 | CU38: =$V$103 -> 164.6952 | CV38: =$W$103 -> 1.152146824 | CW38: =$X$103 -> 0.5752511248
B39: Total Operating & Fixed | C39: 301.244034 | D39: 293.9361971 | E39: 303.0534074 | F39: 285.7926348 | G39: 338.4833176 | H39: 266.3281009 | I39: 328.1752357 | J39: 273.6567722 | K39: 273.3710039 | L39: 301.5182142 | M39: 294.1133129 | N39: 275.6335205 | P39: 159.2878125 | Q39: 193.7578125 | R39: 168.7978125 | S39: 181.1278125 | T39: 154.6678125 | W39: Total Operating & Fixed | X39: 373.3385144 | Y39: 319.6810857 | Z39: 312.6457031 | AA39: 312.3720572 | AB39: 304.4451499 | AC39: 285.738341 | AD39: 442.0424165 | AE39: 418.8238889 | AF39: 281.2722404 | AG39: 409.5379676 | AH39: 355.4940496 | AI39: 263.4191363 | AJ39: 248.4717238 | AK39: 276.550306 | AL39: 269.4283026 | AM39: 256.3013959 | AN39: 358.8473509
AR40: C. Labour | AT40: 64 | AU40: 30 | AW40: C. Labour | AY40: 64 | AZ40: 30 | BB40: C. Labour | BD40: 64 | BE40: 30 | BG40: C. Labour | BI40: 64 | BJ40: 30
A41: C. Labour | C41: 64 | D41: 64 | E41: 64 | F41: 64 | G41: 64 | H41: 64 | I41: 64 | J41: 64 | K41: 64 | L41: 64 | M41: 64 | N41: 64 | P41: 64 | Q41: 64 | R41: 64 | S41: 64 | T41: 64 | V41: C. Labour | X41: 30 | Y41: 30 | Z41: 30 | AA41: 30 | AB41: 30 | AC41: 30 | AD41: 30 | AE41: 30 | AF41: 30 | AG41: 30 | AH41: 30 | AI41: 30 | AJ41: 30 | AK41: 30 | AL41: 30 | AM41: 30 | AN41: 30
AR42: Total Costs | AT42: 367.0534074 | AU42: 349.6810857 | AW42: Total Costs | AY42: 349.7926348 | AZ42: 315.738341 | BB42: Total Costs | BD42: 365.244034 | BE42: 311.2722404 | BG42: Total Costs | BI42: 392.1752357 | BJ42: 342.3720572
A43: Total Costs | C43: 365.244034 | D43: 357.9361971 | E43: 367.0534074 | F43: 349.7926348 | G43: 402.4833176 | H43: 330.3281009 | I43: 392.1752357 | J43: 337.6567722 | K43: 337.3710039 | L43: 365.5182142 | M43: 358.1133129 | N43: 339.6335205 | P43: 223.2878125 | Q43: 257.7578125 | R43: 232.7978125 | S43: 245.1278125 | T43: 218.6678125 | V43: Total Costs | X43: 403.3385144 | Y43: 349.6810857 | Z43: 342.6457031 | AA43: 342.3720572 | AB43: 334.4451499 | AC43: 315.738341 | AD43: 472.0424165 | AE43: 448.8238889 | AF43: 311.2722404 | AG43: 439.5379676 | AH43: 385.4940496 | AI43: 293.4191363 | AJ43: 278.4717238 | AK43: 306.550306 | AL43: 299.4283026 | AM43: 286.3013959 | AN43: 388.8473509
AT44: HRS Wheat | AY44: Oats | BD44: Flax | BI44: Soybeans
A45: Estimated Farmgate | V45: Estimated Farmgate | AT45: Organic | AU45: Conv. | AY45: Organic | AZ45: Conv. | BD45: Organic | BE45: Conv. | BI45: Organic | BJ45: Conv.
B46: Price $ per unit | C46: 34 | D46: 15.38 | E46: 18.86 | F46: 7 | G46: 1.55 | H46: 23 | I46: 28.19 | J46: 8.41 | K46: 10 | L46: 19 | M46: 18 | N46: 0.5 | W46: Market Price $ per unit | X46: 10.5 | Y46: 6.5 | Z46: 5.25 | AA46: 10 | AB46: 4 | AC46: 3 | AD46: 4.5 | AE46: 0.28 | AF46: 11.75 | AG46: 0.27 | AH46: 0.21 | AI46: 8 | AJ46: 5.75 | AK46: 0.24 | AL46: 0.24 | AM46: 13 | AN46: 0.68 | AR46: Estimated Farmgate | AW46: Estimated Farmgate | BB46: Estimated Farmgate | BG46: Estimated Farmgate
B47: Yield per acre (bu or lb.) | C47: 15.5 | D47: 20 | E47: 35 | F47: 75 | G47: 450 | H47: 19.8 | I47: 18 | J47: 42 | K47: 30 | L47: 45 | M47: 14 | N47: 900 | W47: Yield per acre (bu or lb.) | X47: 40 | Y47: 55 | Z47: 75 | AA47: 35 | AB47: 80 | AC47: 100 | AD47: 115 | AE47: 1850 | AF47: 25 | AG47: 1750 | AH47: 1850 | AI47: 40 | AJ47: 50 | AK47: 1200 | AL47: 1100 | AM47: 17 | AN47: 575 | AS47: Price $ per unit | AT47: 18.86 | AU47: 6.5 | AX47: Price $ per unit | AY47: 7 | AZ47: 3 | BC47: Price $ per unit | BD47: 34 | BE47: 11.75 | BH47: Price $ per unit | BI47: 28.19 | BJ47: 10
B48: Unit type | C48: bu | D48: bu | E48: bu | F48: bu | G48: lb | H48: bu | I48: bu | J48: bu | K48: bu | L48: bu | M48: bu | N48: lb | W48: Unit type | X48: bu | Y48: bu | Z48: bu | AA48: bu | AB48: bu | AC48: bu | AD48: bu | AE48: lb | AF48: bu | AG48: lb | AH48: lb | AI48: bu | AJ48: bu | AK48: lb | AL48: lb | AM48: bu | AN48: lb | AS48: Yield per acre (bu or lb.) | AT48: 35 | AU48: 55 | AX48: Yield per acre (bu or lb.) | AY48: 75 | AZ48: 100 | BC48: Yield per acre (bu or lb.) | BD48: 15.5 | BE48: 25 | BH48: Yield per acre (bu or lb.) | BI48: 18 | BJ48: 35
B49: Gross Revenue / acre | C49: 527 | D49: 307.6 | E49: 660.1 | F49: 525 | G49: 697.5 | H49: 455.4 | I49: 507.42 | J49: 353.22 | K49: 300 | L49: 855 | M49: 252 | N49: 450 | W49: Gross Revenue / acre | X49: =ROUND(((X46)*X47),2) -> 420 | Y49: =ROUND(((Y46)*Y47),2) -> 357.5 | Z49: 393.75 | AA49: 350 | AB49: 320 | AC49: 300 | AD49: 517.5 | AE49: 518 | AF49: 293.75 | AG49: 472.5 | AH49: 388.5 | AI49: 320 | AJ49: 287.5 | AK49: 288 | AL49: 264 | AM49: 221 | AN49: 391 | AS49: Unit type | AT49: bu | AU49: bu | AX49: Unit type | AY49: bu | AZ49: bu | BC49: Unit type | BD49: bu | BE49: bu | BH49: Unit type | BI49: bu | BJ49: bu
AS50: Gross Revenue / acre | AT50: =ROUND((AT47*AT48),2) -> 660.1 | AU50: =ROUND(((AU47)*AU48),2) -> 357.5 | AX50: Gross Revenue / acre | AY50: =ROUND((AY47*AY48),2) -> 525 | AZ50: =ROUND(((AZ47)*AZ48),2) -> 300 | BC50: Gross Revenue / acre | BD50: =ROUND((BD47*BD48),2) -> 527 | BE50: =ROUND(((BE47)*BE48),2) -> 293.75 | BH50: Gross Revenue / acre | BI50: =ROUND((BI47*BI48),2) -> 507.42 | BJ50: =ROUND(((BJ47)*BJ48),2) -> 350
A51: Marginal Returns | V51: Marginal Returns
B52: Over Operating Costs | C52: 309.2690858 | D52: 97.7651571 | E52: 443.108728 | F52: 330.4982506 | G52: 441.8405578 | H52: 273.1471095 | I52: 263.084681 | J52: 166.5403945 | K52: 112.0375377 | L52: 640.8511087 | M52: 41.20372872 | N52: 261.2010439 | W52: Over Operating Costs | X52: =SUM(X49-X31) -> 163.0230481 | Y52: =SUM(Y49-Y31) -> 156.141258 | Z52: 202.0410156 | AA52: 153.3359116 | AB52: 137.1451626 | AC52: 138.4663465 | AD52: 201.6230523 | AE52: 214.3394183 | AF52: 126.8785409 | AG52: 184.4929273 | AH52: 155.1310214 | AI52: 172.9424262 | AJ52: 156.6970262 | AK52: 125.3836226 | AL52: 108.1010203 | AM52: 78.05363538 | AN52: 144.993718 | AR52: Marginal Returns | AW52: Marginal Returns | BB52: Marginal Returns | BG52: Marginal Returns
B53: Over Operating & Fixed Costs | C53: 225.755966 | D53: 13.66380293 | E53: 357.0465926 | F53: 239.2073652 | G53: 359.0166824 | H53: 189.0718991 | I53: 179.2447643 | J53: 79.56322782 | K53: 26.62899606 | L53: 553.4817858 | M53: -42.11331295 | N53: 174.3664795 | W53: Over Operating & Fixed Costs | X53: =SUM(X49-X31-X38) -> 46.66148564 | Y53: =SUM(Y49-Y31-Y38) -> 37.81891427 | Z53: 81.10429688 | AA53: 37.6279428 | AB53: 15.55485013 | AC53: 14.26165899 | AD53: 75.45758352 | AE53: 99.17611106 | AF53: 12.4777596 | AG53: 62.96203237 | AH53: 33.00595039 | AI53: 56.58086368 | AJ53: 39.02827622 | AK53: 11.44969401 | AL53: -5.42830259 | AM53: -35.30139587 | AN53: 32.15264908 | AS53: Over Operating Costs | AT53: =SUM(AT50-AT28) -> 443.108728 | AU53: =SUM(AU50-AU28) -> 156.141258 | AX53: Over Operating Costs | AY53: =SUM(AY50-AY28) -> 330.4982506 | AZ53: =SUM(AZ50-AZ28) -> 138.4663465 | BC53: Over Operating Costs | BD53: =SUM(BD50-BD28) -> 309.2690858 | BE53: =SUM(BE50-BE28) -> 126.8785409 | BH53: Over Operating Costs | BI53: =SUM(BI50-BI28) -> 263.084681 | BJ53: =SUM(BJ50-BJ28) -> 153.3359116
B54: Over Total Costs (Net Profit) | C54: 161.755966 | D54: -50.33619707 | E54: 293.0465926 | F54: 175.2073652 | G54: 295.0166824 | H54: 125.0718991 | I54: 115.2447643 | J54: 15.56322782 | K54: -37.37100394 | L54: 489.4817858 | M54: -106.1133129 | N54: 110.3664795 | W54: Over Total Costs (Net Profit) | X54: =SUM(X49-X43) -> 16.66148564 | Y54: =SUM(Y49-Y43) -> 7.818914272 | Z54: 51.10429688 | AA54: 7.627942804 | AB54: -14.44514987 | AC54: -15.73834101 | AD54: 45.45758352 | AE54: 69.17611106 | AF54: -17.5222404 | AG54: 32.96203237 | AH54: 3.005950386 | AI54: 26.58086368 | AJ54: 9.028276216 | AK54: -18.55030599 | AL54: -35.42830259 | AM54: -65.30139587 | AN54: 2.152649079 | AS54: Over Operating & Fixed Costs | AT54: =SUM(AT50-AT28-AT37) -> 357.0465926 | AU54: =SUM(AU50-AU28-AU37) -> 37.81891427 | AX54: Over Operating & Fixed Costs | AY54: =SUM(AY50-AY28-AY37) -> 239.2073652 | AZ54: =SUM(AZ50-AZ28-AZ37) -> 14.26165899 | BC54: Over Operating & Fixed Costs | BD54: =SUM(BD50-BD28-BD37) -> 225.755966 | BE54: =SUM(BE50-BE28-BE37) -> 12.4777596 | BH54: Over Operating & Fixed Costs | BI54: =SUM(BI50-BI28-BI37) -> 179.2447643 | BJ54: =SUM(BJ50-BJ28-BJ37) -> 37.6279428
B55: Operating Expense Ratio | C55: 0.4131516398 | D55: 0.6821678898 | E55: 0.3287248477 | F55: 0.3704795227 | G55: 0.3665368346 | H55: 0.4002039757 | I55: 0.4815248099 | J55: 0.5285080276 | K55: 0.6265415409 | L55: 0.2504665396 | M55: 0.83649314 | N55: 0.4195532358 | W55: Operating Expense Ratio | X55: =SUM(X31/X49) -> 0.6118498854 | Y55: =SUM(Y31/Y49) -> 0.5632412363 | Z55: 0.4868799603 | AA55: 0.5618973956 | AB55: 0.5714213668 | AC55: 0.5384455117 | AD55: 0.6103902372 | AE55: 0.5862173391 | AF55: 0.5680730524 | AG55: 0.6095387783 | AH55: 0.6006923516 | AI55: 0.4595549182 | AJ55: 0.4549668653 | AK55: 0.5646401994 | AL55: 0.5905264382 | AM55: 0.6468161295 | AN55: 0.6291720768 | AS55: Over Total Costs (Net Profit) | AT55: =SUM(AT50-AT42) -> 293.0465926 | AU55: =SUM(AU50-AU42) -> 7.818914272 | AX55: Over Total Costs (Net Profit) | AY55: =SUM(AY50-AY42) -> 175.2073652 | AZ55: =SUM(AZ50-AZ42) -> -15.73834101 | BC55: Over Total Costs (Net Profit) | BD55: =SUM(BD50-BD42) -> 161.755966 | BE55: =SUM(BE50-BE42) -> -17.5222404 | BH55: Over Total Costs (Net Profit) | BI55: =SUM(BI50-BI42) -> 115.2447643 | BJ55: =SUM(BJ50-BJ42) -> 7.627942804
AS56: Operating Expense Ratio | AT56: =SUM(AT28/AT50) -> 0.3287248477 | AU56: =SUM(AU28/AU50) -> 0.5632412363 | AX56: Operating Expense Ratio | AY56: =SUM(AY28/AY50) -> 0.3704795227 | AZ56: =SUM(AZ28/AZ50) -> 0.5384455117 | BC56: Operating Expense Ratio | BD56: =SUM(BD28/BD50) -> 0.4131516398 | BE56: =SUM(BE28/BE50) -> 0.5680730524 | BH56: Operating Expense Ratio | BI56: =SUM(BI28/BI50) -> 0.4815248099 | BJ56: =SUM(BJ28/BJ50) -> 0.5618973956
A57: Breakeven Price Per Unit | V57: Breakeven Price Per Unit
B58: Operating Costs | C58: 14.04715575 | D58: 10.49174215 | E58: 6.199750627 | F58: 2.593356659 | G58: 0.5681320937 | H58: 9.20469144 | I58: 13.57418439 | J58: 4.444752512 | K58: 6.265415409 | L58: 4.758864252 | M58: 15.05687652 | N58: 0.2097766179 | W58: Operating Costs | X58: =SUM(X31/X47) -> 6.424423796 | Y58: 3.661068036 | Z58: 2.556119792 | AA58: 5.618973956 | AB58: 2.285685467 | AC58: 1.615336535 | AD58: 2.746756067 | AE58: 0.1641408549 | AF58: 6.674858366 | AG58: 0.1645754701 | AH58: 0.1261453938 | AI58: 3.676439346 | AJ58: 2.616059476 | AK58: 0.1355136479 | AL58: 0.1417263452 | AM58: 8.408609684 | AN58: 0.4278370122 | AT58: HRS Wheat | AY58: Oats | BD58: Flax | BI58: Soybeans
B59: Operating & Fixed Costs | C59: 19.43509897 | D59: 14.69680985 | E59: 8.658668782 | F59: 3.810568465 | G59: 0.7521851503 | H59: 13.45091419 | I59: 18.23195754 | J59: 6.515637433 | K59: 9.112366798 | L59: 6.700404761 | M59: 21.00809378 | N59: 0.3062594672 | W59: Operating & Fixed Costs | X59: =SUM((X31+X38)/X47) -> 9.333462859 | Y59: 5.812383377 | Z59: 4.168609375 | AA59: 8.92491592 | AB59: 3.805564373 | AC59: 2.85738341 | AD59: 3.8438471 | AE59: 0.2263912913 | AF59: 11.25088962 | AG59: 0.2340216958 | AH59: 0.1921589457 | AI59: 6.585478408 | AJ59: 4.969434476 | AK59: 0.2304585883 | AL59: 0.2449348205 | AM59: 15.0765527 | AN59: 0.6240823494 | AT59: Organic | AU59: Conv. | AY59: Organic | AZ59: Conv. | BD59: Organic | BE59: Conv. | BI59: Organic | BJ59: Conv.
B60: Total Costs | C60: 23.56413122 | D60: 17.89680985 | E60: 10.48724021 | F60: 4.663901798 | G60: 0.8944073725 | H60: 16.68323742 | I60: 21.78751309 | J60: 8.039446957 | K60: 11.24570013 | L60: 8.122626983 | M60: 25.57952235 | N60: 0.3773705784 | W60: Total Costs | X60: =SUM(X43/X47) -> 10.08346286 | Y60: 6.357837922 | Z60: 4.568609375 | AA60: 9.782058777 | AB60: 4.180564373 | AC60: 3.15738341 | AD60: 4.104716665 | AE60: 0.2426075075 | AF60: 12.45088962 | AG60: 0.2511645529 | AH60: 0.208375162 | AI60: 7.335478408 | AJ60: 5.569434476 | AK60: 0.2554585883 | AL60: 0.2722075478 | AM60: 16.84125858 | AN60: 0.6762562625 | AR60: Breakeven Price Per Unit | AW60: Breakeven Price Per Unit | BB60: Breakeven Price Per Unit | BG60: Breakeven Price Per Unit
AS61: Operating Costs | AT61: =SUM(AT28/AT48) -> 6.199750627 | AU61: =SUM(AU28/AU48) -> 3.661068036 | AX61: Operating Costs | AY61: =SUM(AY28/AY48) -> 2.593356659 | AZ61: =SUM(AZ28/AZ48) -> 1.615336535 | BC61: Operating Costs | BD61: =SUM(BD28/BD48) -> 14.04715575 | BE61: =SUM(BE28/BE48) -> 6.674858366 | BH61: Operating Costs | BI61: =SUM(BI28/BI48) -> 13.57418439 | BJ61: =SUM(BJ28/BJ48) -> 5.618973956
A62: Breakeven Yield (Bu or lb.) | V62: Breakeven Yield (Bu or lb.) | AS62: Operating & Fixed Costs | AT62: =SUM((AT28+AT37)/AT48) -> 8.658668782 | AU62: =SUM((AU28+AU37)/AU48) -> 5.812383377 | AX62: Operating & Fixed Costs | AY62: =SUM((AY28+AY37)/AY48) -> 3.810568465 | AZ62: =SUM((AZ28+AZ37)/AZ48) -> 2.85738341 | BC62: Operating & Fixed Costs | BD62: =SUM((BD28+BD37)/BD48) -> 19.43509897 | BE62: =SUM((BE28+BE37)/BE48) -> 11.25088962 | BH62: Operating & Fixed Costs | BI62: =SUM((BI28+BI37)/BI48) -> 18.23195754 | BJ62: =SUM((BJ28+BJ37)/BJ48) -> 8.92491592
B63: Operating Costs | C63: 6.403850417 | D63: 13.6433578 | E63: 11.50536967 | F63: 27.7859642 | G63: 164.9415756 | H63: 7.924038718 | I63: 8.667446578 | J63: 22.19733716 | K63: 18.79624623 | L63: 11.27099428 | M63: 11.71090396 | N63: 377.5979123 | W63: Operating Costs | X63: =SUM(X31/X46) -> 24.47399542 | Y63: 30.978268 | Z63: 36.51599702 | AA63: 19.66640884 | AB63: 45.71370934 | AC63: 53.84455117 | AD63: 70.19487727 | AE63: 1084.502077 | AF63: 14.20182631 | AG63: 1066.692862 | AH63: 1111.28085 | AI63: 18.38219673 | AJ63: 22.74834327 | AK63: 677.5682393 | AL63: 649.579082 | AM63: 10.9958742 | AN63: 361.7739442 | AS63: Total Costs | AT63: =SUM(AT42/AT48) -> 10.48724021 | AU63: =SUM(AU42/AU48) -> 6.357837922 | AX63: Total Costs | AY63: =SUM(AY42/AY48) -> 4.663901798 | AZ63: =SUM(AZ42/AZ48) -> 3.15738341 | BC63: Total Costs | BD63: =SUM(BD42/BD48) -> 23.56413122 | BE63: =SUM(BE42/BE48) -> 12.45088962 | BH63: Total Costs | BI63: =SUM(BI42/BI48) -> 21.78751309 | BJ63: =SUM(BJ42/BJ48) -> 9.782058777
B64: Operating & Fixed Costs | C64: 8.860118646 | D64: 19.11158629 | E64: 16.06857939 | F64: 40.82751926 | G64: 218.376334 | H64: 11.57948265 | I64: 11.64154791 | J64: 32.53944972 | K64: 27.33710039 | L64: 15.8693797 | M64: 16.3396285 | N64: 551.267041 | W64: Operating & Fixed Costs | X64: =SUM((X31+X38)/X46) -> 35.55604899 | Y64: 49.1817055 | Z64: 59.5515625 | AA64: 31.23720572 | AB64: 76.11128747 | AC64: 95.24611367 | AD64: 98.23164811 | AE64: 1495.799603 | AF64: 23.93806301 | AG64: 1516.807288 | AH64: 1692.828808 | AI64: 32.92739204 | AJ64: 43.2124737 | AK64: 1152.292942 | AL64: 1122.617927 | AM64: 19.71549199 | AN64: 527.7166925
B65: Total Costs | C65: 10.74247159 | D65: 23.27283466 | E65: 19.46200463 | F65: 49.97037641 | G65: 259.6666565 | H65: 14.36209134 | I65: 13.91185653 | J65: 40.14943783 | K65: 33.73710039 | L65: 19.23780075 | M65: 19.89518405 | N65: 679.267041 | W65: Total Costs | X65: =X43/X46 -> 38.41319184 | Y65: 53.79709011 | Z65: 65.26584821 | AA65: 34.23720572 | AB65: 83.61128747 | AC65: 105.2461137 | AD65: 104.8983148 | AE65: 1602.942461 | AF65: 26.4912545 | AG65: 1627.918399 | AH65: 1835.685951 | AI65: 36.67739204 | AJ65: 48.42986501 | AK65: 1277.292942 | AL65: 1247.617927 | AM65: 22.0231843 | AN65: 571.8343396 | AR65: Breakeven Yield (Bu or lb.) | AW65: Breakeven Yield (Bu or lb.) | BB65: Breakeven Yield (Bu or lb.) | BG65: Breakeven Yield (Bu or lb.)
AS66: Operating Costs | AT66: =SUM(AT28/AT47) -> 11.50536967 | AU66: =SUM(AU28/AU47) -> 30.978268 | AX66: Operating Costs | AY66: =SUM(AY28/AY47) -> 27.7859642 | AZ66: =SUM(AZ28/AZ47) -> 53.84455117 | BC66: Operating Costs | BD66: =SUM(BD28/BD47) -> 6.403850417 | BE66: =SUM(BE28/BE47) -> 14.20182631 | BH66: Operating Costs | BI66: =SUM(BI28/BI47) -> 8.667446578 | BJ66: =SUM(BJ28/BJ47) -> 19.66640884
AS67: Operating & Fixed Costs | AT67: =SUM((AT28+AT37)/AT47) -> 16.06857939 | AU67: =SUM((AU28+AU37)/AU47) -> 49.1817055 | AX67: Operating & Fixed Costs | AY67: =SUM((AY28+AY37)/AY47) -> 40.82751926 | AZ67: =SUM((AZ28+AZ37)/AZ47) -> 95.24611367 | BC67: Operating & Fixed Costs | BD67: =SUM((BD28+BD37)/BD47) -> 8.860118646 | BE67: =SUM((BE28+BE37)/BE47) -> 23.93806301 | BH67: Operating & Fixed Costs | BI67: =SUM((BI28+BI37)/BI47) -> 11.64154791 | BJ67: =SUM((BJ28+BJ37)/BJ47) -> 31.23720572
AS68: Total Costs | AT68: =AT42/AT47 -> 19.46200463 | AU68: =AU42/AU47 -> 53.79709011 | AX68: Total Costs | AY68: =AY42/AY47 -> 49.97037641 | AZ68: =AZ42/AZ47 -> 105.2461137 | BC68: Total Costs | BD68: =BD42/BD47 -> 10.74247159 | BE68: =BE42/BE47 -> 26.4912545 | BH68: Total Costs | BI68: =BI42/BI47 -> 13.91185653 | BJ68: =BJ42/BJ47 -> 34.23720572
AS71: Profitability Ranking | AT71: 3 | AU71: 8 | AX71: Profitability Ranking | AY71: 4 | AZ71: 13 | BC71: Profitability Ranking | BD71: 5 | BE71: 14 | BH71: Profitability Ranking | BI71: 7 | BJ71: 9
A77: CONVENTIONAL
C78: Canola | D78: Wheat | E78: Win. Wheat | F78: Soybeans | G78: Barley | H78: Oats | I78: Corn | J78: Navy Beans | K78: Flax | L78: Sunf. Confects | M78: Sunfl. Oil | N78: Peas | O78: Fall Rye | P78: Canary | Q78: Lentils | R78: Buckwheat | S78: Hemp
A79: A. Operating Costs | C79: =X31 -> 256.9769519 | D79: =Y31 -> 201.358742 | E79: 191.7089844 | F79: 196.6640884 | G79: 182.8548374 | H79: 161.5336535 | I79: 315.8769477 | J79: 303.6605817 | K79: 166.8714591 | L79: 288.0070727 | M79: 233.3689786 | N79: 147.0575738 | O79: 130.8029738 | P79: 162.6163774 | Q79: 155.8989797 | R79: 142.9463646 | S79: 246.006282
A80: B. Fixed Costs | C80: =X38 -> 116.3615625 | D80: =Y38 -> 118.3223438 | E80: 120.9367187 | F80: 115.7079688 | G80: 121.5903125 | H80: 124.2046875 | I80: 126.1654688 | J80: 115.1633073 | K80: 114.4007812 | L80: 121.5308949 | M80: 122.125071 | N80: 116.3615625 | O80: 117.66875 | P80: 113.9339286 | Q80: 113.5293229 | R80: 113.3550312 | S80: 112.8410689
A81: C. Labour | C81: =X41 -> 30 | D81: =Y41 -> 30 | E81: 30 | F81: 30 | G81: 30 | H81: 30 | I81: 30 | J81: 30 | K81: 30 | L81: 30 | M81: 30 | N81: 30 | O81: 30 | P81: 30 | Q81: 30 | R81: 30 | S81: 30
A82: Total Costs | C82: =X43 -> 403.3385144 | D82: =Y43 -> 349.6810857 | E82: 342.6457031 | F82: 342.3720572 | G82: 334.4451499 | H82: 315.738341 | I82: 472.0424165 | J82: 448.8238889 | K82: 311.2722404 | L82: 439.5379676 | M82: 385.4940496 | N82: 293.4191363 | O82: 278.4717238 | P82: 306.550306 | Q82: 299.4283026 | R82: 286.3013959 | S82: 388.8473509
B85: *****Re-sort Yellow rows based on column O ****** *****CHARTS & TABLES will AUTO update!! ****** | L85: ****sort on column p to reset to original listing **** | V85: RA #2
C86: A. Operating Costs | D86: B. Fixed Costs | E86: C. Labour | F86: Total Costs | H86: Yield | I86: $/unit | J86: Gross | L86: Margin Over Operating | M86: Margin Over Operating & Fixed | N86: Margin Over Total Costs | O86: Rank | Q86: B/E Operating Costs | R86: B/E Over Total Costs | V86: Insured 80% | W86: % of Op Cost | X86: % of Total Costs | Z86: B/E Operating Costs | AA86: B/E Over Total Costs
B87: Navy Beans | C87: 303.6605817 | D87: 115.1633073 | E87: 30 | F87: 448.8238889 | H87: 1850 | I87: 0.28 | J87: =SUM(H87*I87) -> 518 | K87: 5 | L87: =SUM(J87-C87) -> 214.3394183 | M87: =SUM(J87-(C87+D87)) -> 99.17611106 | N87: =SUM(J87-F87) -> 69.17611106 | O87: =RANK(N87,$N$87:$N$103) -> 1 | P87: 8 | Q87: =SUM(C87/I87) -> 1084.502077 | R87: =SUM(F87/I87) -> 1602.942461 | S87: =SUM(R87/H87) -> 0.8664553841 | V87: 320.096 | W87: =SUM(V87/C87) -> 1.054124306 | X87: =SUM(V87/F87) -> 0.7131884195 | Z87: =SUM(C87/H87) -> 0.1641408549 | AA87: =SUM(F87/H87) -> 0.2426075075
B88: Winter Wheat | C88: 191.7089844 | D88: 120.9367187 | E88: 30 | F88: 342.6457031 | H88: 75 | I88: 5.25 | J88: 393.75 | K88: 10 | L88: 202.0410156 | M88: 81.10429688 | N88: 51.10429688 | O88: 2 | P88: 3 | Q88: 36.51599702 | R88: 65.26584821 | S88: 0.8702113095 | V88: 233.0496 | W88: 1.215642557 | X88: 0.6801474464 | Z88: 2.556119792 | AA88: 4.568609375
B89: Corn | C89: 315.8769477 | D89: 126.1654688 | E89: 30 | F89: 472.0424165 | H89: 115 | I89: 4.5 | J89: 517.5 | K89: 3 | L89: 201.6230523 | M89: 75.45758352 | N89: 45.45758352 | O89: 3 | P89: 7 | Q89: 70.19487727 | R89: 104.8983148 | S89: 0.9121592589 | V89: 209.0928 | W89: 0.6619438408 | X89: 0.4429534141 | Z89: 2.746756067 | AA89: 4.104716665
B90: Sunf. Confects | C90: 288.0070727 | D90: 121.5308949 | E90: 30 | F90: 439.5379676 | H90: 1750 | I90: 0.27 | J90: 472.5 | K90: 2 | L90: 184.4929273 | M90: 62.96203237 | N90: 32.96203237 | O90: 4 | P90: 10 | Q90: 1066.692862 | R90: 1627.918399 | S90: 0.9302390849 | V90: 325.296 | W90: 1.129472262 | X90: 0.7400862359 | Z90: 0.1645754701 | AA90: 0.2511645529
B91: Peas | C91: 147.0575738 | D91: 116.3615625 | E91: 30 | F91: 293.4191363 | H91: 40 | I91: 8 | J91: 320 | L91: 172.9424262 | M91: 56.58086368 | N91: 26.58086368 | O91: 5 | P91: 12 | Q91: 18.38219673 | R91: 36.67739204 | S91: 0.916934801 | V91: 199.3184 | W91: 1.355376638 | X91: 0.6792958445 | Z91: 3.676439346 | AA91: 7.335478408
B92: Canola | C92: 256.9769519 | D92: 116.3615625 | E92: 30 | F92: 403.3385144 | H92: 40 | I92: 10.5 | J92: 420 | K92: 11 | L92: 163.0230481 | M92: 46.66148564 | N92: 16.66148564 | O92: 6 | P92: 1 | Q92: 24.47399542 | R92: 38.41319184 | S92: 0.9603297961 | V92: 259.9784 | W92: 1.011679834 | X92: 0.6445662657 | Z92: 6.424423796 | AA92: 10.08346286
B93: Fall Rye | C93: 130.8029738 | D93: 117.66875 | E93: 30 | F93: 278.4717238 | H93: 50 | I93: 5.75 | J93: 287.5 | K93: 4 | L93: 156.6970262 | M93: 39.02827622 | N93: 9.028276216 | O93: 7 | P93: 13 | Q93: 22.74834327 | R93: 48.42986501 | S93: 0.9685973001 | V93: 221.4528 | W93: 1.693025729 | X93: 0.7952433985 | Z93: 2.616059476 | AA93: 5.569434476
B94: Wheat | C94: 201.358742 | D94: 118.3223438 | E94: 30 | F94: 349.6810857 | H94: 55 | I94: 6.5 | J94: 357.5 | K94: 7 | L94: 156.141258 | M94: 37.81891427 | N94: 7.818914272 | O94: 8 | P94: 2 | Q94: 30.978268 | R94: 53.79709011 | S94: 0.9781289111 | V94: 225.36 | W94: 1.119196504 | X94: 0.6444729475 | Z94: 3.661068036 | AA94: 6.357837922
B95: Soybeans | C95: 196.6640884 | D95: 115.7079688 | E95: 30 | F95: 342.3720572 | H95: 35 | I95: 10 | J95: 350 | K95: 6 | L95: 153.3359116 | M95: 37.6279428 | N95: 7.627942804 | O95: 9 | P95: 4 | Q95: 19.66640884 | R95: 34.23720572 | S95: 0.9782058777 | V95: 217.512 | W95: 1.10600772 | X95: 0.635308856 | Z95: 5.618973956 | AA95: 9.782058777
B96: Sunfl. Oil | C96: 233.3689786 | D96: 122.125071 | E96: 30 | F96: 385.4940496 | H96: 1850 | I96: 0.21 | J96: 388.5 | L96: 155.1310214 | M96: 33.00595039 | N96: 3.005950386 | O96: 10 | P96: 11 | Q96: 1111.28085 | R96: 1835.685951 | S96: 0.992262676 | V96: 253.008 | W96: 1.084154379 | X96: 0.6563214147 | Z96: 0.1261453938 | AA96: 0.208375162
B97: Hempseed | C97: 246.006282 | D97: 112.8410689 | E97: 30 | F97: 388.8473509 | H97: 575 | I97: 0.68 | J97: 391 | L97: 144.993718 | M97: 32.15264908 | N97: 2.152649079 | O97: 11 | P97: 17 | Q97: 361.7739442 | R97: 571.8343396 | S97: 0.9944945036 | V97: 264.384 | W97: 1.074704263 | X97: 0.6799171947 | Z97: 0.4278370122 | AA97: 0.6762562625
B98: Barley | C98: 182.8548374 | D98: 121.5903125 | E98: 30 | F98: 334.4451499 | H98: 80 | I98: 4 | J98: 320 | L98: 137.1451626 | M98: 15.55485013 | N98: -14.44514987 | O98: 12 | P98: 5 | Q98: 45.71370934 | R98: 83.61128747 | S98: 1.045141093 | V98: 185.7544 | W98: 1.015857183 | X98: 0.5554106557 | Z98: 2.285685467 | AA98: 4.180564373
B99: Oats | C99: 161.5336535 | D99: 124.2046875 | E99: 30 | F99: 315.738341 | H99: 100 | I99: 3 | J99: 300 | K99: 9 | L99: 138.4663465 | M99: 14.26165899 | N99: -15.73834101 | O99: 13 | P99: 6 | Q99: 53.84455117 | R99: 105.2461137 | S99: 1.052461137 | V99: 242.0928 | W99: 1.498714322 | X99: 0.7667513525 | Z99: 1.615336535 | AA99: 3.15738341
B100: Flax | C100: 166.8714591 | D100: 114.4007812 | E100: 30 | F100: 311.2722404 | H100: 25 | I100: 11.75 | J100: 293.75 | L100: 126.8785409 | M100: 12.4777596 | N100: -17.5222404 | O100: 14 | P100: 9 | Q100: 14.20182631 | R100: 26.4912545 | S100: 1.05965018 | V100: 207.2784 | W100: 1.242144109 | X100: 0.6659071163 | Z100: 6.674858366 | AA100: 12.45088962
B101: Canaryseed | C101: 162.6163774 | D101: 113.9339286 | E101: 30 | F101: 306.550306 | H101: 1200 | I101: 0.24 | J101: 288 | L101: 125.3836226 | M101: 11.44969401 | N101: -18.55030599 | O101: 15 | P101: 14 | Q101: 677.5682393 | R101: 1277.292942 | S101: 1.064410785 | V101: 231.936 | W101: 1.426277007 | X101: 0.7566001255 | Z101: 0.1355136479 | AA101: 0.2554585883
B102: Lentils | C102: 155.8989797 | D102: 113.5293229 | E102: 30 | F102: 299.4283026 | H102: 1100 | I102: 0.24 | J102: 264 | L102: 108.1010203 | M102: -5.42830259 | N102: -35.42830259 | O102: 16 | P102: 15 | Q102: 649.579082 | R102: 1247.617927 | S102: 1.134198116 | V102: 184.512 | W102: 1.183535648 | X102: 0.6162142937 | Z102: 0.1417263452 | AA102: 0.2722075478
B103: Buckwheat | C103: 142.9463646 | D103: 113.3550312 | E103: 30 | F103: 286.3013959 | H103: 17 | I103: 13 | J103: 221 | L103: 78.05363538 | M103: -35.30139587 | N103: -65.30139587 | O103: 17 | P103: 16 | Q103: 10.9958742 | R103: 22.0231843 | S103: 1.295481429 | V103: 164.6952 | W103: 1.152146824 | X103: 0.5752511248 | Z103: 8.408609684 | AA103: 16.84125858
A106: ORGANIC
C107: Brown Flax | D107: Green Peas | E107: Wheat | F107: Oats | G107: Hemp | H107: Spelt | I107: Soybeans | J107: Barley | K107: Fall Rye | L107: Win. Wheat | M107: Buckwheat | N107: Sunfl. Oil
A108: A. Operating Costs | C108: =C31 -> 217.7309142 | D108: =D31 -> 209.8348429 | E108: 216.991272 | F108: 194.5017494 | G108: 255.6594422 | H108: 182.2528905 | I108: 244.335319 | J108: 186.6796055 | K108: 187.9624623 | L108: 214.1488913 | M108: 210.7962713 | N108: 188.7989561
A109: B. Fixed Costs | C109: =C38 -> 83.51311979 | D109: =D38 -> 84.10135417 | E109: 86.06213542 | F109: 91.29088542 | G109: 82.82387547 | H109: 84.07521042 | I109: 83.83991667 | J109: 86.97716667 | K109: 85.40854167 | L109: 87.36932292 | M109: 83.31704167 | N109: 86.83456439
A110: C. Labour | C110: =C41 -> 64 | D110: =D41 -> 64 | E110: 64 | F110: 64 | G110: 64 | H110: 64 | I110: 64 | J110: 64 | K110: 64 | L110: 64 | M110: 64 | N110: 64
A111: Total Costs | C111: =C43 -> 365.244034 | D111: =D43 -> 357.9361971 | E111: 367.0534074 | F111: 349.7926348 | G111: 402.4833176 | H111: 330.3281009 | I111: 392.1752357 | J111: 337.6567722 | K111: 337.3710039 | L111: 365.5182142 | M111: 358.1133129 | N111: 339.6335205
B114: *****Re-sort Yellow rows based on column O ****** *****CHARTS & TABLES will AUTO update!! ****** | L114: ****sort on column p to reset to original listing **** | V114: RA #2
C115: A. Operating Costs | D115: B. Fixed Costs | E115: C. Labour | F115: Total Costs | H115: Yield | I115: $/unit | J115: Gross | L115: Margin Over Operating | M115: Margin Over Operating & Fixed | N115: Margin Over Total Costs | O115: Rank | Q115: B/E Operating Costs | R115: B/E Over Total Costs | V115: Insured 80% | W115: % of Op Cost | X115: % of Total Costs | Z115: B/E Operating Costs | AA115: B/E Over Total Costs
B116: Brown Flax | C116: 217.7309142 | D116: 83.51311979 | E116: 64 | F116: 365.244034 | H116: 15.5 | I116: 34 | J116: =SUM(H116*I116) -> 527 | K116: 11 | L116: =SUM(J116-C116) -> 309.2690858 | M116: =SUM(J116-(C116+D116)) -> 225.755966 | N116: =SUM(J116-F116) -> 161.755966 | O116: =RANK(N116,$N$116:$N$127) -> 5 | P116: 1 | Q116: =SUM(C116/I116) -> 6.403850417 | R116: =SUM(F116/I116) -> 10.74247159 | S116: =SUM(R116/H116) -> 0.6930626831 | V116: 195.52 | W116: =SUM(V116/C116) -> 0.8979891566 | X116: =SUM(V116/F116) -> 0.5353133297 | Z116: =SUM(C116/H116) -> 14.04715575 | AA116: =SUM(F116/H116) -> 23.56413122
B117: Green Peas | C117: 209.8348429 | D117: 84.10135417 | E117: 64 | F117: 357.9361971 | H117: 20 | I117: 15.38 | J117: 307.6 | K117: 7 | L117: 97.7651571 | M117: 13.66380293 | N117: -50.33619707 | O117: 11 | P117: 2 | Q117: 13.6433578 | R117: 23.27283466 | S117: 1.163641733 | V117: 100.16 | W117: 0.4773277813 | X117: 0.2798264071 | Z117: 10.49174215 | AA117: 17.89680985
B118: Wheat | C118: 216.991272 | D118: 86.06213542 | E118: 64 | F118: 367.0534074 | H118: 35 | I118: 18.86 | J118: 660.1 | K118: 10 | L118: 443.108728 | M118: 357.0465926 | N118: 293.0465926 | O118: 3 | P118: 3 | Q118: 11.50536967 | R118: 19.46200463 | S118: 0.5560572752 | V118: 170.78 | W118: 0.787036264 | X118: 0.465272891 | Z118: 6.199750627 | AA118: 10.48724021
B119: Oats | C119: 194.5017494 | D119: 91.29088542 | E119: 64 | F119: 349.7926348 | H119: 75 | I119: 7 | J119: 525 | K119: 6 | L119: 330.4982506 | M119: 239.2073652 | N119: 175.2073652 | O119: 4 | P119: 4 | Q119: 27.7859642 | R119: 49.97037641 | S119: 0.6662716854 | V119: 167.27 | W119: 0.8599922648 | X119: 0.4781976043 | Z119: 2.593356659 | AA119: 4.663901798
B120: Hemp | C120: 255.6594422 | D120: 82.82387547 | E120: 64 | F120: 402.4833176 | H120: 450 | I120: 1.55 | J120: 697.5 | L120: 441.8405578 | M120: 359.0166824 | N120: 295.0166824 | O120: 2 | P120: 5 | Q120: 164.9415756 | R120: 259.6666565 | S120: 0.5770370145 | V120: 244.8 | W120: 0.9575237978 | X120: 0.6082239668 | Z120: 0.5681320937 | AA120: 0.8944073725
B121: Spelt | C121: 182.2528905 | D121: 84.07521042 | E121: 64 | F121: 330.3281009 | H121: 19.8 | I121: 23 | J121: 455.4 | K121: 9 | L121: 273.1471095 | M121: 189.0718991 | N121: 125.0718991 | O121: 6 | P121: 6 | Q121: 7.924038718 | R121: 14.36209134 | S121: 0.7253581487 | V121: 0 | W121: 0 | X121: 0 | Z121: 9.20469144 | AA121: 16.68323742
B122: Soybeans | C122: 244.335319 | D122: 83.83991667 | E122: 64 | F122: 392.1752357 | H122: 18 | I122: 28.19 | J122: 507.42 | K122: 3 | L122: 263.084681 | M122: 179.2447643 | N122: 115.2447643 | O122: 7 | P122: 7 | Q122: 8.667446578 | R122: 13.91185653 | S122: 0.7728809186 | V122: 145.01 | W122: 0.5934876733 | X122: 0.3697581765 | Z122: 13.57418439 | AA122: 21.78751309
B123: Barley | C123: 186.6796055 | D123: 86.97716667 | E123: 64 | F123: 337.6567722 | H123: 42 | I123: 8.41 | J123: 353.22 | K123: 5 | L123: 166.5403945 | M123: 79.56322782 | N123: 15.56322782 | O123: 9 | P123: 8 | Q123: 22.19733716 | R123: 40.14943783 | S123: 0.955938996 | V123: 113.23 | W123: 0.6065472427 | X123: 0.3353405272 | Z123: 4.444752512 | AA123: 8.039446957
B124: Fall Rye | C124: 187.9624623 | D124: 85.40854167 | E124: 64 | F124: 337.3710039 | H124: 30 | I124: 10 | J124: 300 | L124: 112.0375377 | M124: 26.62899606 | N124: -37.37100394 | O124: 10 | P124: 9 | Q124: 18.79624623 | R124: 33.73710039 | S124: 1.124570013 | V124: 140.16 | W124: 0.7456808041 | X124: 0.4154476774 | Z124: 6.265415409 | AA124: 11.24570013
B125: Winter Wheat | C125: 214.1488913 | D125: 87.36932292 | E125: 64 | F125: 365.5182142 | H125: 45 | I125: 19 | J125: 855 | K125: 2 | L125: 640.8511087 | M125: 553.4817858 | N125: 489.4817858 | O125: 1 | P125: 10 | Q125: 11.27099428 | R125: 19.23780075 | S125: 0.4275066833 | V125: 177 | W125: 0.8265277439 | X125: 0.4842439942 | Z125: 4.758864252 | AA125: 8.122626983
B126: Buckwheat | C126: 210.7962713 | D126: 83.31704167 | E126: 64 | F126: 358.1133129 | H126: 14 | I126: 18 | J126: 252 | L126: 41.20372872 | M126: -42.11331295 | N126: -106.1133129 | O126: 12 | P126: 11 | Q126: 11.71090396 | R126: 19.89518405 | S126: 1.421084575 | V126: 141.46 | W126: 0.6710744888 | X126: 0.3950146361 | Z126: 15.05687652 | AA126: 25.57952235
B127: Sunfl. Oil | C127: 188.7989561 | D127: 86.83456439 | E127: 64 | F127: 339.6335205 | H127: 900 | I127: 0.5 | J127: 450 | L127: 261.2010439 | M127: 174.3664795 | N127: 110.3664795 | O127: 8 | P127: 12 | Q127: 377.5979123 | R127: 679.267041 | S127: 0.7547411567 | V127: 151.2 | W127: 0.8008518855 | X127: 0.4451857395 | Z127: 0.2097766179 | AA127: 0.3773705784

Sheet For PPT (HIDE) (hidden)
A1: Crop Production Costs 2017 Guidelines (Dollars Per Acre) | K1: Crop Production Costs 2017 Guidelines (Dollars Per Acre) | W1: ="Organic Crop Production Costs "&Introduction!AE11&" Guidelines (Dollars Per Acre)" -> Organic Crop Production Costs Guidelines (Dollars Per Acre)
E3: Winter | J3: Navy | L3: Sunflower | P3: Canary | R3: Buck- | S3: Hemp- | Y3: Brown | Z3: Green | AA3: HRS | AC3: Hemp | AD3: Spring | AE3: Soy- | AF3: Feed | AH3: Winter | AI3: Buck- | AJ3: Sunflower
C4: Canola | D4: Wheat | E4: Wheat | F4: Soybeans | G4: Barley | H4: Oats | I4: Corn | J4: Beans | K4: Flax | L4: Confects | M4: Oil | N4: Peas | O4: Fall Rye | P4: Seed | Q4: Lentils | R4: wheat | S4: seed | U4: Your Farm | Y4: Flax | Z4: Peas | AA4: Wheat | AB4: Oats | AC4: Oil | AD4: Spelt | AE4: beans | AF4: Barley | AG4: Fall Rye | AH4: Wheat | AI4: wheat | AJ4: Oil
A5: A. Operating Costs
B6: Seed & Treatment | C6: 60 | D6: 22 | E6: 20 | F6: 95.1 | G6: 15 | H6: 17.5 | I6: 81.2 | J6: 50 | K6: 22.8 | L6: 48.31 | M6: 38 | N6: 30.25 | O6: 10.5 | P6: 14.08 | Q6: 32.5 | R6: 25 | S6: 50
B7: Fertilizer | C7: 69.32396088 | D7: 52.37724452 | E7: 56.72444502 | F7: 13.25244003 | G7: 45.82130401 | H7: 41.47410352 | I7: 81.07420432 | J7: 48.03004402 | K7: 37.09176326 | L7: 45.82130401 | M7: 45.82130401 | N7: 11.04370002 | O7: 39.30050327 | P7: 41.47410352 | Q7: 11.04370002 | R7: 26.22376201 | S7: 48.03004402 | W7: A. Operating Costs
B8: Herbicide | C8: 13.81 | D8: 26.71 | E8: 13.08 | F8: 14.67 | G8: 23.75 | H8: 8.75 | I8: 18.67 | J8: 64.12 | K8: 18.63 | L8: 40.59 | M8: 24.91 | N8: 17.88 | O8: 6.75 | P8: 12.58 | Q8: 17.88 | R8: 5.63 | S8: 35.09 | X8: Seed & Treatment | Y8: 47.14 | Z8: 45.95 | AA8: 47.52 | AB8: 42 | AC8: 62.5 | AD8: 52.5 | AE8: 75.6 | AF8: 27.5 | AG8: 25 | AH8: 39 | AI8: 35.75 | AJ8: 16
B9: Fungicide | C9: 34 | D9: 21.71 | E9: 21.71 | F9: 0 | G9: 18.9 | H9: 10.88 | I9: 0 | J9: 43.25 | K9: 14.63 | L9: 28.25 | M9: 28.25 | N9: 14.63 | O9: 0 | P9: 8.41 | Q9: 14.63 | R9: 0 | S9: 0 | X9: Fertility | Y9: 75.77769097 | Z9: 75.77769097 | AA9: 75.77769097 | AB9: 75.77769097 | AC9: 75.77769097 | AD9: 75.77769097 | AE9: 75.77769097 | AF9: 75.77769097 | AG9: 75.77769097 | AH9: 75.77769097 | AI9: 75.77769097 | AJ9: 75.77769097
B10: Insecticide | C10: 4.32 | D10: 0 | E10: 0 | F10: 0 | G10: 0 | H10: 0 | I10: 0 | J10: 0 | K10: 0 | L10: 13.32 | M10: 0 | N10: 0 | O10: 0 | P10: 0 | Q10: 0 | R10: 0 | S10: 0 | X10: Compost | Y10: 12.225 | Z10: 12.225 | AA10: 12.225 | AB10: 12.225 | AC10: 12.225 | AD10: 12.225 | AE10: 12.225 | AF10: 12.225 | AG10: 12.225 | AH10: 12.225 | AI10: 12.225 | AJ10: 12.225
B11: Fuel | C11: 18.70405853 | D11: 20.05070547 | E11: 21.71023474 | F11: 17.33515267 | G11: 21.66611705 | H11: 23.32564632 | I11: 24.06717558 | J11: 18.37539949 | K11: 17.73991158 | L11: 19.91835242 | M11: 20.25025827 | N11: 15.75455853 | O11: 16.55032316 | P11: 17.09837023 | Q11: 15.80596438 | R11: 14.16909987 | S11: 17.31895865 | X11: Herbicide | Y11: 0 | Z11: 0 | AA11: 0 | AB11: 0 | AC11: 0 | AD11: 0 | AE11: 0 | AF11: 0 | AG11: 0 | AH11: 0 | AI11: 0 | AJ11: 0
B12: Machinery Operating | C12: 10 | D12: 10 | E12: 10 | F12: 10 | G12: 10 | H12: 10 | I12: 10 | J12: 10 | K12: 10 | L12: 10 | M12: 10 | N12: 10 | O12: 10 | P12: 10 | Q12: 10 | R12: 10 | S12: 10 | X12: Fungicide | Y12: 0 | Z12: 0 | AA12: 0 | AB12: 0 | AC12: 0 | AD12: 0 | AE12: 0 | AF12: 0 | AG12: 0 | AH12: 0 | AI12: 0 | AJ12: 0
B13: Machinery Lease | C13: 3.6 | D13: 3.6 | E13: 3.6 | F13: 3.6 | G13: 3.6 | H13: 3.6 | I13: 3.6 | J13: 3.6 | K13: 3.6 | L13: 3.6 | M13: 3.6 | N13: 3.6 | O13: 3.6 | P13: 3.6 | Q13: 3.6 | R13: 3.6 | S13: 3.6 | X13: Insecticide | Y13: 0 | Z13: 0 | AA13: 0 | AB13: 0 | AC13: 0 | AD13: 0 | AE13: 0 | AF13: 0 | AG13: 0 | AH13: 0 | AI13: 0 | AJ13: 0
B14: Rental and Custom | C14: 0 | D14: 0 | E14: 0 | F14: 0 | G14: 0 | H14: 0 | I14: 0 | J14: 0 | K14: 0 | L14: 0 | M14: 0 | N14: 0 | O14: 0 | P14: 0 | Q14: 0 | R14: 0 | S14: 0 | X14: Fuel | Y14: 17.50831002 | Z14: 17.55223874 | AA14: 17.69866779 | AB14: 18.13795495 | AC14: 17.47236834 | AD14: 17.55028635 | AE14: 17.50342905 | AF14: 17.76700135 | AG14: 17.62057229 | AH14: 17.79628716 | AI14: 17.50342905 | AJ14: 17.75635196
B15: Crop Insurance | C15: 8.1075 | D15: 7.3075 | E15: 7.435 | F15: 13.815 | G15: 9.4575 | H15: 8.3 | I15: 26.94 | J15: 19.7175 | K15: 9.825 | L15: 25.1875 | M15: 15.11 | N15: 12.79 | O15: 9.8675 | P15: 19.4875 | Q15: 26.85 | R15: 21.5425 | S15: 27.7225 | X15: Machinery Operating | Y15: 10 | Z15: 10 | AA15: 10 | AB15: 10 | AC15: 10 | AD15: 10 | AE15: 10 | AF15: 10 | AG15: 10 | AH15: 10 | AI15: 10 | AJ15: 10
B16: Hail Insurance | C16: 6.84 | D16: 4.56 | E16: 4.56 | F16: 6.84 | G16: 4.56 | H16: 4.56 | I16: 4.56 | J16: 7.98 | K16: 4.56 | L16: 4.56 | M16: 4.56 | N16: 9.12 | O16: 4.56 | P16: 4.56 | Q16: 6.84 | R16: 11.4 | S16: 9.12 | X16: Machinery Lease | Y16: 0 | Z16: 0 | AA16: 0 | AB16: 0 | AC16: 0 | AD16: 0 | AE16: 0 | AF16: 0 | AG16: 0 | AH16: 0 | AI16: 0 | AJ16: 0
B17: Other Costs | C17: 7.75 | D17: 7.75 | E17: 7.75 | F17: 7.75 | G17: 7.75 | H17: 7.75 | I17: 7.75 | J17: 7.75 | K17: 7.75 | L17: 7.75 | M17: 7.75 | N17: 7.75 | O17: 7.75 | P17: 7.75 | Q17: 7.75 | R17: 7.75 | S17: 7.75 | X17: Rental and Custom | Y17: 0 | Z17: 0 | AA17: 0 | AB17: 0 | AC17: 0 | AD17: 0 | AE17: 0 | AF17: 0 | AG17: 0 | AH17: 0 | AI17: 0 | AJ17: 0
B18: Land Taxes | C18: 12 | D18: 12 | E18: 12 | F18: 12 | G18: 12 | H18: 12 | I18: 12 | J18: 12 | K18: 12 | L18: 12 | M18: 12 | N18: 12 | O18: 12 | P18: 12 | Q18: 12 | R18: 12 | S18: 12 | X18: Crop Insurance | Y18: 23.53 | Z18: 12.77 | AA18: 18.13 | AB18: 13.94 | AC18: 27.81 | AD18: 0 | AE18: 14.41 | AF18: 7.69 | AG18: 11.48 | AH18: 20.69 | AI18: 21.59 | AJ18: 15.17
B19: Drying Costs | C19: 0 | D19: 0 | E19: 0 | F19: 0 | G19: 0 | H19: 0 | I19: 35 | J19: 0 | K19: 0 | L19: 10 | M19: 10 | N19: 0 | O19: 0 | P19: 0 | Q19: 0 | R19: 0 | S19: 20 | X19: Hail Insurance | Y19: 4.64 | Z19: 9.28 | AA19: 4.64 | AB19: 4.64 | AC19: 9.28 | AD19: 0 | AE19: 6.96 | AF19: 4.64 | AG19: 4.64 | AH19: 4.64 | AI19: 11.6 | AJ19: 4.64
B20: Interest on Operating | C20: 5.59 | D20: 4.23 | E20: 4.02 | F20: 4.37 | G20: 3.88 | H20: 3.33 | I20: 6.86 | J20: 6.41 | K20: 3.57 | L20: 6.06 | M20: 4.96 | N20: 3.26 | O20: 2.72 | P20: 3.4 | Q20: 3.58 | R20: 3.09 | S20: 5.41 | X20: Other Costs | Y20: 7.75 | Z20: 7.75 | AA20: 7.75 | AB20: 7.75 | AC20: 7.75 | AD20: 7.75 | AE20: 7.75 | AF20: 7.75 | AG20: 7.75 | AH20: 7.75 | AI20: 7.75 | AJ20: 7.75
B21: Total Operating | C21: 254.0455194 | D21: 192.29545 | E21: 182.5896798 | F21: 198.7325927 | G21: 176.3849211 | H21: 151.4697498 | I21: 311.7213799 | J21: 291.2329435 | K21: 162.1966748 | L21: 275.3671564 | M21: 225.2115623 | N21: 148.0782585 | O21: 123.5983264 | P21: 154.4399737 | Q21: 162.4796644 | R21: 140.4053619 | S21: 246.0415027 | X21: Certification Cost | Y21: 3.333333333 | Z21: 3.333333333 | AA21: 3.333333333 | AB21: 3.333333333 | AC21: 3.333333333 | AD21: 3.333333333 | AE21: 3.333333333 | AF21: 3.333333333 | AG21: 3.333333333 | AH21: 3.333333333 | AI21: 3.333333333 | AJ21: 3.333333333
X22: Land Taxes | Y22: 12 | Z22: 12 | AA22: 12 | AB22: 12 | AC22: 12 | AD22: 12 | AE22: 12 | AF22: 12 | AG22: 12 | AH22: 12 | AI22: 12 | AJ22: 12
A23: B. Fixed Costs | X23: Drying Costs | Y23: - | Z23: - | AA23: - | AB23: - | AC23: 20 | AD23: - | AE23: - | AF23: - | AG23: - | AH23: - | AI23: - | AJ23: 10
B24: Land Investment Costs | C24: 54 | D24: 54 | E24: 54 | F24: 54 | G24: 54 | H24: 54 | I24: 54 | J24: 54 | K24: 54 | L24: 54 | M24: 54 | N24: 54 | O24: 54 | P24: 54 | Q24: 54 | R24: 54 | S24: 54 | X24: Interest on Operating | Y24: 4.81 | Z24: 4.65 | AA24: 4.7 | AB24: 4.5 | AC24: 5.81 | AD24: 4.3 | AE24: 5.3 | AF24: 4.02 | AG24: 4.05 | AH24: 4.57 | AI24: 4.67 | AJ24: 4.15
B25: Machinery Depreciation | C25: 49.65625 | D25: 49.65625 | E25: 49.65625 | F25: 49.65625 | G25: 49.65625 | H25: 49.65625 | I25: 49.65625 | J25: 49.65625 | K25: 49.65625 | L25: 49.65625 | M25: 49.65625 | N25: 49.65625 | O25: 49.65625 | P25: 49.65625 | Q25: 49.65625 | R25: 49.65625 | S25: 49.65625 | X25: Total Operating | Y25: 218.7143343 | Z25: 211.288263 | AA25: 213.7746921 | AB25: 204.3039793 | AC25: 263.9583927 | AD25: 195.4363107 | AE25: 240.8594534 | AF25: 182.7030257 | AG25: 183.8765966 | AH25: 207.7823115 | AI25: 212.1994534 | AJ25: 188.8023763
B26: Machinery Investment | C26: 11.17265625 | D26: 11.17265625 | E26: 11.17265625 | F26: 11.17265625 | G26: 11.17265625 | H26: 11.17265625 | I26: 11.17265625 | J26: 11.17265625 | K26: 11.17265625 | L26: 11.17265625 | M26: 11.17265625 | N26: 11.17265625 | O26: 11.17265625 | P26: 11.17265625 | Q26: 11.17265625 | R26: 11.17265625 | S26: 11.17265625
B27: Storage Costs | C27: 5.335875 | D27: 7.336828125 | E27: 10.00476563 | F27: 4.8022875 | G27: 10.67175 | H27: 13.3396875 | I27: 16.007625 | J27: 3.779578125 | K27: 3.334921875 | L27: 10.61111506 | M27: 11.21746449 | N27: 5.335875 | O27: 6.66984375 | P27: 2.858504464 | Q27: 2.445609375 | R27: 2.267746875 | S27: 1.743254616 | W27: B. Fixed Costs
B28: Total Fixed | C28: 120.1647813 | D28: 122.1657344 | E28: 124.8336719 | F28: 119.6311938 | G28: 125.5006563 | H28: 128.1685938 | I28: 130.8365313 | J28: 118.6084844 | K28: 118.1638281 | L28: 125.4400213 | M28: 126.0463707 | N28: 120.1647813 | O28: 121.49875 | P28: 117.6874107 | Q28: 117.2745156 | R28: 117.0966531 | S28: 116.5721609 | X28: Land Investment Costs | Y28: 54 | Z28: 54 | AA28: 54 | AB28: 54 | AC28: 54 | AD28: 54 | AE28: 54 | AF28: 54 | AG28: 54 | AH28: 54 | AI28: 54 | AJ28: 54
B29: Total Operating & Fixed | C29: 374.2103007 | D29: 314.4611844 | E29: 307.4233516 | F29: 318.3637865 | G29: 301.8855773 | H29: 279.6383436 | I29: 442.5579111 | J29: 409.8414279 | K29: 280.360503 | L29: 400.8071777 | M29: 351.257933 | N29: 268.2430398 | O29: 245.0970764 | P29: 272.1273845 | Q29: 279.75418 | R29: 257.502015 | S29: 362.6136635 | X29: Machinery Depreciation | Y29: 22.18958333 | Z29: 22.18958333 | AA29: 22.18958333 | AB29: 22.18958333 | AC29: 22.18958333 | AD29: 22.18958333 | AE29: 22.18958333 | AF29: 22.18958333 | AG29: 22.18958333 | AH29: 22.18958333 | AI29: 22.18958333 | AJ29: 22.18958333
X30: Machinery Investment | Y30: 4.99265625 | Z30: 4.99265625 | AA30: 4.99265625 | AB30: 4.99265625 | AC30: 4.99265625 | AD30: 4.99265625 | AE30: 4.99265625 | AF30: 4.99265625 | AG30: 4.99265625 | AH30: 4.99265625 | AI30: 4.99265625 | AJ30: 4.99265625
A31: C. Labour | C31: 30 | D31: 30 | E31: 30 | F31: 30 | G31: 30 | H31: 30 | I31: 30 | J31: 30 | K31: 30 | L31: 30 | M31: 30 | N31: 30 | O31: 30 | P31: 30 | Q31: 30 | R31: 30 | S31: 30 | X31: Storage Costs | Y31: 1.978720313 | Z31: 2.5531875 | AA31: 4.468078125 | AB31: 10.21275 | AC31: 1.508701705 | AD31: 2.527655625 | AE31: 1.914890625 | AF31: 5.36169375 | AG31: 3.446803125 | AH31: 5.744671875 | AI31: 1.914890625 | AJ31: 5.222428977
X32: Total Fixed | Y32: 83.1609599 | Z32: 83.73542708 | AA32: 85.65031771 | AB32: 91.39498958 | AC32: 82.69094129 | AD32: 83.70989521 | AE32: 83.09713021 | AF32: 86.54393333 | AG32: 84.62904271 | AH32: 86.92691146 | AI32: 83.09713021 | AJ32: 86.40466856
A33: Total Costs | C33: 404.2103007 | D33: 344.4611844 | E33: 337.4233516 | F33: 348.3637865 | G33: 331.8855773 | H33: 309.6383436 | I33: 472.5579111 | J33: 439.8414279 | K33: 310.360503 | L33: 430.8071777 | M33: 381.257933 | N33: 298.2430398 | O33: 275.0970764 | P33: 302.1273845 | Q33: 309.75418 | R33: 287.502015 | S33: 392.6136635 | X33: Total Operating & Fixed | Y33: 301.8752942 | Z33: 295.0236901 | AA33: 299.4250098 | AB33: 295.6989688 | AC33: 346.6493339 | AD33: 279.1462059 | AE33: 323.9565836 | AF33: 269.246959 | AG33: 268.5056393 | AH33: 294.7092229 | AI33: 295.2965836 | AJ33: 275.2070448
C35: Profitability Analysis | J35: Profitability Analysis | W35: C. Labour | Y35: 64 | Z35: 64 | AA35: 64 | AB35: 64 | AC35: 64 | AD35: 64 | AE35: 64 | AF35: 64 | AG35: 64 | AH35: 64 | AI35: 64 | AJ35: 64
A36: Estimated Farmgate
B37: Market Price $ per unit | C37: 10.75 | D37: 6.25 | E37: 5 | F37: 11.5 | G37: 3.5 | H37: 3.2 | I37: 4.25 | J37: 0.35 | K37: 12.5 | L37: 0.27 | M37: 0.21 | N37: 7 | O37: 5.5 | P37: 0.24 | Q37: 0.24 | R37: 13 | S37: 0.68 | W37: Total Costs | Y37: 365.8752942 | Z37: 359.0236901 | AA37: 363.4250098 | AB37: 359.6989688 | AC37: 410.6493339 | AD37: 343.1462059 | AE37: 387.9565836 | AF37: 333.246959 | AG37: 332.5056393 | AH37: 358.7092229 | AI37: 359.2965836 | AJ37: 339.2070448
B38: Premium $ per unit | C38: 0 | D38: 0 | E38: 0 | F38: 0 | G38: 0 | H38: 0 | I38: 0 | J38: 0 | K38: 0 | L38: 0 | M38: 0 | N38: 0 | O38: 0 | P38: 0 | Q38: 0 | R38: 0 | S38: 0
B39: Yield per acre (bu or lb.) | C39: 40 | D39: 55 | E39: 75 | F39: 36 | G39: 80 | H39: 100 | I39: 120 | J39: 1700 | K39: 25 | L39: 1750 | M39: 1850 | N39: 40 | O39: 50 | P39: 1200 | Q39: 1100 | R39: 17 | S39: 575 | Y39: Profitability Analysis
B40: Unit type | C40: bu | D40: bu | E40: bu | F40: bu | G40: bu | H40: bu | I40: bu | J40: lb | K40: bu | L40: lb | M40: lb | N40: bu | O40: bu | P40: lb | Q40: lb | R40: bu | S40: lb | W40: Estimated Farmgate
B41: Gross Revenue / acre | C41: 430 | D41: 343.75 | E41: 375 | F41: 414 | G41: 280 | H41: 320 | I41: 510 | J41: 595 | K41: 312.5 | L41: 472.5 | M41: 388.5 | N41: 280 | O41: 275 | P41: 288 | Q41: 264 | R41: 221 | S41: 391 | X41: Price $ per unit | Y41: 35 | Z41: 15.38 | AA41: 17.5 | AB41: 6.5 | AC41: 1.75 | AD41: 18 | AE41: 28.19 | AF41: 7 | AG41: 8.5 | AH41: 15.5 | AI41: 18 | AJ41: 0.5
B42: Revenue Ranking | C42: 4 | D42: 9 | E42: 8 | F42: 5 | G42: 13 | H42: 10 | I42: 2 | J42: 1 | K42: 11 | L42: 3 | M42: 7 | N42: 13 | O42: 15 | P42: 12 | Q42: 16 | R42: 17 | S42: 6 | X42: Yield per acre (bu or lb.) | Y42: 15.5 | Z42: 20 | AA42: 35 | AB42: 80 | AC42: 520 | AD42: 19.8 | AE42: 15 | AF42: 42 | AG42: 27 | AH42: 45 | AI42: 15 | AJ42: 900
X43: Unit type | Y43: bu | Z43: bu | AA43: bu | AB43: bu | AC43: lb | AD43: bu | AE43: bu | AF43: bu | AG43: bu | AH43: bu | AI43: bu | AJ43: lb
B44: Operating Expense Ratio | C44: 0.5908035335 | D44: 0.5594049454 | E44: 0.4869058127 | F44: 0.4800304172 | G44: 0.6299461467 | H44: 0.4733429682 | I44: 0.611218392 | J44: 0.489467132 | K44: 0.5190293595 | L44: 0.5827876327 | M44: 0.579695141 | N44: 0.5288509234 | O44: 0.4494484597 | P44: 0.5362499088 | Q44: 0.6154532742 | R44: 0.6353183796 | S44: 0.6292621552 | X44: Gross Revenue / acre | Y44: 542.5 | Z44: 307.6 | AA44: 612.5 | AB44: 520 | AC44: 910 | AD44: 356.4 | AE44: 422.85 | AF44: 294 | AG44: 229.5 | AH44: 697.5 | AI44: 270 | AJ44: 450
X45: Revenue Ranking | Y45: 4 | Z45: 9 | AA45: 3 | AB45: 5 | AC45: 1 | AD45: 8 | AE45: 7 | AF45: 10 | AG45: 12 | AH45: 2 | AI45: 11 | AJ45: 6
A46: Marginal Returns
B47: Over Operating Costs | C47: 175.9544806 | D47: 151.45455 | E47: 192.4103202 | F47: 215.2674073 | G47: 103.6150789 | H47: 168.5302502 | I47: 198.2786201 | J47: 303.7670565 | K47: 150.3033252 | L47: 197.1328436 | M47: 163.2884377 | N47: 131.9217415 | O47: 151.4016736 | P47: 133.5600263 | Q47: 101.5203356 | R47: 80.59463811 | S47: 144.9584973 | X47: Operating Expense Ratio | Y47: 0.4031600633 | Z47: 0.6868929228 | AA47: 0.3490199055 | AB47: 0.3928922678 | AC47: 0.2900641677 | AD47: 0.5483622633 | AE47: 0.5696096804 | AF47: 0.6214388628 | AG47: 0.8012052139 | AH47: 0.297895787 | AI47: 0.7859239013 | AJ47: 0.4195608361
B48: Over Operating & Fixed | C48: 55.78969935 | D48: 29.28881563 | E48: 67.57664837 | F48: 95.63621355 | G48: -21.88557732 | H48: 40.36165642 | I48: 67.44208885 | J48: 185.1585721 | K48: 32.13949703 | L48: 71.69282226 | M48: 37.24206697 | N48: 11.7569602 | O48: 29.90292358 | P48: 15.87261554 | Q48: -15.75418003 | R48: -36.50201501 | S48: 28.38633646
B49: Over Total Costs (Net Profit) | C49: 25.78969935 | D49: -0.7111843665 | E49: 37.57664837 | F49: 65.63621355 | G49: -51.88557732 | H49: 10.36165642 | I49: 37.44208885 | J49: 155.1585721 | K49: 2.139497035 | L49: 41.69282226 | M49: 7.242066973 | N49: -18.2430398 | O49: -0.0970764238 | P49: -14.12738446 | Q49: -45.75418003 | R49: -66.50201501 | S49: -1.613663538 | W49: Marginal Returns
B50: Profitability Ranking | C50: 6 | D50: 11 | E50: 4 | F50: 2 | G50: 16 | H50: 7 | I50: 5 | J50: 1 | K50: 9 | L50: 3 | M50: 8 | N50: 14 | O50: 10 | P50: 13 | Q50: 15 | R50: 17 | S50: 12 | X50: Over Operating Costs | Y50: 323.7856657 | Z50: 96.31173696 | AA50: 398.7253079 | AB50: 315.6960207 | AC50: 646.0416073 | AD50: 160.9636893 | AE50: 181.9905466 | AF50: 111.2969743 | AG50: 45.6234034 | AH50: 489.7176885 | AI50: 57.80054664 | AJ50: 261.1976237
X51: Over Operating & Fixed Costs | Y51: 240.6247058 | Z51: 12.57630987 | AA51: 313.0749902 | AB51: 224.3010312 | AC51: 563.3506661 | AD51: 77.25379414 | AE51: 98.89341643 | AF51: 24.75304101 | AG51: -39.00563931 | AH51: 402.7907771 | AI51: -25.29658357 | AJ51: 174.7929552
C52: Breakeven Analysis | J52: Breakeven Analysis | X52: Over Total Costs (Net Profit) | Y52: 176.6247058 | Z52: -51.42369013 | AA52: 249.0749902 | AB52: 160.3010312 | AC52: 499.3506661 | AD52: 13.25379414 | AE52: 34.89341643 | AF52: -39.24695899 | AG52: -103.0056393 | AH52: 338.7907771 | AI52: -89.29658357 | AJ52: 110.7929552
A53: Breakeven Price Per Unit | X53: Profitability Ranking | Y53: 4 | Z53: 10 | AA53: 3 | AB53: 5 | AC53: 1 | AD53: 8 | AE53: 7 | AF53: 9 | AG53: 12 | AH53: 2 | AI53: 11 | AJ53: 6
B54: Operating Costs | C54: 6.351137985 | D54: 3.496280909 | E54: 2.434529063 | F54: 5.520349797 | G54: 2.204811513 | H54: 1.514697498 | I54: 2.597678166 | J54: 0.1713134962 | K54: 6.487866994 | L54: 0.1573526608 | M54: 0.1217359796 | N54: 3.701956464 | O54: 2.471966528 | P54: 0.1286999781 | Q54: 0.1477087858 | R54: 8.259138935 | S54: 0.4278982655 | Y54: Breakeven Analysis
B55: Operating & Fixed Costs | C55: 9.355257516 | D55: 5.717476079 | E55: 4.098978022 | F55: 8.843438513 | G55: 3.773569716 | H55: 2.796383436 | I55: 3.687982593 | J55: 0.2410831929 | K55: 11.21442012 | L55: 0.229032673 | M55: 0.189869153 | N55: 6.706075995 | O55: 4.901941528 | P55: 0.2267728204 | Q55: 0.2543219818 | R55: 15.14717735 | S55: 0.6306324583 | W55: Breakeven Price Per Unit
B56: Total Costs | C56: 10.10525752 | D56: 6.262930625 | E56: 4.498978022 | F56: 9.676771846 | G56: 4.148569716 | H56: 3.096383436 | I56: 3.937982593 | J56: 0.2587302517 | K56: 12.41442012 | L56: 0.2461755301 | M56: 0.2060853692 | N56: 7.456075995 | O56: 5.501941528 | P56: 0.2517728204 | Q56: 0.2815947091 | R56: 16.91188324 | S56: 0.6828063714 | X56: Operating Costs | Y56: 14.11060221 | Z56: 10.56441315 | AA56: 6.107848346 | AB56: 2.553799741 | AC56: 0.5076122936 | AD56: 9.87052074 | AE56: 16.05729689 | AF56: 4.350072039 | AG56: 6.810244319 | AH56: 4.617384699 | AI56: 14.14663022 | AJ56: 0.2097804181
X57: Operating & Fixed Costs | Y57: 19.47582543 | Z57: 14.75118451 | AA57: 8.55500028 | AB57: 3.69623711 | AC57: 0.6666333345 | AD57: 14.09829323 | AE57: 21.59710557 | AF57: 6.410641881 | AG57: 9.944653308 | AH57: 6.549093843 | AI57: 19.6864389 | AJ57: 0.3057856054
A58: Breakeven Yield (Bu or lb.) | X58: Total Costs | Y58: 23.60485769 | Z58: 17.95118451 | AA58: 10.38357171 | AB58: 4.49623711 | AC58: 0.7897102576 | AD58: 17.33061646 | AE58: 25.86377224 | AF58: 7.934451404 | AG58: 12.31502368 | AH58: 7.971316065 | AI58: 23.95310557 | AJ58: 0.3768967165
B59: Operating Costs | C59: 23.6 | D59: 30.8 | E59: 36.5 | F59: 17.3 | G59: 50.4 | H59: 47.3 | I59: 73.3 | J59: 832 | K59: 13 | L59: 1020 | M59: 1072 | N59: 21.2 | O59: 22.5 | P59: 643 | Q59: 677 | R59: 10.8 | S59: 362
B60: Operating & Fixed Costs | C60: 34.8 | D60: 50.3 | E60: 61.5 | F60: 27.7 | G60: 86.3 | H60: 87.4 | I60: 104.1 | J60: 1171 | K60: 22.4 | L60: 1484.5 | M60: 1672.7 | N60: 38.3 | O60: 44.6 | P60: 1133.9 | Q60: 1165.6 | R60: 19.8 | S60: 533.3 | W60: Breakeven Yield (Bu or lb.)
B61: Total Costs | C61: 37.6 | D61: 55.1 | E61: 67.5 | F61: 30.3 | G61: 94.8 | H61: 96.8 | I61: 111.2 | J61: 1257 | K61: 24.8 | L61: 1596 | M61: 1816 | N61: 42.6 | O61: 50 | P61: 1259 | Q61: 1291 | R61: 22.1 | S61: 577 | X61: Operating Costs | Y61: 6.248980981 | Z61: 13.73785846 | AA61: 12.21569669 | AB61: 31.43138142 | AC61: 150.8333672 | AD61: 10.85757281 | AE61: 8.544145206 | AF61: 26.10043224 | AG61: 21.63254078 | AH61: 13.40531042 | AI61: 11.78885852 | AJ61: 377.6047525
X62: Operating & Fixed Costs | Y62: 8.625008406 | Z62: 19.18229455 | AA62: 17.11000056 | AB62: 45.49214905 | AC62: 198.0853337 | AD62: 15.50812255 | AE62: 11.49189725 | AF62: 38.46385128 | AG62: 31.58889874 | AH62: 19.01349825 | AI62: 16.40536575 | AJ62: 550.4140897
A63: Breakeven Yield Risk Ratio | C63: 1.063829787 | D63: 0.998185118 | E63: 1.111111111 | F63: 1.188118812 | G63: 0.8438818565 | H63: 1.033057851 | I63: 1.079136691 | J63: 1.352426412 | K63: 1.008064516 | L63: 1.096491228 | M63: 1.018722467 | N63: 0.9389671362 | O63: 1 | P63: 0.9531374106 | Q63: 0.8520526723 | R63: 0.7692307692 | S63: 0.9965337955 | X63: Total Costs | Y63: 10.45357983 | Z63: 23.34354292 | AA63: 20.76714342 | AB63: 55.3383029 | AC63: 234.6567623 | AD63: 19.0636781 | AE63: 13.76220587 | AF63: 47.60670843 | AG63: 39.11831051 | AH63: 23.14253051 | AI63: 19.96092131 | AJ63: 678.4140897
B64: (Yield per acre / BE Yield)
W65: Breakeven Yield Risk Ratio | Y65: 1.482745647 | Z65: 0.8567679751 | AA65: 1.685354567 | AB65: 1.445653296 | AC65: 2.21600262 | AD65: 1.038624335 | AE65: 1.08994155 | AF65: 0.8822286058 | AG65: 0.6902138577 | AH65: 1.944471888 | AI65: 0.7514683199 | AJ65: 1.326623391
B66: Note: This budget is only a guide and is not intended as an in depth study of the cost of production of this industry. Interpretation and utilization of this information is the responsibility of the user. | K66: Note: This budget is only a guide and is not intended as an in depth study of the cost of production of this industry. Interpretation and utilization of this information is the responsibility of the user. | X66: (Yield per acre / BE Yield)
W72: ****change to RA2 for slides****
A74: CONVENTIONAL | H74: Manitoba | W74: **** | Z74: ****
B75: *****Re-sort Yellow rows based on column O ****** *****CHARTS & TABLES will AUTO update!! ****** | L75: ****sort on column p to reset to original listing **** | W75: =H74 -> Manitoba | AC75: Costs Not Covered by AI
C76: A. Operating Costs | D76: B. Fixed Costs | E76: C. Labour | F76: Total Costs | H76: Yield | I76: $/unit | J76: Gross Revenue | K76: ORDERED | L76: Margin Over Operating | M76: Margin Over Operating & Fixed | N76: Margin Over Total Costs | O76: Rank | Q76: B/E Yield Over Operating Costs | R76: B/E Yield Over Op & Fixed Costs | S76: B/E Yield Over Total Costs | T76: % | W76: 80% Insured Value | X76: % of Op Cost | Y76: % of Total Costs | Z76: Premium $/Acre | AA76: Premium % of Insured Value | AC76: Operating Costs | AD76: Operating & Fixed Costs | AE76: Total Costs | AG76: B/E Operating Costs | AH76: B/E Op & Fixed Costs | AI76: B/E Over Total Costs | AK76: Margin Over Operating | AL76: Margin Over Operating & Fixed | AM76: Margin Over Total Costs
B77: Canola | C77: =$C$21 -> 254.0455194 | D77: =$C$28 -> 120.1647813 | E77: =$C$31 -> 30 | F77: =$C$33 -> 404.2103007 | H77: =HLOOKUP($H$74,$C$245:$S$262,2,FALSE) -> 40 | I77: 10.75 | J77: =SUM(H77*I77) -> 430 | K77: 1 | L77: =SUM(J77-C77) -> 175.9544806 | M77: =SUM(J77-(C77+D77)) -> 55.78969935 | N77: =SUM(J77-F77) -> 25.78969935 | O77: =RANK(N77,$N$77:$N$93) -> 5 | P77: 1 | Q77: =ROUND(C77/I77,1) -> 23.6 | R77: =ROUND((C77+D77)/I77,1) -> 34.8 | S77: =ROUND(F77/I77,1) -> 37.6 | T77: =SUM(H77/S77) -> 1.063829787 | W77: 301.4352 | X77: =SUM(W77/C77) -> 1.186540116 | Y77: =SUM(W77/F77) -> 0.7457385413 | Z77: 5.78 | AA77: =SUM(Z77/W77) -> 0.01917493378 | AC77: =IF(C77-W77<0,0,SUM(C77-W77)) -> 0 | AD77: =IF(C77+D77-W77<0,0,SUM(C77+D77-W77)-AC77) -> 72.77510065 | AE77: =IF(C77+D77+E77-W77<0,0,SUM(C77+D77+E77-W77)-AD77-AC77) -> 30 | AG77: =SUM(C77/H77) -> 6.351137985 | AH77: =SUM((C77+D77)/H77) -> 9.355257516 | AI77: =SUM(F77/H77) -> 10.10525752 | AK77: 113.6 | AL77: -6.56 | AM77: -36.56
B78: Winter Wheat | C78: =$E$21 -> 182.5896798 | D78: =$E$28 -> 124.8336719 | E78: =$E$31 -> 30 | F78: =$E$33 -> 337.4233516 | H78: =HLOOKUP($H$74,$C$245:$S$262,4,FALSE) -> 75 | I78: 5 | J78: 375 | K78: 2 | L78: 192.4103202 | M78: 67.57664837 | N78: 37.57664837 | O78: 4 | P78: 3 | Q78: 36.5 | R78: 61.5 | S78: 67.5 | T78: 1.111111111 | W78: 245.6784 | X78: 1.34552183 | Y78: 0.7281013564 | Z78: 7.16 | AA78: 0.02914379123 | AC78: 0 | AD78: 61.74495163 | AE78: 30 | AG78: 2.434529063 | AH78: 4.098978022 | AI78: 4.498978022 | AK78: 138.04 | AL78: 13.2 | AM78: -16.8
B79: Wheat | C79: =$D$21 -> 192.29545 | D79: =$D$28 -> 122.1657344 | E79: =$D$31 -> 30 | F79: =$D$33 -> 344.4611844 | H79: =HLOOKUP($H$74,$C$245:$S$262,3,FALSE) -> 55 | I79: 6.25 | J79: 343.75 | K79: 3 | L79: 151.45455 | M79: 29.28881563 | N79: -0.7111843665 | O79: 11 | P79: 2 | Q79: 30.8 | R79: 50.3 | S79: 55.1 | T79: 0.998185118 | W79: 225.36 | X79: 1.171946606 | Y79: 0.6542391719 | Z79: 5.5 | AA79: 0.02440539581 | AC79: 0 | AD79: 89.10118437 | AE79: 30 | AG79: 3.496280909 | AH79: 5.717476079 | AI79: 6.262930625 | AK79: 101.61 | AL79: -20.55 | AM79: -50.55
B80: Flax | C80: =$K$21 -> 162.1966748 | D80: =$K$28 -> 118.1638281 | E80: =$K$31 -> 30 | F80: =$K$33 -> 310.360503 | H80: =HLOOKUP($H$74,$C$245:$S$262,10,FALSE) -> 25 | I80: 12.5 | J80: 312.5 | K80: 4 | L80: 150.3033252 | M80: 32.13949703 | N80: 2.139497035 | O80: 9 | P80: 9 | Q80: 13 | R80: 22.4 | S80: 24.8 | T80: 1.008064516 | W80: 220.116 | X80: 1.357093172 | Y80: 0.7092268439 | Z80: 8.01 | AA80: 0.03638990351 | AC80: 0 | AD80: 60.24450297 | AE80: 30 | AG80: 6.487866994 | AH80: 11.21442012 | AI80: 12.41442012 | AK80: 104.99 | AL80: -13.17 | AM80: -43.17
B81: Oats | C81: =$H$21 -> 151.4697498 | D81: =$H$28 -> 128.1685938 | E81: =$H$31 -> 30 | F81: =$H$33 -> 309.6383436 | H81: =HLOOKUP($H$74,$C$245:$S$262,7,FALSE) -> 100 | I81: 3.2 | J81: 320 | K81: 5 | L81: 168.5302502 | M81: 40.36165642 | N81: 10.36165642 | O81: 7 | P81: 6 | Q81: 47.3 | R81: 87.4 | S81: 96.8 | T81: 1.033057851 | W81: 213.636 | X81: 1.410420234 | Y81: 0.6899533098 | Z81: 9.55 | AA81: 0.04470220375 | AC81: 0 | AD81: 66.00234358 | AE81: 30 | AG81: 1.514697498 | AH81: 2.796383436 | AI81: 3.096383436 | AK81: 124.33 | AL81: -6.51 | AM81: -36.51
B82: Soybeans | C82: =$F$21 -> 198.7325927 | D82: =$F$28 -> 119.6311938 | E82: =$F$31 -> 30 | F82: =$F$33 -> 348.3637865 | H82: =HLOOKUP($H$74,$C$245:$S$262,5,FALSE) -> 35 | I82: 11.5 | J82: 402.5 | K82: 6 | L82: 203.7674073 | M82: 84.13621355 | N82: 54.13621355 | O82: 2 | P82: 4 | Q82: 17.3 | R82: 27.7 | S82: 30.3 | T82: 1.155115512 | W82: 225.792 | X82: 1.136159887 | Y82: 0.6481500339 | Z82: 13.89 | AA82: 0.06151679422 | AC82: 0 | AD82: 92.57178645 | AE82: 30 | AG82: 5.678074077 | AH82: 9.096108184 | AI82: 9.953251041 | AK82: 155.24 | AL82: 35.61 | AM82: 5.61
B83: Hempseed | C83: =$S$21 -> 246.0415027 | D83: =$S$28 -> 116.5721609 | E83: =$S$31 -> 30 | F83: =$S$33 -> 392.6136635 | H83: =HLOOKUP($H$74,$C$245:$S$262,18,FALSE) -> 575 | I83: 0.68 | J83: 391 | L83: 144.9584973 | M83: 28.38633646 | N83: -1.613663538 | O83: 12 | P83: 17 | Q83: 361.8 | R83: 533.3 | S83: 577.4 | T83: 0.9958434361 | W83: 295.36 | X83: 1.200447879 | Y83: 0.752291699 | Z83: 27.29 | AA83: 0.09239572048 | AC83: 0 | AD83: 67.25366354 | AE83: 30 | AG83: 0.4278982655 | AH83: 0.6306324583 | AI83: 0.6828063714 | AK83: 88.26 | AL83: -28.31 | AM83: -58.31
B84: Barley | C84: =$G$21 -> 176.3849211 | D84: =$G$28 -> 125.5006563 | E84: =$G$31 -> 30 | F84: =$G$33 -> 331.8855773 | H84: =HLOOKUP($H$74,$C$245:$S$262,6,FALSE) -> 80 | I84: 3.5 | J84: 280 | L84: 103.6150789 | M84: -21.88557732 | N84: -51.88557732 | O84: 16 | P84: 5 | Q84: 50.4 | R84: 86.3 | S84: 94.8 | T84: 0.8438818565 | W84: 222.2352 | X84: 1.259944437 | Y84: 0.6696139127 | Z84: 7.69 | AA84: 0.03460297919 | AC84: 0 | AD84: 79.65037732 | AE84: 30 | AG84: 2.204811513 | AH84: 3.773569716 | AI84: 4.148569716 | AK84: 122.13 | AL84: -6.04 | AM84: -36.04
B85: Corn | C85: =$I$21 -> 311.7213799 | D85: =$I$28 -> 130.8365313 | E85: =$I$31 -> 30 | F85: =$I$33 -> 472.5579111 | H85: =HLOOKUP($H$74,$C$245:$S$262,8,FALSE) -> 115 | I85: 4.25 | J85: 488.75 | L85: 177.0286201 | M85: 46.19208885 | N85: 16.19208885 | O85: 6 | P85: 7 | Q85: 73.3 | R85: 104.1 | S85: 111.2 | T85: 1.034172662 | W85: 297.528 | X85: 0.9544677369 | Y85: 0.6296117216 | Z85: 26.64 | AA85: 0.0895377914 | AC85: 14.1933799 | AD85: 130.8365313 | AE85: 30 | AG85: 2.710620695 | AH85: 3.848329662 | AI85: 4.109199227 | AK85: 63.02 | AL85: -62.49 | AM85: -92.49
B86: Navy Beans | C86: =$J$21 -> 291.2329435 | D86: =$J$28 -> 118.6084844 | E86: =$J$31 -> 30 | F86: =$J$33 -> 439.8414279 | H86: =HLOOKUP($H$74,$C$245:$S$262,9,FALSE) -> 1850 | I86: 0.35 | J86: 647.5 | L86: 356.2670565 | M86: 237.6585721 | N86: 207.6585721 | O86: 1 | P86: 8 | Q86: 832.1 | R86: 1171 | S86: 1256.7 | T86: 1.472109493 | W86: 347.768 | X86: 1.19412315 | Y86: 0.7906667675 | Z86: 19.23 | AA86: 0.05529548435 | AC86: 0 | AD86: 62.07342789 | AE86: 30 | AG86: 0.1574232127 | AH86: 0.221535907 | AI86: 0.2377521232 | AK86: 217.49 | AL86: 98.88 | AM86: 68.88
B87: Sunf. Confects | C87: =$L$21 -> 275.3671564 | D87: =$L$28 -> 125.4400213 | E87: =$L$31 -> 30 | F87: =$L$33 -> 430.8071777 | H87: =HLOOKUP($H$74,$C$245:$S$262,11,FALSE) -> 1750 | I87: 0.27 | J87: 472.5 | L87: 197.1328436 | M87: 71.69282226 | N87: 41.69282226 | O87: 3 | P87: 10 | Q87: 1019.9 | R87: 1484.5 | S87: 1595.6 | T87: 1.096766107 | W87: 329.264 | X87: 1.195727204 | Y87: 0.7642955294 | Z87: 24.06 | AA87: 0.07307206375 | AC87: 0 | AD87: 71.54317774 | AE87: 30 | AG87: 0.1573526608 | AH87: 0.229032673 | AI87: 0.2461755301 | AK87: 128.62 | AL87: 3.18 | AM87: -26.82
B88: Sunfl. Oil | C88: =$M$21 -> 225.2115623 | D88: =$M$28 -> 126.0463707 | E88: =$M$31 -> 30 | F88: =$M$33 -> 381.257933 | H88: =HLOOKUP($H$74,$C$245:$S$262,12,FALSE) -> 1850 | I88: 0.21 | J88: 388.5 | L88: 163.2884377 | M88: 37.24206697 | N88: 7.242066973 | O88: 8 | P88: 11 | Q88: 1072.4 | R88: 1672.7 | S88: 1815.5 | T88: 1.019003029 | W88: 278.608 | X88: 1.237094566 | Y88: 0.7307598764 | Z88: 14.65 | AA88: 0.05258284041 | AC88: 0 | AD88: 72.64993303 | AE88: 30 | AG88: 0.1217359796 | AH88: 0.189869153 | AI88: 0.2060853692 | AK88: 106.96 | AL88: -19.09 | AM88: -49.09
B89: Peas | C89: =$N$21 -> 148.0782585 | D89: =$N$28 -> 120.1647813 | E89: =$N$31 -> 30 | F89: =$N$33 -> 298.2430398 | H89: =HLOOKUP($H$74,$C$245:$S$262,13,FALSE) -> 40 | I89: 7 | J89: 280 | L89: 131.9217415 | M89: 11.7569602 | N89: -18.2430398 | O89: 14 | P89: 12 | Q89: 21.2 | R89: 38.3 | S89: 42.6 | T89: 0.9389671362 | W89: 237.744 | X89: 1.605529416 | Y89: 0.7971485275 | Z89: 12.25 | AA89: 0.05152601117 | AC89: 0 | AD89: 30.4990398 | AE89: 30 | AG89: 3.701956464 | AH89: 6.706075995 | AI89: 7.456075995 | AK89: 91.32 | AL89: -28.84 | AM89: -58.84
B90: Fall Rye | C90: =$O$21 -> 123.5983264 | D90: =$O$28 -> 121.49875 | E90: =$O$31 -> 30 | F90: =$O$33 -> 275.0970764 | H90: =HLOOKUP($H$74,$C$245:$S$262,14,FALSE) -> 50 | I90: 5.5 | J90: 275 | L90: 151.4016736 | M90: 29.90292358 | N90: -0.0970764238 | O90: 10 | P90: 13 | Q90: 22.5 | R90: 44.6 | S90: 50 | T90: 1 | W90: 202.5816 | X90: 1.639031902 | Y90: 0.7364004105 | Z90: 10.96 | AA90: 0.05410165583 | AC90: 0 | AD90: 42.51547642 | AE90: 30 | AG90: 2.471966528 | AH90: 4.901941528 | AI90: 5.501941528 | AK90: 111.53 | AL90: -9.97 | AM90: -39.97
B91: Canaryseed | C91: =$P$21 -> 154.4399737 | D91: =$P$28 -> 117.6874107 | E91: =$P$31 -> 30 | F91: =$P$33 -> 302.1273845 | H91: =HLOOKUP($H$74,$C$245:$S$262,15,FALSE) -> 1200 | I91: 0.24 | J91: 288 | L91: 133.5600263 | M91: 15.87261554 | N91: -14.12738446 | O91: 13 | P91: 14 | Q91: 643.5 | R91: 1133.9 | S91: 1258.9 | T91: 0.9532131226 | W91: 264.16 | X91: 1.710438001 | Y91: 0.8743331905 | Z91: 18.97 | AA91: 0.07181253786 | AC91: 0 | AD91: 7.967384461 | AE91: 30 | AG91: 0.1286999781 | AH91: 0.2267728204 | AI91: 0.2517728204 | AK91: 91.8 | AL91: -25.89 | AM91: -55.89
B92: Lentils | C92: =$Q$21 -> 162.4796644 | D92: =$Q$28 -> 117.2745156 | E92: =$Q$31 -> 30 | F92: =$Q$33 -> 309.75418 | H92: =HLOOKUP($H$74,$C$245:$S$262,16,FALSE) -> 1100 | I92: 0.24 | J92: 264 | L92: 101.5203356 | M92: -15.75418003 | N92: -45.75418003 | O92: 15 | P92: 15 | Q92: 677 | R92: 1165.6 | S92: 1290.6 | T92: 0.8523167519 | W92: 250.112 | X92: 1.539343406 | Y92: 0.8074531875 | Z92: 26.41 | AA92: 0.1055926945 | AC92: 0 | AD92: 29.64218003 | AE92: 30 | AG92: 0.1477087858 | AH92: 0.2543219818 | AI92: 0.2815947091 | AK92: 63.24 | AL92: -54.03 | AM92: -84.03
B93: Buckwheat | C93: =$R$21 -> 140.4053619 | D93: =$R$28 -> 117.0966531 | E93: =$R$31 -> 30 | F93: =$R$33 -> 287.502015 | H93: =HLOOKUP($H$74,$C$245:$S$262,17,FALSE) -> 17 | I93: 13 | J93: 221 | L93: 80.59463811 | M93: -36.50201501 | N93: -66.50201501 | O93: 17 | P93: 16 | Q93: 10.8 | R93: 19.8 | S93: 22.1 | T93: 0.7692307692 | W93: 180.5328 | X93: 1.285797049 | Y93: 0.6279357729 | Z93: 21.07 | AA93: 0.1167100937 | AC93: 0 | AD93: 76.96921501 | AE93: 30 | AG93: 8.259138935 | AH93: 15.14717735 | AI93: 16.91188324 | AK93: 48.55 | AL93: -68.55 | AM93: -98.55
A95: ORGANIC
C96: Brown Flax | D96: Green Peas | E96: Wheat | F96: Oats | G96: Hemp | H96: Spelt | I96: Soybeans | J96: Barley | K96: Fall Rye | L96: Win. Wheat | M96: Buckwheat | N96: Sunfl. Oil
A97: A. Operating Costs | C97: =C20 -> 5.59 | D97: =D20 -> 4.23 | E97: 4.02 | F97: 4.37 | G97: 3.88 | H97: 3.33 | I97: 6.86 | J97: 6.41 | K97: 3.57 | L97: 6.06 | M97: 4.96 | N97: 3.26
A98: B. Fixed Costs | C98: =C27 -> 5.335875 | D98: =D27 -> 7.336828125 | E98: 10.00476563 | F98: 4.8022875 | G98: 10.67175 | H98: 13.3396875 | I98: 16.007625 | J98: 3.779578125 | K98: 3.334921875 | L98: 10.61111506 | M98: 11.21746449 | N98: 5.335875
A99: C. Labour | C99: =C30 -> 0 | D99: =D30 -> 0 | E99: 0 | F99: 0 | G99: 0 | H99: 0 | I99: 0 | J99: 0 | K99: 0 | L99: 0 | M99: 0 | N99: 0
A100: Total Costs | C100: =C32 -> 0 | D100: =D32 -> 0 | E100: 0 | F100: 0 | G100: 0 | H100: 0 | I100: 0 | J100: 0 | K100: 0 | L100: 0 | M100: 0 | N100: 0
W102: **** | Z102: ****
B103: *****Re-sort Yellow rows based on column O ****** *****CHARTS & TABLES will AUTO update!! ****** | L103: ****sort on column p to reset to original listing **** | W103: RA #2 | AC103: Costs Not Covered by AI | AK103: ="Stress Test - Price Change "&'Risk Analysis'!F43*100&"% & Yield Change "&'Risk Analysis'!F44*100&"%" -> Stress Test - Price Change -5% & Yield Change -10%
C104: A. Operating Costs | D104: B. Fixed Costs | E104: C. Owners Labour & Living | F104: Total Costs | H104: Yield | I104: $/unit | J104: Gross | L104: Margin Over Operating | M104: Margin Over Operating & Fixed | N104: Margin Over Total Costs | O104: Rank | Q104: B/E Operating Costs | R104: B/E Yield Over Op & Fixed Costs | S104: B/E Yield Over Total Costs | T104: % | W104: 80% Insured Value | X104: % of Op Cost | Y104: % of Total Costs | Z104: Premium $/Acre | AA104: Premium % of Insured Value | AC104: Operating Costs | AD104: Operating & Fixed Costs | AE104: Total Costs | AG104: B/E Operating Costs | AH104: B/E Op & Fixed Costs | AI104: B/E Over Total Costs | AK104: Margin Over Operating | AL104: Margin Over Operating & Fixed | AM104: Margin Over Total Costs | AO104: Machinery cost | AP104: storage costs | AQ104: ="B/E Land PMT" -> B/E Land PMT | AV104: $/unit Covered By AgriInsurance | AW104: $/unit Exposed Risk | AX104: $/unit Reward | AY104: $/unit Covered By AgriInsurance | AZ104: $/unit Exposed Risk | BA104: $/unit Reward
B105: Flax | C105: =Summary!$C$21 -> 481.5215236 | D105: =Summary!$C$26 -> 183.5399228 | E105: =Summary!$C$28 -> 52 | F105: =SUM(C105:E105) -> 717.0614464 | H105: =Summary!$C$35 -> 13 | I105: =Summary!$C$34 -> 53 | J105: =SUM(H105*I105) -> 689 | K105: 4 | L105: =SUM(J105-C105) -> 207.4784764 | M105: =SUM(J105-(C105+D105)) -> 23.93855357 | N105: =SUM(J105-F105) -> -28.06144643 | O105: =RANK(N105,$N$105:$N$113) -> 3 | P105: 1 | Q105: =ROUND(C105/I105,1) -> 9.1 | R105: =ROUND((C105+D105)/I105,1) -> 12.5 | S105: =ROUND(F105/I105,1) -> 13.5 | T105: =SUM(H105/S105) -> 0.962962963 | W105: 521.208 | X105: =SUM(W105/C105) -> 1.082418904 | Y105: =SUM(W105/F105) -> 0.7268665783 | Z105: 55.755 | AA105: =SUM(Z105/W105) -> 0.1069726482 | AC105: =IF(C105-W105<0,0,SUM(C105-W105)) -> 0 | AD105: =IF(C105+D105-W105<0,0,SUM(C105+D105-W105)-AC105) -> 143.8534464 | AE105: =IF(C105+D105+E105-W105<0,0,SUM(C105+D105+E105-W105)-AD105-AC105) -> 52 | AG105: =SUM(C105/H105) -> 37.0401172 | AH105: =SUM((C105+D105)/H105) -> 51.1585728 | AI105: =SUM(F105/H105) -> 55.1585728 | AK105: ='Risk Analysis'!C$57 -> 122.6784764 | AL105: ='Risk Analysis'!C$58 -> -60.86144643 | AM105: ='Risk Analysis'!C$59 -> -112.8614464 | AO105: =43.29+11.91 -> 55.2 | AP105: 2.17 | AQ105: =SUM(J105-C105-E105-AO105-AP105) -> 98.10847638 | AV105: =W105/H105 -> 40.09292308 | AW105: =AI105-AV105 -> 15.06564973 | AX105: =I105-AI105 -> -2.158572802 | AY105: =AV105 -> 40.09292308 | AZ105: =AW105 -> 15.06564973 | BA105: =AX105 -> -2.158572802
B106: Peas | C106: =Summary!$D$21 -> 456.3992259 | D106: =Summary!$D$26 -> 183.5399228 | E106: =Summary!$D$28 -> 52 | F106: 691.9391487 | H106: =Summary!$D$35 -> 19 | I106: =Summary!$D$34 -> 20.5 | J106: 389.5 | K106: 6 | L106: -66.89922588 | M106: -250.4391487 | N106: -302.4391487 | O106: 8 | P106: 2 | Q106: 22.3 | R106: 31.2 | S106: 33.8 | T106: 0.5621301775 | W106: 358.7408 | X106: 0.7860241202 | Y106: 0.5184571514 | Z106: 20.585 | AA106: 0.05738126246 | AC106: 97.65842588 | AD106: 183.5399228 | AE106: 52 | AG106: 24.02101189 | AH106: 33.68100783 | AI106: 36.41784993 | AK106: ='Risk Analysis'!D$57 -> -125.3242259 | AL106: ='Risk Analysis'!D$58 -> -308.8641487 | AM106: ='Risk Analysis'!D$59 -> -360.8641487 | AO106: 55.2 | AP106: 2.8 | AQ106: -176.8992259 | AV106: =W106/H106 -> 18.88109474 | AW106: =AI106-AV106 -> 17.53675519 | AX106: =I106-AI106 -> -15.91784993 | AY106: 0
B107: HRS Wheat | C107: =Summary!$E$21 -> 473.1259141 | D107: =Summary!$E$26 -> 183.5399228 | E107: =Summary!$E$28 -> 52 | F107: 708.6658369 | H107: =Summary!$E$35 -> 32 | I107: =Summary!$E$34 -> 23 | J107: 736 | K107: 2 | L107: 262.8740859 | M107: 79.33416307 | N107: 27.33416307 | O107: 2 | P107: 3 | Q107: 20.6 | R107: 28.6 | S107: 30.8 | T107: 1.038961039 | W107: 550.8848 | X107: 1.164351357 | Y107: 0.7773548142 | Z107: 57.0825 | AA107: 0.1036196679 | AC107: 0 | AD107: 105.7810369 | AE107: 52 | AG107: 14.78518482 | AH107: 20.5208074 | AI107: 22.1458074 | AK107: ='Risk Analysis'!E$57 -> 160.5240859 | AL107: ='Risk Analysis'!E$58 -> -23.01583693 | AM107: ='Risk Analysis'!E$59 -> -75.01583693 | AO107: 55.2 | AP107: 4.89 | AQ107: 150.7840859 | AV107: 17.21515 | AW107: 4.930657404 | AX107: 0.8541925959 | AY107: 0
B108: Oats | C108: =Summary!$F$21 -> 471.196858 | D108: =Summary!$F$26 -> 183.5399228 | E108: =Summary!$F$28 -> 52 | F108: 706.7367808 | H108: =Summary!$F$35 -> 60 | I108: =Summary!$F$34 -> 10 | J108: 600 | K108: 5 | L108: 128.803142 | M108: -54.73678083 | N108: -106.7367808 | O108: 5 | P108: 4 | Q108: 47.1 | R108: 65.5 | S108: 70.7 | T108: 0.8486562942 | W108: 482.664 | X108: 1.024336202 | Y108: 0.6829473336 | Z108: 48.1675 | AA108: 0.09979509555 | AC108: 0 | AD108: 172.0727808 | AE108: 52 | AG108: 7.853280967 | AH108: 10.91227968 | AI108: 11.77894635 | AK108: ='Risk Analysis'!F$57 -> 41.80314198 | AL108: ='Risk Analysis'!F$58 -> -141.7367808 | AM108: ='Risk Analysis'!F$59 -> -193.7367808 | AO108: 55.2 | AP108: 11.18 | AQ108: 10.42314198 | AV108: 8.0444 | AW108: 3.734546347 | AX108: -1.778946347 | AY108: 0
B109: Hemp | C109: =Summary!$G$21 -> 471.7585324 | D109: =Summary!$G$26 -> 183.5399228 | E109: =Summary!$G$28 -> 52 | F109: 707.2984552 | H109: =Summary!$G$35 -> 450 | I109: =Summary!$G$34 -> 1.8 | J109: 810 | K109: 1 | L109: 338.2414676 | M109: 154.7015448 | N109: 102.7015448 | O109: 1 | P109: 5 | Q109: 262.1 | R109: 364.1 | S109: 392.9 | T109: 1.1453296 | W109: 366.08 | X109: 0.7759902044 | Y109: 0.5175750029 | Z109: 38.98 | AA109: 0.106479458 | AC109: 105.6785324 | AD109: 183.5399228 | AE109: 52 | AG109: 1.048352294 | AH109: 1.456218789 | AI109: 1.571774345 | AK109: ='Risk Analysis'!G$57 -> 220.7914676 | AL109: ='Risk Analysis'!G$58 -> 37.25154477 | AM109: ='Risk Analysis'!G$59 -> -14.74845523 | AO109: 55.2 | AP109: 1.65 | AQ109: 229.3914676 | AV109: 0.8135111111 | AW109: 0.7582632338 | AX109: 0.228225655 | AY109: 0
B110: Soybeans | C110: =Summary!$H$21 -> 456.6604422 | D110: =Summary!$H$26 -> 183.5399228 | E110: =Summary!$H$28 -> 52 | F110: 692.200365 | H110: =Summary!$H$35 -> 18 | I110: =Summary!$H$34 -> 30 | J110: 540 | L110: 83.33955783 | M110: -100.200365 | N110: -152.200365 | O110: 6 | P110: 7 | Q110: 15.2 | R110: 21.3 | S110: 23.1 | T110: 0.7792207792 | W110: 386.576 | X110: 0.8465283267 | Y110: 0.5584741349 | Z110: 18.6675 | AA110: 0.04828934026 | AC110: 70.08444217 | AD110: 183.5399228 | AE110: 52 | AG110: 25.37002457 | AH110: 35.56668694 | AI110: 38.45557583 | AK110: ='Risk Analysis'!H$57 -> -0.6604421731 | AL110: ='Risk Analysis'!H$58 -> -184.200365 | AM110: ='Risk Analysis'!H$59 -> -236.200365 | AO110: 55.2 | AP110: 2.1 | AQ110: -25.96044217 | AV110: 21.47644444 | AW110: 16.97913139 | AX110: -8.455575832 | AY110: 0
B111: Barley | C111: =Summary!$I$21 -> 415.3322653 | D111: =Summary!$I$26 -> 183.5399228 | E111: =Summary!$I$28 -> 52 | F111: 650.8721881 | H111: =Summary!$I$35 -> 35 | I111: =Summary!$I$34 -> 10 | J111: 350 | L111: -65.33226525 | M111: -248.8721881 | N111: -300.8721881 | O111: 7 | P111: 8 | Q111: 41.5 | R111: 59.9 | S111: 65.1 | T111: 0.5376344086 | W111: 425.3664 | X111: 1.024159295 | Y111: 0.6535329175 | Z111: 23.6225 | AA111: 0.05553447569 | AC111: 0 | AD111: 173.5057881 | AE111: 52 | AG111: 11.86663615 | AH111: 17.11063394 | AI111: 18.59634823 | AK111: ='Risk Analysis'!I$57 -> -111.3322653 | AL111: ='Risk Analysis'!I$58 -> -294.8721881 | AM111: ='Risk Analysis'!I$59 -> -346.8721881 | AO111: 55.2 | AP111: 4.89 | AQ111: -177.4222653 | AV111: 12.15332571 | AW111: 6.443022516 | AX111: -8.59634823 | AY111: 0
B112: Fall Rye | C112: =Summary!$J$21 -> 395.0738874 | D112: =Summary!$J$26 -> 183.5399228 | E112: =Summary!$J$28 -> 52 | F112: 630.6138102 | H112: =Summary!$J$35 -> 27.5 | I112: =Summary!$J$34 -> 10.25 | J112: 281.875 | L112: -113.1988874 | M112: -296.7388102 | N112: -348.7388102 | O112: 9 | P112: 9 | Q112: 38.5 | R112: 56.5 | S112: 61.5 | T112: 0.4471544715 | W112: 553.7664 | X112: 1.40167806 | Y112: 0.8781387134 | Z112: 13.635 | AA112: 0.02462229561 | AC112: 0 | AD112: 24.84741023 | AE112: 52 | AG112: 14.36632318 | AH112: 21.04050219 | AI112: 22.93141128 | AK112: ='Risk Analysis'!J$57 -> -151.6363874 | AL112: ='Risk Analysis'!J$58 -> -335.1763102 | AM112: ='Risk Analysis'!J$59 -> -387.1763102 | AO112: 55.2 | AP112: 3.49 | AQ112: -223.8888874 | AV112: 20.13696 | AW112: 2.794451281 | AX112: -12.68141128 | AY112: 0
B113: Winter Wheat | C113: =Summary!$K$21 -> 463.4571978 | D113: =Summary!$K$26 -> 183.5399228 | E113: =Summary!$K$28 -> 52 | F113: 698.9971206 | H113: =Summary!$K$35 -> 33 | I113: =Summary!$K$34 -> 19 | J113: 627 | K113: 3 | L113: 163.5428022 | M113: -19.99712064 | N113: -71.99712064 | O113: 4 | P113: 10 | Q113: 24.4 | R113: 34.1 | S113: 36.8 | T113: 0.8967391304 | W113: 565.0944 | X113: 1.219302241 | Y113: 0.8084359482 | Z113: 59.985 | AA113: 0.106150406 | AC113: 0 | AD113: 81.90272064 | AE113: 52 | AG113: 14.04415751 | AH113: 19.60597335 | AI113: 21.18173093 | AK113: ='Risk Analysis'!K$57 -> 78.04280217 | AL113: ='Risk Analysis'!K$58 -> -105.4971206 | AM113: ='Risk Analysis'!K$59 -> -157.4971206 | AO113: 55.2 | AP113: 6.29 | AQ113: 50.05280217 | AV113: 17.12407273 | AW113: 4.057658201 | AX113: -2.181730929 | AY113: 0
CA114: years | CB114: 20 | CD114: ="Manitoba "&Introduction!I11&" - Organic Land Value ($/acre) - "&CB114&"yrs @ "&#REF!*100&"%" -> 
CA115: equity | CB115: 0.25
W116: ORGANIC | AQ116: ="Manitoba Organic Crop Income & Expenses ($/Acre) - "&Introduction!I11 -> Manitoba Organic Crop Income & Expenses ($/Acre) - 2023 | BD116: ="Manitoba Organic Yield per Acre - "&Introduction!I11 -> Manitoba Organic Yield per Acre - 2023 | CA116: land financed | CB116: =SUM(1-CB115) -> 0.75 | CH116: =ROUND(CE119,0) -> 48
W117: ="Manitoba Organic Crop Production Costs ($/Acre) - "&Introduction!I11 -> Manitoba Organic Crop Production Costs ($/Acre) - 2023 | AC117: ="Manitoba Organic Breakeven Yields (per Acre) - "&Introduction!I11 -> Manitoba Organic Breakeven Yields (per Acre) - 2023 | AH117: ="Manitoba Organic Breakeven Yields (per Acre) - "&Introduction!I11 -> Manitoba Organic Breakeven Yields (per Acre) - 2023 | AL117: ="Manitoba Organic Crop Gross Revenue ($/Acre) - "&Introduction!I11 -> Manitoba Organic Crop Gross Revenue ($/Acre) - 2023 | AQ117: ="Manitoba Organic Crop Profitability ($/Acre) - "&Introduction!I11 -> Manitoba Organic Crop Profitability ($/Acre) - 2023 | AX117: ="Manitoba Organic - "&W51&" AgriInsurance Risk Analysis - "&Introduction!I11 -> Manitoba Organic - AgriInsurance Risk Analysis - 2023 | BD117: ="Manitoba Organic Breakeven Price ($/unit) - "&Introduction!I11 -> Manitoba Organic Breakeven Price ($/unit) - 2023 | BJ117: ="Manitoba Organic - "&W51&" AgriInsurance Risk Analysis - "&Introduction!I11 -> Manitoba Organic - AgriInsurance Risk Analysis - 2023 | BN117: ="Manitoba Organic Crop Marginal Returns 'Stress Test' - Price Change "&'Risk Analysis'!F43*100&"% & Yield Change "&'Risk Analysis'!F44*100&"% ($/Acre) - "&Introduction!I11 -> Manitoba Organic Crop Marginal Returns 'Stress Test' - Price Change -5% & Yield Change -10% ($/Acre) - 2023 | BS117: ="Manitoba Organic Costs Not Covered By "&W51&" AgriInsurance - "&Introduction!I11 -> Manitoba Organic Costs Not Covered By AgriInsurance - 2023 | CH117: 0.25 | CI117: 0.5 | CS117: ="Manitoba Organic - Monetizing Risk & Reward ($/unit) - "&Introduction!I11 -> Manitoba Organic - Monetizing Risk & Reward ($/unit) - 2023
X118: Operating Costs | Y118: Fixed Costs | Z118: Labour Costs | AA118: Total Costs | AD118: Operating Costs | AE118: Operating & Fixed Costs | AF118: Total Costs | AI118: Total Costs | AJ118: Target or Average Yield as % of B/E Yield | AM118: Yield | AN118: $/unit | AO118: Gross Revenue | AR118: Gross Revenue | AS118: Total Costs | AT118: Margin Over Operating Costs | AU118: Margin Over Op & Fixed Costs | AV118: Margin Over Total Costs | AY118: Operating Costs | AZ118: =W76 -> 80% Insured Value | BA118: Coverage of Operating Costs | BB118: Coverage of Total Costs | BE118: Yield | BF118: Operating Costs | BG118: Operating & Fixed Costs | BH118: Total Costs | BK118: =W51&" Premium $/Acre" -> Premium $/Acre | BL118: Premium % of Insured Value | BO118: Margin Over Operating Costs | BP118: Margin Over Op & Fixed Costs | BQ118: Margin Over Total Costs | BT118: Operating Costs | BU118: Fixed Costs | BV118: Labour | BW118: Total | CB118: Payment | CC118: ="Land Value - "&CB114&"year term @"&#REF!*100&"%" ->  | CD118: Total Costs | CE118: Total Costs - Average | CF118: ="Total Costs + $"&#REF!&"/ac Profit" ->  | CG118: ="Total Costs + $"&#REF!&"/ac Profit - Average" ->  | CH118: =CH117&" add'l. acres req'd for 1 purch. acre @ $"&TEXT(CH116,"#.##")&" B/E Land PMT (= $"&ROUND(AVERAGE(J105:J110),0)&"/ac avg. gross x "&ROUND(CH119/ROUND(AVERAGE(J105:J110),0),1)&")" ->  | CI118: =CI117&" add'l. acres req'd for 1 purch. acre @ $"&TEXT(CH116,"#.##")&" B/E Land PMT (= $"&ROUND(AVERAGE(J105:J110),0)&"/ac avg. gross x "&ROUND(CI119/ROUND(AVERAGE(J105:J110),0),1)&")" ->  | CK118: B/E Land Value | CM118: ="B/E Land Value (w/$"&#REF!&"/ac profit)" ->  | CS118: $/unit Covered By AgriInsurance | CT118: $/unit Exposed Risk | CU118: $/unit Reward | CV118: $/unit Covered By AgriInsurance | CW118: $/unit Exposed Risk | CX118: $/unit Reward
V119: 1 | W119: =$B$105 -> Flax | X119: =$C$105 -> 481.5215236 | Y119: =$D$105 -> 183.5399228 | Z119: =$E$105 -> 52 | AA119: =$F$105 -> 717.0614464 | AC119: =$B$105 -> Flax | AD119: =$Q$105 -> 9.1 | AE119: =$R$105 -> 12.5 | AF119: =$S$105 -> 13.5 | AH119: =$B$105 -> Flax | AI119: =$S$105 -> 13.5 | AJ119: =$T$105 -> 0.962962963 | AL119: =$B$105 -> Flax | AM119: =$H$105 -> 13 | AN119: =$I$105 -> 53 | AO119: =$J$105 -> 689 | AQ119: =$B$105 -> Flax | AR119: =$J$105 -> 689 | AS119: =$F$105 -> 717.0614464 | AT119: =$L$105 -> 207.4784764 | AU119: =$M$105 -> 23.93855357 | AV119: =$N$105 -> -28.06144643 | AX119: =$B$105 -> Flax | AY119: =$C$105 -> 481.5215236 | AZ119: =$W$105 -> 521.208 | BA119: =$X$105 -> 1.082418904 | BB119: =$Y$105 -> 0.7268665783 | BD119: =$B$105 -> Flax | BE119: =$H$105 -> 13 | BF119: =$AG$105 -> 37.0401172 | BG119: =$AH$105 -> 51.1585728 | BH119: =$AI$105 -> 55.1585728 | BJ119: =$B$105 -> Flax | BK119: =$Z$105 -> 55.755 | BL119: =$AA$105 -> 0.1069726482 | BN119: =$B$105 -> Flax | BO119: =$AK$105 -> 122.6784764 | BP119: =$AL$105 -> -60.86144643 | BQ119: =$AM$105 -> -112.8614464 | BS119: =$B$105 -> Flax | BT119: =$AC$105 -> 0 | BU119: =$AD$105 -> 143.8534464 | BV119: =$AE$105 -> 52 | BW119: =SUM(BT119:BV119) -> 195.8534464 | CB119: 100 | CC119: =-PV(#REF!,$CB$114,CB119,0) ->  | CD119: =AQ105 -> 98.10847638 | CE119: =AVERAGE($CD$119:$CD$124) -> 47.64125063 | CF119: =SUM(CD119-#REF!) ->  | CG119: =AVERAGE($CF$119:$CF$124) ->  | CH119: =-PV(#REF!,$CB$114,($CH$117*CE119)+CE119,0) ->  | CI119: =-PV(#REF!,$CB$114,($CI$117*CE119)+CE119,0) ->  | CK119: =-PV(#REF!,$CB$114,CD119,0)/$CB$116 ->  | CL119: =-PV(#REF!,$CB$114,CE119,0)/$CB$116 ->  | CM119: =-PV(#REF!,$CB$114,CF119,0)/$CB$116 ->  | CN119: =-PV(#REF!,$CB$114,CG119,0)/$CB$116 ->  | CS119: =AV105 -> 40.09292308 | CT119: =AW105 -> 15.06564973 | CU119: =AX105 -> -2.158572802 | CV119: =CS119 -> 40.09292308 | CW119: =CT119 -> 15.06564973 | CX119: =CU119 -> -2.158572802
V120: 2 | W120: =$B$106 -> Peas | X120: =$C$106 -> 456.3992259 | Y120: =$D$106 -> 183.5399228 | Z120: =$E$106 -> 52 | AA120: =$F$106 -> 691.9391487 | AC120: =$B$106 -> Peas | AD120: =$Q$106 -> 22.3 | AE120: =$R$106 -> 31.2 | AF120: =$S$106 -> 33.8 | AH120: =$B$106 -> Peas | AI120: =$S$106 -> 33.8 | AJ120: =$T$106 -> 0.5621301775 | AL120: =$B$106 -> Peas | AM120: =$H$106 -> 19 | AN120: =$I$106 -> 20.5 | AO120: =$J$106 -> 389.5 | AQ120: =$B$106 -> Peas | AR120: =$J$106 -> 389.5 | AS120: =$F$106 -> 691.9391487 | AT120: =$L$106 -> -66.89922588 | AU120: =$M$106 -> -250.4391487 | AV120: =$N$106 -> -302.4391487 | AX120: =$B$106 -> Peas | AY120: =$C$106 -> 456.3992259 | AZ120: =$W$106 -> 358.7408 | BA120: =$X$106 -> 0.7860241202 | BB120: =$Y$106 -> 0.5184571514 | BD120: =$B$106 -> Peas | BE120: =$H$106 -> 19 | BF120: =$AG$106 -> 24.02101189 | BG120: =$AH$106 -> 33.68100783 | BH120: =$AI$106 -> 36.41784993 | BJ120: =$B$106 -> Peas | BK120: =$Z$106 -> 20.585 | BL120: =$AA$106 -> 0.05738126246 | BN120: =$B$106 -> Peas | BO120: =$AK$106 -> -125.3242259 | BP120: =$AL$106 -> -308.8641487 | BQ120: =$AM$106 -> -360.8641487 | BS120: =$B$106 -> Peas | BT120: =$AC$106 -> 97.65842588 | BU120: =$AD$106 -> 183.5399228 | BV120: =$AE$106 -> 52 | BW120: =SUM(BT120:BV120) -> 333.1983487 | CB120: =SUM(CB119+25) -> 125 | CC120: =-PV(#REF!,$CB$114,CB120,0) ->  | CD120: -176.8992259 | CE120: =AVERAGE($CD$119:$CD$124) -> 47.64125063 | CF120: =SUM(CD120-#REF!) ->  | CG120: =AVERAGE($CF$119:$CF$124) ->  | CH120: =-PV(#REF!,$CB$114,($CH$117*CE120)+CE120,0) ->  | CI120: =-PV(#REF!,$CB$114,($CI$117*CE120)+CE120,0) ->  | CK120: =-PV(#REF!,$CB$114,CD120,0)/$CB$116 ->  | CL120: =-PV(#REF!,$CB$114,CE120,0)/$CB$116 ->  | CM120: =-PV(#REF!,$CB$114,CF120,0)/$CB$116 ->  | CN120: =-PV(#REF!,$CB$114,CG120,0)/$CB$116 ->  | CS120: =AV106 -> 18.88109474 | CT120: 17.53675519 | CU120: -15.91784993 | CV120: 0
V121: 3 | W121: =$B$107 -> HRS Wheat | X121: =$C$107 -> 473.1259141 | Y121: =$D$107 -> 183.5399228 | Z121: =$E$107 -> 52 | AA121: =$F$107 -> 708.6658369 | AC121: =$B$107 -> HRS Wheat | AD121: =$Q$107 -> 20.6 | AE121: =$R$107 -> 28.6 | AF121: =$S$107 -> 30.8 | AH121: =$B$107 -> HRS Wheat | AI121: =$S$107 -> 30.8 | AJ121: =$T$107 -> 1.038961039 | AL121: =$B$107 -> HRS Wheat | AM121: =$H$107 -> 32 | AN121: =$I$107 -> 23 | AO121: =$J$107 -> 736 | AQ121: =$B$107 -> HRS Wheat | AR121: =$J$107 -> 736 | AS121: =$F$107 -> 708.6658369 | AT121: =$L$107 -> 262.8740859 | AU121: =$M$107 -> 79.33416307 | AV121: =$N$107 -> 27.33416307 | AX121: =$B$107 -> HRS Wheat | AY121: =$C$107 -> 473.1259141 | AZ121: =$W$107 -> 550.8848 | BA121: =$X$107 -> 1.164351357 | BB121: =$Y$107 -> 0.7773548142 | BD121: =$B$107 -> HRS Wheat | BE121: =$H$107 -> 32 | BF121: =$AG$107 -> 14.78518482 | BG121: =$AH$107 -> 20.5208074 | BH121: =$AI$107 -> 22.1458074 | BJ121: =$B$107 -> HRS Wheat | BK121: =$Z$107 -> 57.0825 | BL121: =$AA$107 -> 0.1036196679 | BN121: =$B$107 -> HRS Wheat | BO121: =$AK$107 -> 160.5240859 | BP121: =$AL$107 -> -23.01583693 | BQ121: =$AM$107 -> -75.01583693 | BS121: =$B$107 -> HRS Wheat | BT121: =$AC$107 -> 0 | BU121: =$AD$107 -> 105.7810369 | BV121: =$AE$107 -> 52 | BW121: 157.7810369 | CB121: =SUM(CB120+25) -> 150 | CC121: =-PV(#REF!,$CB$114,CB121,0) ->  | CD121: 150.7840859 | CE121: 47.64125063 | CF121: =SUM(CD121-#REF!) ->  | CH121: =-PV(#REF!,$CB$114,($CH$117*CE121)+CE121,0) ->  | CI121: =-PV(#REF!,$CB$114,($CI$117*CE121)+CE121,0) ->  | CK121: =-PV(#REF!,$CB$114,CD121,0)/$CB$116 ->  | CL121: =-PV(#REF!,$CB$114,CE121,0)/$CB$116 ->  | CM121: =-PV(#REF!,$CB$114,CF121,0)/$CB$116 ->  | CN121: =-PV(#REF!,$CB$114,CG121,0)/$CB$116 ->  | CS121: =AV107 -> 17.21515 | CT121: 4.930657404 | CU121: 0.8541925959 | CV121: 0
V122: 4 | W122: =$B$108 -> Oats | X122: =$C$108 -> 471.196858 | Y122: =$D$108 -> 183.5399228 | Z122: =$E$108 -> 52 | AA122: =$F$108 -> 706.7367808 | AC122: =$B$108 -> Oats | AD122: =$Q$108 -> 47.1 | AE122: =$R$108 -> 65.5 | AF122: =$S$108 -> 70.7 | AH122: =$B$108 -> Oats | AI122: =$S$108 -> 70.7 | AJ122: =$T$108 -> 0.8486562942 | AL122: =$B$108 -> Oats | AM122: =$H$108 -> 60 | AN122: =$I$108 -> 10 | AO122: =$J$108 -> 600 | AQ122: =$B$108 -> Oats | AR122: =$J$108 -> 600 | AS122: =$F$108 -> 706.7367808 | AT122: =$L$108 -> 128.803142 | AU122: =$M$108 -> -54.73678083 | AV122: =$N$108 -> -106.7367808 | AX122: =$B$108 -> Oats | AY122: =$C$108 -> 471.196858 | AZ122: =$W$108 -> 482.664 | BA122: =$X$108 -> 1.024336202 | BB122: =$Y$108 -> 0.6829473336 | BD122: =$B$108 -> Oats | BE122: =$H$108 -> 60 | BF122: =$AG$108 -> 7.853280967 | BG122: =$AH$108 -> 10.91227968 | BH122: =$AI$108 -> 11.77894635 | BJ122: =$B$108 -> Oats | BK122: =$Z$108 -> 48.1675 | BL122: =$AA$108 -> 0.09979509555 | BN122: =$B$108 -> Oats | BO122: =$AK$108 -> 41.80314198 | BP122: =$AL$108 -> -141.7367808 | BQ122: =$AM$108 -> -193.7367808 | BS122: =$B$108 -> Oats | BT122: =$AC$108 -> 0 | BU122: =$AD$108 -> 172.0727808 | BV122: =$AE$108 -> 52 | BW122: 224.0727808 | CB122: 175 | CC122: =-PV(#REF!,$CB$114,CB122,0) ->  | CD122: 10.42314198 | CE122: 47.64125063 | CF122: =SUM(CD122-#REF!) ->  | CH122: =-PV(#REF!,$CB$114,($CH$117*CE122)+CE122,0) ->  | CI122: =-PV(#REF!,$CB$114,($CI$117*CE122)+CE122,0) ->  | CK122: =-PV(#REF!,$CB$114,CD122,0)/$CB$116 ->  | CL122: =-PV(#REF!,$CB$114,CE122,0)/$CB$116 ->  | CM122: =-PV(#REF!,$CB$114,CF122,0)/$CB$116 ->  | CN122: =-PV(#REF!,$CB$114,CG122,0)/$CB$116 ->  | CS122: =AV108 -> 8.0444 | CT122: 3.734546347 | CU122: -1.778946347 | CV122: 0
V123: 5 | W123: =$B$109 -> Hemp | X123: =$C$109 -> 471.7585324 | Y123: =$D$109 -> 183.5399228 | Z123: =$E$109 -> 52 | AA123: =$F$109 -> 707.2984552 | AC123: =$B$109 -> Hemp | AD123: =$Q$109 -> 262.1 | AE123: =$R$109 -> 364.1 | AF123: =$S$109 -> 392.9 | AH123: =$B$109 -> Hemp | AI123: =$S$109 -> 392.9 | AJ123: =$T$109 -> 1.1453296 | AL123: =$B$109 -> Hemp | AM123: =$H$109 -> 450 | AN123: =$I$109 -> 1.8 | AO123: =$J$109 -> 810 | AQ123: =$B$109 -> Hemp | AR123: =$J$109 -> 810 | AS123: =$F$109 -> 707.2984552 | AT123: =$L$109 -> 338.2414676 | AU123: =$M$109 -> 154.7015448 | AV123: =$N$109 -> 102.7015448 | AX123: =$B$109 -> Hemp | AY123: =$C$109 -> 471.7585324 | AZ123: =$W$109 -> 366.08 | BA123: =$X$109 -> 0.7759902044 | BB123: =$Y$109 -> 0.5175750029 | BD123: =$B$109 -> Hemp | BE123: =$H$109 -> 450 | BF123: =$AG$109 -> 1.048352294 | BG123: =$AH$109 -> 1.456218789 | BH123: =$AI$109 -> 1.571774345 | BJ123: =$B$109 -> Hemp | BK123: =$Z$109 -> 38.98 | BL123: =$AA$109 -> 0.106479458 | BN123: =$B$109 -> Hemp | BO123: =$AK$109 -> 220.7914676 | BP123: =$AL$109 -> 37.25154477 | BQ123: =$AM$109 -> -14.74845523 | BS123: =$B$109 -> Hemp | BT123: =$AC$109 -> 105.6785324 | BU123: =$AD$109 -> 183.5399228 | BV123: =$AE$109 -> 52 | BW123: 341.2184552 | CB123: 200 | CC123: =-PV(#REF!,$CB$114,CB123,0) ->  | CD123: 229.3914676 | CE123: 47.64125063 | CF123: =SUM(CD123-#REF!) ->  | CH123: =-PV(#REF!,$CB$114,($CH$117*CE123)+CE123,0) ->  | CI123: =-PV(#REF!,$CB$114,($CI$117*CE123)+CE123,0) ->  | CK123: =-PV(#REF!,$CB$114,CD123,0)/$CB$116 ->  | CL123: =-PV(#REF!,$CB$114,CE123,0)/$CB$116 ->  | CM123: =-PV(#REF!,$CB$114,CF123,0)/$CB$116 ->  | CN123: =-PV(#REF!,$CB$114,CG123,0)/$CB$116 ->  | CS123: =AV109 -> 0.8135111111 | CT123: 0.7582632338 | CU123: 0.228225655 | CV123: 0
V124: 6 | W124: =$B$110 -> Soybeans | X124: =$C$110 -> 456.6604422 | Y124: =$D$110 -> 183.5399228 | Z124: =$E$110 -> 52 | AA124: =$F$110 -> 692.200365 | AC124: =$B$110 -> Soybeans | AD124: =$Q$110 -> 15.2 | AE124: =$R$110 -> 21.3 | AF124: =$S$110 -> 23.1 | AH124: =$B$110 -> Soybeans | AI124: =$S$110 -> 23.1 | AJ124: =$T$110 -> 0.7792207792 | AL124: =$B$110 -> Soybeans | AM124: =$H$110 -> 18 | AN124: =$I$110 -> 30 | AO124: =$J$110 -> 540 | AQ124: =$B$110 -> Soybeans | AR124: =$J$110 -> 540 | AS124: =$F$110 -> 692.200365 | AT124: =$L$110 -> 83.33955783 | AU124: =$M$110 -> -100.200365 | AV124: =$N$110 -> -152.200365 | AX124: =$B$110 -> Soybeans | AY124: =$C$110 -> 456.6604422 | AZ124: =$W$110 -> 386.576 | BA124: =$X$110 -> 0.8465283267 | BB124: =$Y$110 -> 0.5584741349 | BD124: =$B$110 -> Soybeans | BE124: =$H$110 -> 18 | BF124: =$AG$110 -> 25.37002457 | BG124: =$AH$110 -> 35.56668694 | BH124: =$AI$110 -> 38.45557583 | BJ124: =$B$110 -> Soybeans | BK124: =$Z$110 -> 18.6675 | BL124: =$AA$110 -> 0.04828934026 | BN124: =$B$110 -> Soybeans | BO124: =$AK$110 -> -0.6604421731 | BP124: =$AL$110 -> -184.200365 | BQ124: =$AM$110 -> -236.200365 | BS124: =$B$110 -> Soybeans | BT124: =$AC$110 -> 70.08444217 | BU124: =$AD$110 -> 183.5399228 | BV124: =$AE$110 -> 52 | BW124: 305.624365 | CB124: 225 | CC124: =-PV(#REF!,$CB$114,CB124,0) ->  | CD124: -25.96044217 | CE124: 47.64125063 | CF124: =SUM(CD124-#REF!) ->  | CH124: =-PV(#REF!,$CB$114,($CH$117*CE124)+CE124,0) ->  | CI124: =-PV(#REF!,$CB$114,($CI$117*CE124)+CE124,0) ->  | CK124: =-PV(#REF!,$CB$114,CD124,0)/$CB$116 ->  | CL124: =-PV(#REF!,$CB$114,CE124,0)/$CB$116 ->  | CM124: =-PV(#REF!,$CB$114,CF124,0)/$CB$116 ->  | CN124: =-PV(#REF!,$CB$114,CG124,0)/$CB$116 ->  | CS124: =AV110 -> 21.47644444 | CT124: 16.97913139 | CU124: -8.455575832 | CV124: 0
V125: 7 | W125: =$B$111 -> Barley | X125: =$C$111 -> 415.3322653 | Y125: =$D$111 -> 183.5399228 | Z125: =$E$111 -> 52 | AA125: =$F$111 -> 650.8721881 | AC125: =$B$111 -> Barley | AD125: =$Q$111 -> 41.5 | AE125: =$R$111 -> 59.9 | AF125: =$S$111 -> 65.1 | AH125: =$B$111 -> Barley | AI125: =$S$111 -> 65.1 | AJ125: =$T$111 -> 0.5376344086 | AL125: =$B$111 -> Barley | AM125: =$H$111 -> 35 | AN125: =$I$111 -> 10 | AO125: =$J$111 -> 350 | AQ125: =$B$111 -> Barley | AR125: =$J$111 -> 350 | AS125: =$F$111 -> 650.8721881 | AT125: =$L$111 -> -65.33226525 | AU125: =$M$111 -> -248.8721881 | AV125: =$N$111 -> -300.8721881 | AX125: =$B$111 -> Barley | AY125: =$C$111 -> 415.3322653 | AZ125: =$W$111 -> 425.3664 | BA125: =$X$111 -> 1.024159295 | BB125: =$Y$111 -> 0.6535329175 | BD125: =$B$111 -> Barley | BE125: =$H$111 -> 35 | BF125: =$AG$111 -> 11.86663615 | BG125: =$AH$111 -> 17.11063394 | BH125: =$AI$111 -> 18.59634823 | BJ125: =$B$111 -> Barley | BK125: =$Z$111 -> 23.6225 | BL125: =$AA$111 -> 0.05553447569 | BN125: =$B$111 -> Barley | BO125: =$AK$111 -> -111.3322653 | BP125: =$AL$111 -> -294.8721881 | BQ125: =$AM$111 -> -346.8721881 | BS125: =$B$111 -> Barley | BT125: =$AC$111 -> 0 | BU125: =$AD$111 -> 173.5057881 | BV125: =$AE$111 -> 52 | BW125: 225.5057881 | CB125: 250 | CC125: =-PV(#REF!,$CB$114,CB125,0) ->  | CD125: -177.4222653 | CE125: 47.64125063 | CF125: =SUM(CD125-#REF!) ->  | CH125: =-PV(#REF!,$CB$114,($CH$117*CE125)+CE125,0) ->  | CI125: =-PV(#REF!,$CB$114,($CI$117*CE125)+CE125,0) ->  | CK125: =-PV(#REF!,$CB$114,CD125,0)/$CB$116 ->  | CM125: =-PV(#REF!,$CB$114,CF125,0)/$CB$116 ->  | CS125: =AV111 -> 12.15332571 | CT125: 6.443022516 | CU125: -8.59634823 | CV125: 0
V126: 8 | W126: =$B$112 -> Fall Rye | X126: =$C$112 -> 395.0738874 | Y126: =$D$112 -> 183.5399228 | Z126: =$E$112 -> 52 | AA126: =$F$112 -> 630.6138102 | AC126: =$B$112 -> Fall Rye | AD126: =$Q$112 -> 38.5 | AE126: =$R$112 -> 56.5 | AF126: =$S$112 -> 61.5 | AH126: =$B$112 -> Fall Rye | AI126: =$S$112 -> 61.5 | AJ126: =$T$112 -> 0.4471544715 | AL126: =$B$112 -> Fall Rye | AM126: =$H$112 -> 27.5 | AN126: =$I$112 -> 10.25 | AO126: =$J$112 -> 281.875 | AQ126: =$B$112 -> Fall Rye | AR126: =$J$112 -> 281.875 | AS126: =$F$112 -> 630.6138102 | AT126: =$L$112 -> -113.1988874 | AU126: =$M$112 -> -296.7388102 | AV126: =$N$112 -> -348.7388102 | AX126: =$B$112 -> Fall Rye | AY126: =$C$112 -> 395.0738874 | AZ126: =$W$112 -> 553.7664 | BA126: =$X$112 -> 1.40167806 | BB126: =$Y$112 -> 0.8781387134 | BD126: =$B$112 -> Fall Rye | BE126: =$H$112 -> 27.5 | BF126: =$AG$112 -> 14.36632318 | BG126: =$AH$112 -> 21.04050219 | BH126: =$AI$112 -> 22.93141128 | BJ126: =$B$112 -> Fall Rye | BK126: =$Z$112 -> 13.635 | BL126: =$AA$112 -> 0.02462229561 | BN126: =$B$112 -> Fall Rye | BO126: =$AK$112 -> -151.6363874 | BP126: =$AL$112 -> -335.1763102 | BQ126: =$AM$112 -> -387.1763102 | BS126: =$B$112 -> Fall Rye | BT126: =$AC$112 -> 0 | BU126: =$AD$112 -> 24.84741023 | BV126: =$AE$112 -> 52 | BW126: 76.84741023 | CB126: 275 | CC126: =-PV(#REF!,$CB$114,CB126,0) ->  | CD126: -223.8888874 | CE126: 47.64125063 | CF126: =SUM(CD126-#REF!) ->  | CH126: =-PV(#REF!,$CB$114,($CH$117*CE126)+CE126,0) ->  | CI126: =-PV(#REF!,$CB$114,($CI$117*CE126)+CE126,0) ->  | CK126: =-PV(#REF!,$CB$114,CD126,0)/$CB$116 ->  | CM126: =-PV(#REF!,$CB$114,CF126,0)/$CB$116 ->  | CS126: =AV112 -> 20.13696 | CT126: 2.794451281 | CU126: -12.68141128 | CV126: 0
V127: 9 | W127: =$B$113 -> Winter Wheat | X127: =$C$113 -> 463.4571978 | Y127: =$D$113 -> 183.5399228 | Z127: =$E$113 -> 52 | AA127: =$F$113 -> 698.9971206 | AC127: =$B$113 -> Winter Wheat | AD127: =$Q$113 -> 24.4 | AE127: =$R$113 -> 34.1 | AF127: =$S$113 -> 36.8 | AH127: =$B$113 -> Winter Wheat | AI127: =$S$113 -> 36.8 | AJ127: =$T$113 -> 0.8967391304 | AL127: =$B$113 -> Winter Wheat | AM127: =$H$113 -> 33 | AN127: =$I$113 -> 19 | AO127: =$J$113 -> 627 | AQ127: =$B$113 -> Winter Wheat | AR127: =$J$113 -> 627 | AS127: =$F$113 -> 698.9971206 | AT127: =$L$113 -> 163.5428022 | AU127: =$M$113 -> -19.99712064 | AV127: =$N$113 -> -71.99712064 | AX127: =$B$113 -> Winter Wheat | AY127: =$C$113 -> 463.4571978 | AZ127: =$W$113 -> 565.0944 | BA127: =$X$113 -> 1.219302241 | BB127: =$Y$113 -> 0.8084359482 | BD127: =$B$113 -> Winter Wheat | BE127: =$H$113 -> 33 | BF127: =$AG$113 -> 14.04415751 | BG127: =$AH$113 -> 19.60597335 | BH127: =$AI$113 -> 21.18173093 | BJ127: =$B$113 -> Winter Wheat | BK127: =$Z$113 -> 59.985 | BL127: =$AA$113 -> 0.106150406 | BN127: =$B$113 -> Winter Wheat | BO127: =$AK$113 -> 78.04280217 | BP127: =$AL$113 -> -105.4971206 | BQ127: =$AM$113 -> -157.4971206 | BS127: =$B$113 -> Winter Wheat | BT127: =$AC$113 -> 0 | BU127: =$AD$113 -> 81.90272064 | BV127: =$AE$113 -> 52 | BW127: 133.9027206 | CB127: 300 | CC127: =-PV(#REF!,$CB$114,CB127,0) ->  | CD127: 50.05280217 | CE127: 47.64125063 | CF127: =SUM(CD127-#REF!) ->  | CH127: =-PV(#REF!,$CB$114,($CH$117*CE127)+CE127,0) ->  | CI127: =-PV(#REF!,$CB$114,($CI$117*CE127)+CE127,0) ->  | CK127: =-PV(#REF!,$CB$114,CD127,0)/$CB$116 ->  | CM127: =-PV(#REF!,$CB$114,CF127,0)/$CB$116 ->  | CS127: =AV113 -> 17.12407273 | CT127: 4.057658201 | CU127: -2.181730929 | CV127: 0
V128: 10 | W128: =#REF! ->  | X128: =#REF! ->  | Y128: =#REF! ->  | Z128: =#REF! ->  | AA128: =#REF! ->  | AC128: =#REF! ->  | AD128: =#REF! ->  | AE128: =#REF! ->  | AF128: =#REF! ->  | AH128: =#REF! ->  | AI128: =#REF! ->  | AJ128: =#REF! ->  | AL128: =#REF! ->  | AM128: =#REF! ->  | AN128: =#REF! ->  | AO128: =#REF! ->  | AQ128: =#REF! ->  | AR128: =#REF! ->  | AS128: =#REF! ->  | AT128: =#REF! ->  | AU128: =#REF! ->  | AV128: =#REF! ->  | AX128: =#REF! ->  | AY128: =#REF! ->  | AZ128: =#REF! ->  | BA128: =#REF! ->  | BB128: =#REF! ->  | BD128: =#REF! ->  | BE128: =#REF! ->  | BF128: =#REF! ->  | BG128: =#REF! ->  | BH128: =#REF! ->  | BJ128: =#REF! ->  | BK128: =#REF! ->  | BL128: =#REF! ->  | BN128: =#REF! ->  | BO128: =#REF! ->  | BP128: =#REF! ->  | BQ128: =#REF! ->  | BS128: =#REF! ->  | BT128: =#REF! ->  | BU128: =#REF! ->  | BV128: =#REF! ->  | CB128: 325 | CC128: =-PV(#REF!,$CB$114,CB128,0) ->  | CD128: =#REF! ->  | CE128: 47.64125063 | CF128: =SUM(CD128-#REF!) ->  | CH128: =-PV(#REF!,$CB$114,($CH$117*CE128)+CE128,0) ->  | CI128: =-PV(#REF!,$CB$114,($CI$117*CE128)+CE128,0) ->  | CK128: =-PV(#REF!,$CB$114,CD128,0)/$CB$116 ->  | CM128: =-PV(#REF!,$CB$114,CF128,0)/$CB$116 -> 
V129: 11 | W129: =#REF! ->  | X129: =#REF! ->  | Y129: =#REF! ->  | Z129: =#REF! ->  | AA129: =#REF! ->  | AC129: =#REF! ->  | AD129: =#REF! ->  | AE129: =#REF! ->  | AF129: =#REF! ->  | AH129: =#REF! ->  | AI129: =#REF! ->  | AJ129: =#REF! ->  | AL129: =#REF! ->  | AM129: =#REF! ->  | AN129: =#REF! ->  | AO129: =#REF! ->  | AQ129: =#REF! ->  | AR129: =#REF! ->  | AS129: =#REF! ->  | AT129: =#REF! ->  | AU129: =#REF! ->  | AV129: =#REF! ->  | AX129: =#REF! ->  | AY129: =#REF! ->  | AZ129: =#REF! ->  | BA129: =#REF! ->  | BB129: =#REF! ->  | BD129: =#REF! ->  | BE129: =#REF! ->  | BF129: =#REF! ->  | BG129: =#REF! ->  | BH129: =#REF! ->  | BJ129: =#REF! ->  | BK129: =#REF! ->  | BL129: =#REF! ->  | BN129: =#REF! ->  | BO129: =#REF! ->  | BP129: =#REF! ->  | BQ129: =#REF! ->  | BS129: =#REF! ->  | BT129: =#REF! ->  | BU129: =#REF! ->  | BV129: =#REF! ->  | CB129: 350 | CC129: =-PV(#REF!,$CB$114,CB129,0) ->  | CD129: =#REF! ->  | CE129: 47.64125063 | CF129: =SUM(CD129-#REF!) ->  | CH129: =-PV(#REF!,$CB$114,($CH$117*CE129)+CE129,0) ->  | CI129: =-PV(#REF!,$CB$114,($CI$117*CE129)+CE129,0) ->  | CK129: =-PV(#REF!,$CB$114,CD129,0)/$CB$116 ->  | CM129: =-PV(#REF!,$CB$114,CF129,0)/$CB$116 -> 
CB130: 375 | CC130: =-PV(#REF!,$CB$114,CB130,0) ->  | CD130: =AQ114 -> 0 | CE130: 47.64125063 | CF130: =SUM(CD130-#REF!) ->  | CH130: =-PV(#REF!,$CB$114,($CH$117*CE130)+CE130,0) ->  | CI130: =-PV(#REF!,$CB$114,($CI$117*CE130)+CE130,0) ->  | CK130: =-PV(#REF!,$CB$114,CD130,0)/$CB$116 ->  | CM130: =-PV(#REF!,$CB$114,CF130,0)/$CB$116 -> 
CB131: 400 | CC131: =-PV(#REF!,$CB$114,CB131,0) ->  | CD131: 0 | CE131: 47.64125063 | CF131: =SUM(CD131-#REF!) ->  | CH131: =-PV(#REF!,$CB$114,($CH$117*CE131)+CE131,0) ->  | CI131: =-PV(#REF!,$CB$114,($CI$117*CE131)+CE131,0) ->  | CK131: =-PV(#REF!,$CB$114,CD131,0)/$CB$116 ->  | CM131: =-PV(#REF!,$CB$114,CF131,0)/$CB$116 -> 
W132: CONVENTIONAL | AQ132: =W75&" Crop Income & Expenses ($/Acre) - "&Introduction!I11 -> Manitoba Crop Income & Expenses ($/Acre) - 2023 | BD132: =W75&" Yield per Acre - "&Introduction!I11 -> Manitoba Yield per Acre - 2023
W133: =W75&" Crop Production Costs ($/Acre) - "&Introduction!I11 -> Manitoba Crop Production Costs ($/Acre) - 2023 | AC133: =W75&" Breakeven Yields (per Acre) - "&Introduction!I11 -> Manitoba Breakeven Yields (per Acre) - 2023 | AH133: =W75&" Breakeven Yields (per Acre) - "&Introduction!I11 -> Manitoba Breakeven Yields (per Acre) - 2023 | AL133: =W75&" Crop Gross Revenue ($/Acre) - "&Introduction!I11 -> Manitoba Crop Gross Revenue ($/Acre) - 2023 | AQ133: =W75&" Crop Marginal Returns ($/Acre) - "&Introduction!I11 -> Manitoba Crop Marginal Returns ($/Acre) - 2023 | AX133: =F185&" - "&W76&" AgriInsurance Risk Analysis - "&Introduction!I11 -> RA#2 - 80% Insured Value AgriInsurance Risk Analysis - 2023 | BD133: =W75&" Breakeven Price ($/unit) - "&Introduction!I11 -> Manitoba Breakeven Price ($/unit) - 2023 | BJ133: =F185&" - "&W76&" AgriInsurance Risk Analysis - "&Introduction!I11 -> RA#2 - 80% Insured Value AgriInsurance Risk Analysis - 2023 | BN133: =W75&" Crop Marginal Returns 'Stress Test' - Price Down "&'Risk Analysis'!#REF!*100&"% & Yield Down "&'Risk Analysis'!#REF!*100&"% ($/Acre) - "&Introduction!I11 ->  | BS133: =W75&" Costs Not Covered By "&W76&" AgriInsurance - "&Introduction!I11 -> Manitoba Costs Not Covered By 80% Insured Value AgriInsurance - 2023
X134: Operating Costs | Y134: Fixed Costs | Z134: Labour Costs | AA134: Total Costs | AD134: Operating Costs | AE134: Operating & Fixed Costs | AF134: Total Costs | AI134: Total Costs | AJ134: Target or Average Yield as % of B/E Yield | AM134: Yield | AN134: $/unit | AO134: Gross Revenue | AR134: Gross Revenue | AS134: Total Costs | AT134: Margin Over Operating Costs | AU134: Margin Over Op & Fixed Costs | AV134: Margin Over Total Costs | AY134: Operating Costs | AZ134: =W76 -> 80% Insured Value | BA134: Coverage of Operating Costs | BB134: Coverage of Total Costs | BE134: Yield | BF134: Operating Costs | BG134: Operating & Fixed Costs | BH134: Total Costs | BK134: =W76&" Premium $/Acre" -> 80% Insured Value Premium $/Acre | BL134: Premium % of Insured Value | BO134: Margin Over Operating Costs | BP134: Margin Over Op & Fixed Costs | BQ134: Margin Over Total Costs (Net Profit) | BT134: Operating Costs | BU134: Fixed Costs | BV134: Labour | BW134: Total
V135: 1 | W135: =$B$77 -> Canola | X135: =$C$77 -> 254.0455194 | Y135: =$D$77 -> 120.1647813 | Z135: =$E$77 -> 30 | AA135: =$F$77 -> 404.2103007 | AC135: =$B$77 -> Canola | AD135: =$Q$77 -> 23.6 | AE135: =$R$77 -> 34.8 | AF135: =$S$77 -> 37.6 | AH135: =$B$77 -> Canola | AI135: =$S$77 -> 37.6 | AJ135: =$T$77 -> 1.063829787 | AL135: =$B$77 -> Canola | AM135: =$H$77 -> 40 | AN135: =$I$77 -> 10.75 | AO135: =$J$77 -> 430 | AQ135: =$B$77 -> Canola | AR135: =$J$77 -> 430 | AS135: =$F$77 -> 404.2103007 | AT135: =$L$77 -> 175.9544806 | AU135: =$M$77 -> 55.78969935 | AV135: =$N$77 -> 25.78969935 | AX135: =$B$77 -> Canola | AY135: =$C$77 -> 254.0455194 | AZ135: =$W$77 -> 301.4352 | BA135: =$X$77 -> 1.186540116 | BB135: =$Y$77 -> 0.7457385413 | BD135: =$B$77 -> Canola | BE135: =$H$77 -> 40 | BF135: =$AG$77 -> 6.351137985 | BG135: =$AH$77 -> 9.355257516 | BH135: =$AI$77 -> 10.10525752 | BJ135: =$B$77 -> Canola | BK135: =$Z$77 -> 5.78 | BL135: =$AA$77 -> 0.01917493378 | BN135: =$B$77 -> Canola | BO135: =$AK$77 -> 113.6 | BP135: =$AL$77 -> -6.56 | BQ135: =$AM$77 -> -36.56 | BS135: =$B$77 -> Canola | BT135: =$AC$77 -> 0 | BU135: =$AD$77 -> 72.77510065 | BV135: =$AE$77 -> 30 | BW135: =SUM(BT135:BV135) -> 102.7751007
V136: 2 | W136: =$B$78 -> Winter Wheat | X136: =$C$78 -> 182.5896798 | Y136: =$D$78 -> 124.8336719 | Z136: =$E$78 -> 30 | AA136: =$F$78 -> 337.4233516 | AC136: =$B$78 -> Winter Wheat | AD136: =$Q$78 -> 36.5 | AE136: =$R$78 -> 61.5 | AF136: =$S$78 -> 67.5 | AH136: =$B$78 -> Winter Wheat | AI136: =$S$78 -> 67.5 | AJ136: =$T$78 -> 1.111111111 | AL136: =$B$78 -> Winter Wheat | AM136: =$H$78 -> 75 | AN136: =$I$78 -> 5 | AO136: =$J$78 -> 375 | AQ136: =$B$78 -> Winter Wheat | AR136: =$J$78 -> 375 | AS136: =$F$78 -> 337.4233516 | AT136: =$L$78 -> 192.4103202 | AU136: =$M$78 -> 67.57664837 | AV136: =$N$78 -> 37.57664837 | AX136: =$B$78 -> Winter Wheat | AY136: =$C$78 -> 182.5896798 | AZ136: =$W$78 -> 245.6784 | BA136: =$X$78 -> 1.34552183 | BB136: =$Y$78 -> 0.7281013564 | BD136: =$B$78 -> Winter Wheat | BE136: =$H$78 -> 75 | BF136: =$AG$78 -> 2.434529063 | BG136: =$AH$78 -> 4.098978022 | BH136: =$AI$78 -> 4.498978022 | BJ136: =$B$78 -> Winter Wheat | BK136: =$Z$78 -> 7.16 | BL136: =$AA$78 -> 0.02914379123 | BN136: =$B$78 -> Winter Wheat | BO136: =$AK$78 -> 138.04 | BP136: =$AL$78 -> 13.2 | BQ136: =$AM$78 -> -16.8 | BS136: =$B$78 -> Winter Wheat | BT136: =$AC$78 -> 0 | BU136: =$AD$78 -> 61.74495163 | BV136: =$AE$78 -> 30 | BW136: =SUM(BT136:BV136) -> 91.74495163
V137: 3 | W137: =$B$79 -> Wheat | X137: =$C$79 -> 192.29545 | Y137: =$D$79 -> 122.1657344 | Z137: =$E$79 -> 30 | AA137: =$F$79 -> 344.4611844 | AC137: =$B$79 -> Wheat | AD137: =$Q$79 -> 30.8 | AE137: =$R$79 -> 50.3 | AF137: =$S$79 -> 55.1 | AH137: =$B$79 -> Wheat | AI137: =$S$79 -> 55.1 | AJ137: =$T$79 -> 0.998185118 | AL137: =$B$79 -> Wheat | AM137: =$H$79 -> 55 | AN137: =$I$79 -> 6.25 | AO137: =$J$79 -> 343.75 | AQ137: =$B$79 -> Wheat | AR137: =$J$79 -> 343.75 | AS137: =$F$79 -> 344.4611844 | AT137: =$L$79 -> 151.45455 | AU137: =$M$79 -> 29.28881563 | AV137: =$N$79 -> -0.7111843665 | AX137: =$B$79 -> Wheat | AY137: =$C$79 -> 192.29545 | AZ137: =$W$79 -> 225.36 | BA137: =$X$79 -> 1.171946606 | BB137: =$Y$79 -> 0.6542391719 | BD137: =$B$79 -> Wheat | BE137: =$H$79 -> 55 | BF137: =$AG$79 -> 3.496280909 | BG137: =$AH$79 -> 5.717476079 | BH137: =$AI$79 -> 6.262930625 | BJ137: =$B$79 -> Wheat | BK137: =$Z$79 -> 5.5 | BL137: =$AA$79 -> 0.02440539581 | BN137: =$B$79 -> Wheat | BO137: =$AK$79 -> 101.61 | BP137: =$AL$79 -> -20.55 | BQ137: =$AM$79 -> -50.55 | BS137: =$B$79 -> Wheat | BT137: =$AC$79 -> 0 | BU137: =$AD$79 -> 89.10118437 | BV137: =$AE$79 -> 30 | BW137: 119.1011844
V138: 4 | W138: =$B$80 -> Flax | X138: =$C$80 -> 162.1966748 | Y138: =$D$80 -> 118.1638281 | Z138: =$E$80 -> 30 | AA138: =$F$80 -> 310.360503 | AC138: =$B$80 -> Flax | AD138: =$Q$80 -> 13 | AE138: =$R$80 -> 22.4 | AF138: =$S$80 -> 24.8 | AH138: =$B$80 -> Flax | AI138: =$S$80 -> 24.8 | AJ138: =$T$80 -> 1.008064516 | AL138: =$B$80 -> Flax | AM138: =$H$80 -> 25 | AN138: =$I$80 -> 12.5 | AO138: =$J$80 -> 312.5 | AQ138: =$B$80 -> Flax | AR138: =$J$80 -> 312.5 | AS138: =$F$80 -> 310.360503 | AT138: =$L$80 -> 150.3033252 | AU138: =$M$80 -> 32.13949703 | AV138: =$N$80 -> 2.139497035 | AX138: =$B$80 -> Flax | AY138: =$C$80 -> 162.1966748 | AZ138: =$W$80 -> 220.116 | BA138: =$X$80 -> 1.357093172 | BB138: =$Y$80 -> 0.7092268439 | BD138: =$B$80 -> Flax | BE138: =$H$80 -> 25 | BF138: =$AG$80 -> 6.487866994 | BG138: =$AH$80 -> 11.21442012 | BH138: =$AI$80 -> 12.41442012 | BJ138: =$B$80 -> Flax | BK138: =$Z$80 -> 8.01 | BL138: =$AA$80 -> 0.03638990351 | BN138: =$B$80 -> Flax | BO138: =$AK$80 -> 104.99 | BP138: =$AL$80 -> -13.17 | BQ138: =$AM$80 -> -43.17 | BS138: =$B$80 -> Flax | BT138: =$AC$80 -> 0 | BU138: =$AD$80 -> 60.24450297 | BV138: =$AE$80 -> 30 | BW138: 90.24450297
V139: 5 | W139: =$B$81 -> Oats | X139: =$C$81 -> 151.4697498 | Y139: =$D$81 -> 128.1685938 | Z139: =$E$81 -> 30 | AA139: =$F$81 -> 309.6383436 | AC139: =$B$81 -> Oats | AD139: =$Q$81 -> 47.3 | AE139: =$R$81 -> 87.4 | AF139: =$S$81 -> 96.8 | AH139: =$B$81 -> Oats | AI139: =$S$81 -> 96.8 | AJ139: =$T$81 -> 1.033057851 | AL139: =$B$81 -> Oats | AM139: =$H$81 -> 100 | AN139: =$I$81 -> 3.2 | AO139: =$J$81 -> 320 | AQ139: =$B$81 -> Oats | AR139: =$J$81 -> 320 | AS139: =$F$81 -> 309.6383436 | AT139: =$L$81 -> 168.5302502 | AU139: =$M$81 -> 40.36165642 | AV139: =$N$81 -> 10.36165642 | AX139: =$B$81 -> Oats | AY139: =$C$81 -> 151.4697498 | AZ139: =$W$81 -> 213.636 | BA139: =$X$81 -> 1.410420234 | BB139: =$Y$81 -> 0.6899533098 | BD139: =$B$81 -> Oats | BE139: =$H$81 -> 100 | BF139: =$AG$81 -> 1.514697498 | BG139: =$AH$81 -> 2.796383436 | BH139: =$AI$81 -> 3.096383436 | BJ139: =$B$81 -> Oats | BK139: =$Z$81 -> 9.55 | BL139: =$AA$81 -> 0.04470220375 | BN139: =$B$81 -> Oats | BO139: =$AK$81 -> 124.33 | BP139: =$AL$81 -> -6.51 | BQ139: =$AM$81 -> -36.51 | BS139: =$B$81 -> Oats | BT139: =$AC$81 -> 0 | BU139: =$AD$81 -> 66.00234358 | BV139: =$AE$81 -> 30 | BW139: 96.00234358
V140: 6 | W140: =$B$82 -> Soybeans | X140: =$C$82 -> 198.7325927 | Y140: =$D$82 -> 119.6311938 | Z140: =$E$82 -> 30 | AA140: =$F$82 -> 348.3637865 | AC140: =$B$82 -> Soybeans | AD140: =$Q$82 -> 17.3 | AE140: =$R$82 -> 27.7 | AF140: =$S$82 -> 30.3 | AH140: =$B$82 -> Soybeans | AI140: =$S$82 -> 30.3 | AJ140: =$T$82 -> 1.155115512 | AL140: =$B$82 -> Soybeans | AM140: =$H$82 -> 35 | AN140: =$I$82 -> 11.5 | AO140: =$J$82 -> 402.5 | AQ140: =$B$82 -> Soybeans | AR140: =$J$82 -> 402.5 | AS140: =$F$82 -> 348.3637865 | AT140: =$L$82 -> 203.7674073 | AU140: =$M$82 -> 84.13621355 | AV140: =$N$82 -> 54.13621355 | AX140: =$B$82 -> Soybeans | AY140: =$C$82 -> 198.7325927 | AZ140: =$W$82 -> 225.792 | BA140: =$X$82 -> 1.136159887 | BB140: =$Y$82 -> 0.6481500339 | BD140: =$B$82 -> Soybeans | BE140: =$H$82 -> 35 | BF140: =$AG$82 -> 5.678074077 | BG140: =$AH$82 -> 9.096108184 | BH140: =$AI$82 -> 9.953251041 | BJ140: =$B$82 -> Soybeans | BK140: =$Z$82 -> 13.89 | BL140: =$AA$82 -> 0.06151679422 | BN140: =$B$82 -> Soybeans | BO140: =$AK$82 -> 155.24 | BP140: =$AL$82 -> 35.61 | BQ140: =$AM$82 -> 5.61 | BS140: =$B$82 -> Soybeans | BT140: =$AC$82 -> 0 | BU140: =$AD$82 -> 92.57178645 | BV140: =$AE$82 -> 30 | BW140: 122.5717865
V141: 7 | W141: =$B$83 -> Hempseed | X141: =$C$83 -> 246.0415027 | Y141: =$D$83 -> 116.5721609 | Z141: =$E$83 -> 30 | AA141: =$F$83 -> 392.6136635 | AC141: =$B$83 -> Hempseed | AD141: =$Q$83 -> 361.8 | AE141: =$R$83 -> 533.3 | AF141: =$S$83 -> 577.4 | AH141: =$B$83 -> Hempseed | AI141: =$S$83 -> 577.4 | AJ141: =$T$83 -> 0.9958434361 | AL141: =$B$83 -> Hempseed | AM141: =$H$83 -> 575 | AN141: =$I$83 -> 0.68 | AO141: =$J$83 -> 391 | AQ141: =$B$83 -> Hempseed | AR141: =$J$83 -> 391 | AS141: =$F$83 -> 392.6136635 | AT141: =$L$83 -> 144.9584973 | AU141: =$M$83 -> 28.38633646 | AV141: =$N$83 -> -1.613663538 | AX141: =$B$83 -> Hempseed | AY141: =$C$83 -> 246.0415027 | AZ141: =$W$83 -> 295.36 | BA141: =$X$83 -> 1.200447879 | BB141: =$Y$83 -> 0.752291699 | BD141: =$B$83 -> Hempseed | BE141: =$H$83 -> 575 | BF141: =$AG$83 -> 0.4278982655 | BG141: =$AH$83 -> 0.6306324583 | BH141: =$AI$83 -> 0.6828063714 | BJ141: =$B$83 -> Hempseed | BK141: =$Z$83 -> 27.29 | BL141: =$AA$83 -> 0.09239572048 | BN141: =$B$83 -> Hempseed | BO141: =$AK$83 -> 88.26 | BP141: =$AL$83 -> -28.31 | BQ141: =$AM$83 -> -58.31 | BS141: =$B$83 -> Hempseed | BT141: =$AC$83 -> 0 | BU141: =$AD$83 -> 67.25366354 | BV141: =$AE$83 -> 30 | BW141: 97.25366354
V142: 8 | W142: =$B$84 -> Barley | X142: =$C$84 -> 176.3849211 | Y142: =$D$84 -> 125.5006563 | Z142: =$E$84 -> 30 | AA142: =$F$84 -> 331.8855773 | AC142: =$B$84 -> Barley | AD142: =$Q$84 -> 50.4 | AE142: =$R$84 -> 86.3 | AF142: =$S$84 -> 94.8 | AH142: =$B$84 -> Barley | AI142: =$S$84 -> 94.8 | AJ142: =$T$84 -> 0.8438818565 | AL142: =$B$84 -> Barley | AM142: =$H$84 -> 80 | AN142: =$I$84 -> 3.5 | AO142: =$J$84 -> 280 | AQ142: =$B$84 -> Barley | AR142: =$J$84 -> 280 | AS142: =$F$84 -> 331.8855773 | AT142: =$L$84 -> 103.6150789 | AU142: =$M$84 -> -21.88557732 | AV142: =$N$84 -> -51.88557732 | AX142: =$B$84 -> Barley | AY142: =$C$84 -> 176.3849211 | AZ142: =$W$84 -> 222.2352 | BA142: =$X$84 -> 1.259944437 | BB142: =$Y$84 -> 0.6696139127 | BD142: =$B$84 -> Barley | BE142: =$H$84 -> 80 | BF142: =$AG$84 -> 2.204811513 | BG142: =$AH$84 -> 3.773569716 | BH142: =$AI$84 -> 4.148569716 | BJ142: =$B$84 -> Barley | BK142: =$Z$84 -> 7.69 | BL142: =$AA$84 -> 0.03460297919 | BN142: =$B$84 -> Barley | BO142: =$AK$84 -> 122.13 | BP142: =$AL$84 -> -6.04 | BQ142: =$AM$84 -> -36.04 | BS142: =$B$84 -> Barley | BT142: =$AC$84 -> 0 | BU142: =$AD$84 -> 79.65037732 | BV142: =$AE$84 -> 30 | BW142: 109.6503773
V143: 9 | W143: =$B$85 -> Corn | X143: =$C$85 -> 311.7213799 | Y143: =$D$85 -> 130.8365313 | Z143: =$E$85 -> 30 | AA143: =$F$85 -> 472.5579111 | AC143: =$B$85 -> Corn | AD143: =$Q$85 -> 73.3 | AE143: =$R$85 -> 104.1 | AF143: =$S$85 -> 111.2 | AH143: =$B$85 -> Corn | AI143: =$S$85 -> 111.2 | AJ143: =$T$85 -> 1.034172662 | AL143: =$B$85 -> Corn | AM143: =$H$85 -> 115 | AN143: =$I$85 -> 4.25 | AO143: =$J$85 -> 488.75 | AQ143: =$B$85 -> Corn | AR143: =$J$85 -> 488.75 | AS143: =$F$85 -> 472.5579111 | AT143: =$L$85 -> 177.0286201 | AU143: =$M$85 -> 46.19208885 | AV143: =$N$85 -> 16.19208885 | AX143: =$B$85 -> Corn | AY143: =$C$85 -> 311.7213799 | AZ143: =$W$85 -> 297.528 | BA143: =$X$85 -> 0.9544677369 | BB143: =$Y$85 -> 0.6296117216 | BD143: =$B$85 -> Corn | BE143: =$H$85 -> 115 | BF143: =$AG$85 -> 2.710620695 | BG143: =$AH$85 -> 3.848329662 | BH143: =$AI$85 -> 4.109199227 | BJ143: =$B$85 -> Corn | BK143: =$Z$85 -> 26.64 | BL143: =$AA$85 -> 0.0895377914 | BN143: =$B$85 -> Corn | BO143: =$AK$85 -> 63.02 | BP143: =$AL$85 -> -62.49 | BQ143: =$AM$85 -> -92.49 | BS143: =$B$85 -> Corn | BT143: =$AC$85 -> 14.1933799 | BU143: =$AD$85 -> 130.8365313 | BV143: =$AE$85 -> 30 | BW143: 175.0299111
V144: 10 | W144: =$B$86 -> Navy Beans | X144: =$C$86 -> 291.2329435 | Y144: =$D$86 -> 118.6084844 | Z144: =$E$86 -> 30 | AA144: =$F$86 -> 439.8414279 | AC144: =$B$86 -> Navy Beans | AD144: =$Q$86 -> 832.1 | AE144: =$R$86 -> 1171 | AF144: =$S$86 -> 1256.7 | AH144: =$B$86 -> Navy Beans | AI144: =$S$86 -> 1256.7 | AJ144: =$T$86 -> 1.472109493 | AL144: =$B$86 -> Navy Beans | AM144: =$H$86 -> 1850 | AN144: =$I$86 -> 0.35 | AO144: =$J$86 -> 647.5 | AQ144: =$B$86 -> Navy Beans | AR144: =$J$86 -> 647.5 | AS144: =$F$86 -> 439.8414279 | AT144: =$L$86 -> 356.2670565 | AU144: =$M$86 -> 237.6585721 | AV144: =$N$86 -> 207.6585721 | AX144: =$B$86 -> Navy Beans | AY144: =$C$86 -> 291.2329435 | AZ144: =$W$86 -> 347.768 | BA144: =$X$86 -> 1.19412315 | BB144: =$Y$86 -> 0.7906667675 | BD144: =$B$86 -> Navy Beans | BE144: =$H$86 -> 1850 | BF144: =$AG$86 -> 0.1574232127 | BG144: =$AH$86 -> 0.221535907 | BH144: =$AI$86 -> 0.2377521232 | BJ144: =$B$86 -> Navy Beans | BK144: =$Z$86 -> 19.23 | BL144: =$AA$86 -> 0.05529548435 | BN144: =$B$86 -> Navy Beans | BO144: =$AK$86 -> 217.49 | BP144: =$AL$86 -> 98.88 | BQ144: =$AM$86 -> 68.88 | BS144: =$B$86 -> Navy Beans | BT144: =$AC$86 -> 0 | BU144: =$AD$86 -> 62.07342789 | BV144: =$AE$86 -> 30 | BW144: 92.07342789
V145: 11 | W145: =$B$87 -> Sunf. Confects | X145: =$C$87 -> 275.3671564 | Y145: =$D$87 -> 125.4400213 | Z145: =$E$87 -> 30 | AA145: =$F$87 -> 430.8071777 | AC145: =$B$87 -> Sunf. Confects | AD145: =$Q$87 -> 1019.9 | AE145: =$R$87 -> 1484.5 | AF145: =$S$87 -> 1595.6 | AH145: =$B$87 -> Sunf. Confects | AI145: =$S$87 -> 1595.6 | AJ145: =$T$87 -> 1.096766107 | AL145: =$B$87 -> Sunf. Confects | AM145: =$H$87 -> 1750 | AN145: =$I$87 -> 0.27 | AO145: =$J$87 -> 472.5 | AQ145: =$B$87 -> Sunf. Confects | AR145: =$J$87 -> 472.5 | AS145: =$F$87 -> 430.8071777 | AT145: =$L$87 -> 197.1328436 | AU145: =$M$87 -> 71.69282226 | AV145: =$N$87 -> 41.69282226 | AX145: =$B$87 -> Sunf. Confects | AY145: =$C$87 -> 275.3671564 | AZ145: =$W$87 -> 329.264 | BA145: =$X$87 -> 1.195727204 | BB145: =$Y$87 -> 0.7642955294 | BD145: =$B$87 -> Sunf. Confects | BE145: =$H$87 -> 1750 | BF145: =$AG$87 -> 0.1573526608 | BG145: =$AH$87 -> 0.229032673 | BH145: =$AI$87 -> 0.2461755301 | BJ145: =$B$87 -> Sunf. Confects | BK145: =$Z$87 -> 24.06 | BL145: =$AA$87 -> 0.07307206375 | BN145: =$B$87 -> Sunf. Confects | BO145: =$AK$87 -> 128.62 | BP145: =$AL$87 -> 3.18 | BQ145: =$AM$87 -> -26.82 | BS145: =$B$87 -> Sunf. Confects | BT145: =$AC$87 -> 0 | BU145: =$AD$87 -> 71.54317774 | BV145: =$AE$87 -> 30 | BW145: 101.5431777
V146: 12 | W146: =$B$88 -> Sunfl. Oil | X146: =$C$88 -> 225.2115623 | Y146: =$D$88 -> 126.0463707 | Z146: =$E$88 -> 30 | AA146: =$F$88 -> 381.257933 | AC146: =$B$88 -> Sunfl. Oil | AD146: =$Q$88 -> 1072.4 | AE146: =$R$88 -> 1672.7 | AF146: =$S$88 -> 1815.5 | AH146: =$B$88 -> Sunfl. Oil | AI146: =$S$88 -> 1815.5 | AJ146: =$T$88 -> 1.019003029 | AL146: =$B$88 -> Sunfl. Oil | AM146: =$H$88 -> 1850 | AN146: =$I$88 -> 0.21 | AO146: =$J$88 -> 388.5 | AQ146: =$B$88 -> Sunfl. Oil | AR146: =$J$88 -> 388.5 | AS146: =$F$88 -> 381.257933 | AT146: =$L$88 -> 163.2884377 | AU146: =$M$88 -> 37.24206697 | AV146: =$N$88 -> 7.242066973 | AX146: =$B$88 -> Sunfl. Oil | AY146: =$C$88 -> 225.2115623 | AZ146: =$W$88 -> 278.608 | BA146: =$X$88 -> 1.237094566 | BB146: =$Y$88 -> 0.7307598764 | BD146: =$B$88 -> Sunfl. Oil | BE146: =$H$88 -> 1850 | BF146: =$AG$88 -> 0.1217359796 | BG146: =$AH$88 -> 0.189869153 | BH146: =$AI$88 -> 0.2060853692 | BJ146: =$B$88 -> Sunfl. Oil | BK146: =$Z$88 -> 14.65 | BL146: =$AA$88 -> 0.05258284041 | BN146: =$B$88 -> Sunfl. Oil | BO146: =$AK$88 -> 106.96 | BP146: =$AL$88 -> -19.09 | BQ146: =$AM$88 -> -49.09 | BS146: =$B$88 -> Sunfl. Oil | BT146: =$AC$88 -> 0 | BU146: =$AD$88 -> 72.64993303 | BV146: =$AE$88 -> 30 | BW146: 102.649933
V147: 13 | W147: =$B$89 -> Peas | X147: =$C$89 -> 148.0782585 | Y147: =$D$89 -> 120.1647813 | Z147: =$E$89 -> 30 | AA147: =$F$89 -> 298.2430398 | AC147: =$B$89 -> Peas | AD147: =$Q$89 -> 21.2 | AE147: =$R$89 -> 38.3 | AF147: =$S$89 -> 42.6 | AH147: =$B$89 -> Peas | AI147: =$S$89 -> 42.6 | AJ147: =$T$89 -> 0.9389671362 | AL147: =$B$89 -> Peas | AM147: =$H$89 -> 40 | AN147: =$I$89 -> 7 | AO147: =$J$89 -> 280 | AQ147: =$B$89 -> Peas | AR147: =$J$89 -> 280 | AS147: =$F$89 -> 298.2430398 | AT147: =$L$89 -> 131.9217415 | AU147: =$M$89 -> 11.7569602 | AV147: =$N$89 -> -18.2430398 | AX147: =$B$89 -> Peas | AY147: =$C$89 -> 148.0782585 | AZ147: =$W$89 -> 237.744 | BA147: =$X$89 -> 1.605529416 | BB147: =$Y$89 -> 0.7971485275 | BD147: =$B$89 -> Peas | BE147: =$H$89 -> 40 | BF147: =$AG$89 -> 3.701956464 | BG147: =$AH$89 -> 6.706075995 | BH147: =$AI$89 -> 7.456075995 | BJ147: =$B$89 -> Peas | BK147: =$Z$89 -> 12.25 | BL147: =$AA$89 -> 0.05152601117 | BN147: =$B$89 -> Peas | BO147: =$AK$89 -> 91.32 | BP147: =$AL$89 -> -28.84 | BQ147: =$AM$89 -> -58.84 | BS147: =$B$89 -> Peas | BT147: =$AC$89 -> 0 | BU147: =$AD$89 -> 30.4990398 | BV147: =$AE$89 -> 30 | BW147: 60.4990398
V148: 14 | W148: =$B$90 -> Fall Rye | X148: =$C$90 -> 123.5983264 | Y148: =$D$90 -> 121.49875 | Z148: =$E$90 -> 30 | AA148: =$F$90 -> 275.0970764 | AC148: =$B$90 -> Fall Rye | AD148: =$Q$90 -> 22.5 | AE148: =$R$90 -> 44.6 | AF148: =$S$90 -> 50 | AH148: =$B$90 -> Fall Rye | AI148: =$S$90 -> 50 | AJ148: =$T$90 -> 1 | AL148: =$B$90 -> Fall Rye | AM148: =$H$90 -> 50 | AN148: =$I$90 -> 5.5 | AO148: =$J$90 -> 275 | AQ148: =$B$90 -> Fall Rye | AR148: =$J$90 -> 275 | AS148: =$F$90 -> 275.0970764 | AT148: =$L$90 -> 151.4016736 | AU148: =$M$90 -> 29.90292358 | AV148: =$N$90 -> -0.0970764238 | AX148: =$B$90 -> Fall Rye | AY148: =$C$90 -> 123.5983264 | AZ148: =$W$90 -> 202.5816 | BA148: =$X$90 -> 1.639031902 | BB148: =$Y$90 -> 0.7364004105 | BD148: =$B$90 -> Fall Rye | BE148: =$H$90 -> 50 | BF148: =$AG$90 -> 2.471966528 | BG148: =$AH$90 -> 4.901941528 | BH148: =$AI$90 -> 5.501941528 | BJ148: =$B$90 -> Fall Rye | BK148: =$Z$90 -> 10.96 | BL148: =$AA$90 -> 0.05410165583 | BN148: =$B$90 -> Fall Rye | BO148: =$AK$90 -> 111.53 | BP148: =$AL$90 -> -9.97 | BQ148: =$AM$90 -> -39.97 | BS148: =$B$90 -> Fall Rye | BT148: =$AC$90 -> 0 | BU148: =$AD$90 -> 42.51547642 | BV148: =$AE$90 -> 30 | BW148: 72.51547642
V149: 15 | W149: =$B$91 -> Canaryseed | X149: =$C$91 -> 154.4399737 | Y149: =$D$91 -> 117.6874107 | Z149: =$E$91 -> 30 | AA149: =$F$91 -> 302.1273845 | AC149: =$B$91 -> Canaryseed | AD149: =$Q$91 -> 643.5 | AE149: =$R$91 -> 1133.9 | AF149: =$S$91 -> 1258.9 | AH149: =$B$91 -> Canaryseed | AI149: =$S$91 -> 1258.9 | AJ149: =$T$91 -> 0.9532131226 | AL149: =$B$91 -> Canaryseed | AM149: =$H$91 -> 1200 | AN149: =$I$91 -> 0.24 | AO149: =$J$91 -> 288 | AQ149: =$B$91 -> Canaryseed | AR149: =$J$91 -> 288 | AS149: =$F$91 -> 302.1273845 | AT149: =$L$91 -> 133.5600263 | AU149: =$M$91 -> 15.87261554 | AV149: =$N$91 -> -14.12738446 | AX149: =$B$91 -> Canaryseed | AY149: =$C$91 -> 154.4399737 | AZ149: =$W$91 -> 264.16 | BA149: =$X$91 -> 1.710438001 | BB149: =$Y$91 -> 0.8743331905 | BD149: =$B$91 -> Canaryseed | BE149: =$H$91 -> 1200 | BF149: =$AG$91 -> 0.1286999781 | BG149: =$AH$91 -> 0.2267728204 | BH149: =$AI$91 -> 0.2517728204 | BJ149: =$B$91 -> Canaryseed | BK149: =$Z$91 -> 18.97 | BL149: =$AA$91 -> 0.07181253786 | BN149: =$B$91 -> Canaryseed | BO149: =$AK$91 -> 91.8 | BP149: =$AL$91 -> -25.89 | BQ149: =$AM$91 -> -55.89 | BS149: =$B$91 -> Canaryseed | BT149: =$AC$91 -> 0 | BU149: =$AD$91 -> 7.967384461 | BV149: =$AE$91 -> 30 | BW149: 37.96738446
V150: 16 | W150: =$B$92 -> Lentils | X150: =$C$92 -> 162.4796644 | Y150: =$D$92 -> 117.2745156 | Z150: =$E$92 -> 30 | AA150: =$F$92 -> 309.75418 | AC150: =$B$92 -> Lentils | AD150: =$Q$92 -> 677 | AE150: =$R$92 -> 1165.6 | AF150: =$S$92 -> 1290.6 | AH150: =$B$92 -> Lentils | AI150: =$S$92 -> 1290.6 | AJ150: =$T$92 -> 0.8523167519 | AL150: =$B$92 -> Lentils | AM150: =$H$92 -> 1100 | AN150: =$I$92 -> 0.24 | AO150: =$J$92 -> 264 | AQ150: =$B$92 -> Lentils | AR150: =$J$92 -> 264 | AS150: =$F$92 -> 309.75418 | AT150: =$L$92 -> 101.5203356 | AU150: =$M$92 -> -15.75418003 | AV150: =$N$92 -> -45.75418003 | AX150: =$B$92 -> Lentils | AY150: =$C$92 -> 162.4796644 | AZ150: =$W$92 -> 250.112 | BA150: =$X$92 -> 1.539343406 | BB150: =$Y$92 -> 0.8074531875 | BD150: =$B$92 -> Lentils | BE150: =$H$92 -> 1100 | BF150: =$AG$92 -> 0.1477087858 | BG150: =$AH$92 -> 0.2543219818 | BH150: =$AI$92 -> 0.2815947091 | BJ150: =$B$92 -> Lentils | BK150: =$Z$92 -> 26.41 | BL150: =$AA$92 -> 0.1055926945 | BN150: =$B$92 -> Lentils | BO150: =$AK$92 -> 63.24 | BP150: =$AL$92 -> -54.03 | BQ150: =$AM$92 -> -84.03 | BS150: =$B$92 -> Lentils | BT150: =$AC$92 -> 0 | BU150: =$AD$92 -> 29.64218003 | BV150: =$AE$92 -> 30 | BW150: 59.64218003
V151: 17 | W151: =$B$93 -> Buckwheat | X151: =$C$93 -> 140.4053619 | Y151: =$D$93 -> 117.0966531 | Z151: =$E$93 -> 30 | AA151: =$F$93 -> 287.502015 | AC151: =$B$93 -> Buckwheat | AD151: =$Q$93 -> 10.8 | AE151: =$R$93 -> 19.8 | AF151: =$S$93 -> 22.1 | AH151: =$B$93 -> Buckwheat | AI151: =$S$93 -> 22.1 | AJ151: =$T$93 -> 0.7692307692 | AL151: =$B$93 -> Buckwheat | AM151: =$H$93 -> 17 | AN151: =$I$93 -> 13 | AO151: =$J$93 -> 221 | AQ151: =$B$93 -> Buckwheat | AR151: =$J$93 -> 221 | AS151: =$F$93 -> 287.502015 | AT151: =$L$93 -> 80.59463811 | AU151: =$M$93 -> -36.50201501 | AV151: =$N$93 -> -66.50201501 | AX151: =$B$93 -> Buckwheat | AY151: =$C$93 -> 140.4053619 | AZ151: =$W$93 -> 180.5328 | BA151: =$X$93 -> 1.285797049 | BB151: =$Y$93 -> 0.6279357729 | BD151: =$B$93 -> Buckwheat | BE151: =$H$93 -> 17 | BF151: =$AG$93 -> 8.259138935 | BG151: =$AH$93 -> 15.14717735 | BH151: =$AI$93 -> 16.91188324 | BJ151: =$B$93 -> Buckwheat | BK151: =$Z$93 -> 21.07 | BL151: =$AA$93 -> 0.1167100937 | BN151: =$B$93 -> Buckwheat | BO151: =$AK$93 -> 48.55 | BP151: =$AL$93 -> -68.55 | BQ151: =$AM$93 -> -98.55 | BS151: =$B$93 -> Buckwheat | BT151: =$AC$93 -> 0 | BU151: =$AD$93 -> 76.96921501 | BV151: =$AE$93 -> 30 | BW151: 106.969215
B179: 80% Insured Value
B180: 70% Insured Value
B181: 50% Insured Value
B184: 80% Insured Value | C184: 2016 | D184: Avg 2,5,6,12
C185: ins.$/bu | D185: Manitoba | E185: RA #1 | F185: RA#2 | G185: RA#3 | H185: RA#4 | I185: RA#5 | J185: RA#6 | K185: RA#7 | L185: RA#8 | M185: RA#9 | N185: RA#10 | O185: RA#11 | P185: RA#12 | Q185: RA#32 | R185: RA#14 | S185: RA#15 | T185: RA#16
B186: Canola | C186: 10.89 | D186: 319.7304 | E186: 242.1936 | F186: 301.4352 | G186: 271.8144 | H186: 310.1472 | I186: 342.3816 | J186: 297.0792 | K186: 285.7536 | L186: 321.4728 | M186: 304.92 | N186: 329.3136 | O186: 285.7536 | P186: 338.0256 | Q186: 270.072 | R186: 228.2544 | S186: 248.292 | T186: 244.8072
B187: Wheat | C187: 6.26 | D187: 244.0148 | E187: 192.3072 | F187: 225.36 | G187: 209.3344 | H187: 230.368 | I187: 250.4 | J187: 222.856 | K187: 217.848 | L187: 253.9056 | M187: 229.8672 | N187: 264.4224 | O187: 230.8688 | P187: 277.4432 | Q187: 234.8752 | R187: 193.8096 | S187: 196.3136 | T187: 194.3104
B188: Winter wheat | C188: 5.17 | D188: 266.1516 | E188: 209.6952 | F188: 245.6784 | G188: 228.3072 | H188: 251.0552 | I188: 272.976 | J188: 243.1968 | K188: 237.4064 | L188: 276.6984 | M188: 250.6416 | N188: 290.7608 | O188: 251.8824 | P188: 302.7552 | Q188: 256.0184 | R188: 211.3496 | S188: 213.8312 | T188: 216.7264
B189: Soybeans | C189: 9.8 | D189: 229.712 | E189: 225.792 | F189: 225.792 | G189: 225.792 | H189: 238.336 | I189: 238.336 | J189: 188.16 | K189: 188.16 | L189: 188.16 | M189: 225.792 | N189: 238.336 | O189: 238.336 | P189: 266.56 | Q189: 238.336 | R189: 238.336 | S189: 238.336 | T189: 188.16
B190: Barley | C190: 4.14 | D190: 222.9804 | E190: 150.696 | F190: 222.2352 | G190: 173.5488 | H190: 202.3632 | I190: 230.5152 | J190: 196.0704 | K190: 188.4528 | L190: 172.5552 | M190: 196.4016 | N190: 178.1856 | O190: 220.5792 | P190: 243.1008 | Q190: 214.2864 | R190: 171.8928 | S190: 164.6064 | T190: 168.2496
B191: Oats | C191: 2.85 | D191: 218.424 | E191: 176.016 | F191: 213.636 | G191: 164.388 | H191: 191.748 | I191: 221.616 | J191: 191.292 | K191: 191.52 | L191: 194.028 | M191: 191.748 | N191: 198.36 | O191: 211.584 | P191: 247.152 | Q191: 222.072 | R191: 162.336 | S191: 186.276 | T191: 153.672
B192: Corn | C192: 4.83 | D192: 335.202 | E192: 297.528 | F192: 297.528 | G192: 297.528 | H192: 380.9904 | I192: 380.9904 | J192: 210.2016 | K192: 210.2016 | L192: 210.2016 | M192: 297.528 | N192: 380.9904 | O192: 380.9904 | P192: 452.088 | Q192: 380.9904 | R192: 380.9904 | S192: 380.9904 | T192: 210.2016
B193: Navy Beans | C193: 0.29 | D193: 330.89 | E193: 347.768 | F193: 347.768 | G193: 347.768 | H193: 347.768 | I193: 347.768 | J193: 278.168 | K193: 278.168 | L193: 278.168 | M193: 347.768 | N193: 349.856 | O193: 349.856 | P193: 349.856 | Q193: 270.512 | R193: 347.768 | S193: 347.768 | T193: 278.168
B194: Flaxseed | C194: 12.45 | D194: 228.831 | E194: 177.288 | F194: 220.116 | G194: 207.168 | H194: 234.06 | I194: 248.004 | J194: 228.084 | K194: 223.104 | L194: 239.04 | M194: 187.248 | N194: 208.164 | O194: 198.204 | P194: 219.12 | Q194: 190.236 | R194: 150.396 | S194: 148.404 | T194: 216.132
B195: Sunflowers Confection | C195: 0.26 | D195: 329.264 | E195: 329.264 | F195: 329.264 | G195: 329.264 | H195: 329.264 | I195: 329.264 | J195: 329.264 | K195: 263.12 | L195: 263.12 | M195: 329.264 | N195: 329.264 | O195: 329.264 | P195: 329.264 | Q195: 276.016 | R195: 329.264 | S195: 329.264 | T195: 263.12
B196: Sunflowers Oil | C196: 0.22 | D196: 278.608 | E196: 278.608 | F196: 278.608 | G196: 278.608 | H196: 278.608 | I196: 278.608 | J196: 278.608 | K196: 222.64 | L196: 222.64 | M196: 278.608 | N196: 278.608 | O196: 278.608 | P196: 278.608 | Q196: 233.552 | R196: 278.608 | S196: 278.608 | T196: 222.64
B197: Peas | C197: 7.62 | D197: 237.744 | E197: 237.744 | F197: 237.744 | G197: 237.744 | H197: 237.744 | I197: 237.744 | J197: 237.744 | K197: 237.744 | L197: 237.744 | M197: 237.744 | N197: 237.744 | O197: 237.744 | P197: 237.744 | Q197: 147.5232 | R197: 237.744 | S197: 237.744 | T197: 237.744
B198: Fall Rye | C198: 5.59 | D198: 202.5816 | E198: 202.5816 | F198: 202.5816 | G198: 202.5816 | H198: 202.5816 | I198: 202.5816 | J198: 202.5816 | K198: 202.5816 | L198: 202.5816 | M198: 202.5816 | N198: 202.5816 | O198: 202.5816 | P198: 202.5816 | Q198: 227.1776 | R198: 202.5816 | S198: 202.5816 | T198: 202.5816
B199: Canary Seed | C199: 0.26 | D199: 264.16 | E199: 264.16 | F199: 264.16 | G199: 264.16 | H199: 264.16 | I199: 264.16 | J199: 264.16 | K199: 264.16 | L199: 264.16 | M199: 264.16 | N199: 264.16 | O199: 264.16 | P199: 264.16 | Q199: 256.88 | R199: 264.16 | S199: 264.16 | T199: 264.16
B200: Lentils | C200: 0.32 | D200: 250.112 | E200: 250.112 | F200: 250.112 | G200: 250.112 | H200: 250.112 | I200: 250.112 | J200: 250.112 | K200: 250.112 | L200: 199.68 | M200: 250.112 | N200: 250.112 | O200: 250.112 | P200: 250.112 | Q200: 190.208 | R200: 199.68 | S200: 199.68 | T200: 199.68
B201: Buckwheat | C201: 13.93 | D201: 180.5328 | E201: 180.5328 | F201: 180.5328 | G201: 180.5328 | H201: 180.5328 | I201: 180.5328 | J201: 180.5328 | K201: 180.5328 | L201: 180.5328 | M201: 180.5328 | N201: 180.5328 | O201: 180.5328 | P201: 180.5328 | Q201: 105.868 | R201: 180.5328 | S201: 180.5328 | T201: 180.5328
B202: Hempseed | C202: 0.71 | D202: 295.36 | E202: 295.36 | F202: 295.36 | G202: 295.36 | H202: 295.36 | I202: 295.36 | J202: 295.36 | K202: 295.36 | L202: 295.36 | M202: 295.36 | N202: 295.36 | O202: 295.36 | P202: 295.36 | Q202: 295.36 | R202: 295.36 | S202: 295.36 | T202: 295.36
B204: 70% Insured Value | C204: =C184 -> 2016 | D204: Avg 2,5,6,12
C205: ins.$/bu | D205: Manitoba | E205: RA #1 | F205: RA#2 | G205: RA#3 | H205: RA#4 | I205: RA#5 | J205: RA#6 | K205: RA#7 | L205: RA#8 | M205: RA#9 | N205: RA#10 | O205: RA#11 | P205: RA#12 | Q205: RA#32 | R205: RA#14 | S205: RA#15 | T205: RA#16
B206: Canola | C206: =C186 -> 10.89 | D206: 279.7641 | E206: 211.9194 | F206: 263.7558 | G206: 237.8376 | H206: 271.3788 | I206: 299.5839 | J206: 259.9443 | K206: 250.0344 | L206: 281.2887 | M206: 266.805 | N206: 288.1494 | O206: 250.0344 | P206: 295.7724 | Q206: 236.313 | R206: 199.7226 | S206: 217.2555 | T206: 214.2063
B207: Wheat | C207: =C187 -> 6.26 | D207: 213.51295 | E207: 168.2688 | F207: 197.19 | G207: 183.1676 | H207: 201.572 | I207: 219.1 | J207: 194.999 | K207: 190.617 | L207: 222.1674 | M207: 201.1338 | N207: 231.3696 | O207: 202.0102 | P207: 242.7628 | Q207: 205.5158 | R207: 169.5834 | S207: 171.7744 | T207: 170.0216
B208: Winter wheat | C208: 5.17 | D208: 232.88265 | E208: 183.4833 | F208: 214.9686 | G208: 199.7688 | H208: 219.6733 | I208: 238.854 | J208: 212.7972 | K208: 207.7306 | L208: 242.1111 | M208: 219.3114 | N208: 254.4157 | O208: 220.3971 | P208: 264.9108 | Q208: 224.0161 | R208: 184.9309 | S208: 187.1023 | T208: 189.6356
B209: Soybeans | C209: 9.8 | D209: 200.998 | E209: 197.568 | F209: 197.568 | G209: 197.568 | H209: 208.544 | I209: 208.544 | J209: 164.64 | K209: 164.64 | L209: 164.64 | M209: 197.568 | N209: 208.544 | O209: 208.544 | P209: 233.24 | Q209: 208.544 | R209: 208.544 | S209: 208.544 | T209: 164.64
B210: Barley | C210: 4.14 | D210: 195.10785 | E210: 131.859 | F210: 194.4558 | G210: 151.8552 | H210: 177.0678 | I210: 201.7008 | J210: 171.5616 | K210: 164.8962 | L210: 150.9858 | M210: 171.8514 | N210: 155.9124 | O210: 193.0068 | P210: 212.7132 | Q210: 187.5006 | R210: 150.4062 | S210: 144.0306 | T210: 147.2184
B211: Oats | C211: 2.85 | D211: 191.121 | E211: 154.014 | F211: 186.9315 | G211: 143.8395 | H211: 167.7795 | I211: 193.914 | J211: 167.3805 | K211: 167.58 | L211: 169.7745 | M211: 167.7795 | N211: 173.565 | O211: 185.136 | P211: 216.258 | Q211: 194.313 | R211: 142.044 | S211: 162.9915 | T211: 134.463
B212: Corn | C212: 4.83 | D212: 293.30175 | E212: 260.337 | F212: 260.337 | G212: 260.337 | H212: 333.3666 | I212: 333.3666 | J212: 183.9264 | K212: 183.9264 | L212: 183.9264 | M212: 260.337 | N212: 333.3666 | O212: 333.3666 | P212: 395.577 | Q212: 333.3666 | R212: 333.3666 | S212: 333.3666 | T212: 183.9264
B213: Navy Beans | C213: 0.29 | D213: 289.52875 | E213: 304.297 | F213: 304.297 | G213: 304.297 | H213: 304.297 | I213: 304.297 | J213: 243.397 | K213: 243.397 | L213: 243.397 | M213: 304.297 | N213: 306.124 | O213: 306.124 | P213: 306.124 | Q213: 236.698 | R213: 304.297 | S213: 304.297 | T213: 243.397
B214: Flaxseed | C214: 12.45 | D214: 200.227125 | E214: 155.127 | F214: 192.6015 | G214: 181.272 | H214: 204.8025 | I214: 217.0035 | J214: 199.5735 | K214: 195.216 | L214: 209.16 | M214: 163.842 | N214: 182.1435 | O214: 173.4285 | P214: 191.73 | Q214: 166.4565 | R214: 131.5965 | S214: 129.8535 | T214: 189.1155
B215: Sunflowers Confection | C215: 0.26 | D215: 288.106 | E215: 288.106 | F215: 288.106 | G215: 288.106 | H215: 288.106 | I215: 288.106 | J215: 288.106 | K215: 230.23 | L215: 230.23 | M215: 288.106 | N215: 288.106 | O215: 288.106 | P215: 288.106 | Q215: 241.514 | R215: 288.106 | S215: 288.106 | T215: 230.23
